Workbook

Sheet Notes
B2: Non-sculpted Debt Payments Balance Sheet | K2: Instructions at www.edbodmer.com
B3: Ballon Payments Balance Sheet -- Add Balloon Interest | K3: Questions: e-mail edwardbodmer@gmail.com
B4: Grace Period
B5: CFADS and Changes in DSRA
B6: Debt Service and Changes in DSRA
B7: Change applied DSCR to Array
B8: Cash Sweep
B13: Place holder for dynamic goal seek when repayment schedule is given and DSCR drives debt
B14: Negative Equity
B16: Two Problems
B17: 1. DSCR Sizing: Does not take away balloon payment from repayment (repayment adds to non-balloon repayment)
B18: 2. Fixed Debt Size: The LLCR does not adjust for balloon payment. S.B. -- LLCR = PV CFADS/(Total Debt - Balloon)
D35: Simple Example with Balloon
D37: Project Cost | F37: 1000 | H37: LLCR Calculation
H38: PV CFADS | I38: =SUM(G44:H44) -> 1200 | L38: Note: Subtract the balloon debt
D39: Total Debt | F39: 800 | H39: Debt | I39: =F41 -> 650
D40: Balloon | F40: 150 | H40: LLCR | I40: =I38/I39 -> 1.846153846 | L40: LLCR = PV CFADS/(Debt - Balloon)
D41: Non-Balloon | F41: =F39-F40 -> 650
D43: Period | G43: 1 | H43: 2
D44: CFADS | G44: 600 | H44: =G44 -> 600
D45: DSCR | G45: =$I$40 -> 1.846153846 | H45: =G45 -> 1.846153846
D47: Debt Service | G47: =G44/G45 -> 325 | H47: =G47 -> 325 | P47: Note: Subtract the balloon debt
P49: LLCR = PV CFADS/(Debt - Balloon)
D52: Project Cost | F52: 1000 | H52: LLCR Calculation | P52: PV CFADS | R52: =NPV(J56,G59:H59) -> 1041.322314
H53: PV CFADS | J53: =R52 -> 1041.322314
D54: Total Debt | F54: 800 | H54: Debt - PV of Balloon | J54: =F54-F77 -> 676.0330579
D55: Balloon | F55: 150 | H55: LLCR | J55: =J53/J54 -> 1.540342298
D56: Non-Balloon | F56: =F54-F55 -> 650 | H56: Interest Rate | J56: 0.1
D58: Period | G58: 1 | H58: 2
D59: CFADS | G59: 600 | H59: =G59 -> 600
D60: DSCR | G60: =J55 -> 1.540342298 | H60: =G60 -> 1.540342298
D62: Debt Service | G62: =G59/G60-M68 -> 374.5238095 | H62: =H59/H60-N68 -> 374.5238095
D64: Balance | J64: Balloon
D65: Opening | G65: =F67 -> 650 | H65: =G67 -> 340.4761905 | J65: Opening | M65: =L67 -> 150 | N65: =M67 -> 150
D66: Less Repayment | G66: =G62-G68 -> 309.5238095 | H66: =H62-H68 -> 340.4761905 | J66: Less Repayment | M66: 0 | N66: =N65 -> 150
D67: Closing | F67: =F56 -> 650 | G67: =G65-G66 -> 340.4761905 | H67: =H65-H66 -> 0 | J67: Closing | L67: =F55 -> 150 | M67: =M65-M66 -> 150 | N67: =N65-N66 -> 0
D68: Interest | F68: =J56 -> 0.1 | G68: =$F$68*G65 -> 65 | H68: =$F$68*H65 -> 34.04761905 | J68: Interest | L68: =F68 -> 0.1 | M68: =M65*$L$68 -> 15 | N68: =N65*$L$68 -> 15
G69: =G68+G66 -> 374.5238095 | H69: =H68+H66 -> 374.5238095
F70: =NPV(F68,G69:H69) -> 650
D76: NPV Interest | F76: =NPV(L68,M68:N68) -> 26.03305785
D77: NPV Balloon | F77: =NPV(L68,M66:N66) -> 123.9669421
D81: Simple Example with Fees
H83: Debt Caclulation
D84: Project Cost | F84: 1000 | H84: PV CFADS | I84: =SUM(G91:H91) -> 1200
D85: Total Debt | F85: =I87 -> 585.7142857 | H85: PV DS | I85: =SUM(G96:H96) -> 685.7142857
H86: PV of Fees | I86: =SUM(G92:H92) -> 100 | L86: LLCR = PV CFADS/(Debt + PV Fees)
D87: Target | F87: 1.75 | H87: Debt | I87: =I85-I86 -> 585.7142857
D90: Period | G90: 1 | H90: 2 | L90: Two ways:
D91: CFADS | G91: 600 | H91: =G91 -> 600 | L91: 1. DS = CFADS/DSCR - Fee
D92: Fees | G92: 50 | H92: 50 | L92: PV of DS = Debt
L93: Actual Debt Service = Debt Service + Fees
D94: Target DSCR | G94: =F87 -> 1.75 | H94: =G94 -> 1.75
L95: 2. DS = CFADS/DSCR
D96: For Sculpting and Repayment | G96: =G91/G94 -> 342.8571429 | H96: =G96 -> 342.8571429 | L96: Debt = PV of DS - PV of Fees
D97: Repayment | F97: =SUM(G97:H97) -> 585.7142857 | G97: =G96-G92 -> 292.8571429 | H97: =H96-H92 -> 292.8571429 | L97: Repayment = DS - Interest - Fees
D99: Debt Service = CFADS/Target DSCR
D100: Repayment = Debt Service - Fees
D101: Debt = PV Debt Service - PV Fees
D105: Fixed Debt with Fees
D107: Project Cost | F107: 1000 | H107: LLCR Calculation
D108: Interest Rate | F108: 0.1 | H108: PV CFADS | I108: =NPV(F108,G114:H114) -> 1041.322314 | L108: Note: Subtract the balloon debt
D109: Total Debt | F109: 750 | H109: Debt | I109: =F109 -> 750
H110: PV Fees | I110: =NPV(F108,G115:H115) -> 86.7768595 | L110: LLCR = PV CFADS/(Debt + PV Fees)
D111: PV DS - PV Fees | F111: =NPV(F108,G119:H119)-I110 -> 750 | H111: Target | I111: =I108/(I109+I110) -> 1.244444444
D113: Period | G113: 1 | H113: 2 | L113: Two ways:
D114: CFADS | G114: 600 | H114: =G114 -> 600 | L114: 1. DS = CFADS/DSCR - Fee
D115: Fees | G115: 50 | H115: 50 | L115: PV of DS = Debt
L116: Actual Debt Service = Debt Service + Fees
D117: Target DSCR | G117: =I111 -> 1.244444444 | H117: =G117 -> 1.244444444
L118: 2. DS = CFADS/DSCR
D119: For Sculpting and Repayment | G119: =G114/G117 -> 482.1428571 | H119: =G119 -> 482.1428571 | L119: Debt = PV of DS - PV of Fees
D120: Repayment | F120: =SUM(G120:H120) -> 750 | G120: =G119-G115-G125 -> 357.1428571 | H120: =H119-H115-H125 -> 392.8571429 | L120: Repayment = DS - Interest - Fees
D122: Opening | G122: =F124 -> 750 | H122: =G124 -> 392.8571429
D123: Repayment | G123: =G120 -> 357.1428571 | H123: =H120 -> 392.8571429
D124: Closing | F124: =I109 -> 750 | G124: =G122-G123 -> 392.8571429 | H124: =H122-H123 -> 0
D125: Interest | F125: =F108 -> 0.1 | G125: =G122*$F$125 -> 75 | H125: =H122*$F$125 -> 39.28571429
D127: DSCR | G127: =G114/(G123+G115+G125) -> 1.244444444 | H127: =H114/(H123+H115+H125) -> 1.244444444
D130: LLCR = PV CFADS/(Debt + PV Fees)
D131: Sculpted Debt Service = CFADS/Target DSCR
D132: Repayment = Sculpted Debt Service - Fees
D136: DSRA Moves in CFADS; Sizing from DSCR
D138: Project Cost | F138: 1000 | H138: LLCR Calculation
D139: Interest Rate | F139: 0 | H139: PV CFADS | J139: =NPV(F139,G145:H145) -> 1200
D140: Total Debt | F140: =F160 -> 866.6666667 | H140: PV of Base | J140: =NPV(F139,G151:H151) -> 800
D141: DSRA | F141: 100 | H141: PV DSRA w/ DSCR | J141: =NPV(F139,G152:H152) -> 66.66666667
D142: PV DS - PV Fees | F142: =NPV(F139,G151:H151)-J141 -> 733.3333333 | H142: Target | J142: 1.5
D144: Period | G144: 1 | H144: 2
D145: CFADS without DSRA | G145: 600 | H145: =G145 -> 600 | J145: Divide the Analysis into Two Parts
D146: DSRA | G146: 0 | H146: =F141 -> 100
D147: Final CFADS | G147: =G145+G146 -> 600 | H147: =H145+H146 -> 700
J148: Total Sculpted Debt
D149: Target DSCR | G149: =J142 -> 1.5 | H149: =G149 -> 1.5 | J149: Debt = PV of Base DS + PV of DSRA/DSCR
J150: Repayment = Base Sculpted + DSRA Change/DSCR
D151: Base Sculpting | G151: =G145/G149 -> 400 | H151: =H145/H149 -> 400
D152: Added DSRA Sculpting | H152: =H146/H149 -> 66.66666667
D153: Total Debt Service | G153: =G151+G152 -> 400 | H153: =H151+H152 -> 466.6666667
D155: Base Repayment | F155: =SUM(G155:H155) -> 800 | G155: =G151-G161 -> 400 | H155: =H151-H161 -> 400
D156: DSRA Repayment | G156: =G152 -> 0 | H156: =H152 -> 66.66666667
D158: Opening | G158: =F160 -> 866.6666667 | H158: =G160 -> 466.6666667
D159: Repayment | G159: =G155+G156 -> 400 | H159: =H155+H156 -> 466.6666667
D160: Closing | F160: =J140+J141 -> 866.6666667 | G160: =G158-G159 -> 466.6666667 | H160: =H158-H159 -> 0
D161: Interest | F161: =F139 -> 0 | G161: =$F$161*G158 -> 0 | H161: =$F$161*H158 -> 0
D163: Calculated DSCR | G163: =(G145+G146)/(G159+G161) -> 1.5 | H163: =(H145+H146)/(H159+H161) -> 1.5
D166: LLCR = PV CFADS/(Debt + PV Fees)
D167: Sculpted Debt Service = CFADS/Target DSCR
D168: Repayment = Sculpted Debt Service - Fees
D171: DSRA Moves in CFADS with Fixed Debt
D173: Project Cost | F173: 1000 | H173: LLCR Calculation
D174: Interest Rate | F174: 0 | H174: PV CFADS | I174: =NPV(F174,G180:H180) -> 1200
D175: Total Debt | F175: 750 | H175: Debt | I175: =F175 -> 750
D176: DSRA | F176: 100 | H176: PV DSRA | I176: =NPV(F174,G181:H181) -> 100
D177: PV DS - PV Fees | F177: =NPV(F174,G186:H186)-I176 -> 592.3076923 | H177: Target | I177: =(I174+I176)/I175 -> 1.733333333
D179: Period | G179: 1 | H179: 2
D180: CFADS without DSRA | G180: 600 | H180: =G180 -> 600 | K180: LLCR = NPV(CFADS + DSRA)/Debt
D181: DSRA | G181: 0 | H181: 100 | K181: DS = (CFADS + DSRA)/LLCR
D182: Final CFADS | G182: =G180+G181 -> 600 | H182: =H180+H181 -> 700 | K182: DS = CFADS/LLCR + DSRA/LLCR
D184: Target DSCR | G184: =I177 -> 1.733333333 | H184: =G184 -> 1.733333333 | K184: Make same adjustment to repayment
D186: For Sculpting and Repayment | G186: =G180/G184 -> 346.1538462 | H186: =G186 -> 346.1538462
D187: DSRA Repayment | G187: =G181/G184 -> 0 | H187: =H181/H184 -> 57.69230769
D188: Repayment | F188: =SUM(G188:H188) -> 750 | G188: =G186+G187 -> 346.1538462 | H188: =H186+H187 -> 403.8461538
D190: Opening | G190: =F192 -> 750 | H190: =G192 -> 403.8461538
D191: Repayment | G191: =G188 -> 346.1538462 | H191: =H188 -> 403.8461538
D192: Closing | F192: =I175 -> 750 | G192: =G190-G191 -> 403.8461538 | H192: =H190-H191 -> 0
D193: Interest | F193: =F174 -> 0 | G193: =$F$193*G190 -> 0 | H193: =$F$193*H190 -> 0
D195: DSCR | G195: =G182/(G191+G193) -> 1.733333333 | H195: =H182/(H191+H193) -> 1.733333333
D198: LLCR = PV CFADS/(Debt + PV Fees)
D199: Sculpted Debt Service = CFADS/Target DSCR
D200: Repayment = Sculpted Debt Service - Fees
D203: Target Debt | G203: 400
D204: PV CFADS | G204: =NPV(F223,G210:K210) -> 758.1573539
D205: PV DSRA | G205: =NPV(F223,G211:K211) -> 94.76966924
D206: PV (CFADS+PV DSRA)/Debt | G206: =(G204+G205)/(G203-0) -> 2.132317558
D209: Period | G209: 1 | H209: 2 | I209: 2 | J209: 2 | K209: 2
D210: CFADS without DSRA | G210: 200 | H210: =G210 -> 200 | I210: =H210 -> 200 | J210: =I210 -> 200 | K210: =J210 -> 200
D211: DSRA Moves | G211: 25 | H211: 25 | I211: 25 | J211: 25 | K211: 25
D212: Final CFADS | G212: =G210+G211 -> 225 | H212: =H210+H211 -> 225 | I212: =I210+I211 -> 225 | J212: =J210+J211 -> 225 | K212: =K210+K211 -> 225
D214: Target DSCR | G214: =$G$206 -> 2.132317558 | H214: =G214 -> 2.132317558 | I214: =H214 -> 2.132317558 | J214: =I214 -> 2.132317558 | K214: =J214 -> 2.132317558
D216: For Sculpting and Repayment | G216: =G210/G214 -> 93.79465984 | H216: =G216 -> 93.79465984 | I216: =H216 -> 93.79465984 | J216: =I216 -> 93.79465984 | K216: =J216 -> 93.79465984
D217: DSRA Repayment | G217: =G211/G214 -> 11.72433248 | H217: =H211/H214 -> 11.72433248 | I217: =I211/I214 -> 11.72433248 | J217: =J211/J214 -> 11.72433248 | K217: =K211/K214 -> 11.72433248
D218: Repayment | F218: =SUM(G218:H218) -> 211.0379846 | G218: =G216+G217 -> 105.5189923 | H218: =H216+H217 -> 105.5189923 | I218: =I216+I217 -> 105.5189923 | J218: =J216+J217 -> 105.5189923 | K218: =K216+K217 -> 105.5189923
D220: Opening | G220: =F222 -> 400 | H220: =G222 -> 334.4810077 | I220: =H222 -> 262.4101161 | J220: =I222 -> 183.1321354 | K220: =J222 -> 95.92635665
D221: Repayment | G221: =G216-G223+G217 -> 65.51899232 | H221: =H216-H223+H217 -> 72.07089155 | I221: =I216-I223+I217 -> 79.2779807 | J221: =J216-J223+J217 -> 87.20577878 | K221: =K216-K223+K217 -> 95.92635665
D222: Closing | F222: =G203 -> 400 | G222: =G220-G221 -> 334.4810077 | H222: =H220-H221 -> 262.4101161 | I222: =I220-I221 -> 183.1321354 | J222: =J220-J221 -> 95.92635665 | K222: =K220-K221 -> -1.847411113e-13
D223: Interest | F223: 0.1 | G223: =G220*$F$223 -> 40 | H223: =H220*$F$223 -> 33.44810077 | I223: =I220*$F$223 -> 26.24101161 | J223: =J220*$F$223 -> 18.31321354 | K223: =K220*$F$223 -> 9.592635665
D225: DSCR | H225: =H212/(H221+H223) -> 2.132317558 | I225: =I212/(I221+I223) -> 2.132317558 | J225: =J212/(J221+J223) -> 2.132317558 | K225: =K212/(K221+K223) -> 2.132317558
D228: LLCR = PV CFADS/(Debt + PV Fees)
D229: Sculpted Debt Service = CFADS/Target DSCR
D230: Repayment = Sculpted Debt Service - Fees
D233: DSRA Moves in Debt Service; Sizing from DSCR
D235: Project Cost | F235: 1000 | H235: LLCR Calculation
D236: Interest Rate | F236: 0 | H236: PV CFADS | I236: =NPV(F236,G242:H242) -> 1200
D237: Total Debt | F237: =F257 -> 900 | H237: PV of Base | I237: =NPV(F236,G248:H248) -> 800
D238: DSRA | F238: 100 | H238: PV DSRA | I238: =NPV(F236,G243:H243) -> 100
D239: PV DS - PV Fees | F239: =NPV(F236,G248:H248)-I238 -> 700 | H239: Target | I239: 1.5
D241: Period | G241: 1 | H241: 2
D242: CFADS without DSRA | G242: 600 | H242: =G242 -> 600 | J242: Divide the Analysis into Two Parts
D243: DSRA | G243: 0 | H243: 100
D244: Final CFADS | G244: =G242 -> 600 | H244: =H242 -> 600
J245: Total Sculpted Debt
D246: Target DSCR | G246: =I239 -> 1.5 | H246: =G246 -> 1.5 | J246: Debt = PV of Base DS + PV of DSRA
J247: Repayment = Base Sculpted + DSRA Change
D248: Base Sculpting | G248: =G242/G246 -> 400 | H248: =H242/H246 -> 400
D249: DSRA Change | H249: =H243 -> 100
D250: Total Debt Service | G250: =G248-G249 -> 400 | H250: =H248-H249 -> 300
D252: Base Repayment | F252: =SUM(G252:H252) -> 800 | G252: =G248-G258 -> 400 | H252: =H248-H258 -> 400
D253: DSRA Repayment | G253: =G249 -> 0 | H253: =H249 -> 100
D255: Opening | G255: =F257 -> 900 | H255: =G257 -> 500
D256: Repayment | G256: =G252+G253 -> 400 | H256: =H252+H253 -> 500
D257: Closing | F257: =I237+I238 -> 900 | G257: =G255-G256 -> 500 | H257: =H255-H256 -> 0
D258: Interest | F258: =F236 -> 0 | G258: =$F$161*G255 -> 0 | H258: =$F$161*H255 -> 0
D260: Calculated DSCR | G260: =(G242+0)/(G256+G258-G253) -> 1.5 | H260: =(H242+0)/(H256+H258-H253) -> 1.5
D263: Sculpted Debt Service without Adjustment = CFADS/Target DSCR
D264: Repayment = Sculpted Debt Service + DSRA Change
D268: DSRA Moves in Debt Service; Sizing from DSCR
D271: Total Debt Target | F271: 850 | H271: LLCR Calculation
D272: Project Cost | F272: 1000 | H272: PV CFADS | I272: =NPV(F273,G278:H278) -> 1200
D273: Interest Rate | F273: 0 | H273: PV of Base | I273: =NPV(F294,G278:H278) -> 1200
D274: DSRA | F274: 100 | H274: PV DSRA | I274: =NPV(F273,G279:H279) -> 100
D275: PV DS - PV Fees | F275: =NPV(F273,G284:H284)-I274 -> 650 | H275: LLCR | I275: =I272/(F271-I274) -> 1.6
D277: Period | G277: 1 | H277: 2
D278: CFADS without DSRA | G278: 600 | H278: =G278 -> 600 | J278: LLCR = PV CFADS/(Debt - PV Cfads)
D279: DSRA | G279: 0 | H279: =F274 -> 100
D280: Final CFADS | G280: =G278 -> 600 | H280: =H278 -> 600
J281: Total Sculpted Debt
D282: Target DSCR | G282: =I275 -> 1.6 | H282: =G282 -> 1.6 | J282: Debt = PV of Base DS + PV of DSRA
J283: Repayment = Base Sculpted + DSRA Change
D284: Base Sculpting | G284: =G278/G282 -> 375 | H284: =H278/H282 -> 375
D285: Added DSRA Sculpting | H285: =H279 -> 100
D286: Total Debt Service | G286: =G284-G285 -> 375 | H286: =H284-H285 -> 275
D288: Base Repayment | F288: =SUM(G288:H288) -> 750 | G288: =G284-G294 -> 375 | H288: =H284-H294 -> 375
D289: DSRA Repayment | G289: =G285 -> 0 | H289: =H285 -> 100
D291: Opening | G291: =F293 -> 1300 | H291: =G293 -> 925
D292: Repayment | G292: =G288+G289 -> 375 | H292: =H288+H289 -> 475
D293: Closing | F293: =I273+I274 -> 1300 | G293: =G291-G292 -> 925 | H293: =H291-H292 -> 450
D294: Interest | F294: =F273 -> 0 | G294: =$F$161*G291 -> 0 | H294: =$F$161*H291 -> 0
D296: Calculated DSCR | G296: =(G278+G279)/(G292+G294-G289) -> 1.6 | H296: =(H278+H279)/(H292+H294-H289) -> 1.866666667
D299: LLCR = PV CFADS/(Debt + PV Fees)
D300: Sculpted Debt Service = CFADS/Target DSCR
D301: Repayment = Sculpted Debt Service - Fees

Sheet Parallel Model
A1: Time Line | E1: Instructions
B2: Period Number | E2: TRUE | G2: =G552 -> 0 | I2: 1 | J2: 2 | K2: 3 | L2: 4 | M2: 5 | N2: 6 | O2: 7 | P2: 8 | Q2: 9 | R2: 10 | S2: 11 | T2: 12 | U2: 13 | V2: 14 | W2: 15 | X2: 16 | Y2: 17 | Z2: 18 | AA2: 19 | AB2: 20 | AC2: 21 | AD2: 22 | AE2: 23 | AF2: 24 | AG2: 25 | AH2: 26 | AI2: 27 | AJ2: 28 | AK2: 29 | AL2: 30 | AM2: 31 | AN2: 32 | AO2: 33 | AP2: 34 | AQ2: 35 | AR2: 36 | AS2: 37 | AT2: 38 | AU2: 39 | AV2: 40 | AW2: 41 | AX2: 42 | AY2: 43 | AZ2: 44 | BA2: 45 | BB2: 46 | BC2: 47 | BD2: 48 | BE2: 49 | BF2: 50 | BG2: 51 | BH2: 52 | BI2: 53 | BJ2: 54 | BK2: 55 | BL2: 56 | BM2: 57 | BN2: 58 | BO2: 59 | BP2: 60 | BQ2: 61 | BR2: 62 | BS2: 63 | BT2: 64 | BU2: 65 | BV2: 66 | BW2: 67 | BX2: 68 | BY2: 69 | BZ2: 70 | CA2: 71 | CB2: 72 | CC2: 73 | CD2: 74 | CE2: 75 | CF2: 76 | CG2: 77 | CH2: 78 | CI2: 79 | CJ2: 80 | CK2: 81 | CL2: 82 | CM2: 83 | CN2: 84 | CO2: 85 | CP2: 86 | CQ2: 87 | CR2: 88 | CS2: 89 | CT2: 90 | CU2: 91 | CV2: 92 | CW2: 93 | CX2: 94 | CY2: 95 | CZ2: 96 | DA2: 97 | DB2: 98 | DC2: 99 | DD2: 100 | DE2: 101 | DF2: 102 | DG2: 103 | DH2: 104 | DI2: 105 | DJ2: 106 | DK2: 107 | DL2: 108 | DM2: 109 | DN2: 110 | DO2: 111 | DP2: 112 | DQ2: 113 | DR2: 114 | DS2: 115 | DT2: 116 | DU2: 117 | DV2: 118 | DW2: 119 | DX2: 120 | DY2: 121 | DZ2: 122 | EA2: 123 | EB2: 124 | EC2: 125 | ED2: 126 | EE2: 127 | EF2: 128 | EG2: 129 | EH2: 130 | EI2: 131 | EJ2: 132 | EK2: 133 | EL2: 134 | EM2: 135 | EN2: 136 | EO2: 137 | EP2: 138 | EQ2: 139 | ER2: 140 | ES2: 141 | ET2: 142 | EU2: 143 | EV2: 144 | EW2: 145 | EX2: 146 | EY2: 147 | EZ2: 148 | FA2: 149 | FB2: 150 | FC2: 151 | FD2: 152 | FE2: 153 | FF2: 154 | FG2: 155 | FH2: 156 | FI2: 157 | FJ2: 158 | FK2: 159 | FL2: 160 | FM2: 161 | FN2: 162 | FO2: 163 | FP2: 164 | FQ2: 165 | FR2: 166 | FS2: 167 | FT2: 168 | FU2: 169 | FV2: 170 | FW2: 171 | FX2: 172 | FY2: 173 | FZ2: 174 | GA2: 175 | GB2: 176 | GC2: 177 | GD2: 178 | GE2: 179 | GF2: 180 | GG2: 181 | GH2: 182 | GI2: 183 | GJ2: 184 | GK2: 185 | GL2: 186 | GM2: 187 | GN2: 188 | GO2: 189 | GP2: 190 | GQ2: 191 | GR2: 192 | GS2: 193 | GT2: 194 | GU2: 195 | GV2: 196 | GW2: 197 | GX2: 198 | GY2: 199 | GZ2: 200 | HA2: 201 | HB2: 202 | HC2: 203 | HD2: 204 | HE2: 205 | HF2: 206 | HG2: 207 | HH2: 208 | HI2: 209 | HJ2: 210 | HK2: 211 | HL2: 212 | HM2: 213 | HN2: 214 | HO2: 215 | HP2: 216 | HQ2: 217 | HR2: 218 | HS2: 219 | HT2: 220 | HU2: 221 | HV2: 222 | HW2: 223 | HX2: 224 | HY2: 225 | HZ2: 226 | IA2: 227 | IB2: 228 | IC2: 229 | ID2: 230 | IE2: 231 | IF2: 232 | IG2: 233 | IH2: 234 | II2: 235 | IJ2: 236 | IK2: 237 | IL2: 238 | IM2: 239 | IN2: 240 | IO2: 241 | IP2: 242 | IQ2: 243 | IR2: 244 | IS2: 245 | IT2: 246 | IU2: 247 | IV2: 248 | IW2: 249 | IX2: 250 | IY2: 251 | IZ2: 252 | JA2: 253 | JB2: 254 | JC2: 255 | JD2: 256 | JE2: 257 | JF2: 258 | JG2: 259 | JH2: 260 | JI2: 261 | JJ2: 262 | JK2: 263 | JL2: 264 | JM2: 265 | JN2: 266 | JO2: 267 | JP2: 268 | JQ2: 269 | JR2: 270 | JS2: 271 | JT2: 272 | JU2: 273 | JV2: 274 | JW2: 275 | JX2: 276 | JY2: 277 | JZ2: 278 | KA2: 279 | KB2: 280 | KC2: 281 | KD2: 282 | KE2: 283 | KF2: 284 | KG2: 285 | KH2: 286 | KI2: 287 | KJ2: 288 | KK2: 289 | KL2: 290 | KM2: 291 | KN2: 292 | KO2: 293 | KP2: 294 | KQ2: 295 | KR2: 296 | KS2: 297 | KT2: 298 | KU2: 299 | KV2: 300
B3: Start of Period | E3: Instructions at www.edbodmer.com | I3: ='Financial Model'!I5 -> 2018-01-01 | J3: ='Financial Model'!J5 -> 2018-02-01 | K3: ='Financial Model'!K5 -> 2018-03-01 | L3: ='Financial Model'!L5 -> 2018-04-01 | M3: ='Financial Model'!M5 -> 2018-05-01 | N3: ='Financial Model'!N5 -> 2018-06-01 | O3: ='Financial Model'!O5 -> 2018-07-01 | P3: ='Financial Model'!P5 -> 2018-08-01 | Q3: ='Financial Model'!Q5 -> 2018-09-01 | R3: ='Financial Model'!R5 -> 2018-10-01 | S3: ='Financial Model'!S5 -> 2018-11-01 | T3: ='Financial Model'!T5 -> 2018-12-01 | U3: ='Financial Model'!U5 -> 2019-01-01 | V3: ='Financial Model'!V5 -> 2019-02-01 | W3: ='Financial Model'!W5 -> 2019-03-01 | X3: ='Financial Model'!X5 -> 2019-04-01 | Y3: ='Financial Model'!Y5 -> 2019-05-01 | Z3: ='Financial Model'!Z5 -> 2019-06-01 | AA3: ='Financial Model'!AA5 -> 2019-07-01 | AB3: ='Financial Model'!AB5 -> 2019-08-01 | AC3: ='Financial Model'!AC5 -> 2019-09-01 | AD3: ='Financial Model'!AD5 -> 2019-10-01 | AE3: ='Financial Model'!AE5 -> 2019-11-01 | AF3: ='Financial Model'!AF5 -> 2019-12-01 | AG3: ='Financial Model'!AG5 -> 2020-01-01 | AH3: ='Financial Model'!AH5 -> 2020-02-01 | AI3: ='Financial Model'!AI5 -> 2020-03-01 | AJ3: ='Financial Model'!AJ5 -> 2020-04-01 | AK3: ='Financial Model'!AK5 -> 2020-05-01 | AL3: ='Financial Model'!AL5 -> 2020-06-01 | AM3: ='Financial Model'!AM5 -> 2020-07-01 | AN3: ='Financial Model'!AN5 -> 2020-08-01 | AO3: ='Financial Model'!AO5 -> 2020-09-01 | AP3: ='Financial Model'!AP5 -> 2020-10-01 | AQ3: ='Financial Model'!AQ5 -> 2020-11-01 | AR3: ='Financial Model'!AR5 -> 2020-12-01 | AS3: ='Financial Model'!AS5 -> 2021-01-01 | AT3: ='Financial Model'!AT5 -> 2021-02-01 | AU3: ='Financial Model'!AU5 -> 2021-03-01 | AV3: ='Financial Model'!AV5 -> 2021-04-01 | AW3: ='Financial Model'!AW5 -> 2021-05-01 | AX3: ='Financial Model'!AX5 -> 2021-06-01 | AY3: ='Financial Model'!AY5 -> 2021-07-01 | AZ3: ='Financial Model'!AZ5 -> 2021-08-01 | BA3: ='Financial Model'!BA5 -> 2021-09-01 | BB3: ='Financial Model'!BB5 -> 2021-10-01 | BC3: ='Financial Model'!BC5 -> 2021-11-01 | BD3: ='Financial Model'!BD5 -> 2021-12-01 | BE3: ='Financial Model'!BE5 -> 2022-01-01 | BF3: ='Financial Model'!BF5 -> 2022-02-01 | BG3: ='Financial Model'!BG5 -> 2022-03-01 | BH3: ='Financial Model'!BH5 -> 2022-04-01 | BI3: ='Financial Model'!BI5 -> 2022-10-01 | BJ3: ='Financial Model'!BJ5 -> 2023-04-01 | BK3: ='Financial Model'!BK5 -> 2023-10-01 | BL3: ='Financial Model'!BL5 -> 2024-04-01 | BM3: ='Financial Model'!BM5 -> 2024-10-01 | BN3: ='Financial Model'!BN5 -> 2025-04-01 | BO3: ='Financial Model'!BO5 -> 2025-10-01 | BP3: ='Financial Model'!BP5 -> 2026-04-01 | BQ3: ='Financial Model'!BQ5 -> 2026-10-01 | BR3: ='Financial Model'!BR5 -> 2027-04-01 | BS3: ='Financial Model'!BS5 -> 2027-10-01 | BT3: ='Financial Model'!BT5 -> 2028-04-01 | BU3: ='Financial Model'!BU5 -> 2028-10-01 | BV3: ='Financial Model'!BV5 -> 2029-04-01 | BW3: ='Financial Model'!BW5 -> 2029-10-01 | BX3: ='Financial Model'!BX5 -> 2030-04-01 | BY3: ='Financial Model'!BY5 -> 2030-10-01 | BZ3: ='Financial Model'!BZ5 -> 2031-04-01 | CA3: ='Financial Model'!CA5 -> 2031-10-01 | CB3: ='Financial Model'!CB5 -> 2032-04-01 | CC3: ='Financial Model'!CC5 -> 2032-10-01 | CD3: ='Financial Model'!CD5 -> 2033-04-01 | CE3: ='Financial Model'!CE5 -> 2033-10-01 | CF3: ='Financial Model'!CF5 -> 2034-04-01 | CG3: ='Financial Model'!CG5 -> 2034-10-01 | CH3: ='Financial Model'!CH5 -> 2035-04-01 | CI3: ='Financial Model'!CI5 -> 2035-10-01 | CJ3: ='Financial Model'!CJ5 -> 2036-04-01 | CK3: ='Financial Model'!CK5 -> 2036-10-01 | CL3: ='Financial Model'!CL5 -> 2037-04-01 | CM3: ='Financial Model'!CM5 -> 2037-10-01 | CN3: ='Financial Model'!CN5 -> 2038-04-01 | CO3: ='Financial Model'!CO5 -> 2038-10-01 | CP3: ='Financial Model'!CP5 -> 2039-04-01 | CQ3: ='Financial Model'!CQ5 -> 2039-10-01 | CR3: ='Financial Model'!CR5 -> 2040-04-01 | CS3: ='Financial Model'!CS5 -> 2040-10-01 | CT3: ='Financial Model'!CT5 -> 2041-04-01 | CU3: ='Financial Model'!CU5 -> 2041-10-01 | CV3: ='Financial Model'!CV5 -> 2042-04-01 | CW3: ='Financial Model'!CW5 -> 2042-10-01 | CX3: ='Financial Model'!CX5 -> 2043-04-01 | CY3: ='Financial Model'!CY5 -> 2043-10-01 | CZ3: ='Financial Model'!CZ5 -> 2044-04-01 | DA3: ='Financial Model'!DA5 -> 2044-10-01 | DB3: ='Financial Model'!DB5 -> 2045-04-01 | DC3: ='Financial Model'!DC5 -> 2045-10-01 | DD3: ='Financial Model'!DD5 -> 2046-04-01 | DE3: ='Financial Model'!DE5 -> 2046-10-01 | DF3: ='Financial Model'!DF5 -> 2047-04-01 | DG3: ='Financial Model'!DG5 -> 2047-10-01 | DH3: ='Financial Model'!DH5 -> 2048-04-01 | DI3: ='Financial Model'!DI5 -> 2048-10-01 | DJ3: ='Financial Model'!DJ5 -> 2049-04-01 | DK3: ='Financial Model'!DK5 -> 2049-10-01 | DL3: ='Financial Model'!DL5 -> 2050-04-01 | DM3: ='Financial Model'!DM5 -> 2050-10-01 | DN3: ='Financial Model'!DN5 -> 2051-04-01 | DO3: ='Financial Model'!DO5 -> 2051-10-01 | DP3: ='Financial Model'!DP5 -> 2052-04-01 | DQ3: ='Financial Model'!DQ5 -> 2052-10-01 | DR3: ='Financial Model'!DR5 -> 2053-04-01 | DS3: ='Financial Model'!DS5 -> 2053-10-01 | DT3: ='Financial Model'!DT5 -> 2054-04-01 | DU3: ='Financial Model'!DU5 -> 2054-10-01 | DV3: ='Financial Model'!DV5 -> 2055-04-01 | DW3: ='Financial Model'!DW5 -> 2055-10-01 | DX3: ='Financial Model'!DX5 -> 2056-04-01 | DY3: ='Financial Model'!DY5 -> 2056-10-01 | DZ3: ='Financial Model'!DZ5 -> 2057-04-01 | EA3: ='Financial Model'!EA5 -> 2057-10-01 | EB3: ='Financial Model'!EB5 -> 2058-04-01 | EC3: ='Financial Model'!EC5 -> 2058-10-01 | ED3: ='Financial Model'!ED5 -> 2059-04-01 | EE3: ='Financial Model'!EE5 -> 2059-10-01 | EF3: ='Financial Model'!EF5 -> 2060-04-01 | EG3: ='Financial Model'!EG5 -> 2060-10-01 | EH3: ='Financial Model'!EH5 -> 2061-04-01 | EI3: ='Financial Model'!EI5 -> 2061-10-01 | EJ3: ='Financial Model'!EJ5 -> 2062-04-01 | EK3: ='Financial Model'!EK5 -> 2062-10-01 | EL3: ='Financial Model'!EL5 -> 2063-04-01 | EM3: ='Financial Model'!EM5 -> 2063-10-01 | EN3: ='Financial Model'!EN5 -> 2064-04-01 | EO3: ='Financial Model'!EO5 -> 2064-10-01 | EP3: ='Financial Model'!EP5 -> 2065-04-01 | EQ3: ='Financial Model'!EQ5 -> 2065-10-01 | ER3: ='Financial Model'!ER5 -> 2066-04-01 | ES3: ='Financial Model'!ES5 -> 2066-10-01 | ET3: ='Financial Model'!ET5 -> 2067-04-01 | EU3: ='Financial Model'!EU5 -> 2067-10-01 | EV3: ='Financial Model'!EV5 -> 2068-04-01 | EW3: ='Financial Model'!EW5 -> 2068-10-01 | EX3: ='Financial Model'!EX5 -> 2069-04-01 | EY3: ='Financial Model'!EY5 -> 2069-10-01 | EZ3: ='Financial Model'!EZ5 -> 2070-04-01 | FA3: ='Financial Model'!FA5 -> 2070-10-01 | FB3: ='Financial Model'!FB5 -> 2071-04-01 | FC3: ='Financial Model'!FC5 -> 2071-10-01 | FD3: ='Financial Model'!FD5 -> 2072-04-01 | FE3: ='Financial Model'!FE5 -> 2072-10-01 | FF3: ='Financial Model'!FF5 -> 2073-04-01 | FG3: ='Financial Model'!FG5 -> 2073-10-01 | FH3: ='Financial Model'!FH5 -> 2074-04-01 | FI3: ='Financial Model'!FI5 -> 2074-10-01 | FJ3: ='Financial Model'!FJ5 -> 2075-04-01 | FK3: ='Financial Model'!FK5 -> 2075-10-01 | FL3: ='Financial Model'!FL5 -> 2076-04-01 | FM3: ='Financial Model'!FM5 -> 2076-10-01 | FN3: ='Financial Model'!FN5 -> 2077-04-01 | FO3: ='Financial Model'!FO5 -> 2077-10-01 | FP3: ='Financial Model'!FP5 -> 2078-04-01 | FQ3: ='Financial Model'!FQ5 -> 2078-10-01 | FR3: ='Financial Model'!FR5 -> 2079-04-01 | FS3: ='Financial Model'!FS5 -> 2079-10-01 | FT3: ='Financial Model'!FT5 -> 2080-04-01 | FU3: ='Financial Model'!FU5 -> 2080-10-01 | FV3: ='Financial Model'!FV5 -> 2081-04-01 | FW3: ='Financial Model'!FW5 -> 2081-10-01 | FX3: ='Financial Model'!FX5 -> 2082-04-01 | FY3: ='Financial Model'!FY5 -> 2082-10-01 | FZ3: ='Financial Model'!FZ5 -> 2083-04-01 | GA3: ='Financial Model'!GA5 -> 2083-10-01 | GB3: ='Financial Model'!GB5 -> 2084-04-01 | GC3: ='Financial Model'!GC5 -> 2084-10-01 | GD3: ='Financial Model'!GD5 -> 2085-04-01 | GE3: ='Financial Model'!GE5 -> 2085-10-01 | GF3: ='Financial Model'!GF5 -> 2086-04-01 | GG3: ='Financial Model'!GG5 -> 2086-10-01 | GH3: ='Financial Model'!GH5 -> 2087-04-01 | GI3: ='Financial Model'!GI5 -> 2087-10-01 | GJ3: ='Financial Model'!GJ5 -> 2088-04-01 | GK3: ='Financial Model'!GK5 -> 2088-10-01 | GL3: ='Financial Model'!GL5 -> 2089-04-01 | GM3: ='Financial Model'!GM5 -> 2089-10-01 | GN3: ='Financial Model'!GN5 -> 2090-04-01 | GO3: ='Financial Model'!GO5 -> 2090-10-01 | GP3: ='Financial Model'!GP5 -> 2091-04-01 | GQ3: ='Financial Model'!GQ5 -> 2091-10-01 | GR3: ='Financial Model'!GR5 -> 2092-04-01 | GS3: ='Financial Model'!GS5 -> 2092-10-01 | GT3: ='Financial Model'!GT5 -> 2093-04-01 | GU3: ='Financial Model'!GU5 -> 2093-10-01 | GV3: ='Financial Model'!GV5 -> 2094-04-01 | GW3: ='Financial Model'!GW5 -> 2094-10-01 | GX3: ='Financial Model'!GX5 -> 2095-04-01 | GY3: ='Financial Model'!GY5 -> 2095-10-01 | GZ3: ='Financial Model'!GZ5 -> 2096-04-01 | HA3: ='Financial Model'!HA5 -> 2096-10-01 | HB3: ='Financial Model'!HB5 -> 2097-04-01 | HC3: ='Financial Model'!HC5 -> 2097-10-01 | HD3: ='Financial Model'!HD5 -> 2098-04-01 | HE3: ='Financial Model'!HE5 -> 2098-10-01 | HF3: ='Financial Model'!HF5 -> 2099-04-01 | HG3: ='Financial Model'!HG5 -> 2099-10-01 | HH3: ='Financial Model'!HH5 -> 2100-04-01 | HI3: ='Financial Model'!HI5 -> 2100-10-01 | HJ3: ='Financial Model'!HJ5 -> 2101-04-01 | HK3: ='Financial Model'!HK5 -> 2101-10-01 | HL3: ='Financial Model'!HL5 -> 2102-04-01 | HM3: ='Financial Model'!HM5 -> 2102-10-01 | HN3: ='Financial Model'!HN5 -> 2103-04-01 | HO3: ='Financial Model'!HO5 -> 2103-10-01 | HP3: ='Financial Model'!HP5 -> 2104-04-01 | HQ3: ='Financial Model'!HQ5 -> 2104-10-01 | HR3: ='Financial Model'!HR5 -> 2105-04-01 | HS3: ='Financial Model'!HS5 -> 2105-10-01 | HT3: ='Financial Model'!HT5 -> 2106-04-01 | HU3: ='Financial Model'!HU5 -> 2106-10-01 | HV3: ='Financial Model'!HV5 -> 2107-04-01 | HW3: ='Financial Model'!HW5 -> 2107-10-01 | HX3: ='Financial Model'!HX5 -> 2108-04-01 | HY3: ='Financial Model'!HY5 -> 2108-10-01 | HZ3: ='Financial Model'!HZ5 -> 2109-04-01 | IA3: ='Financial Model'!IA5 -> 2109-10-01 | IB3: ='Financial Model'!IB5 -> 2110-04-01 | IC3: ='Financial Model'!IC5 -> 2110-10-01 | ID3: ='Financial Model'!ID5 -> 2111-04-01 | IE3: ='Financial Model'!IE5 -> 2111-10-01 | IF3: ='Financial Model'!IF5 -> 2112-04-01 | IG3: ='Financial Model'!IG5 -> 2112-10-01 | IH3: ='Financial Model'!IH5 -> 2113-04-01 | II3: ='Financial Model'!II5 -> 2113-10-01 | IJ3: ='Financial Model'!IJ5 -> 2114-04-01 | IK3: ='Financial Model'!IK5 -> 2114-10-01 | IL3: ='Financial Model'!IL5 -> 2115-04-01 | IM3: ='Financial Model'!IM5 -> 2115-10-01 | IN3: ='Financial Model'!IN5 -> 2116-04-01 | IO3: ='Financial Model'!IO5 -> 2116-10-01 | IP3: ='Financial Model'!IP5 -> 2117-04-01 | IQ3: ='Financial Model'!IQ5 -> 2117-10-01 | IR3: ='Financial Model'!IR5 -> 2118-04-01 | IS3: ='Financial Model'!IS5 -> 2118-10-01 | IT3: ='Financial Model'!IT5 -> 2119-04-01 | IU3: ='Financial Model'!IU5 -> 2119-10-01 | IV3: ='Financial Model'!IV5 -> 2120-04-01 | IW3: ='Financial Model'!IW5 -> 2120-10-01 | IX3: ='Financial Model'!IX5 -> 2121-04-01 | IY3: ='Financial Model'!IY5 -> 2121-10-01 | IZ3: ='Financial Model'!IZ5 -> 2122-04-01 | JA3: ='Financial Model'!JA5 -> 2122-10-01 | JB3: ='Financial Model'!JB5 -> 2123-04-01 | JC3: ='Financial Model'!JC5 -> 2123-10-01 | JD3: ='Financial Model'!JD5 -> 2124-04-01 | JE3: ='Financial Model'!JE5 -> 2124-10-01 | JF3: ='Financial Model'!JF5 -> 2125-04-01 | JG3: ='Financial Model'!JG5 -> 2125-10-01 | JH3: ='Financial Model'!JH5 -> 2126-04-01 | JI3: ='Financial Model'!JI5 -> 2126-10-01 | JJ3: ='Financial Model'!JJ5 -> 2127-04-01 | JK3: ='Financial Model'!JK5 -> 2127-10-01 | JL3: ='Financial Model'!JL5 -> 2128-04-01 | JM3: ='Financial Model'!JM5 -> 2128-10-01 | JN3: ='Financial Model'!JN5 -> 2129-04-01 | JO3: ='Financial Model'!JO5 -> 2129-10-01 | JP3: ='Financial Model'!JP5 -> 2130-04-01 | JQ3: ='Financial Model'!JQ5 -> 2130-10-01 | JR3: ='Financial Model'!JR5 -> 2131-04-01 | JS3: ='Financial Model'!JS5 -> 2131-10-01 | JT3: ='Financial Model'!JT5 -> 2132-04-01 | JU3: ='Financial Model'!JU5 -> 2132-10-01 | JV3: ='Financial Model'!JV5 -> 2133-04-01 | JW3: ='Financial Model'!JW5 -> 2133-10-01 | JX3: ='Financial Model'!JX5 -> 2134-04-01 | JY3: ='Financial Model'!JY5 -> 2134-10-01 | JZ3: ='Financial Model'!JZ5 -> 2135-04-01 | KA3: ='Financial Model'!KA5 -> 2135-10-01 | KB3: ='Financial Model'!KB5 -> 2136-04-01 | KC3: ='Financial Model'!KC5 -> 2136-10-01 | KD3: ='Financial Model'!KD5 -> 2137-04-01 | KE3: ='Financial Model'!KE5 -> 2137-10-01 | KF3: ='Financial Model'!KF5 -> 2138-04-01 | KG3: ='Financial Model'!KG5 -> 2138-10-01 | KH3: ='Financial Model'!KH5 -> 2139-04-01 | KI3: ='Financial Model'!KI5 -> 2139-10-01 | KJ3: ='Financial Model'!KJ5 -> 2140-04-01 | KK3: ='Financial Model'!KK5 -> 2140-10-01 | KL3: ='Financial Model'!KL5 -> 2141-04-01 | KM3: ='Financial Model'!KM5 -> 2141-10-01 | KN3: ='Financial Model'!KN5 -> 2142-04-01 | KO3: ='Financial Model'!KO5 -> 2142-10-01 | KP3: ='Financial Model'!KP5 -> 2143-04-01 | KQ3: ='Financial Model'!KQ5 -> 2143-10-01 | KR3: ='Financial Model'!KR5 -> 2144-04-01 | KS3: ='Financial Model'!KS5 -> 2144-10-01 | KT3: ='Financial Model'!KT5 -> 2145-04-01 | KU3: ='Financial Model'!KU5 -> 2145-10-01 | KV3: ='Financial Model'!KV5 -> 2146-04-01
E4: Questions: e-mail edwardbodmer@gmail.com
A5: Function Output
B6: ' Iteration | E6: 1 | G6: =circular_template(E2,79:79,80:80,81:81,83:83,,84:84,85:85,I87,86:86,91:114,120:132) -> 14 | H6: 3 | I6: 0 | J6: 4 | K6: 5 | L6: 6 | M6: 7 | N6: 8 | O6: 9 | P6: 10 | Q6: 11 | R6: 12 | S6: 13 | T6: 14 | U6: 15 | V6: 16 | W6: 17 | X6: 18 | Y6: 19 | Z6: 20 | AA6: 21 | AB6: 22 | AC6: 23 | AD6: 24 | AE6: 25 | AF6: 26 | AG6: 27 | AH6: 28 | AI6: 29 | AJ6: 30 | AK6: 31 | AL6: 32 | AM6: 33 | AN6: 34 | AO6: 35 | AP6: 36 | AQ6: 37 | AR6: 38 | AS6: 39 | AT6: 40 | AU6: 41 | AV6: 42 | AW6: 43 | AX6: 44 | AY6: 45 | AZ6: 46 | BA6: 47 | BB6: 48 | BC6: 49 | BD6: 50 | BE6: 51 | BF6: 52 | BG6: 53 | BH6: 54 | BI6: 55 | BJ6: 56 | BK6: 57 | BL6: 58 | BM6: 59 | BN6: 60 | BO6: 61 | BP6: 62 | BQ6: 63 | BR6: 64 | BS6: 65 | BT6: 66 | BU6: 67 | BV6: 68 | BW6: 69 | BX6: 70 | BY6: 71 | BZ6: 72 | CA6: 73 | CB6: 74 | CC6: 75 | CD6: 76 | CE6: 77 | CF6: 78 | CG6: 79 | CH6: 80 | CI6: 81 | CJ6: 82 | CK6: 83 | CL6: 84 | CM6: 85 | CN6: 86 | CO6: 87 | CP6: 88 | CQ6: 89 | CR6: 90 | CS6: 91 | CT6: 92 | CU6: 93 | CV6: 94 | CW6: 95 | CX6: 96 | CY6: 97 | CZ6: 98 | DA6: 99 | DB6: 100 | DC6: 101 | DD6: 102 | DE6: 103 | DF6: 0 | DG6: 0 | DH6: 0 | DI6: 0 | DJ6: 0 | DK6: 0 | DL6: 0 | DM6: 0 | DN6: 0 | DO6: 0 | DP6: 0 | DQ6: 0 | DR6: 0 | DS6: 0 | DT6: 0 | DU6: 0 | DV6: 0 | DW6: 0 | DX6: 0 | DY6: 0 | DZ6: 0 | EA6: 0 | EB6: 0 | EC6: 0 | ED6: 0 | EE6: 0 | EF6: 0 | EG6: 0 | EH6: 0 | EI6: 0 | EJ6: 0 | EK6: 0 | EL6: 0 | EM6: 0 | EN6: 0 | EO6: 0 | EP6: 0 | EQ6: 0 | ER6: 0 | ES6: 0 | ET6: 0 | EU6: 0 | EV6: 0 | EW6: 0 | EX6: 0 | EY6: 0 | EZ6: 0 | FA6: 0 | FB6: 0 | FC6: 0 | FD6: 0 | FE6: 0 | FF6: 0 | FG6: 0 | FH6: 0 | FI6: 0 | FJ6: 0 | FK6: 0 | FL6: 0 | FM6: 0 | FN6: 0 | FO6: 0 | FP6: 0 | FQ6: 0 | FR6: 0 | FS6: 0 | FT6: 0 | FU6: 0 | FV6: 0 | FW6: 0 | FX6: 0 | FY6: 0 | FZ6: 0 | GA6: 0 | GB6: 0 | GC6: 0 | GD6: 0 | GE6: 0 | GF6: 0 | GG6: 0 | GH6: 0 | GI6: 0 | GJ6: 0 | GK6: 0 | GL6: 0 | GM6: 0 | GN6: 0 | GO6: 0 | GP6: 0 | GQ6: 0 | GR6: 0 | GS6: 0 | GT6: 0 | GU6: 0 | GV6: 0 | GW6: 0 | GX6: 0 | GY6: 0 | GZ6: 0
B7: ' Total Project Cost/Cost no capitalised items | E7: 2 | G7: 11557829.29 | H7: 11557829.29 | I7: 0 | J7: 0 | K7: 0 | L7: 0 | M7: 0 | N7: 0 | O7: 0 | P7: 0 | Q7: 0 | R7: 0 | S7: 0 | T7: 0 | U7: 0 | V7: 0 | W7: 0 | X7: 0 | Y7: 0 | Z7: 0 | AA7: 0 | AB7: 0 | AC7: 0 | AD7: 0 | AE7: 0 | AF7: 0 | AG7: 0 | AH7: 0 | AI7: 0 | AJ7: 0 | AK7: 0 | AL7: 0 | AM7: 0 | AN7: 0 | AO7: 0 | AP7: 0 | AQ7: 0 | AR7: 0 | AS7: 0 | AT7: 0 | AU7: 0 | AV7: 0 | AW7: 0 | AX7: 0 | AY7: 0 | AZ7: 0 | BA7: 0 | BB7: 0 | BC7: 0 | BD7: 0 | BE7: 0 | BF7: 0 | BG7: 0 | BH7: 0 | BI7: 0 | BJ7: 0 | BK7: 0 | BL7: 0 | BM7: 0 | BN7: 0 | BO7: 0 | BP7: 0 | BQ7: 0 | BR7: 0 | BS7: 0 | BT7: 0 | BU7: 0 | BV7: 0 | BW7: 0 | BX7: 0 | BY7: 0 | BZ7: 0 | CA7: 0 | CB7: 0 | CC7: 0 | CD7: 0 | CE7: 0 | CF7: 0 | CG7: 0 | CH7: 0 | CI7: 0 | CJ7: 0 | CK7: 0 | CL7: 0 | CM7: 0 | CN7: 0 | CO7: 0 | CP7: 0 | CQ7: 0 | CR7: 0 | CS7: 0 | CT7: 0 | CU7: 0 | CV7: 0 | CW7: 0 | CX7: 0 | CY7: 0 | CZ7: 0 | DA7: 0 | DB7: 0 | DC7: 0 | DD7: 0 | DE7: 0 | DF7: 0 | DG7: 0 | DH7: 0 | DI7: 0 | DJ7: 0 | DK7: 0 | DL7: 0 | DM7: 0 | DN7: 0 | DO7: 0 | DP7: 0 | DQ7: 0 | DR7: 0 | DS7: 0 | DT7: 0 | DU7: 0 | DV7: 0 | DW7: 0 | DX7: 0 | DY7: 0 | DZ7: 0 | EA7: 0 | EB7: 0 | EC7: 0 | ED7: 0 | EE7: 0 | EF7: 0 | EG7: 0 | EH7: 0 | EI7: 0 | EJ7: 0 | EK7: 0 | EL7: 0 | EM7: 0 | EN7: 0 | EO7: 0 | EP7: 0 | EQ7: 0 | ER7: 0 | ES7: 0 | ET7: 0 | EU7: 0 | EV7: 0 | EW7: 0 | EX7: 0 | EY7: 0 | EZ7: 0 | FA7: 0 | FB7: 0 | FC7: 0 | FD7: 0 | FE7: 0 | FF7: 0 | FG7: 0 | FH7: 0 | FI7: 0 | FJ7: 0 | FK7: 0 | FL7: 0 | FM7: 0 | FN7: 0 | FO7: 0 | FP7: 0 | FQ7: 0 | FR7: 0 | FS7: 0 | FT7: 0 | FU7: 0 | FV7: 0 | FW7: 0 | FX7: 0 | FY7: 0 | FZ7: 0 | GA7: 0 | GB7: 0 | GC7: 0 | GD7: 0 | GE7: 0 | GF7: 0 | GG7: 0 | GH7: 0 | GI7: 0 | GJ7: 0 | GK7: 0 | GL7: 0 | GM7: 0 | GN7: 0 | GO7: 0 | GP7: 0 | GQ7: 0 | GR7: 0 | GS7: 0 | GT7: 0 | GU7: 0 | GV7: 0 | GW7: 0 | GX7: 0 | GY7: 0 | GZ7: 0
B8: ' Direct Expenditures Independent of Project Cost | E8: 3 | G8: 10100000 | H8: 0 | I8: 0 | J8: 143717.7884 | K8: 48431.72513 | L8: 53501.55037 | M8: 58934.21039 | N8: 64734.1194 | O8: 70902.85016 | P8: 77438.83587 | Q8: 84337.08992 | R8: 91588.95011 | S8: 99181.85427 | T8: 107099.1539 | U8: 115319.9723 | V8: 123819.1141 | W8: 132567.0308 | X8: 141529.8477 | Y8: 150669.4569 | Z8: 159943.6784 | AA8: 169306.4916 | AB8: 178708.3374 | AC8: 188096.4902 | AD8: 197415.4976 | AE8: 206607.6829 | AF8: 215613.7064 | AG8: 224373.1766 | AH8: 232825.3054 | AI8: 240909.5962 | AJ8: 248566.554 | AK8: 255738.4076 | AL8: 262369.8309 | AM8: 268408.65 | AN8: 273806.5249 | AO8: 278519.5934 | AP8: 282509.0633 | AQ8: 285741.7441 | AR8: 288190.5068 | AS8: 289834.6629 | AT8: 290660.2551 | AU8: 290660.2551 | AV8: 289834.6629 | AW8: 288190.5068 | AX8: 285741.7441 | AY8: 282509.0633 | AZ8: 278519.5934 | BA8: 273806.5249 | BB8: 268408.65 | BC8: 262369.8309 | BD8: 255738.4076 | BE8: 248566.554 | BF8: 240909.5962 | BG8: 232825.3054 | BH8: 0 | BI8: 0 | BJ8: 0 | BK8: 0 | BL8: 0 | BM8: 0 | BN8: 0 | BO8: 0 | BP8: 0 | BQ8: 0 | BR8: 0 | BS8: 0 | BT8: 0 | BU8: 0 | BV8: 0 | BW8: 0 | BX8: 0 | BY8: 0 | BZ8: 0 | CA8: 0 | CB8: 0 | CC8: 0 | CD8: 0 | CE8: 0 | CF8: 0 | CG8: 0 | CH8: 0 | CI8: 0 | CJ8: 0 | CK8: 0 | CL8: 0 | CM8: 0 | CN8: 0 | CO8: 0 | CP8: 0 | CQ8: 0 | CR8: 0 | CS8: 0 | CT8: 0 | CU8: 0 | CV8: 0 | CW8: 0 | CX8: 0 | CY8: 0 | CZ8: 0 | DA8: 0 | DB8: 0 | DC8: 0 | DD8: 0 | DE8: 0 | DF8: 0 | DG8: 0 | DH8: 0 | DI8: 0 | DJ8: 0 | DK8: 0 | DL8: 0 | DM8: 0 | DN8: 0 | DO8: 0 | DP8: 0 | DQ8: 0 | DR8: 0 | DS8: 0 | DT8: 0 | DU8: 0 | DV8: 0 | DW8: 0 | DX8: 0 | DY8: 0 | DZ8: 0 | EA8: 0 | EB8: 0 | EC8: 0 | ED8: 0 | EE8: 0 | EF8: 0 | EG8: 0 | EH8: 0 | EI8: 0 | EJ8: 0 | EK8: 0 | EL8: 0 | EM8: 0 | EN8: 0 | EO8: 0 | EP8: 0 | EQ8: 0 | ER8: 0 | ES8: 0 | ET8: 0 | EU8: 0 | EV8: 0 | EW8: 0 | EX8: 0 | EY8: 0 | EZ8: 0 | FA8: 0 | FB8: 0 | FC8: 0 | FD8: 0 | FE8: 0 | FF8: 0 | FG8: 0 | FH8: 0 | FI8: 0 | FJ8: 0 | FK8: 0 | FL8: 0 | FM8: 0 | FN8: 0 | FO8: 0 | FP8: 0 | FQ8: 0 | FR8: 0 | FS8: 0 | FT8: 0 | FU8: 0 | FV8: 0 | FW8: 0 | FX8: 0 | FY8: 0 | FZ8: 0 | GA8: 0 | GB8: 0 | GC8: 0 | GD8: 0 | GE8: 0 | GF8: 0 | GG8: 0 | GH8: 0 | GI8: 0 | GJ8: 0 | GK8: 0 | GL8: 0 | GM8: 0 | GN8: 0 | GO8: 0 | GP8: 0 | GQ8: 0 | GR8: 0 | GS8: 0 | GT8: 0 | GU8: 0 | GV8: 0 | GW8: 0 | GX8: 0 | GY8: 0 | GZ8: 0
B9: ' Working Capital on Pre-COD Operations | E9: 4 | G9: 0 | H9: 0 | I9: 0 | J9: 0 | K9: 0 | L9: 0 | M9: 0 | N9: 0 | O9: 0 | P9: 0 | Q9: 0 | R9: 0 | S9: 0 | T9: 0 | U9: 0 | V9: 0 | W9: 0 | X9: 0 | Y9: 0 | Z9: 0 | AA9: 0 | AB9: 0 | AC9: 0 | AD9: 0 | AE9: 0 | AF9: 0 | AG9: 0 | AH9: 0 | AI9: 0 | AJ9: 0 | AK9: 0 | AL9: 0 | AM9: 0 | AN9: 0 | AO9: 0 | AP9: 0 | AQ9: 0 | AR9: 0 | AS9: 0 | AT9: 0 | AU9: 0 | AV9: 0 | AW9: 0 | AX9: 0 | AY9: 0 | AZ9: 0 | BA9: 0 | BB9: 0 | BC9: 0 | BD9: 0 | BE9: 0 | BF9: 0 | BG9: 0 | BH9: 98280 | BI9: 0 | BJ9: 1474.2 | BK9: 0 | BL9: 1496.313 | BM9: 2113.717075 | BN9: 3684.16266 | BO9: 2145.422831 | BP9: 3803.611931 | BQ9: 2177.604174 | BR9: 3925.815743 | BS9: 2210.268236 | BT9: 4063.088994 | BU9: 0 | BV9: 1880.61307 | BW9: 0 | BX9: 1908.822266 | BY9: 0 | BZ9: 1937.4546 | CA9: 0 | CB9: 1966.516419 | CC9: 0 | CD9: 1996.014165 | CE9: 0 | CF9: 2025.954377 | CG9: 0 | CH9: 2056.343693 | CI9: 0 | CJ9: 2087.188848 | CK9: 0 | CL9: 2118.496681 | CM9: 0 | CN9: 2150.274131 | CO9: 0 | CP9: 2182.528243 | CQ9: 0 | CR9: 2215.266167 | CS9: 0 | CT9: 2248.49516 | CU9: 0 | CV9: 2282.222587 | CW9: 0 | CX9: 2316.455926 | CY9: 0 | CZ9: 2351.202765 | DA9: 0 | DB9: 2386.470806 | DC9: 0 | DD9: 2422.267868 | DE9: 0 | DF9: 0 | DG9: 0 | DH9: 0 | DI9: 0 | DJ9: 0 | DK9: 0 | DL9: 0 | DM9: 0 | DN9: 0 | DO9: 0 | DP9: 0 | DQ9: 0 | DR9: 0 | DS9: 0 | DT9: 0 | DU9: 0 | DV9: 0 | DW9: 0 | DX9: 0 | DY9: 0 | DZ9: 0 | EA9: 0 | EB9: 0 | EC9: 0 | ED9: 0 | EE9: 0 | EF9: 0 | EG9: 0 | EH9: 0 | EI9: 0 | EJ9: 0 | EK9: 0 | EL9: 0 | EM9: 0 | EN9: 0 | EO9: 0 | EP9: 0 | EQ9: 0 | ER9: 0 | ES9: 0 | ET9: 0 | EU9: 0 | EV9: 0 | EW9: 0 | EX9: 0 | EY9: 0 | EZ9: 0 | FA9: 0 | FB9: 0 | FC9: 0 | FD9: 0 | FE9: 0 | FF9: 0 | FG9: 0 | FH9: 0 | FI9: 0 | FJ9: 0 | FK9: 0 | FL9: 0 | FM9: 0 | FN9: 0 | FO9: 0 | FP9: 0 | FQ9: 0 | FR9: 0 | FS9: 0 | FT9: 0 | FU9: 0 | FV9: 0 | FW9: 0 | FX9: 0 | FY9: 0 | FZ9: 0 | GA9: 0 | GB9: 0 | GC9: 0 | GD9: 0 | GE9: 0 | GF9: 0 | GG9: 0 | GH9: 0 | GI9: 0 | GJ9: 0 | GK9: 0 | GL9: 0 | GM9: 0 | GN9: 0 | GO9: 0 | GP9: 0 | GQ9: 0 | GR9: 0 | GS9: 0 | GT9: 0 | GU9: 0 | GV9: 0 | GW9: 0 | GX9: 0 | GY9: 0 | GZ9: 0
B10: ' Development Success Fee | E10: 5 | G10: 0 | H10: 0 | I10: 0 | J10: 0 | K10: 0 | L10: 0 | M10: 0 | N10: 0 | O10: 0 | P10: 0 | Q10: 0 | R10: 0 | S10: 0 | T10: 0 | U10: 0 | V10: 0 | W10: 0 | X10: 0 | Y10: 0 | Z10: 0 | AA10: 0 | AB10: 0 | AC10: 0 | AD10: 0 | AE10: 0 | AF10: 0 | AG10: 0 | AH10: 0 | AI10: 0 | AJ10: 0 | AK10: 0 | AL10: 0 | AM10: 0 | AN10: 0 | AO10: 0 | AP10: 0 | AQ10: 0 | AR10: 0 | AS10: 0 | AT10: 0 | AU10: 0 | AV10: 0 | AW10: 0 | AX10: 0 | AY10: 0 | AZ10: 0 | BA10: 0 | BB10: 0 | BC10: 0 | BD10: 0 | BE10: 0 | BF10: 0 | BG10: 0 | BH10: 0 | BI10: 0 | BJ10: 0 | BK10: 0 | BL10: 0 | BM10: 0 | BN10: 0 | BO10: 0 | BP10: 0 | BQ10: 0 | BR10: 0 | BS10: 0 | BT10: 0 | BU10: 0 | BV10: 0 | BW10: 0 | BX10: 0 | BY10: 0 | BZ10: 0 | CA10: 0 | CB10: 0 | CC10: 0 | CD10: 0 | CE10: 0 | CF10: 0 | CG10: 0 | CH10: 0 | CI10: 0 | CJ10: 0 | CK10: 0 | CL10: 0 | CM10: 0 | CN10: 0 | CO10: 0 | CP10: 0 | CQ10: 0 | CR10: 0 | CS10: 0 | CT10: 0 | CU10: 0 | CV10: 0 | CW10: 0 | CX10: 0 | CY10: 0 | CZ10: 0 | DA10: 0 | DB10: 0 | DC10: 0 | DD10: 0 | DE10: 0 | DF10: 0 | DG10: 0 | DH10: 0 | DI10: 0 | DJ10: 0 | DK10: 0 | DL10: 0 | DM10: 0 | DN10: 0 | DO10: 0 | DP10: 0 | DQ10: 0 | DR10: 0 | DS10: 0 | DT10: 0 | DU10: 0 | DV10: 0 | DW10: 0 | DX10: 0 | DY10: 0 | DZ10: 0 | EA10: 0 | EB10: 0 | EC10: 0 | ED10: 0 | EE10: 0 | EF10: 0 | EG10: 0 | EH10: 0 | EI10: 0 | EJ10: 0 | EK10: 0 | EL10: 0 | EM10: 0 | EN10: 0 | EO10: 0 | EP10: 0 | EQ10: 0 | ER10: 0 | ES10: 0 | ET10: 0 | EU10: 0 | EV10: 0 | EW10: 0 | EX10: 0 | EY10: 0 | EZ10: 0 | FA10: 0 | FB10: 0 | FC10: 0 | FD10: 0 | FE10: 0 | FF10: 0 | FG10: 0 | FH10: 0 | FI10: 0 | FJ10: 0 | FK10: 0 | FL10: 0 | FM10: 0 | FN10: 0 | FO10: 0 | FP10: 0 | FQ10: 0 | FR10: 0 | FS10: 0 | FT10: 0 | FU10: 0 | FV10: 0 | FW10: 0 | FX10: 0 | FY10: 0 | FZ10: 0 | GA10: 0 | GB10: 0 | GC10: 0 | GD10: 0 | GE10: 0 | GF10: 0 | GG10: 0 | GH10: 0 | GI10: 0 | GJ10: 0 | GK10: 0 | GL10: 0 | GM10: 0 | GN10: 0 | GO10: 0 | GP10: 0 | GQ10: 0 | GR10: 0 | GS10: 0 | GT10: 0 | GU10: 0 | GV10: 0 | GW10: 0 | GX10: 0 | GY10: 0 | GZ10: 0
B11: ' Interest During Construction | E11: 6 | G11: 458638.4723 | H11: 0.01975 | I11: 0 | J11: 0 | K11: 0 | L11: 0 | M11: 0 | N11: 0 | O11: 0 | P11: 0 | Q11: 0 | R11: 0 | S11: 0 | T11: 0 | U11: 0 | V11: 170.2506191 | W11: 534.1566781 | X11: 923.8036213 | Y11: 1339.864819 | Z11: 1782.907024 | AA11: 2253.378541 | AB11: 2751.598027 | AC11: 3277.744124 | AD11: 3831.846118 | AE11: 4413.77583 | AF11: 5023.240911 | AG11: 5659.77972 | AH11: 6322.757917 | AI11: 7011.366919 | AJ11: 7724.624301 | AK11: 8461.376216 | AL11: 9220.301877 | AM11: 9999.920094 | AN11: 10798.59783 | AO11: 11614.56075 | AP11: 12445.90554 | AQ11: 13290.61408 | AR11: 14146.56898 | AS11: 15011.57065 | AT11: 15883.35532 | AU11: 16759.61408 | AV11: 17638.01237 | AW11: 18516.20997 | AX11: 19391.88088 | AY11: 20262.73311 | AZ11: 21126.5278 | BA11: 21981.09774 | BB11: 22824.3647 | BC11: 23654.35559 | BD11: 24469.21709 | BE11: 25267.22872 | BF11: 26046.814 | BG11: 26806.54978 | BH11: 0 | BI11: 0 | BJ11: 0 | BK11: 0 | BL11: 0 | BM11: 0 | BN11: 0 | BO11: 0 | BP11: 0 | BQ11: 0 | BR11: 0 | BS11: 0 | BT11: 0 | BU11: 0 | BV11: 0 | BW11: 0 | BX11: 0 | BY11: 0 | BZ11: 0 | CA11: 0 | CB11: 0 | CC11: 0 | CD11: 0 | CE11: 0 | CF11: 0 | CG11: 0 | CH11: 0 | CI11: 0 | CJ11: 0 | CK11: 0 | CL11: 0 | CM11: 0 | CN11: 0 | CO11: 0 | CP11: 0 | CQ11: 0 | CR11: 0 | CS11: 0 | CT11: 0 | CU11: 0 | CV11: 0 | CW11: 0 | CX11: 0 | CY11: 0 | CZ11: 0 | DA11: 0 | DB11: 0 | DC11: 0 | DD11: 0 | DE11: 0 | DF11: 0 | DG11: 0 | DH11: 0 | DI11: 0 | DJ11: 0 | DK11: 0 | DL11: 0 | DM11: 0 | DN11: 0 | DO11: 0 | DP11: 0 | DQ11: 0 | DR11: 0 | DS11: 0 | DT11: 0 | DU11: 0 | DV11: 0 | DW11: 0 | DX11: 0 | DY11: 0 | DZ11: 0 | EA11: 0 | EB11: 0 | EC11: 0 | ED11: 0 | EE11: 0 | EF11: 0 | EG11: 0 | EH11: 0 | EI11: 0 | EJ11: 0 | EK11: 0 | EL11: 0 | EM11: 0 | EN11: 0 | EO11: 0 | EP11: 0 | EQ11: 0 | ER11: 0 | ES11: 0 | ET11: 0 | EU11: 0 | EV11: 0 | EW11: 0 | EX11: 0 | EY11: 0 | EZ11: 0 | FA11: 0 | FB11: 0 | FC11: 0 | FD11: 0 | FE11: 0 | FF11: 0 | FG11: 0 | FH11: 0 | FI11: 0 | FJ11: 0 | FK11: 0 | FL11: 0 | FM11: 0 | FN11: 0 | FO11: 0 | FP11: 0 | FQ11: 0 | FR11: 0 | FS11: 0 | FT11: 0 | FU11: 0 | FV11: 0 | FW11: 0 | FX11: 0 | FY11: 0 | FZ11: 0 | GA11: 0 | GB11: 0 | GC11: 0 | GD11: 0 | GE11: 0 | GF11: 0 | GG11: 0 | GH11: 0 | GI11: 0 | GJ11: 0 | GK11: 0 | GL11: 0 | GM11: 0 | GN11: 0 | GO11: 0 | GP11: 0 | GQ11: 0 | GR11: 0 | GS11: 0 | GT11: 0 | GU11: 0 | GV11: 0 | GW11: 0 | GX11: 0 | GY11: 0 | GZ11: 0
B12: ' Up-Front Fees | E12: 7 | G12: 214333.8081 | H12: 0.0225 | I12: 0 | J12: 214333.8081 | K12: 0 | L12: 0 | M12: 0 | N12: 0 | O12: 0 | P12: 0 | Q12: 0 | R12: 0 | S12: 0 | T12: 0 | U12: 0 | V12: 0 | W12: 0 | X12: 0 | Y12: 0 | Z12: 0 | AA12: 0 | AB12: 0 | AC12: 0 | AD12: 0 | AE12: 0 | AF12: 0 | AG12: 0 | AH12: 0 | AI12: 0 | AJ12: 0 | AK12: 0 | AL12: 0 | AM12: 0 | AN12: 0 | AO12: 0 | AP12: 0 | AQ12: 0 | AR12: 0 | AS12: 0 | AT12: 0 | AU12: 0 | AV12: 0 | AW12: 0 | AX12: 0 | AY12: 0 | AZ12: 0 | BA12: 0 | BB12: 0 | BC12: 0 | BD12: 0 | BE12: 0 | BF12: 0 | BG12: 0 | BH12: 0 | BI12: 0 | BJ12: 0 | BK12: 0 | BL12: 0 | BM12: 0 | BN12: 0 | BO12: 0 | BP12: 0 | BQ12: 0 | BR12: 0 | BS12: 0 | BT12: 0 | BU12: 0 | BV12: 0 | BW12: 0 | BX12: 0 | BY12: 0 | BZ12: 0 | CA12: 0 | CB12: 0 | CC12: 0 | CD12: 0 | CE12: 0 | CF12: 0 | CG12: 0 | CH12: 0 | CI12: 0 | CJ12: 0 | CK12: 0 | CL12: 0 | CM12: 0 | CN12: 0 | CO12: 0 | CP12: 0 | CQ12: 0 | CR12: 0 | CS12: 0 | CT12: 0 | CU12: 0 | CV12: 0 | CW12: 0 | CX12: 0 | CY12: 0 | CZ12: 0 | DA12: 0 | DB12: 0 | DC12: 0 | DD12: 0 | DE12: 0 | DF12: 0 | DG12: 0 | DH12: 0 | DI12: 0 | DJ12: 0 | DK12: 0 | DL12: 0 | DM12: 0 | DN12: 0 | DO12: 0 | DP12: 0 | DQ12: 0 | DR12: 0 | DS12: 0 | DT12: 0 | DU12: 0 | DV12: 0 | DW12: 0 | DX12: 0 | DY12: 0 | DZ12: 0 | EA12: 0 | EB12: 0 | EC12: 0 | ED12: 0 | EE12: 0 | EF12: 0 | EG12: 0 | EH12: 0 | EI12: 0 | EJ12: 0 | EK12: 0 | EL12: 0 | EM12: 0 | EN12: 0 | EO12: 0 | EP12: 0 | EQ12: 0 | ER12: 0 | ES12: 0 | ET12: 0 | EU12: 0 | EV12: 0 | EW12: 0 | EX12: 0 | EY12: 0 | EZ12: 0 | FA12: 0 | FB12: 0 | FC12: 0 | FD12: 0 | FE12: 0 | FF12: 0 | FG12: 0 | FH12: 0 | FI12: 0 | FJ12: 0 | FK12: 0 | FL12: 0 | FM12: 0 | FN12: 0 | FO12: 0 | FP12: 0 | FQ12: 0 | FR12: 0 | FS12: 0 | FT12: 0 | FU12: 0 | FV12: 0 | FW12: 0 | FX12: 0 | FY12: 0 | FZ12: 0 | GA12: 0 | GB12: 0 | GC12: 0 | GD12: 0 | GE12: 0 | GF12: 0 | GG12: 0 | GH12: 0 | GI12: 0 | GJ12: 0 | GK12: 0 | GL12: 0 | GM12: 0 | GN12: 0 | GO12: 0 | GP12: 0 | GQ12: 0 | GR12: 0 | GS12: 0 | GT12: 0 | GU12: 0 | GV12: 0 | GW12: 0 | GX12: 0 | GY12: 0 | GZ12: 0
B13: ' Commitment Fees | E13: 8 | G13: 141938.2201 | H13: 0 | I13: 0 | J13: 4127.910378 | K13: 4127.910378 | L13: 4127.910378 | M13: 4127.910378 | N13: 4127.910378 | O13: 4127.910378 | P13: 4127.910378 | Q13: 4127.910378 | R13: 4127.910378 | S13: 4127.910378 | T13: 4127.910378 | U13: 4127.910378 | V13: 4103.983264 | W13: 4052.83971 | X13: 3998.078518 | Y13: 3939.605052 | Z13: 3877.339661 | AA13: 3811.21934 | AB13: 3741.199304 | AC13: 3667.254447 | AD13: 3589.380653 | AE13: 3507.595937 | AF13: 3421.941385 | AG13: 3332.481877 | AH13: 3239.306563 | AI13: 3142.529081 | AJ13: 3042.287503 | AK13: 2938.743991 | AL13: 2832.084168 | AM13: 2722.516203 | AN13: 2610.269601 | AO13: 2495.593732 | AP13: 2378.756085 | AQ13: 2260.040292 | AR13: 2139.743927 | AS13: 2018.176125 | AT13: 1895.655035 | AU13: 1772.505156 | AV13: 1649.054585 | AW13: 1525.63222 | AX13: 1402.564956 | AY13: 1280.174914 | AZ13: 1158.776741 | BA13: 1038.675019 | BB13: 920.1618249 | BC13: 803.5144575 | BD13: 688.9933812 | BE13: 576.8403955 | BF13: 467.2770591 | BG13: 360.5033814 | BH13: 0 | BI13: 0 | BJ13: 0 | BK13: 0 | BL13: 0 | BM13: 0 | BN13: 0 | BO13: 0 | BP13: 0 | BQ13: 0 | BR13: 0 | BS13: 0 | BT13: 0 | BU13: 0 | BV13: 0 | BW13: 0 | BX13: 0 | BY13: 0 | BZ13: 0 | CA13: 0 | CB13: 0 | CC13: 0 | CD13: 0 | CE13: 0 | CF13: 0 | CG13: 0 | CH13: 0 | CI13: 0 | CJ13: 0 | CK13: 0 | CL13: 0 | CM13: 0 | CN13: 0 | CO13: 0 | CP13: 0 | CQ13: 0 | CR13: 0 | CS13: 0 | CT13: 0 | CU13: 0 | CV13: 0 | CW13: 0 | CX13: 0 | CY13: 0 | CZ13: 0 | DA13: 0 | DB13: 0 | DC13: 0 | DD13: 0 | DE13: 0 | DF13: 0 | DG13: 0 | DH13: 0 | DI13: 0 | DJ13: 0 | DK13: 0 | DL13: 0 | DM13: 0 | DN13: 0 | DO13: 0 | DP13: 0 | DQ13: 0 | DR13: 0 | DS13: 0 | DT13: 0 | DU13: 0 | DV13: 0 | DW13: 0 | DX13: 0 | DY13: 0 | DZ13: 0 | EA13: 0 | EB13: 0 | EC13: 0 | ED13: 0 | EE13: 0 | EF13: 0 | EG13: 0 | EH13: 0 | EI13: 0 | EJ13: 0 | EK13: 0 | EL13: 0 | EM13: 0 | EN13: 0 | EO13: 0 | EP13: 0 | EQ13: 0 | ER13: 0 | ES13: 0 | ET13: 0 | EU13: 0 | EV13: 0 | EW13: 0 | EX13: 0 | EY13: 0 | EZ13: 0 | FA13: 0 | FB13: 0 | FC13: 0 | FD13: 0 | FE13: 0 | FF13: 0 | FG13: 0 | FH13: 0 | FI13: 0 | FJ13: 0 | FK13: 0 | FL13: 0 | FM13: 0 | FN13: 0 | FO13: 0 | FP13: 0 | FQ13: 0 | FR13: 0 | FS13: 0 | FT13: 0 | FU13: 0 | FV13: 0 | FW13: 0 | FX13: 0 | FY13: 0 | FZ13: 0 | GA13: 0 | GB13: 0 | GC13: 0 | GD13: 0 | GE13: 0 | GF13: 0 | GG13: 0 | GH13: 0 | GI13: 0 | GJ13: 0 | GK13: 0 | GL13: 0 | GM13: 0 | GN13: 0 | GO13: 0 | GP13: 0 | GQ13: 0 | GR13: 0 | GS13: 0 | GT13: 0 | GU13: 0 | GV13: 0 | GW13: 0 | GX13: 0 | GY13: 0 | GZ13: 0
B14: ' PRI During Construction | E14: 9 | G14: 0 | H14: 0 | I14: 0 | J14: 0 | K14: 0 | L14: 0 | M14: 0 | N14: 0 | O14: 0 | P14: 0 | Q14: 0 | R14: 0 | S14: 0 | T14: 0 | U14: 0 | V14: 0 | W14: 0 | X14: 0 | Y14: 0 | Z14: 0 | AA14: 0 | AB14: 0 | AC14: 0 | AD14: 0 | AE14: 0 | AF14: 0 | AG14: 0 | AH14: 0 | AI14: 0 | AJ14: 0 | AK14: 0 | AL14: 0 | AM14: 0 | AN14: 0 | AO14: 0 | AP14: 0 | AQ14: 0 | AR14: 0 | AS14: 0 | AT14: 0 | AU14: 0 | AV14: 0 | AW14: 0 | AX14: 0 | AY14: 0 | AZ14: 0 | BA14: 0 | BB14: 0 | BC14: 0 | BD14: 0 | BE14: 0 | BF14: 0 | BG14: 0 | BH14: 0 | BI14: 0 | BJ14: 0 | BK14: 0 | BL14: 0 | BM14: 0 | BN14: 0 | BO14: 0 | BP14: 0 | BQ14: 0 | BR14: 0 | BS14: 0 | BT14: 0 | BU14: 0 | BV14: 0 | BW14: 0 | BX14: 0 | BY14: 0 | BZ14: 0 | CA14: 0 | CB14: 0 | CC14: 0 | CD14: 0 | CE14: 0 | CF14: 0 | CG14: 0 | CH14: 0 | CI14: 0 | CJ14: 0 | CK14: 0 | CL14: 0 | CM14: 0 | CN14: 0 | CO14: 0 | CP14: 0 | CQ14: 0 | CR14: 0 | CS14: 0 | CT14: 0 | CU14: 0 | CV14: 0 | CW14: 0 | CX14: 0 | CY14: 0 | CZ14: 0 | DA14: 0 | DB14: 0 | DC14: 0 | DD14: 0 | DE14: 0 | DF14: 0 | DG14: 0 | DH14: 0 | DI14: 0 | DJ14: 0 | DK14: 0 | DL14: 0 | DM14: 0 | DN14: 0 | DO14: 0 | DP14: 0 | DQ14: 0 | DR14: 0 | DS14: 0 | DT14: 0 | DU14: 0 | DV14: 0 | DW14: 0 | DX14: 0 | DY14: 0 | DZ14: 0 | EA14: 0 | EB14: 0 | EC14: 0 | ED14: 0 | EE14: 0 | EF14: 0 | EG14: 0 | EH14: 0 | EI14: 0 | EJ14: 0 | EK14: 0 | EL14: 0 | EM14: 0 | EN14: 0 | EO14: 0 | EP14: 0 | EQ14: 0 | ER14: 0 | ES14: 0 | ET14: 0 | EU14: 0 | EV14: 0 | EW14: 0 | EX14: 0 | EY14: 0 | EZ14: 0 | FA14: 0 | FB14: 0 | FC14: 0 | FD14: 0 | FE14: 0 | FF14: 0 | FG14: 0 | FH14: 0 | FI14: 0 | FJ14: 0 | FK14: 0 | FL14: 0 | FM14: 0 | FN14: 0 | FO14: 0 | FP14: 0 | FQ14: 0 | FR14: 0 | FS14: 0 | FT14: 0 | FU14: 0 | FV14: 0 | FW14: 0 | FX14: 0 | FY14: 0 | FZ14: 0 | GA14: 0 | GB14: 0 | GC14: 0 | GD14: 0 | GE14: 0 | GF14: 0 | GG14: 0 | GH14: 0 | GI14: 0 | GJ14: 0 | GK14: 0 | GL14: 0 | GM14: 0 | GN14: 0 | GO14: 0 | GP14: 0 | GQ14: 0 | GR14: 0 | GS14: 0 | GT14: 0 | GU14: 0 | GV14: 0 | GW14: 0 | GX14: 0 | GY14: 0 | GZ14: 0
B15: ' DSRA Funded During Construction | E15: 10 | G15: 642918.786 | H15: 0 | I15: 0 | J15: 0 | K15: 0 | L15: 0 | M15: 0 | N15: 0 | O15: 0 | P15: 0 | Q15: 0 | R15: 0 | S15: 0 | T15: 0 | U15: 0 | V15: 0 | W15: 0 | X15: 0 | Y15: 0 | Z15: 0 | AA15: 0 | AB15: 0 | AC15: 0 | AD15: 0 | AE15: 0 | AF15: 0 | AG15: 0 | AH15: 0 | AI15: 0 | AJ15: 0 | AK15: 0 | AL15: 0 | AM15: 0 | AN15: 0 | AO15: 0 | AP15: 0 | AQ15: 0 | AR15: 0 | AS15: 0 | AT15: 0 | AU15: 0 | AV15: 0 | AW15: 0 | AX15: 0 | AY15: 0 | AZ15: 0 | BA15: 0 | BB15: 0 | BC15: 0 | BD15: 0 | BE15: 0 | BF15: 0 | BG15: 642918.786 | BH15: 0 | BI15: 0 | BJ15: 0 | BK15: 0 | BL15: 0 | BM15: 0 | BN15: 0 | BO15: 0 | BP15: 0 | BQ15: 0 | BR15: 0 | BS15: 0 | BT15: 0 | BU15: 0 | BV15: 0 | BW15: 0 | BX15: 0 | BY15: 0 | BZ15: 0 | CA15: 0 | CB15: 0 | CC15: 0 | CD15: 0 | CE15: 0 | CF15: 0 | CG15: 0 | CH15: 0 | CI15: 0 | CJ15: 0 | CK15: 0 | CL15: 0 | CM15: 0 | CN15: 0 | CO15: 0 | CP15: 0 | CQ15: 0 | CR15: 0 | CS15: 0 | CT15: 0 | CU15: 0 | CV15: 0 | CW15: 0 | CX15: 0 | CY15: 0 | CZ15: 0 | DA15: 0 | DB15: 0 | DC15: 0 | DD15: 0 | DE15: 0 | DF15: 0 | DG15: 0 | DH15: 0 | DI15: 0 | DJ15: 0 | DK15: 0 | DL15: 0 | DM15: 0 | DN15: 0 | DO15: 0 | DP15: 0 | DQ15: 0 | DR15: 0 | DS15: 0 | DT15: 0 | DU15: 0 | DV15: 0 | DW15: 0 | DX15: 0 | DY15: 0 | DZ15: 0 | EA15: 0 | EB15: 0 | EC15: 0 | ED15: 0 | EE15: 0 | EF15: 0 | EG15: 0 | EH15: 0 | EI15: 0 | EJ15: 0 | EK15: 0 | EL15: 0 | EM15: 0 | EN15: 0 | EO15: 0 | EP15: 0 | EQ15: 0 | ER15: 0 | ES15: 0 | ET15: 0 | EU15: 0 | EV15: 0 | EW15: 0 | EX15: 0 | EY15: 0 | EZ15: 0 | FA15: 0 | FB15: 0 | FC15: 0 | FD15: 0 | FE15: 0 | FF15: 0 | FG15: 0 | FH15: 0 | FI15: 0 | FJ15: 0 | FK15: 0 | FL15: 0 | FM15: 0 | FN15: 0 | FO15: 0 | FP15: 0 | FQ15: 0 | FR15: 0 | FS15: 0 | FT15: 0 | FU15: 0 | FV15: 0 | FW15: 0 | FX15: 0 | FY15: 0 | FZ15: 0 | GA15: 0 | GB15: 0 | GC15: 0 | GD15: 0 | GE15: 0 | GF15: 0 | GG15: 0 | GH15: 0 | GI15: 0 | GJ15: 0 | GK15: 0 | GL15: 0 | GM15: 0 | GN15: 0 | GO15: 0 | GP15: 0 | GQ15: 0 | GR15: 0 | GS15: 0 | GT15: 0 | GU15: 0 | GV15: 0 | GW15: 0 | GX15: 0 | GY15: 0 | GZ15: 0
B16: Total Uses Including Capitalised Items | E16: 11 | G16: 11557829.29 | H16: 0 | I16: 0 | J16: 362179.5069 | K16: 52559.63551 | L16: 57629.46075 | M16: 63062.12076 | N16: 68862.02977 | O16: 75030.76054 | P16: 81566.74625 | Q16: 88465.0003 | R16: 95716.86049 | S16: 103309.7646 | T16: 111227.0642 | U16: 119447.8827 | V16: 128093.348 | W16: 137154.0272 | X16: 146451.7298 | Y16: 155948.9268 | Z16: 165603.9251 | AA16: 175371.0895 | AB16: 185201.1347 | AC16: 195041.4888 | AD16: 204836.7244 | AE16: 214529.0547 | AF16: 224058.8887 | AG16: 233365.4382 | AH16: 242387.3699 | AI16: 251063.4922 | AJ16: 259333.4658 | AK16: 267138.5278 | AL16: 274422.217 | AM16: 281131.0863 | AN16: 287215.3924 | AO16: 292629.7479 | AP16: 297333.7249 | AQ16: 301292.3985 | AR16: 304476.8197 | AS16: 306864.4097 | AT16: 308439.2655 | AU16: 309192.3743 | AV16: 309121.7298 | AW16: 308232.349 | AX16: 306536.1899 | AY16: 304051.9713 | AZ16: 300804.8979 | BA16: 296826.2977 | BB16: 292153.1765 | BC16: 286827.701 | BD16: 280896.6181 | BE16: 274410.6231 | BF16: 267423.6872 | BG16: 259992.3586 | BH16: 0 | BI16: 0 | BJ16: 0 | BK16: 0 | BL16: 0 | BM16: 0 | BN16: 0 | BO16: 0 | BP16: 0 | BQ16: 0 | BR16: 0 | BS16: 0 | BT16: 0 | BU16: 0 | BV16: 0 | BW16: 0 | BX16: 0 | BY16: 0 | BZ16: 0 | CA16: 0 | CB16: 0 | CC16: 0 | CD16: 0 | CE16: 0 | CF16: 0 | CG16: 0 | CH16: 0 | CI16: 0 | CJ16: 0 | CK16: 0 | CL16: 0 | CM16: 0 | CN16: 0 | CO16: 0 | CP16: 0 | CQ16: 0 | CR16: 0 | CS16: 0 | CT16: 0 | CU16: 0 | CV16: 0 | CW16: 0 | CX16: 0 | CY16: 0 | CZ16: 0 | DA16: 0 | DB16: 0 | DC16: 0 | DD16: 0 | DE16: 0 | DF16: 0 | DG16: 0 | DH16: 0 | DI16: 0 | DJ16: 0 | DK16: 0 | DL16: 0 | DM16: 0 | DN16: 0 | DO16: 0 | DP16: 0 | DQ16: 0 | DR16: 0 | DS16: 0 | DT16: 0 | DU16: 0 | DV16: 0 | DW16: 0 | DX16: 0 | DY16: 0 | DZ16: 0 | EA16: 0 | EB16: 0 | EC16: 0 | ED16: 0 | EE16: 0 | EF16: 0 | EG16: 0 | EH16: 0 | EI16: 0 | EJ16: 0 | EK16: 0 | EL16: 0 | EM16: 0 | EN16: 0 | EO16: 0 | EP16: 0 | EQ16: 0 | ER16: 0 | ES16: 0 | ET16: 0 | EU16: 0 | EV16: 0 | EW16: 0 | EX16: 0 | EY16: 0 | EZ16: 0 | FA16: 0 | FB16: 0 | FC16: 0 | FD16: 0 | FE16: 0 | FF16: 0 | FG16: 0 | FH16: 0 | FI16: 0 | FJ16: 0 | FK16: 0 | FL16: 0 | FM16: 0 | FN16: 0 | FO16: 0 | FP16: 0 | FQ16: 0 | FR16: 0 | FS16: 0 | FT16: 0 | FU16: 0 | FV16: 0 | FW16: 0 | FX16: 0 | FY16: 0 | FZ16: 0 | GA16: 0 | GB16: 0 | GC16: 0 | GD16: 0 | GE16: 0 | GF16: 0 | GG16: 0 | GH16: 0 | GI16: 0 | GJ16: 0 | GK16: 0 | GL16: 0 | GM16: 0 | GN16: 0 | GO16: 0 | GP16: 0 | GQ16: 0 | GR16: 0 | GS16: 0 | GT16: 0 | GU16: 0 | GV16: 0 | GW16: 0 | GX16: 0 | GY16: 0 | GZ16: 0
B17: ' Capitalised Interest | E17: 12 | G17: 0 | H17: 0 | I17: 0 | J17: 0 | K17: 0 | L17: 0 | M17: 0 | N17: 0 | O17: 0 | P17: 0 | Q17: 0 | R17: 0 | S17: 0 | T17: 0 | U17: 0 | V17: 0 | W17: 0 | X17: 0 | Y17: 0 | Z17: 0 | AA17: 0 | AB17: 0 | AC17: 0 | AD17: 0 | AE17: 0 | AF17: 0 | AG17: 0 | AH17: 0 | AI17: 0 | AJ17: 0 | AK17: 0 | AL17: 0 | AM17: 0 | AN17: 0 | AO17: 0 | AP17: 0 | AQ17: 0 | AR17: 0 | AS17: 0 | AT17: 0 | AU17: 0 | AV17: 0 | AW17: 0 | AX17: 0 | AY17: 0 | AZ17: 0 | BA17: 0 | BB17: 0 | BC17: 0 | BD17: 0 | BE17: 0 | BF17: 0 | BG17: 0 | BH17: 0 | BI17: 0 | BJ17: 0 | BK17: 0 | BL17: 0 | BM17: 0 | BN17: 0 | BO17: 0 | BP17: 0 | BQ17: 0 | BR17: 0 | BS17: 0 | BT17: 0 | BU17: 0 | BV17: 0 | BW17: 0 | BX17: 0 | BY17: 0 | BZ17: 0 | CA17: 0 | CB17: 0 | CC17: 0 | CD17: 0 | CE17: 0 | CF17: 0 | CG17: 0 | CH17: 0 | CI17: 0 | CJ17: 0 | CK17: 0 | CL17: 0 | CM17: 0 | CN17: 0 | CO17: 0 | CP17: 0 | CQ17: 0 | CR17: 0 | CS17: 0 | CT17: 0 | CU17: 0 | CV17: 0 | CW17: 0 | CX17: 0 | CY17: 0 | CZ17: 0 | DA17: 0 | DB17: 0 | DC17: 0 | DD17: 0 | DE17: 0 | DF17: 0 | DG17: 0 | DH17: 0 | DI17: 0 | DJ17: 0 | DK17: 0 | DL17: 0 | DM17: 0 | DN17: 0 | DO17: 0 | DP17: 0 | DQ17: 0 | DR17: 0 | DS17: 0 | DT17: 0 | DU17: 0 | DV17: 0 | DW17: 0 | DX17: 0 | DY17: 0 | DZ17: 0 | EA17: 0 | EB17: 0 | EC17: 0 | ED17: 0 | EE17: 0 | EF17: 0 | EG17: 0 | EH17: 0 | EI17: 0 | EJ17: 0 | EK17: 0 | EL17: 0 | EM17: 0 | EN17: 0 | EO17: 0 | EP17: 0 | EQ17: 0 | ER17: 0 | ES17: 0 | ET17: 0 | EU17: 0 | EV17: 0 | EW17: 0 | EX17: 0 | EY17: 0 | EZ17: 0 | FA17: 0 | FB17: 0 | FC17: 0 | FD17: 0 | FE17: 0 | FF17: 0 | FG17: 0 | FH17: 0 | FI17: 0 | FJ17: 0 | FK17: 0 | FL17: 0 | FM17: 0 | FN17: 0 | FO17: 0 | FP17: 0 | FQ17: 0 | FR17: 0 | FS17: 0 | FT17: 0 | FU17: 0 | FV17: 0 | FW17: 0 | FX17: 0 | FY17: 0 | FZ17: 0 | GA17: 0 | GB17: 0 | GC17: 0 | GD17: 0 | GE17: 0 | GF17: 0 | GG17: 0 | GH17: 0 | GI17: 0 | GJ17: 0 | GK17: 0 | GL17: 0 | GM17: 0 | GN17: 0 | GO17: 0 | GP17: 0 | GQ17: 0 | GR17: 0 | GS17: 0 | GT17: 0 | GU17: 0 | GV17: 0 | GW17: 0 | GX17: 0 | GY17: 0 | GZ17: 0
B18: ' Capitalised Fees | E18: 13 | G18: 0 | H18: 0 | I18: 0 | J18: 0 | K18: 0 | L18: 0 | M18: 0 | N18: 0 | O18: 0 | P18: 0 | Q18: 0 | R18: 0 | S18: 0 | T18: 0 | U18: 0 | V18: 0 | W18: 0 | X18: 0 | Y18: 0 | Z18: 0 | AA18: 0 | AB18: 0 | AC18: 0 | AD18: 0 | AE18: 0 | AF18: 0 | AG18: 0 | AH18: 0 | AI18: 0 | AJ18: 0 | AK18: 0 | AL18: 0 | AM18: 0 | AN18: 0 | AO18: 0 | AP18: 0 | AQ18: 0 | AR18: 0 | AS18: 0 | AT18: 0 | AU18: 0 | AV18: 0 | AW18: 0 | AX18: 0 | AY18: 0 | AZ18: 0 | BA18: 0 | BB18: 0 | BC18: 0 | BD18: 0 | BE18: 0 | BF18: 0 | BG18: 0 | BH18: 0 | BI18: 0 | BJ18: 0 | BK18: 0 | BL18: 0 | BM18: 0 | BN18: 0 | BO18: 0 | BP18: 0 | BQ18: 0 | BR18: 0 | BS18: 0 | BT18: 0 | BU18: 0 | BV18: 0 | BW18: 0 | BX18: 0 | BY18: 0 | BZ18: 0 | CA18: 0 | CB18: 0 | CC18: 0 | CD18: 0 | CE18: 0 | CF18: 0 | CG18: 0 | CH18: 0 | CI18: 0 | CJ18: 0 | CK18: 0 | CL18: 0 | CM18: 0 | CN18: 0 | CO18: 0 | CP18: 0 | CQ18: 0 | CR18: 0 | CS18: 0 | CT18: 0 | CU18: 0 | CV18: 0 | CW18: 0 | CX18: 0 | CY18: 0 | CZ18: 0 | DA18: 0 | DB18: 0 | DC18: 0 | DD18: 0 | DE18: 0 | DF18: 0 | DG18: 0 | DH18: 0 | DI18: 0 | DJ18: 0 | DK18: 0 | DL18: 0 | DM18: 0 | DN18: 0 | DO18: 0 | DP18: 0 | DQ18: 0 | DR18: 0 | DS18: 0 | DT18: 0 | DU18: 0 | DV18: 0 | DW18: 0 | DX18: 0 | DY18: 0 | DZ18: 0 | EA18: 0 | EB18: 0 | EC18: 0 | ED18: 0 | EE18: 0 | EF18: 0 | EG18: 0 | EH18: 0 | EI18: 0 | EJ18: 0 | EK18: 0 | EL18: 0 | EM18: 0 | EN18: 0 | EO18: 0 | EP18: 0 | EQ18: 0 | ER18: 0 | ES18: 0 | ET18: 0 | EU18: 0 | EV18: 0 | EW18: 0 | EX18: 0 | EY18: 0 | EZ18: 0 | FA18: 0 | FB18: 0 | FC18: 0 | FD18: 0 | FE18: 0 | FF18: 0 | FG18: 0 | FH18: 0 | FI18: 0 | FJ18: 0 | FK18: 0 | FL18: 0 | FM18: 0 | FN18: 0 | FO18: 0 | FP18: 0 | FQ18: 0 | FR18: 0 | FS18: 0 | FT18: 0 | FU18: 0 | FV18: 0 | FW18: 0 | FX18: 0 | FY18: 0 | FZ18: 0 | GA18: 0 | GB18: 0 | GC18: 0 | GD18: 0 | GE18: 0 | GF18: 0 | GG18: 0 | GH18: 0 | GI18: 0 | GJ18: 0 | GK18: 0 | GL18: 0 | GM18: 0 | GN18: 0 | GO18: 0 | GP18: 0 | GQ18: 0 | GR18: 0 | GS18: 0 | GT18: 0 | GU18: 0 | GV18: 0 | GW18: 0 | GX18: 0 | GY18: 0 | GZ18: 0
B19: ' Funding Needs | E19: 14 | G19: 11557829.29 | H19: 0 | I19: 0 | J19: 362179.5069 | K19: 52559.63551 | L19: 57629.46075 | M19: 63062.12076 | N19: 68862.02977 | O19: 75030.76054 | P19: 81566.74625 | Q19: 88465.0003 | R19: 95716.86049 | S19: 103309.7646 | T19: 111227.0642 | U19: 119447.8827 | V19: 128093.348 | W19: 137154.0272 | X19: 146451.7298 | Y19: 155948.9268 | Z19: 165603.9251 | AA19: 175371.0895 | AB19: 185201.1347 | AC19: 195041.4888 | AD19: 204836.7244 | AE19: 214529.0547 | AF19: 224058.8887 | AG19: 233365.4382 | AH19: 242387.3699 | AI19: 251063.4922 | AJ19: 259333.4658 | AK19: 267138.5278 | AL19: 274422.217 | AM19: 281131.0863 | AN19: 287215.3924 | AO19: 292629.7479 | AP19: 297333.7249 | AQ19: 301292.3985 | AR19: 304476.8197 | AS19: 306864.4097 | AT19: 308439.2655 | AU19: 309192.3743 | AV19: 309121.7298 | AW19: 308232.349 | AX19: 306536.1899 | AY19: 304051.9713 | AZ19: 300804.8979 | BA19: 296826.2977 | BB19: 292153.1765 | BC19: 286827.701 | BD19: 280896.6181 | BE19: 274410.6231 | BF19: 267423.6872 | BG19: 902911.1446 | BH19: 0 | BI19: 0 | BJ19: 0 | BK19: 0 | BL19: 0 | BM19: 0 | BN19: 0 | BO19: 0 | BP19: 0 | BQ19: 0 | BR19: 0 | BS19: 0 | BT19: 0 | BU19: 0 | BV19: 0 | BW19: 0 | BX19: 0 | BY19: 0 | BZ19: 0 | CA19: 0 | CB19: 0 | CC19: 0 | CD19: 0 | CE19: 0 | CF19: 0 | CG19: 0 | CH19: 0 | CI19: 0 | CJ19: 0 | CK19: 0 | CL19: 0 | CM19: 0 | CN19: 0 | CO19: 0 | CP19: 0 | CQ19: 0 | CR19: 0 | CS19: 0 | CT19: 0 | CU19: 0 | CV19: 0 | CW19: 0 | CX19: 0 | CY19: 0 | CZ19: 0 | DA19: 0 | DB19: 0 | DC19: 0 | DD19: 0 | DE19: 0 | DF19: 0 | DG19: 0 | DH19: 0 | DI19: 0 | DJ19: 0 | DK19: 0 | DL19: 0 | DM19: 0 | DN19: 0 | DO19: 0 | DP19: 0 | DQ19: 0 | DR19: 0 | DS19: 0 | DT19: 0 | DU19: 0 | DV19: 0 | DW19: 0 | DX19: 0 | DY19: 0 | DZ19: 0 | EA19: 0 | EB19: 0 | EC19: 0 | ED19: 0 | EE19: 0 | EF19: 0 | EG19: 0 | EH19: 0 | EI19: 0 | EJ19: 0 | EK19: 0 | EL19: 0 | EM19: 0 | EN19: 0 | EO19: 0 | EP19: 0 | EQ19: 0 | ER19: 0 | ES19: 0 | ET19: 0 | EU19: 0 | EV19: 0 | EW19: 0 | EX19: 0 | EY19: 0 | EZ19: 0 | FA19: 0 | FB19: 0 | FC19: 0 | FD19: 0 | FE19: 0 | FF19: 0 | FG19: 0 | FH19: 0 | FI19: 0 | FJ19: 0 | FK19: 0 | FL19: 0 | FM19: 0 | FN19: 0 | FO19: 0 | FP19: 0 | FQ19: 0 | FR19: 0 | FS19: 0 | FT19: 0 | FU19: 0 | FV19: 0 | FW19: 0 | FX19: 0 | FY19: 0 | FZ19: 0 | GA19: 0 | GB19: 0 | GC19: 0 | GD19: 0 | GE19: 0 | GF19: 0 | GG19: 0 | GH19: 0 | GI19: 0 | GJ19: 0 | GK19: 0 | GL19: 0 | GM19: 0 | GN19: 0 | GO19: 0 | GP19: 0 | GQ19: 0 | GR19: 0 | GS19: 0 | GT19: 0 | GU19: 0 | GV19: 0 | GW19: 0 | GX19: 0 | GY19: 0 | GZ19: 0
B20: ' Up-Front Equity Financing | E20: 15 | G20: 1219129.356 | H20: 0.6 | I20: 0 | J20: 362179.5069 | K20: 52559.63551 | L20: 57629.46075 | M20: 63062.12076 | N20: 68862.02977 | O20: 75030.76054 | P20: 81566.74625 | Q20: 88465.0003 | R20: 95716.86049 | S20: 103309.7646 | T20: 111227.0642 | U20: 59520.40616 | V20: 0 | W20: 0 | X20: 0 | Y20: 0 | Z20: 0 | AA20: 0 | AB20: 0 | AC20: 0 | AD20: 0 | AE20: 0 | AF20: 0 | AG20: 0 | AH20: 0 | AI20: 0 | AJ20: 0 | AK20: 0 | AL20: 0 | AM20: 0 | AN20: 0 | AO20: 0 | AP20: 0 | AQ20: 0 | AR20: 0 | AS20: 0 | AT20: 0 | AU20: 0 | AV20: 0 | AW20: 0 | AX20: 0 | AY20: 0 | AZ20: 0 | BA20: 0 | BB20: 0 | BC20: 0 | BD20: 0 | BE20: 0 | BF20: 0 | BG20: 0 | BH20: 0 | BI20: 0 | BJ20: 0 | BK20: 0 | BL20: 0 | BM20: 0 | BN20: 0 | BO20: 0 | BP20: 0 | BQ20: 0 | BR20: 0 | BS20: 0 | BT20: 0 | BU20: 0 | BV20: 0 | BW20: 0 | BX20: 0 | BY20: 0 | BZ20: 0 | CA20: 0 | CB20: 0 | CC20: 0 | CD20: 0 | CE20: 0 | CF20: 0 | CG20: 0 | CH20: 0 | CI20: 0 | CJ20: 0 | CK20: 0 | CL20: 0 | CM20: 0 | CN20: 0 | CO20: 0 | CP20: 0 | CQ20: 0 | CR20: 0 | CS20: 0 | CT20: 0 | CU20: 0 | CV20: 0 | CW20: 0 | CX20: 0 | CY20: 0 | CZ20: 0 | DA20: 0 | DB20: 0 | DC20: 0 | DD20: 0 | DE20: 0 | DF20: 0 | DG20: 0 | DH20: 0 | DI20: 0 | DJ20: 0 | DK20: 0 | DL20: 0 | DM20: 0 | DN20: 0 | DO20: 0 | DP20: 0 | DQ20: 0 | DR20: 0 | DS20: 0 | DT20: 0 | DU20: 0 | DV20: 0 | DW20: 0 | DX20: 0 | DY20: 0 | DZ20: 0 | EA20: 0 | EB20: 0 | EC20: 0 | ED20: 0 | EE20: 0 | EF20: 0 | EG20: 0 | EH20: 0 | EI20: 0 | EJ20: 0 | EK20: 0 | EL20: 0 | EM20: 0 | EN20: 0 | EO20: 0 | EP20: 0 | EQ20: 0 | ER20: 0 | ES20: 0 | ET20: 0 | EU20: 0 | EV20: 0 | EW20: 0 | EX20: 0 | EY20: 0 | EZ20: 0 | FA20: 0 | FB20: 0 | FC20: 0 | FD20: 0 | FE20: 0 | FF20: 0 | FG20: 0 | FH20: 0 | FI20: 0 | FJ20: 0 | FK20: 0 | FL20: 0 | FM20: 0 | FN20: 0 | FO20: 0 | FP20: 0 | FQ20: 0 | FR20: 0 | FS20: 0 | FT20: 0 | FU20: 0 | FV20: 0 | FW20: 0 | FX20: 0 | FY20: 0 | FZ20: 0 | GA20: 0 | GB20: 0 | GC20: 0 | GD20: 0 | GE20: 0 | GF20: 0 | GG20: 0 | GH20: 0 | GI20: 0 | GJ20: 0 | GK20: 0 | GL20: 0 | GM20: 0 | GN20: 0 | GO20: 0 | GP20: 0 | GQ20: 0 | GR20: 0 | GS20: 0 | GT20: 0 | GU20: 0 | GV20: 0 | GW20: 0 | GX20: 0 | GY20: 0 | GZ20: 0
B21: Pro-Rata Funding Needs/Funding base | E21: 16 | G21: 10338699.93 | H21: 0 | I21: 0 | J21: 0 | K21: 0 | L21: 0 | M21: 0 | N21: 0 | O21: 0 | P21: 0 | Q21: 0 | R21: 0 | S21: 0 | T21: 0 | U21: 59927.4765 | V21: 128093.348 | W21: 137154.0272 | X21: 146451.7298 | Y21: 155948.9268 | Z21: 165603.9251 | AA21: 175371.0895 | AB21: 185201.1347 | AC21: 195041.4888 | AD21: 204836.7244 | AE21: 214529.0547 | AF21: 224058.8887 | AG21: 233365.4382 | AH21: 242387.3699 | AI21: 251063.4922 | AJ21: 259333.4658 | AK21: 267138.5278 | AL21: 274422.217 | AM21: 281131.0863 | AN21: 287215.3924 | AO21: 292629.7479 | AP21: 297333.7249 | AQ21: 301292.3985 | AR21: 304476.8197 | AS21: 306864.4097 | AT21: 308439.2655 | AU21: 309192.3743 | AV21: 309121.7298 | AW21: 308232.349 | AX21: 306536.1899 | AY21: 304051.9713 | AZ21: 300804.8979 | BA21: 296826.2977 | BB21: 292153.1765 | BC21: 286827.701 | BD21: 280896.6181 | BE21: 274410.6231 | BF21: 267423.6872 | BG21: 902911.1446 | BH21: 0 | BI21: 0 | BJ21: 0 | BK21: 0 | BL21: 0 | BM21: 0 | BN21: 0 | BO21: 0 | BP21: 0 | BQ21: 0 | BR21: 0 | BS21: 0 | BT21: 0 | BU21: 0 | BV21: 0 | BW21: 0 | BX21: 0 | BY21: 0 | BZ21: 0 | CA21: 0 | CB21: 0 | CC21: 0 | CD21: 0 | CE21: 0 | CF21: 0 | CG21: 0 | CH21: 0 | CI21: 0 | CJ21: 0 | CK21: 0 | CL21: 0 | CM21: 0 | CN21: 0 | CO21: 0 | CP21: 0 | CQ21: 0 | CR21: 0 | CS21: 0 | CT21: 0 | CU21: 0 | CV21: 0 | CW21: 0 | CX21: 0 | CY21: 0 | CZ21: 0 | DA21: 0 | DB21: 0 | DC21: 0 | DD21: 0 | DE21: 0 | DF21: 0 | DG21: 0 | DH21: 0 | DI21: 0 | DJ21: 0 | DK21: 0 | DL21: 0 | DM21: 0 | DN21: 0 | DO21: 0 | DP21: 0 | DQ21: 0 | DR21: 0 | DS21: 0 | DT21: 0 | DU21: 0 | DV21: 0 | DW21: 0 | DX21: 0 | DY21: 0 | DZ21: 0 | EA21: 0 | EB21: 0 | EC21: 0 | ED21: 0 | EE21: 0 | EF21: 0 | EG21: 0 | EH21: 0 | EI21: 0 | EJ21: 0 | EK21: 0 | EL21: 0 | EM21: 0 | EN21: 0 | EO21: 0 | EP21: 0 | EQ21: 0 | ER21: 0 | ES21: 0 | ET21: 0 | EU21: 0 | EV21: 0 | EW21: 0 | EX21: 0 | EY21: 0 | EZ21: 0 | FA21: 0 | FB21: 0 | FC21: 0 | FD21: 0 | FE21: 0 | FF21: 0 | FG21: 0 | FH21: 0 | FI21: 0 | FJ21: 0 | FK21: 0 | FL21: 0 | FM21: 0 | FN21: 0 | FO21: 0 | FP21: 0 | FQ21: 0 | FR21: 0 | FS21: 0 | FT21: 0 | FU21: 0 | FV21: 0 | FW21: 0 | FX21: 0 | FY21: 0 | FZ21: 0 | GA21: 0 | GB21: 0 | GC21: 0 | GD21: 0 | GE21: 0 | GF21: 0 | GG21: 0 | GH21: 0 | GI21: 0 | GJ21: 0 | GK21: 0 | GL21: 0 | GM21: 0 | GN21: 0 | GO21: 0 | GP21: 0 | GQ21: 0 | GR21: 0 | GS21: 0 | GT21: 0 | GU21: 0 | GV21: 0 | GW21: 0 | GX21: 0 | GY21: 0 | GZ21: 0
B22: ' Pro-Rata Equity Financing | E22: 17 | G22: 812752.9042 | H22: 0.07861267951 | I22: 0 | J22: 0 | K22: 0 | L22: 0 | M22: 0 | N22: 0 | O22: 0 | P22: 0 | Q22: 0 | R22: 0 | S22: 0 | T22: 0 | U22: 4711.059504 | V22: 10069.76131 | W22: 10782.04558 | X22: 11512.9629 | Y22: 12259.563 | Z22: 13018.56829 | AA22: 13786.39126 | AB22: 14559.15745 | AC22: 15332.73405 | AD22: 16102.76376 | AE22: 16864.70382 | AF22: 17613.86961 | AG22: 18345.4824 | AH22: 19054.72063 | AI22: 19736.77385 | AJ22: 20386.89863 | AK22: 21000.47547 | AL22: 21573.06579 | AM22: 22100.46798 | AN22: 22578.77159 | AO22: 23004.40859 | AP22: 23374.20082 | AQ22: 23685.40276 | AR22: 23935.73865 | AS22: 24123.43349 | AT22: 24247.23712 | AU22: 24306.44103 | AV22: 24300.88748 | AW22: 24230.97087 | AX22: 24097.63126 | AY22: 23902.34017 | AZ22: 23647.07904 | BA22: 23334.31061 | BB22: 22966.94403 | BC22: 22548.29413 | BD22: 22082.03582 | BE22: 21572.15437 | BF22: 21022.89262 | BG22: 70980.26444 | BH22: 0 | BI22: 0 | BJ22: 0 | BK22: 0 | BL22: 0 | BM22: 0 | BN22: 0 | BO22: 0 | BP22: 0 | BQ22: 0 | BR22: 0 | BS22: 0 | BT22: 0 | BU22: 0 | BV22: 0 | BW22: 0 | BX22: 0 | BY22: 0 | BZ22: 0 | CA22: 0 | CB22: 0 | CC22: 0 | CD22: 0 | CE22: 0 | CF22: 0 | CG22: 0 | CH22: 0 | CI22: 0 | CJ22: 0 | CK22: 0 | CL22: 0 | CM22: 0 | CN22: 0 | CO22: 0 | CP22: 0 | CQ22: 0 | CR22: 0 | CS22: 0 | CT22: 0 | CU22: 0 | CV22: 0 | CW22: 0 | CX22: 0 | CY22: 0 | CZ22: 0 | DA22: 0 | DB22: 0 | DC22: 0 | DD22: 0 | DE22: 0 | DF22: 0 | DG22: 0 | DH22: 0 | DI22: 0 | DJ22: 0 | DK22: 0 | DL22: 0 | DM22: 0 | DN22: 0 | DO22: 0 | DP22: 0 | DQ22: 0 | DR22: 0 | DS22: 0 | DT22: 0 | DU22: 0 | DV22: 0 | DW22: 0 | DX22: 0 | DY22: 0 | DZ22: 0 | EA22: 0 | EB22: 0 | EC22: 0 | ED22: 0 | EE22: 0 | EF22: 0 | EG22: 0 | EH22: 0 | EI22: 0 | EJ22: 0 | EK22: 0 | EL22: 0 | EM22: 0 | EN22: 0 | EO22: 0 | EP22: 0 | EQ22: 0 | ER22: 0 | ES22: 0 | ET22: 0 | EU22: 0 | EV22: 0 | EW22: 0 | EX22: 0 | EY22: 0 | EZ22: 0 | FA22: 0 | FB22: 0 | FC22: 0 | FD22: 0 | FE22: 0 | FF22: 0 | FG22: 0 | FH22: 0 | FI22: 0 | FJ22: 0 | FK22: 0 | FL22: 0 | FM22: 0 | FN22: 0 | FO22: 0 | FP22: 0 | FQ22: 0 | FR22: 0 | FS22: 0 | FT22: 0 | FU22: 0 | FV22: 0 | FW22: 0 | FX22: 0 | FY22: 0 | FZ22: 0 | GA22: 0 | GB22: 0 | GC22: 0 | GD22: 0 | GE22: 0 | GF22: 0 | GG22: 0 | GH22: 0 | GI22: 0 | GJ22: 0 | GK22: 0 | GL22: 0 | GM22: 0 | GN22: 0 | GO22: 0 | GP22: 0 | GQ22: 0 | GR22: 0 | GS22: 0 | GT22: 0 | GU22: 0 | GV22: 0 | GW22: 0 | GX22: 0 | GY22: 0 | GZ22: 0
B23: ' Pro-Rata Debt Financing | E23: 18 | G23: 9525947.026 | H23: 0.9213873205 | I23: 0 | J23: 0 | K23: 0 | L23: 0 | M23: 0 | N23: 0 | O23: 0 | P23: 0 | Q23: 0 | R23: 0 | S23: 0 | T23: 0 | U23: 55216.417 | V23: 118023.5867 | W23: 126371.9816 | X23: 134938.7669 | Y23: 143689.3638 | Z23: 152585.3568 | AA23: 161584.6983 | AB23: 170641.9773 | AC23: 179708.7547 | AD23: 188733.9606 | AE23: 197664.3509 | AF23: 206445.0191 | AG23: 215019.9558 | AH23: 223332.6493 | AI23: 231326.7183 | AJ23: 238946.5671 | AK23: 246138.0524 | AL23: 252849.1512 | AM23: 259030.6183 | AN23: 264636.6208 | AO23: 269625.3393 | AP23: 273959.5241 | AQ23: 277606.9957 | AR23: 280541.0811 | AS23: 282740.9762 | AT23: 284192.0283 | AU23: 284885.9333 | AV23: 284820.8424 | AW23: 284001.3782 | AX23: 282438.5587 | AY23: 280149.6311 | AZ23: 277157.8189 | BA23: 273491.9871 | BB23: 269186.2325 | BC23: 264279.4068 | BD23: 258814.5823 | BE23: 252838.4687 | BF23: 246400.7946 | BG23: 831930.8802 | BH23: 0 | BI23: 0 | BJ23: 0 | BK23: 0 | BL23: 0 | BM23: 0 | BN23: 0 | BO23: 0 | BP23: 0 | BQ23: 0 | BR23: 0 | BS23: 0 | BT23: 0 | BU23: 0 | BV23: 0 | BW23: 0 | BX23: 0 | BY23: 0 | BZ23: 0 | CA23: 0 | CB23: 0 | CC23: 0 | CD23: 0 | CE23: 0 | CF23: 0 | CG23: 0 | CH23: 0 | CI23: 0 | CJ23: 0 | CK23: 0 | CL23: 0 | CM23: 0 | CN23: 0 | CO23: 0 | CP23: 0 | CQ23: 0 | CR23: 0 | CS23: 0 | CT23: 0 | CU23: 0 | CV23: 0 | CW23: 0 | CX23: 0 | CY23: 0 | CZ23: 0 | DA23: 0 | DB23: 0 | DC23: 0 | DD23: 0 | DE23: 0 | DF23: 0 | DG23: 0 | DH23: 0 | DI23: 0 | DJ23: 0 | DK23: 0 | DL23: 0 | DM23: 0 | DN23: 0 | DO23: 0 | DP23: 0 | DQ23: 0 | DR23: 0 | DS23: 0 | DT23: 0 | DU23: 0 | DV23: 0 | DW23: 0 | DX23: 0 | DY23: 0 | DZ23: 0 | EA23: 0 | EB23: 0 | EC23: 0 | ED23: 0 | EE23: 0 | EF23: 0 | EG23: 0 | EH23: 0 | EI23: 0 | EJ23: 0 | EK23: 0 | EL23: 0 | EM23: 0 | EN23: 0 | EO23: 0 | EP23: 0 | EQ23: 0 | ER23: 0 | ES23: 0 | ET23: 0 | EU23: 0 | EV23: 0 | EW23: 0 | EX23: 0 | EY23: 0 | EZ23: 0 | FA23: 0 | FB23: 0 | FC23: 0 | FD23: 0 | FE23: 0 | FF23: 0 | FG23: 0 | FH23: 0 | FI23: 0 | FJ23: 0 | FK23: 0 | FL23: 0 | FM23: 0 | FN23: 0 | FO23: 0 | FP23: 0 | FQ23: 0 | FR23: 0 | FS23: 0 | FT23: 0 | FU23: 0 | FV23: 0 | FW23: 0 | FX23: 0 | FY23: 0 | FZ23: 0 | GA23: 0 | GB23: 0 | GC23: 0 | GD23: 0 | GE23: 0 | GF23: 0 | GG23: 0 | GH23: 0 | GI23: 0 | GJ23: 0 | GK23: 0 | GL23: 0 | GM23: 0 | GN23: 0 | GO23: 0 | GP23: 0 | GQ23: 0 | GR23: 0 | GS23: 0 | GT23: 0 | GU23: 0 | GV23: 0 | GW23: 0 | GX23: 0 | GY23: 0 | GZ23: 0
B24: ' Total Sources | E24: 19 | G24: 9525947.026 | H24: 0 | I24: 0 | J24: 362179.5069 | K24: 52559.63551 | L24: 57629.46075 | M24: 63062.12076 | N24: 68862.02977 | O24: 75030.76054 | P24: 81566.74625 | Q24: 88465.0003 | R24: 95716.86049 | S24: 103309.7646 | T24: 111227.0642 | U24: 119447.8827 | V24: 128093.348 | W24: 137154.0272 | X24: 146451.7298 | Y24: 155948.9268 | Z24: 165603.9251 | AA24: 175371.0895 | AB24: 185201.1347 | AC24: 195041.4888 | AD24: 204836.7244 | AE24: 214529.0547 | AF24: 224058.8887 | AG24: 233365.4382 | AH24: 242387.3699 | AI24: 251063.4922 | AJ24: 259333.4658 | AK24: 267138.5278 | AL24: 274422.217 | AM24: 281131.0863 | AN24: 287215.3924 | AO24: 292629.7479 | AP24: 297333.7249 | AQ24: 301292.3985 | AR24: 304476.8197 | AS24: 306864.4097 | AT24: 308439.2655 | AU24: 309192.3743 | AV24: 309121.7298 | AW24: 308232.349 | AX24: 306536.1899 | AY24: 304051.9713 | AZ24: 300804.8979 | BA24: 296826.2977 | BB24: 292153.1765 | BC24: 286827.701 | BD24: 280896.6181 | BE24: 274410.6231 | BF24: 267423.6872 | BG24: 902911.1446 | BH24: 0 | BI24: 0 | BJ24: 0 | BK24: 0 | BL24: 0 | BM24: 0 | BN24: 0 | BO24: 0 | BP24: 0 | BQ24: 0 | BR24: 0 | BS24: 0 | BT24: 0 | BU24: 0 | BV24: 0 | BW24: 0 | BX24: 0 | BY24: 0 | BZ24: 0 | CA24: 0 | CB24: 0 | CC24: 0 | CD24: 0 | CE24: 0 | CF24: 0 | CG24: 0 | CH24: 0 | CI24: 0 | CJ24: 0 | CK24: 0 | CL24: 0 | CM24: 0 | CN24: 0 | CO24: 0 | CP24: 0 | CQ24: 0 | CR24: 0 | CS24: 0 | CT24: 0 | CU24: 0 | CV24: 0 | CW24: 0 | CX24: 0 | CY24: 0 | CZ24: 0 | DA24: 0 | DB24: 0 | DC24: 0 | DD24: 0 | DE24: 0 | DF24: 0 | DG24: 0 | DH24: 0 | DI24: 0 | DJ24: 0 | DK24: 0 | DL24: 0 | DM24: 0 | DN24: 0 | DO24: 0 | DP24: 0 | DQ24: 0 | DR24: 0 | DS24: 0 | DT24: 0 | DU24: 0 | DV24: 0 | DW24: 0 | DX24: 0 | DY24: 0 | DZ24: 0 | EA24: 0 | EB24: 0 | EC24: 0 | ED24: 0 | EE24: 0 | EF24: 0 | EG24: 0 | EH24: 0 | EI24: 0 | EJ24: 0 | EK24: 0 | EL24: 0 | EM24: 0 | EN24: 0 | EO24: 0 | EP24: 0 | EQ24: 0 | ER24: 0 | ES24: 0 | ET24: 0 | EU24: 0 | EV24: 0 | EW24: 0 | EX24: 0 | EY24: 0 | EZ24: 0 | FA24: 0 | FB24: 0 | FC24: 0 | FD24: 0 | FE24: 0 | FF24: 0 | FG24: 0 | FH24: 0 | FI24: 0 | FJ24: 0 | FK24: 0 | FL24: 0 | FM24: 0 | FN24: 0 | FO24: 0 | FP24: 0 | FQ24: 0 | FR24: 0 | FS24: 0 | FT24: 0 | FU24: 0 | FV24: 0 | FW24: 0 | FX24: 0 | FY24: 0 | FZ24: 0 | GA24: 0 | GB24: 0 | GC24: 0 | GD24: 0 | GE24: 0 | GF24: 0 | GG24: 0 | GH24: 0 | GI24: 0 | GJ24: 0 | GK24: 0 | GL24: 0 | GM24: 0 | GN24: 0 | GO24: 0 | GP24: 0 | GQ24: 0 | GR24: 0 | GS24: 0 | GT24: 0 | GU24: 0 | GV24: 0 | GW24: 0 | GX24: 0 | GY24: 0 | GZ24: 0
B25: ' Equity Draws | E25: 20 | G25: 0 | H25: 0 | I25: 0 | J25: 362179.5069 | K25: 52559.63551 | L25: 57629.46075 | M25: 63062.12076 | N25: 68862.02977 | O25: 75030.76054 | P25: 81566.74625 | Q25: 88465.0003 | R25: 95716.86049 | S25: 103309.7646 | T25: 111227.0642 | U25: 64231.46566 | V25: 10069.76131 | W25: 10782.04558 | X25: 11512.9629 | Y25: 12259.563 | Z25: 13018.56829 | AA25: 13786.39126 | AB25: 14559.15745 | AC25: 15332.73405 | AD25: 16102.76376 | AE25: 16864.70382 | AF25: 17613.86961 | AG25: 18345.4824 | AH25: 19054.72063 | AI25: 19736.77385 | AJ25: 20386.89863 | AK25: 21000.47547 | AL25: 21573.06579 | AM25: 22100.46798 | AN25: 22578.77159 | AO25: 23004.40859 | AP25: 23374.20082 | AQ25: 23685.40276 | AR25: 23935.73865 | AS25: 24123.43349 | AT25: 24247.23712 | AU25: 24306.44103 | AV25: 24300.88748 | AW25: 24230.97087 | AX25: 24097.63126 | AY25: 23902.34017 | AZ25: 23647.07904 | BA25: 23334.31061 | BB25: 22966.94403 | BC25: 22548.29413 | BD25: 22082.03582 | BE25: 21572.15437 | BF25: 21022.89262 | BG25: 70980.26444 | BH25: 0 | BI25: 0 | BJ25: 0 | BK25: 0 | BL25: 0 | BM25: 0 | BN25: 0 | BO25: 0 | BP25: 0 | BQ25: 0 | BR25: 0 | BS25: 0 | BT25: 0 | BU25: 0 | BV25: 0 | BW25: 0 | BX25: 0 | BY25: 0 | BZ25: 0 | CA25: 0 | CB25: 0 | CC25: 0 | CD25: 0 | CE25: 0 | CF25: 0 | CG25: 0 | CH25: 0 | CI25: 0 | CJ25: 0 | CK25: 0 | CL25: 0 | CM25: 0 | CN25: 0 | CO25: 0 | CP25: 0 | CQ25: 0 | CR25: 0 | CS25: 0 | CT25: 0 | CU25: 0 | CV25: 0 | CW25: 0 | CX25: 0 | CY25: 0 | CZ25: 0 | DA25: 0 | DB25: 0 | DC25: 0 | DD25: 0 | DE25: 0 | DF25: 0 | DG25: 0 | DH25: 0 | DI25: 0 | DJ25: 0 | DK25: 0 | DL25: 0 | DM25: 0 | DN25: 0 | DO25: 0 | DP25: 0 | DQ25: 0 | DR25: 0 | DS25: 0 | DT25: 0 | DU25: 0 | DV25: 0 | DW25: 0 | DX25: 0 | DY25: 0 | DZ25: 0 | EA25: 0 | EB25: 0 | EC25: 0 | ED25: 0 | EE25: 0 | EF25: 0 | EG25: 0 | EH25: 0 | EI25: 0 | EJ25: 0 | EK25: 0 | EL25: 0 | EM25: 0 | EN25: 0 | EO25: 0 | EP25: 0 | EQ25: 0 | ER25: 0 | ES25: 0 | ET25: 0 | EU25: 0 | EV25: 0 | EW25: 0 | EX25: 0 | EY25: 0 | EZ25: 0 | FA25: 0 | FB25: 0 | FC25: 0 | FD25: 0 | FE25: 0 | FF25: 0 | FG25: 0 | FH25: 0 | FI25: 0 | FJ25: 0 | FK25: 0 | FL25: 0 | FM25: 0 | FN25: 0 | FO25: 0 | FP25: 0 | FQ25: 0 | FR25: 0 | FS25: 0 | FT25: 0 | FU25: 0 | FV25: 0 | FW25: 0 | FX25: 0 | FY25: 0 | FZ25: 0 | GA25: 0 | GB25: 0 | GC25: 0 | GD25: 0 | GE25: 0 | GF25: 0 | GG25: 0 | GH25: 0 | GI25: 0 | GJ25: 0 | GK25: 0 | GL25: 0 | GM25: 0 | GN25: 0 | GO25: 0 | GP25: 0 | GQ25: 0 | GR25: 0 | GS25: 0 | GT25: 0 | GU25: 0 | GV25: 0 | GW25: 0 | GX25: 0 | GY25: 0 | GZ25: 0
B26: ' Remaining Equity | E26: 21 | G26: 2031882.26 | H26: 0 | I26: 0 | J26: 856949.8494 | K26: 804390.2139 | L26: 746760.7531 | M26: 683698.6324 | N26: 614836.6026 | O26: 539805.8421 | P26: 458239.0958 | Q26: 369774.0955 | R26: 274057.235 | S26: 170747.4704 | T26: 59520.40616 | U26: 0 | V26: 0 | W26: 0 | X26: 0 | Y26: 0 | Z26: 0 | AA26: 0 | AB26: 0 | AC26: 0 | AD26: 0 | AE26: 0 | AF26: 0 | AG26: 0 | AH26: 0 | AI26: 0 | AJ26: 0 | AK26: 0 | AL26: 0 | AM26: 0 | AN26: 0 | AO26: 0 | AP26: 0 | AQ26: 0 | AR26: 0 | AS26: 0 | AT26: 0 | AU26: 0 | AV26: 0 | AW26: 0 | AX26: 0 | AY26: 0 | AZ26: 0 | BA26: 0 | BB26: 0 | BC26: 0 | BD26: 0 | BE26: 0 | BF26: 0 | BG26: 0 | BH26: 0 | BI26: 0 | BJ26: 0 | BK26: 0 | BL26: 0 | BM26: 0 | BN26: 0 | BO26: 0 | BP26: 0 | BQ26: 0 | BR26: 0 | BS26: 0 | BT26: 0 | BU26: 0 | BV26: 0 | BW26: 0 | BX26: 0 | BY26: 0 | BZ26: 0 | CA26: 0 | CB26: 0 | CC26: 0 | CD26: 0 | CE26: 0 | CF26: 0 | CG26: 0 | CH26: 0 | CI26: 0 | CJ26: 0 | CK26: 0 | CL26: 0 | CM26: 0 | CN26: 0 | CO26: 0 | CP26: 0 | CQ26: 0 | CR26: 0 | CS26: 0 | CT26: 0 | CU26: 0 | CV26: 0 | CW26: 0 | CX26: 0 | CY26: 0 | CZ26: 0 | DA26: 0 | DB26: 0 | DC26: 0 | DD26: 0 | DE26: 0 | DF26: 0 | DG26: 0 | DH26: 0 | DI26: 0 | DJ26: 0 | DK26: 0 | DL26: 0 | DM26: 0 | DN26: 0 | DO26: 0 | DP26: 0 | DQ26: 0 | DR26: 0 | DS26: 0 | DT26: 0 | DU26: 0 | DV26: 0 | DW26: 0 | DX26: 0 | DY26: 0 | DZ26: 0 | EA26: 0 | EB26: 0 | EC26: 0 | ED26: 0 | EE26: 0 | EF26: 0 | EG26: 0 | EH26: 0 | EI26: 0 | EJ26: 0 | EK26: 0 | EL26: 0 | EM26: 0 | EN26: 0 | EO26: 0 | EP26: 0 | EQ26: 0 | ER26: 0 | ES26: 0 | ET26: 0 | EU26: 0 | EV26: 0 | EW26: 0 | EX26: 0 | EY26: 0 | EZ26: 0 | FA26: 0 | FB26: 0 | FC26: 0 | FD26: 0 | FE26: 0 | FF26: 0 | FG26: 0 | FH26: 0 | FI26: 0 | FJ26: 0 | FK26: 0 | FL26: 0 | FM26: 0 | FN26: 0 | FO26: 0 | FP26: 0 | FQ26: 0 | FR26: 0 | FS26: 0 | FT26: 0 | FU26: 0 | FV26: 0 | FW26: 0 | FX26: 0 | FY26: 0 | FZ26: 0 | GA26: 0 | GB26: 0 | GC26: 0 | GD26: 0 | GE26: 0 | GF26: 0 | GG26: 0 | GH26: 0 | GI26: 0 | GJ26: 0 | GK26: 0 | GL26: 0 | GM26: 0 | GN26: 0 | GO26: 0 | GP26: 0 | GQ26: 0 | GR26: 0 | GS26: 0 | GT26: 0 | GU26: 0 | GV26: 0 | GW26: 0 | GX26: 0 | GY26: 0 | GZ26: 0
B27: ' Equity Balance | E27: 22 | G27: 0 | H27: 0 | I27: 0 | J27: 362179.5069 | K27: 414739.1424 | L27: 472368.6031 | M27: 535430.7239 | N27: 604292.7537 | O27: 679323.5142 | P27: 760890.2605 | Q27: 849355.2608 | R27: 945072.1213 | S27: 1048381.886 | T27: 1159608.95 | U27: 1223840.416 | V27: 1233910.177 | W27: 1244692.223 | X27: 1256205.186 | Y27: 1268464.749 | Z27: 1281483.317 | AA27: 1295269.708 | AB27: 1309828.866 | AC27: 1325161.6 | AD27: 1341264.363 | AE27: 1358129.067 | AF27: 1375742.937 | AG27: 1394088.419 | AH27: 1413143.14 | AI27: 1432879.914 | AJ27: 1453266.812 | AK27: 1474267.288 | AL27: 1495840.354 | AM27: 1517940.822 | AN27: 1540519.593 | AO27: 1563524.002 | AP27: 1586898.203 | AQ27: 1610583.605 | AR27: 1634519.344 | AS27: 1658642.777 | AT27: 1682890.015 | AU27: 1707196.456 | AV27: 1731497.343 | AW27: 1755728.314 | AX27: 1779825.945 | AY27: 1803728.285 | AZ27: 1827375.364 | BA27: 1850709.675 | BB27: 1873676.619 | BC27: 1896224.913 | BD27: 1918306.949 | BE27: 1939879.103 | BF27: 1960901.996 | BG27: 2031882.26 | BH27: 0 | BI27: 0 | BJ27: 0 | BK27: 0 | BL27: 0 | BM27: 0 | BN27: 0 | BO27: 0 | BP27: 0 | BQ27: 0 | BR27: 0 | BS27: 0 | BT27: 0 | BU27: 0 | BV27: 0 | BW27: 0 | BX27: 0 | BY27: 0 | BZ27: 0 | CA27: 0 | CB27: 0 | CC27: 0 | CD27: 0 | CE27: 0 | CF27: 0 | CG27: 0 | CH27: 0 | CI27: 0 | CJ27: 0 | CK27: 0 | CL27: 0 | CM27: 0 | CN27: 0 | CO27: 0 | CP27: 0 | CQ27: 0 | CR27: 0 | CS27: 0 | CT27: 0 | CU27: 0 | CV27: 0 | CW27: 0 | CX27: 0 | CY27: 0 | CZ27: 0 | DA27: 0 | DB27: 0 | DC27: 0 | DD27: 0 | DE27: 0 | DF27: 0 | DG27: 0 | DH27: 0 | DI27: 0 | DJ27: 0 | DK27: 0 | DL27: 0 | DM27: 0 | DN27: 0 | DO27: 0 | DP27: 0 | DQ27: 0 | DR27: 0 | DS27: 0 | DT27: 0 | DU27: 0 | DV27: 0 | DW27: 0 | DX27: 0 | DY27: 0 | DZ27: 0 | EA27: 0 | EB27: 0 | EC27: 0 | ED27: 0 | EE27: 0 | EF27: 0 | EG27: 0 | EH27: 0 | EI27: 0 | EJ27: 0 | EK27: 0 | EL27: 0 | EM27: 0 | EN27: 0 | EO27: 0 | EP27: 0 | EQ27: 0 | ER27: 0 | ES27: 0 | ET27: 0 | EU27: 0 | EV27: 0 | EW27: 0 | EX27: 0 | EY27: 0 | EZ27: 0 | FA27: 0 | FB27: 0 | FC27: 0 | FD27: 0 | FE27: 0 | FF27: 0 | FG27: 0 | FH27: 0 | FI27: 0 | FJ27: 0 | FK27: 0 | FL27: 0 | FM27: 0 | FN27: 0 | FO27: 0 | FP27: 0 | FQ27: 0 | FR27: 0 | FS27: 0 | FT27: 0 | FU27: 0 | FV27: 0 | FW27: 0 | FX27: 0 | FY27: 0 | FZ27: 0 | GA27: 0 | GB27: 0 | GC27: 0 | GD27: 0 | GE27: 0 | GF27: 0 | GG27: 0 | GH27: 0 | GI27: 0 | GJ27: 0 | GK27: 0 | GL27: 0 | GM27: 0 | GN27: 0 | GO27: 0 | GP27: 0 | GQ27: 0 | GR27: 0 | GS27: 0 | GT27: 0 | GU27: 0 | GV27: 0 | GW27: 0 | GX27: 0 | GY27: 0 | GZ27: 0
B28: ' Debt Balance | E28: 23 | G28: 0 | H28: 0 | I28: 0 | J28: 0 | K28: 0 | L28: 0 | M28: 0 | N28: 0 | O28: 0 | P28: 0 | Q28: 0 | R28: 0 | S28: 0 | T28: 0 | U28: 55216.417 | V28: 173240.0037 | W28: 299611.9853 | X28: 434550.7522 | Y28: 578240.116 | Z28: 730825.4728 | AA28: 892410.1711 | AB28: 1063052.148 | AC28: 1242760.903 | AD28: 1431494.864 | AE28: 1629159.215 | AF28: 1835604.234 | AG28: 2050624.189 | AH28: 2273956.839 | AI28: 2505283.557 | AJ28: 2744230.124 | AK28: 2990368.176 | AL28: 3243217.328 | AM28: 3502247.946 | AN28: 3766884.567 | AO28: 4036509.906 | AP28: 4310469.43 | AQ28: 4588076.426 | AR28: 4868617.507 | AS28: 5151358.483 | AT28: 5435550.511 | AU28: 5720436.445 | AV28: 6005257.287 | AW28: 6289258.665 | AX28: 6571697.224 | AY28: 6851846.855 | AZ28: 7129004.674 | BA28: 7402496.661 | BB28: 7671682.893 | BC28: 7935962.3 | BD28: 8194776.883 | BE28: 8447615.351 | BF28: 8694016.146 | BG28: 9525947.026 | BH28: 9541696.703 | BI28: 9487144.796 | BJ28: 9425569.222 | BK28: 9363313.831 | BL28: 9295707.665 | BM28: 9223341.537 | BN28: 9142532.547 | BO28: 9055082.729 | BP28: 8951412.328 | BQ28: 8840636.11 | BR28: 8712658.605 | BS28: 8574751.673 | BT28: 8420950.565 | BU28: 8265367.832 | BV28: 8098917.552 | BW28: 7932146.199 | BX28: 7754169.383 | BY28: 7575681.14 | BZ28: 7385637.391 | CA28: 7192343.527 | CB28: 6989641.256 | CC28: 6786037.451 | CD28: 6570139.371 | CE28: 6353125.653 | CF28: 6123429.447 | CG28: 5892386.174 | CH28: 5648521.995 | CI28: 5400642.196 | CJ28: 5235505.883 | CK28: 5071103.482 | CL28: 4895381.794 | CM28: 4720244.864 | CN28: 4533455.532 | CO28: 4347085.091 | CP28: 4148717.289 | CQ28: 3947733.439 | CR28: 3737137.142 | CS28: 3526535.94 | CT28: 3272966.257 | CU28: 3018465.422 | CV28: 2750013.015 | CW28: 2480388.071 | CX28: 2196379.025 | CY28: 1907908.787 | CZ28: 1607607.118 | DA28: 1305637.613 | DB28: 988374.202 | DC28: 669177.4758 | DD28: 335200.2441 | DE28: 6.61239028e-08 | DF28: 0 | DG28: 0 | DH28: 0 | DI28: 0 | DJ28: 0 | DK28: 0 | DL28: 0 | DM28: 0 | DN28: 0 | DO28: 0 | DP28: 0 | DQ28: 0 | DR28: 0 | DS28: 0 | DT28: 0 | DU28: 0 | DV28: 0 | DW28: 0 | DX28: 0 | DY28: 0 | DZ28: 0 | EA28: 0 | EB28: 0 | EC28: 0 | ED28: 0 | EE28: 0 | EF28: 0 | EG28: 0 | EH28: 0 | EI28: 0 | EJ28: 0 | EK28: 0 | EL28: 0 | EM28: 0 | EN28: 0 | EO28: 0 | EP28: 0 | EQ28: 0 | ER28: 0 | ES28: 0 | ET28: 0 | EU28: 0 | EV28: 0 | EW28: 0 | EX28: 0 | EY28: 0 | EZ28: 0 | FA28: 0 | FB28: 0 | FC28: 0 | FD28: 0 | FE28: 0 | FF28: 0 | FG28: 0 | FH28: 0 | FI28: 0 | FJ28: 0 | FK28: 0 | FL28: 0 | FM28: 0 | FN28: 0 | FO28: 0 | FP28: 0 | FQ28: 0 | FR28: 0 | FS28: 0 | FT28: 0 | FU28: 0 | FV28: 0 | FW28: 0 | FX28: 0 | FY28: 0 | FZ28: 0 | GA28: 0 | GB28: 0 | GC28: 0 | GD28: 0 | GE28: 0 | GF28: 0 | GG28: 0 | GH28: 0 | GI28: 0 | GJ28: 0 | GK28: 0 | GL28: 0 | GM28: 0 | GN28: 0 | GO28: 0 | GP28: 0 | GQ28: 0 | GR28: 0 | GS28: 0 | GT28: 0 | GU28: 0 | GV28: 0 | GW28: 0 | GX28: 0 | GY28: 0 | GZ28: 0
B29: ' Total Debt Issues | E29: 24 | G29: 1 | H29: 0 | I29: 0 | J29: 0 | K29: 0 | L29: 0 | M29: 0 | N29: 0 | O29: 0 | P29: 0 | Q29: 0 | R29: 0 | S29: 0 | T29: 0 | U29: 0 | V29: 0 | W29: 0 | X29: 0 | Y29: 0 | Z29: 0 | AA29: 0 | AB29: 0 | AC29: 0 | AD29: 0 | AE29: 0 | AF29: 0 | AG29: 0 | AH29: 0 | AI29: 0 | AJ29: 0 | AK29: 0 | AL29: 0 | AM29: 0 | AN29: 0 | AO29: 0 | AP29: 0 | AQ29: 0 | AR29: 0 | AS29: 0 | AT29: 0 | AU29: 0 | AV29: 0 | AW29: 0 | AX29: 0 | AY29: 0 | AZ29: 0 | BA29: 0 | BB29: 0 | BC29: 0 | BD29: 0 | BE29: 0 | BF29: 0 | BG29: 0 | BH29: 0 | BI29: 0 | BJ29: 0 | BK29: 0 | BL29: 0 | BM29: 0 | BN29: 0 | BO29: 0 | BP29: 0 | BQ29: 0 | BR29: 0 | BS29: 0 | BT29: 0 | BU29: 0 | BV29: 0 | BW29: 0 | BX29: 0 | BY29: 0 | BZ29: 0 | CA29: 0 | CB29: 0 | CC29: 0 | CD29: 0 | CE29: 0 | CF29: 0 | CG29: 0 | CH29: 0 | CI29: 0 | CJ29: 0 | CK29: 0 | CL29: 0 | CM29: 0 | CN29: 0 | CO29: 0 | CP29: 0 | CQ29: 0 | CR29: 0 | CS29: 0 | CT29: 0 | CU29: 0 | CV29: 0 | CW29: 0 | CX29: 0 | CY29: 0 | CZ29: 0 | DA29: 0 | DB29: 0 | DC29: 0 | DD29: 0 | DE29: 0 | DF29: 0 | DG29: 0 | DH29: 0 | DI29: 0 | DJ29: 0 | DK29: 0 | DL29: 0 | DM29: 0 | DN29: 0 | DO29: 0 | DP29: 0 | DQ29: 0 | DR29: 0 | DS29: 0 | DT29: 0 | DU29: 0 | DV29: 0 | DW29: 0 | DX29: 0 | DY29: 0 | DZ29: 0 | EA29: 0 | EB29: 0 | EC29: 0 | ED29: 0 | EE29: 0 | EF29: 0 | EG29: 0 | EH29: 0 | EI29: 0 | EJ29: 0 | EK29: 0 | EL29: 0 | EM29: 0 | EN29: 0 | EO29: 0 | EP29: 0 | EQ29: 0 | ER29: 0 | ES29: 0 | ET29: 0 | EU29: 0 | EV29: 0 | EW29: 0 | EX29: 0 | EY29: 0 | EZ29: 0 | FA29: 0 | FB29: 0 | FC29: 0 | FD29: 0 | FE29: 0 | FF29: 0 | FG29: 0 | FH29: 0 | FI29: 0 | FJ29: 0 | FK29: 0 | FL29: 0 | FM29: 0 | FN29: 0 | FO29: 0 | FP29: 0 | FQ29: 0 | FR29: 0 | FS29: 0 | FT29: 0 | FU29: 0 | FV29: 0 | FW29: 0 | FX29: 0 | FY29: 0 | FZ29: 0 | GA29: 0 | GB29: 0 | GC29: 0 | GD29: 0 | GE29: 0 | GF29: 0 | GG29: 0 | GH29: 0 | GI29: 0 | GJ29: 0 | GK29: 0 | GL29: 0 | GM29: 0 | GN29: 0 | GO29: 0 | GP29: 0 | GQ29: 0 | GR29: 0 | GS29: 0 | GT29: 0 | GU29: 0 | GV29: 0 | GW29: 0 | GX29: 0 | GY29: 0 | GZ29: 0
B30: ' Total Debt Commitment | E30: 25 | G30: 9525947.026 | H30: 0 | I30: 0 | J30: 0 | K30: 0 | L30: 0 | M30: 0 | N30: 0 | O30: 0 | P30: 0 | Q30: 0 | R30: 0 | S30: 0 | T30: 0 | U30: 0 | V30: 0 | W30: 0 | X30: 0 | Y30: 0 | Z30: 0 | AA30: 0 | AB30: 0 | AC30: 0 | AD30: 0 | AE30: 0 | AF30: 0 | AG30: 0 | AH30: 0 | AI30: 0 | AJ30: 0 | AK30: 0 | AL30: 0 | AM30: 0 | AN30: 0 | AO30: 0 | AP30: 0 | AQ30: 0 | AR30: 0 | AS30: 0 | AT30: 0 | AU30: 0 | AV30: 0 | AW30: 0 | AX30: 0 | AY30: 0 | AZ30: 0 | BA30: 0 | BB30: 0 | BC30: 0 | BD30: 0 | BE30: 0 | BF30: 0 | BG30: 0 | BH30: 0 | BI30: 0 | BJ30: 0 | BK30: 0 | BL30: 0 | BM30: 0 | BN30: 0 | BO30: 0 | BP30: 0 | BQ30: 0 | BR30: 0 | BS30: 0 | BT30: 0 | BU30: 0 | BV30: 0 | BW30: 0 | BX30: 0 | BY30: 0 | BZ30: 0 | CA30: 0 | CB30: 0 | CC30: 0 | CD30: 0 | CE30: 0 | CF30: 0 | CG30: 0 | CH30: 0 | CI30: 0 | CJ30: 0 | CK30: 0 | CL30: 0 | CM30: 0 | CN30: 0 | CO30: 0 | CP30: 0 | CQ30: 0 | CR30: 0 | CS30: 0 | CT30: 0 | CU30: 0 | CV30: 0 | CW30: 0 | CX30: 0 | CY30: 0 | CZ30: 0 | DA30: 0 | DB30: 0 | DC30: 0 | DD30: 0 | DE30: 0 | DF30: 0 | DG30: 0 | DH30: 0 | DI30: 0 | DJ30: 0 | DK30: 0 | DL30: 0 | DM30: 0 | DN30: 0 | DO30: 0 | DP30: 0 | DQ30: 0 | DR30: 0 | DS30: 0 | DT30: 0 | DU30: 0 | DV30: 0 | DW30: 0 | DX30: 0 | DY30: 0 | DZ30: 0 | EA30: 0 | EB30: 0 | EC30: 0 | ED30: 0 | EE30: 0 | EF30: 0 | EG30: 0 | EH30: 0 | EI30: 0 | EJ30: 0 | EK30: 0 | EL30: 0 | EM30: 0 | EN30: 0 | EO30: 0 | EP30: 0 | EQ30: 0 | ER30: 0 | ES30: 0 | ET30: 0 | EU30: 0 | EV30: 0 | EW30: 0 | EX30: 0 | EY30: 0 | EZ30: 0 | FA30: 0 | FB30: 0 | FC30: 0 | FD30: 0 | FE30: 0 | FF30: 0 | FG30: 0 | FH30: 0 | FI30: 0 | FJ30: 0 | FK30: 0 | FL30: 0 | FM30: 0 | FN30: 0 | FO30: 0 | FP30: 0 | FQ30: 0 | FR30: 0 | FS30: 0 | FT30: 0 | FU30: 0 | FV30: 0 | FW30: 0 | FX30: 0 | FY30: 0 | FZ30: 0 | GA30: 0 | GB30: 0 | GC30: 0 | GD30: 0 | GE30: 0 | GF30: 0 | GG30: 0 | GH30: 0 | GI30: 0 | GJ30: 0 | GK30: 0 | GL30: 0 | GM30: 0 | GN30: 0 | GO30: 0 | GP30: 0 | GQ30: 0 | GR30: 0 | GS30: 0 | GT30: 0 | GU30: 0 | GV30: 0 | GW30: 0 | GX30: 0 | GY30: 0 | GZ30: 0
B31: ' Total Sculpted Debt | E31: 26 | G31: 9525947.026 | H31: 0 | I31: 0 | J31: 0 | K31: 0 | L31: 0 | M31: 0 | N31: 0 | O31: 0 | P31: 0 | Q31: 0 | R31: 0 | S31: 0 | T31: 0 | U31: 0 | V31: 0 | W31: 0 | X31: 0 | Y31: 0 | Z31: 0 | AA31: 0 | AB31: 0 | AC31: 0 | AD31: 0 | AE31: 0 | AF31: 0 | AG31: 0 | AH31: 0 | AI31: 0 | AJ31: 0 | AK31: 0 | AL31: 0 | AM31: 0 | AN31: 0 | AO31: 0 | AP31: 0 | AQ31: 0 | AR31: 0 | AS31: 0 | AT31: 0 | AU31: 0 | AV31: 0 | AW31: 0 | AX31: 0 | AY31: 0 | AZ31: 0 | BA31: 0 | BB31: 0 | BC31: 0 | BD31: 0 | BE31: 0 | BF31: 0 | BG31: 0 | BH31: 0 | BI31: 0 | BJ31: 0 | BK31: 0 | BL31: 0 | BM31: 0 | BN31: 0 | BO31: 0 | BP31: 0 | BQ31: 0 | BR31: 0 | BS31: 0 | BT31: 0 | BU31: 0 | BV31: 0 | BW31: 0 | BX31: 0 | BY31: 0 | BZ31: 0 | CA31: 0 | CB31: 0 | CC31: 0 | CD31: 0 | CE31: 0 | CF31: 0 | CG31: 0 | CH31: 0 | CI31: 0 | CJ31: 0 | CK31: 0 | CL31: 0 | CM31: 0 | CN31: 0 | CO31: 0 | CP31: 0 | CQ31: 0 | CR31: 0 | CS31: 0 | CT31: 0 | CU31: 0 | CV31: 0 | CW31: 0 | CX31: 0 | CY31: 0 | CZ31: 0 | DA31: 0 | DB31: 0 | DC31: 0 | DD31: 0 | DE31: 0 | DF31: 0 | DG31: 0 | DH31: 0 | DI31: 0 | DJ31: 0 | DK31: 0 | DL31: 0 | DM31: 0 | DN31: 0 | DO31: 0 | DP31: 0 | DQ31: 0 | DR31: 0 | DS31: 0 | DT31: 0 | DU31: 0 | DV31: 0 | DW31: 0 | DX31: 0 | DY31: 0 | DZ31: 0 | EA31: 0 | EB31: 0 | EC31: 0 | ED31: 0 | EE31: 0 | EF31: 0 | EG31: 0 | EH31: 0 | EI31: 0 | EJ31: 0 | EK31: 0 | EL31: 0 | EM31: 0 | EN31: 0 | EO31: 0 | EP31: 0 | EQ31: 0 | ER31: 0 | ES31: 0 | ET31: 0 | EU31: 0 | EV31: 0 | EW31: 0 | EX31: 0 | EY31: 0 | EZ31: 0 | FA31: 0 | FB31: 0 | FC31: 0 | FD31: 0 | FE31: 0 | FF31: 0 | FG31: 0 | FH31: 0 | FI31: 0 | FJ31: 0 | FK31: 0 | FL31: 0 | FM31: 0 | FN31: 0 | FO31: 0 | FP31: 0 | FQ31: 0 | FR31: 0 | FS31: 0 | FT31: 0 | FU31: 0 | FV31: 0 | FW31: 0 | FX31: 0 | FY31: 0 | FZ31: 0 | GA31: 0 | GB31: 0 | GC31: 0 | GD31: 0 | GE31: 0 | GF31: 0 | GG31: 0 | GH31: 0 | GI31: 0 | GJ31: 0 | GK31: 0 | GL31: 0 | GM31: 0 | GN31: 0 | GO31: 0 | GP31: 0 | GQ31: 0 | GR31: 0 | GS31: 0 | GT31: 0 | GU31: 0 | GV31: 0 | GW31: 0 | GX31: 0 | GY31: 0 | GZ31: 0
B32: Debt Sizing Option/Fixed/Percent/DSCR | E32: 27 | G32: 3 | H32: 8000000 | I32: 8552793.672 | J32: 9525947.026 | K32: 11557829.29 | L32: 0 | M32: 0 | N32: 0 | O32: 0 | P32: 0 | Q32: 0 | R32: 0 | S32: 0 | T32: 0 | U32: 0 | V32: 0 | W32: 0 | X32: 0 | Y32: 0 | Z32: 0 | AA32: 0 | AB32: 0 | AC32: 0 | AD32: 0 | AE32: 0 | AF32: 0 | AG32: 0 | AH32: 0 | AI32: 0 | AJ32: 0 | AK32: 0 | AL32: 0 | AM32: 0 | AN32: 0 | AO32: 0 | AP32: 0 | AQ32: 0 | AR32: 0 | AS32: 0 | AT32: 0 | AU32: 0 | AV32: 0 | AW32: 0 | AX32: 0 | AY32: 0 | AZ32: 0 | BA32: 0 | BB32: 0 | BC32: 0 | BD32: 0 | BE32: 0 | BF32: 0 | BG32: 0 | BH32: 0 | BI32: 0 | BJ32: 0 | BK32: 0 | BL32: 0 | BM32: 0 | BN32: 0 | BO32: 0 | BP32: 0 | BQ32: 0 | BR32: 0 | BS32: 0 | BT32: 0 | BU32: 0 | BV32: 0 | BW32: 0 | BX32: 0 | BY32: 0 | BZ32: 0 | CA32: 0 | CB32: 0 | CC32: 0 | CD32: 0 | CE32: 0 | CF32: 0 | CG32: 0 | CH32: 0 | CI32: 0 | CJ32: 0 | CK32: 0 | CL32: 0 | CM32: 0 | CN32: 0 | CO32: 0 | CP32: 0 | CQ32: 0 | CR32: 0 | CS32: 0 | CT32: 0 | CU32: 0 | CV32: 0 | CW32: 0 | CX32: 0 | CY32: 0 | CZ32: 0 | DA32: 0 | DB32: 0 | DC32: 0 | DD32: 0 | DE32: 0 | DF32: 0 | DG32: 0 | DH32: 0 | DI32: 0 | DJ32: 0 | DK32: 0 | DL32: 0 | DM32: 0 | DN32: 0 | DO32: 0 | DP32: 0 | DQ32: 0 | DR32: 0 | DS32: 0 | DT32: 0 | DU32: 0 | DV32: 0 | DW32: 0 | DX32: 0 | DY32: 0 | DZ32: 0 | EA32: 0 | EB32: 0 | EC32: 0 | ED32: 0 | EE32: 0 | EF32: 0 | EG32: 0 | EH32: 0 | EI32: 0 | EJ32: 0 | EK32: 0 | EL32: 0 | EM32: 0 | EN32: 0 | EO32: 0 | EP32: 0 | EQ32: 0 | ER32: 0 | ES32: 0 | ET32: 0 | EU32: 0 | EV32: 0 | EW32: 0 | EX32: 0 | EY32: 0 | EZ32: 0 | FA32: 0 | FB32: 0 | FC32: 0 | FD32: 0 | FE32: 0 | FF32: 0 | FG32: 0 | FH32: 0 | FI32: 0 | FJ32: 0 | FK32: 0 | FL32: 0 | FM32: 0 | FN32: 0 | FO32: 0 | FP32: 0 | FQ32: 0 | FR32: 0 | FS32: 0 | FT32: 0 | FU32: 0 | FV32: 0 | FW32: 0 | FX32: 0 | FY32: 0 | FZ32: 0 | GA32: 0 | GB32: 0 | GC32: 0 | GD32: 0 | GE32: 0 | GF32: 0 | GG32: 0 | GH32: 0 | GI32: 0 | GJ32: 0 | GK32: 0 | GL32: 0 | GM32: 0 | GN32: 0 | GO32: 0 | GP32: 0 | GQ32: 0 | GR32: 0 | GS32: 0 | GT32: 0 | GU32: 0 | GV32: 0 | GW32: 0 | GX32: 0 | GY32: 0 | GZ32: 0
B33: ' Senior Interest Expense | E33: 28 | G33: 0 | H33: 0 | I33: 0 | J33: 0 | K33: 0 | L33: 0 | M33: 0 | N33: 0 | O33: 0 | P33: 0 | Q33: 0 | R33: 0 | S33: 0 | T33: 0 | U33: 0 | V33: 0 | W33: 0 | X33: 0 | Y33: 0 | Z33: 0 | AA33: 0 | AB33: 0 | AC33: 0 | AD33: 0 | AE33: 0 | AF33: 0 | AG33: 0 | AH33: 0 | AI33: 0 | AJ33: 0 | AK33: 0 | AL33: 0 | AM33: 0 | AN33: 0 | AO33: 0 | AP33: 0 | AQ33: 0 | AR33: 0 | AS33: 0 | AT33: 0 | AU33: 0 | AV33: 0 | AW33: 0 | AX33: 0 | AY33: 0 | AZ33: 0 | BA33: 0 | BB33: 0 | BC33: 0 | BD33: 0 | BE33: 0 | BF33: 0 | BG33: 0 | BH33: 180992.9935 | BI33: 181292.2374 | BJ33: 180255.7511 | BK33: 179085.8152 | BL33: 177902.9628 | BM33: 176618.4456 | BN33: 182160.9953 | BO33: 180565.0178 | BP33: 178837.8839 | BQ33: 176790.3935 | BR33: 174602.5632 | BS33: 172075.0075 | BT33: 169351.3455 | BU33: 166313.7737 | BV33: 163241.0147 | BW33: 159953.6217 | BX33: 156659.8874 | BY33: 153144.8453 | BZ33: 149619.7025 | CA33: 145866.3385 | CB33: 142048.7847 | CC33: 138045.4148 | CD33: 134024.2397 | CE33: 129760.2526 | CF33: 125474.2316 | CG33: 120937.7316 | CH33: 116374.6269 | CI33: 111558.3094 | CJ33: 106662.6834 | CK33: 103401.2412 | CL33: 100154.2938 | CM33: 96683.79043 | CN33: 93224.83606 | CO33: 89535.74676 | CP33: 85854.93056 | CQ33: 81937.16645 | CR33: 77967.73542 | CS33: 73808.45855 | CT33: 69649.08482 | CU33: 64641.08357 | CV33: 59614.69208 | CW33: 54312.75704 | CX33: 48987.6644 | CY33: 43378.48575 | CZ33: 37681.19855 | DA33: 31750.24057 | DB33: 25786.34286 | DC33: 19520.39049 | DD33: 13216.25515 | DE33: 6620.204821 | DF33: 0 | DG33: 0 | DH33: 0 | DI33: 0 | DJ33: 0 | DK33: 0 | DL33: 0 | DM33: 0 | DN33: 0 | DO33: 0 | DP33: 0 | DQ33: 0 | DR33: 0 | DS33: 0 | DT33: 0 | DU33: 0 | DV33: 0 | DW33: 0 | DX33: 0 | DY33: 0 | DZ33: 0 | EA33: 0 | EB33: 0 | EC33: 0 | ED33: 0 | EE33: 0 | EF33: 0 | EG33: 0 | EH33: 0 | EI33: 0 | EJ33: 0 | EK33: 0 | EL33: 0 | EM33: 0 | EN33: 0 | EO33: 0 | EP33: 0 | EQ33: 0 | ER33: 0 | ES33: 0 | ET33: 0 | EU33: 0 | EV33: 0 | EW33: 0 | EX33: 0 | EY33: 0 | EZ33: 0 | FA33: 0 | FB33: 0 | FC33: 0 | FD33: 0 | FE33: 0 | FF33: 0 | FG33: 0 | FH33: 0 | FI33: 0 | FJ33: 0 | FK33: 0 | FL33: 0 | FM33: 0 | FN33: 0 | FO33: 0 | FP33: 0 | FQ33: 0 | FR33: 0 | FS33: 0 | FT33: 0 | FU33: 0 | FV33: 0 | FW33: 0 | FX33: 0 | FY33: 0 | FZ33: 0 | GA33: 0 | GB33: 0 | GC33: 0 | GD33: 0 | GE33: 0 | GF33: 0 | GG33: 0 | GH33: 0 | GI33: 0 | GJ33: 0 | GK33: 0 | GL33: 0 | GM33: 0 | GN33: 0 | GO33: 0 | GP33: 0 | GQ33: 0 | GR33: 0 | GS33: 0 | GT33: 0 | GU33: 0 | GV33: 0 | GW33: 0 | GX33: 0 | GY33: 0 | GZ33: 0
B34: ' Senior Repayment | E34: 29 | G34: 50 | H34: 60 | I34: 109 | J34: 0 | K34: 0 | L34: 0 | M34: 0 | N34: 0 | O34: 0 | P34: 0 | Q34: 0 | R34: 0 | S34: 0 | T34: 0 | U34: 0 | V34: 0 | W34: 0 | X34: 0 | Y34: 0 | Z34: 0 | AA34: 0 | AB34: 0 | AC34: 0 | AD34: 0 | AE34: 0 | AF34: 0 | AG34: 0 | AH34: 0 | AI34: 0 | AJ34: 0 | AK34: 0 | AL34: 0 | AM34: 0 | AN34: 0 | AO34: 0 | AP34: 0 | AQ34: 0 | AR34: 0 | AS34: 0 | AT34: 0 | AU34: 0 | AV34: 0 | AW34: 0 | AX34: 0 | AY34: 0 | AZ34: 0 | BA34: 0 | BB34: 0 | BC34: 0 | BD34: 0 | BE34: 0 | BF34: 0 | BG34: 0 | BH34: -15749.6769 | BI34: 54551.90741 | BJ34: 61575.57357 | BK34: 62255.39148 | BL34: 67606.1658 | BM34: 72366.12805 | BN34: 80808.98922 | BO34: 87449.81811 | BP34: 103670.4012 | BQ34: 110776.2182 | BR34: 127977.5045 | BS34: 137906.9324 | BT34: 153801.1083 | BU34: 155582.733 | BV34: 166450.2793 | BW34: 166771.3532 | BX34: 177976.8167 | BY34: 178488.2421 | BZ34: 190043.749 | CA34: 193293.864 | CB34: 202702.2716 | CC34: 203603.8044 | CD34: 215898.0805 | CE34: 217013.7182 | CF34: 229696.2058 | CG34: 231043.2726 | CH34: 243864.1795 | CI34: 247879.7989 | CJ34: 165136.3129 | CK34: 164402.4013 | CL34: 175721.6877 | CM34: 175136.9299 | CN34: 186789.3318 | CO34: 186370.4406 | CP34: 198367.8029 | CQ34: 200983.8498 | CR34: 210596.2969 | CS34: 210601.2017 | CT34: 253569.6836 | CU34: 254500.835 | CV34: 268452.4067 | CW34: 269624.9441 | CX34: 284009.0455 | CY34: 288470.2382 | CZ34: 300301.6696 | DA34: 301969.5044 | DB34: 317263.4113 | DC34: 319196.7262 | DD34: 333977.2317 | DE34: 335200.2441 | DF34: 0 | DG34: 0 | DH34: 0 | DI34: 0 | DJ34: 0 | DK34: 0 | DL34: 0 | DM34: 0 | DN34: 0 | DO34: 0 | DP34: 0 | DQ34: 0 | DR34: 0 | DS34: 0 | DT34: 0 | DU34: 0 | DV34: 0 | DW34: 0 | DX34: 0 | DY34: 0 | DZ34: 0 | EA34: 0 | EB34: 0 | EC34: 0 | ED34: 0 | EE34: 0 | EF34: 0 | EG34: 0 | EH34: 0 | EI34: 0 | EJ34: 0 | EK34: 0 | EL34: 0 | EM34: 0 | EN34: 0 | EO34: 0 | EP34: 0 | EQ34: 0 | ER34: 0 | ES34: 0 | ET34: 0 | EU34: 0 | EV34: 0 | EW34: 0 | EX34: 0 | EY34: 0 | EZ34: 0 | FA34: 0 | FB34: 0 | FC34: 0 | FD34: 0 | FE34: 0 | FF34: 0 | FG34: 0 | FH34: 0 | FI34: 0 | FJ34: 0 | FK34: 0 | FL34: 0 | FM34: 0 | FN34: 0 | FO34: 0 | FP34: 0 | FQ34: 0 | FR34: 0 | FS34: 0 | FT34: 0 | FU34: 0 | FV34: 0 | FW34: 0 | FX34: 0 | FY34: 0 | FZ34: 0 | GA34: 0 | GB34: 0 | GC34: 0 | GD34: 0 | GE34: 0 | GF34: 0 | GG34: 0 | GH34: 0 | GI34: 0 | GJ34: 0 | GK34: 0 | GL34: 0 | GM34: 0 | GN34: 0 | GO34: 0 | GP34: 0 | GQ34: 0 | GR34: 0 | GS34: 0 | GT34: 0 | GU34: 0 | GV34: 0 | GW34: 0 | GX34: 0 | GY34: 0 | GZ34: 0
B35: ' Senior Debt Service | E35: 30 | G35: 0 | H35: 0 | I35: 0 | J35: 0 | K35: 0 | L35: 0 | M35: 0 | N35: 0 | O35: 0 | P35: 0 | Q35: 0 | R35: 0 | S35: 0 | T35: 0 | U35: 0 | V35: 0 | W35: 0 | X35: 0 | Y35: 0 | Z35: 0 | AA35: 0 | AB35: 0 | AC35: 0 | AD35: 0 | AE35: 0 | AF35: 0 | AG35: 0 | AH35: 0 | AI35: 0 | AJ35: 0 | AK35: 0 | AL35: 0 | AM35: 0 | AN35: 0 | AO35: 0 | AP35: 0 | AQ35: 0 | AR35: 0 | AS35: 0 | AT35: 0 | AU35: 0 | AV35: 0 | AW35: 0 | AX35: 0 | AY35: 0 | AZ35: 0 | BA35: 0 | BB35: 0 | BC35: 0 | BD35: 0 | BE35: 0 | BF35: 0 | BG35: 0 | BH35: 165243.3166 | BI35: 235844.1448 | BJ35: 241831.3247 | BK35: 241341.2067 | BL35: 245509.1286 | BM35: 248984.5737 | BN35: 262969.9846 | BO35: 268014.8359 | BP35: 282508.2851 | BQ35: 287566.6117 | BR35: 302580.0677 | BS35: 309981.9398 | BT35: 323152.4539 | BU35: 321896.5067 | BV35: 329691.2939 | BW35: 326724.9748 | BX35: 334636.7042 | BY35: 331633.0874 | BZ35: 339663.4515 | CA35: 339160.2025 | CB35: 344751.0563 | CC35: 341649.2192 | CD35: 349922.3202 | CE35: 346773.9708 | CF35: 355170.4374 | CG35: 351981.0041 | CH35: 360238.8064 | CI35: 359438.1083 | CJ35: 271798.9963 | CK35: 267803.6425 | CL35: 275875.9815 | CM35: 271820.7204 | CN35: 280014.1679 | CO35: 275906.1874 | CP35: 284222.7334 | CQ35: 282921.0162 | CR35: 288564.0323 | CS35: 284409.6603 | CT35: 323218.7685 | CU35: 319141.9185 | CV35: 328067.0988 | CW35: 323937.7011 | CX35: 332996.7099 | CY35: 331848.7239 | CZ35: 337982.8682 | DA35: 333719.7449 | DB35: 343049.7541 | DC35: 338717.1167 | DD35: 347193.4868 | DE35: 341820.4489 | DF35: 0 | DG35: 0 | DH35: 0 | DI35: 0 | DJ35: 0 | DK35: 0 | DL35: 0 | DM35: 0 | DN35: 0 | DO35: 0 | DP35: 0 | DQ35: 0 | DR35: 0 | DS35: 0 | DT35: 0 | DU35: 0 | DV35: 0 | DW35: 0 | DX35: 0 | DY35: 0 | DZ35: 0 | EA35: 0 | EB35: 0 | EC35: 0 | ED35: 0 | EE35: 0 | EF35: 0 | EG35: 0 | EH35: 0 | EI35: 0 | EJ35: 0 | EK35: 0 | EL35: 0 | EM35: 0 | EN35: 0 | EO35: 0 | EP35: 0 | EQ35: 0 | ER35: 0 | ES35: 0 | ET35: 0 | EU35: 0 | EV35: 0 | EW35: 0 | EX35: 0 | EY35: 0 | EZ35: 0 | FA35: 0 | FB35: 0 | FC35: 0 | FD35: 0 | FE35: 0 | FF35: 0 | FG35: 0 | FH35: 0 | FI35: 0 | FJ35: 0 | FK35: 0 | FL35: 0 | FM35: 0 | FN35: 0 | FO35: 0 | FP35: 0 | FQ35: 0 | FR35: 0 | FS35: 0 | FT35: 0 | FU35: 0 | FV35: 0 | FW35: 0 | FX35: 0 | FY35: 0 | FZ35: 0 | GA35: 0 | GB35: 0 | GC35: 0 | GD35: 0 | GE35: 0 | GF35: 0 | GG35: 0 | GH35: 0 | GI35: 0 | GJ35: 0 | GK35: 0 | GL35: 0 | GM35: 0 | GN35: 0 | GO35: 0 | GP35: 0 | GQ35: 0 | GR35: 0 | GS35: 0 | GT35: 0 | GU35: 0 | GV35: 0 | GW35: 0 | GX35: 0 | GY35: 0 | GZ35: 0
B36: DSRA Repayment Adjustment/DSRA periods | E36: 31 | G36: 3 | H36: 0 | I36: 0 | J36: 0 | K36: 0 | L36: 0 | M36: 0 | N36: 0 | O36: 0 | P36: 0 | Q36: 0 | R36: 0 | S36: 0 | T36: 0 | U36: 0 | V36: 0 | W36: 0 | X36: 0 | Y36: 0 | Z36: 0 | AA36: 0 | AB36: 0 | AC36: 0 | AD36: 0 | AE36: 0 | AF36: 0 | AG36: 0 | AH36: 0 | AI36: 0 | AJ36: 0 | AK36: 0 | AL36: 0 | AM36: 0 | AN36: 0 | AO36: 0 | AP36: 0 | AQ36: 0 | AR36: 0 | AS36: 0 | AT36: 0 | AU36: 0 | AV36: 0 | AW36: 0 | AX36: 0 | AY36: 0 | AZ36: 0 | BA36: 0 | BB36: 0 | BC36: 0 | BD36: 0 | BE36: 0 | BF36: 0 | BG36: 0 | BH36: 0 | BI36: 0 | BJ36: 0 | BK36: 0 | BL36: 0 | BM36: 0 | BN36: 0 | BO36: 0 | BP36: 0 | BQ36: 0 | BR36: 0 | BS36: 0 | BT36: 0 | BU36: 0 | BV36: 0 | BW36: 0 | BX36: 0 | BY36: 0 | BZ36: 0 | CA36: 0 | CB36: 0 | CC36: 0 | CD36: 0 | CE36: 0 | CF36: 0 | CG36: 0 | CH36: 0 | CI36: 0 | CJ36: 0 | CK36: 0 | CL36: 0 | CM36: 0 | CN36: 0 | CO36: 0 | CP36: 0 | CQ36: 0 | CR36: 0 | CS36: 0 | CT36: 0 | CU36: 0 | CV36: 0 | CW36: 0 | CX36: 0 | CY36: 0 | CZ36: 0 | DA36: 0 | DB36: 0 | DC36: 0 | DD36: 0 | DE36: 0 | DF36: 0 | DG36: 0 | DH36: 0 | DI36: 0 | DJ36: 0 | DK36: 0 | DL36: 0 | DM36: 0 | DN36: 0 | DO36: 0 | DP36: 0 | DQ36: 0 | DR36: 0 | DS36: 0 | DT36: 0 | DU36: 0 | DV36: 0 | DW36: 0 | DX36: 0 | DY36: 0 | DZ36: 0 | EA36: 0 | EB36: 0 | EC36: 0 | ED36: 0 | EE36: 0 | EF36: 0 | EG36: 0 | EH36: 0 | EI36: 0 | EJ36: 0 | EK36: 0 | EL36: 0 | EM36: 0 | EN36: 0 | EO36: 0 | EP36: 0 | EQ36: 0 | ER36: 0 | ES36: 0 | ET36: 0 | EU36: 0 | EV36: 0 | EW36: 0 | EX36: 0 | EY36: 0 | EZ36: 0 | FA36: 0 | FB36: 0 | FC36: 0 | FD36: 0 | FE36: 0 | FF36: 0 | FG36: 0 | FH36: 0 | FI36: 0 | FJ36: 0 | FK36: 0 | FL36: 0 | FM36: 0 | FN36: 0 | FO36: 0 | FP36: 0 | FQ36: 0 | FR36: 0 | FS36: 0 | FT36: 0 | FU36: 0 | FV36: 0 | FW36: 0 | FX36: 0 | FY36: 0 | FZ36: 0 | GA36: 0 | GB36: 0 | GC36: 0 | GD36: 0 | GE36: 0 | GF36: 0 | GG36: 0 | GH36: 0 | GI36: 0 | GJ36: 0 | GK36: 0 | GL36: 0 | GM36: 0 | GN36: 0 | GO36: 0 | GP36: 0 | GQ36: 0 | GR36: 0 | GS36: 0 | GT36: 0 | GU36: 0 | GV36: 0 | GW36: 0 | GX36: 0 | GY36: 0 | GZ36: 0
B37: Periodic DSRA requirement/DSRA Sculpting Switch | E37: 32 | G37: 1 | H37: 0 | I37: 0 | J37: 0 | K37: 0 | L37: 0 | M37: 0 | N37: 0 | O37: 0 | P37: 0 | Q37: 0 | R37: 0 | S37: 0 | T37: 0 | U37: 0 | V37: 0 | W37: 0 | X37: 0 | Y37: 0 | Z37: 0 | AA37: 0 | AB37: 0 | AC37: 0 | AD37: 0 | AE37: 0 | AF37: 0 | AG37: 0 | AH37: 0 | AI37: 0 | AJ37: 0 | AK37: 0 | AL37: 0 | AM37: 0 | AN37: 0 | AO37: 0 | AP37: 0 | AQ37: 0 | AR37: 0 | AS37: 0 | AT37: 0 | AU37: 0 | AV37: 0 | AW37: 0 | AX37: 0 | AY37: 0 | AZ37: 0 | BA37: 0 | BB37: 0 | BC37: 0 | BD37: 0 | BE37: 165243.3166 | BF37: 401087.4614 | BG37: 642918.786 | BH37: 719016.6761 | BI37: 728681.66 | BJ37: 735834.909 | BK37: 757463.6868 | BL37: 779969.3942 | BM37: 813493.1056 | BN37: 838089.7326 | BO37: 872654.9644 | BP37: 900128.6192 | BQ37: 935714.4614 | BR37: 955030.9004 | BS37: 974740.2545 | BT37: 978312.7754 | BU37: 991052.973 | BV37: 992994.7664 | BW37: 1005933.243 | BX37: 1010456.741 | BY37: 1023574.71 | BZ37: 1025560.478 | CA37: 1036322.596 | CB37: 1038345.51 | CC37: 1051866.728 | CD37: 1053925.412 | CE37: 1067390.248 | CF37: 1071657.919 | CG37: 991475.911 | CH37: 899040.7471 | CI37: 815478.6203 | CJ37: 815500.3444 | CK37: 827710.8697 | CL37: 827741.0756 | CM37: 840143.0887 | CN37: 843049.9371 | CO37: 855707.782 | CP37: 855894.7088 | CQ37: 896192.461 | CR37: 926770.3472 | CS37: 970427.7858 | CT37: 971146.7184 | CU37: 985001.5098 | CV37: 988783.1349 | CW37: 1002828.302 | CX37: 1003551.337 | CY37: 1014752.367 | CZ37: 1015486.616 | DA37: 1028960.358 | DB37: 1027731.052 | DC37: 689013.9357 | DD37: 341820.4489 | DE37: 0 | DF37: 0 | DG37: 0 | DH37: 0 | DI37: 0 | DJ37: 0 | DK37: 0 | DL37: 0 | DM37: 0 | DN37: 0 | DO37: 0 | DP37: 0 | DQ37: 0 | DR37: 0 | DS37: 0 | DT37: 0 | DU37: 0 | DV37: 0 | DW37: 0 | DX37: 0 | DY37: 0 | DZ37: 0 | EA37: 0 | EB37: 0 | EC37: 0 | ED37: 0 | EE37: 0 | EF37: 0 | EG37: 0 | EH37: 0 | EI37: 0 | EJ37: 0 | EK37: 0 | EL37: 0 | EM37: 0 | EN37: 0 | EO37: 0 | EP37: 0 | EQ37: 0 | ER37: 0 | ES37: 0 | ET37: 0 | EU37: 0 | EV37: 0 | EW37: 0 | EX37: 0 | EY37: 0 | EZ37: 0 | FA37: 0 | FB37: 0 | FC37: 0 | FD37: 0 | FE37: 0 | FF37: 0 | FG37: 0 | FH37: 0 | FI37: 0 | FJ37: 0 | FK37: 0 | FL37: 0 | FM37: 0 | FN37: 0 | FO37: 0 | FP37: 0 | FQ37: 0 | FR37: 0 | FS37: 0 | FT37: 0 | FU37: 0 | FV37: 0 | FW37: 0 | FX37: 0 | FY37: 0 | FZ37: 0 | GA37: 0 | GB37: 0 | GC37: 0 | GD37: 0 | GE37: 0 | GF37: 0 | GG37: 0 | GH37: 0 | GI37: 0 | GJ37: 0 | GK37: 0 | GL37: 0 | GM37: 0 | GN37: 0 | GO37: 0 | GP37: 0 | GQ37: 0 | GR37: 0 | GS37: 0 | GT37: 0 | GU37: 0 | GV37: 0 | GW37: 0 | GX37: 0 | GY37: 0 | GZ37: 0
B38: ' DSRA Pre-COD | E38: 33 | G38: 0 | H38: 0 | I38: 0 | J38: 0 | K38: 0 | L38: 0 | M38: 0 | N38: 0 | O38: 0 | P38: 0 | Q38: 0 | R38: 0 | S38: 0 | T38: 0 | U38: 0 | V38: 0 | W38: 0 | X38: 0 | Y38: 0 | Z38: 0 | AA38: 0 | AB38: 0 | AC38: 0 | AD38: 0 | AE38: 0 | AF38: 0 | AG38: 0 | AH38: 0 | AI38: 0 | AJ38: 0 | AK38: 0 | AL38: 0 | AM38: 0 | AN38: 0 | AO38: 0 | AP38: 0 | AQ38: 0 | AR38: 0 | AS38: 0 | AT38: 0 | AU38: 0 | AV38: 0 | AW38: 0 | AX38: 0 | AY38: 0 | AZ38: 0 | BA38: 0 | BB38: 0 | BC38: 0 | BD38: 0 | BE38: 0 | BF38: 0 | BG38: 642918.786 | BH38: 0 | BI38: 0 | BJ38: 0 | BK38: 0 | BL38: 0 | BM38: 0 | BN38: 0 | BO38: 0 | BP38: 0 | BQ38: 0 | BR38: 0 | BS38: 0 | BT38: 0 | BU38: 0 | BV38: 0 | BW38: 0 | BX38: 0 | BY38: 0 | BZ38: 0 | CA38: 0 | CB38: 0 | CC38: 0 | CD38: 0 | CE38: 0 | CF38: 0 | CG38: 0 | CH38: 0 | CI38: 0 | CJ38: 0 | CK38: 0 | CL38: 0 | CM38: 0 | CN38: 0 | CO38: 0 | CP38: 0 | CQ38: 0 | CR38: 0 | CS38: 0 | CT38: 0 | CU38: 0 | CV38: 0 | CW38: 0 | CX38: 0 | CY38: 0 | CZ38: 0 | DA38: 0 | DB38: 0 | DC38: 0 | DD38: 0 | DE38: 0 | DF38: 0 | DG38: 0 | DH38: 0 | DI38: 0 | DJ38: 0 | DK38: 0 | DL38: 0 | DM38: 0 | DN38: 0 | DO38: 0 | DP38: 0 | DQ38: 0 | DR38: 0 | DS38: 0 | DT38: 0 | DU38: 0 | DV38: 0 | DW38: 0 | DX38: 0 | DY38: 0 | DZ38: 0 | EA38: 0 | EB38: 0 | EC38: 0 | ED38: 0 | EE38: 0 | EF38: 0 | EG38: 0 | EH38: 0 | EI38: 0 | EJ38: 0 | EK38: 0 | EL38: 0 | EM38: 0 | EN38: 0 | EO38: 0 | EP38: 0 | EQ38: 0 | ER38: 0 | ES38: 0 | ET38: 0 | EU38: 0 | EV38: 0 | EW38: 0 | EX38: 0 | EY38: 0 | EZ38: 0 | FA38: 0 | FB38: 0 | FC38: 0 | FD38: 0 | FE38: 0 | FF38: 0 | FG38: 0 | FH38: 0 | FI38: 0 | FJ38: 0 | FK38: 0 | FL38: 0 | FM38: 0 | FN38: 0 | FO38: 0 | FP38: 0 | FQ38: 0 | FR38: 0 | FS38: 0 | FT38: 0 | FU38: 0 | FV38: 0 | FW38: 0 | FX38: 0 | FY38: 0 | FZ38: 0 | GA38: 0 | GB38: 0 | GC38: 0 | GD38: 0 | GE38: 0 | GF38: 0 | GG38: 0 | GH38: 0 | GI38: 0 | GJ38: 0 | GK38: 0 | GL38: 0 | GM38: 0 | GN38: 0 | GO38: 0 | GP38: 0 | GQ38: 0 | GR38: 0 | GS38: 0 | GT38: 0 | GU38: 0 | GV38: 0 | GW38: 0 | GX38: 0 | GY38: 0 | GZ38: 0
B39: DSRA Change/PV DSRA Change/PV with DSCR | E39: 34 | G39: 81654.84979 | H39: 61394.62391 | I39: 0 | J39: 0 | K39: 0 | L39: 0 | M39: 0 | N39: 0 | O39: 0 | P39: 0 | Q39: 0 | R39: 0 | S39: 0 | T39: 0 | U39: 0 | V39: 0 | W39: 0 | X39: 0 | Y39: 0 | Z39: 0 | AA39: 0 | AB39: 0 | AC39: 0 | AD39: 0 | AE39: 0 | AF39: 0 | AG39: 0 | AH39: 0 | AI39: 0 | AJ39: 0 | AK39: 0 | AL39: 0 | AM39: 0 | AN39: 0 | AO39: 0 | AP39: 0 | AQ39: 0 | AR39: 0 | AS39: 0 | AT39: 0 | AU39: 0 | AV39: 0 | AW39: 0 | AX39: 0 | AY39: 0 | AZ39: 0 | BA39: 0 | BB39: 0 | BC39: 0 | BD39: 0 | BE39: 0 | BF39: 0 | BG39: 0 | BH39: 76097.89011 | BI39: 9664.983817 | BJ39: 7153.248995 | BK39: 21628.77787 | BL39: 22505.70734 | BM39: 33523.71139 | BN39: 24596.62709 | BO39: 34565.23179 | BP39: 27473.65477 | BQ39: 35585.84223 | BR39: 19316.43895 | BS39: 19709.35411 | BT39: 3572.52095 | BU39: 12740.19751 | BV39: 1941.793453 | BW39: 12938.4767 | BX39: 4523.498347 | BY39: 13117.96892 | BZ39: 1985.767672 | CA39: 10762.11765 | CB39: 2022.914492 | CC39: 13521.21824 | CD39: 2058.683957 | CE39: 13464.83564 | CF39: 4267.670818 | CG39: -80182.00781 | CH39: -92435.16391 | CI39: -83562.12681 | CJ39: 21.72404872 | CK39: 12210.52533 | CL39: 30.20594864 | CM39: 12402.01306 | CN39: 2906.848377 | CO39: 12657.8449 | CP39: 186.9268404 | CQ39: 40297.75221 | CR39: 30577.88621 | CS39: 43657.43851 | CT39: 718.9326502 | CU39: 13854.79135 | CV39: 3781.625159 | CW39: 14045.16705 | CX39: 723.0350611 | CY39: 11201.03021 | CZ39: 734.2485289 | DA39: 13473.74191 | DB39: -1229.305246 | DC39: -338717.1167 | DD39: -347193.4868 | DE39: -341820.4489 | DF39: 0 | DG39: 0 | DH39: 0 | DI39: 0 | DJ39: 0 | DK39: 0 | DL39: 0 | DM39: 0 | DN39: 0 | DO39: 0 | DP39: 0 | DQ39: 0 | DR39: 0 | DS39: 0 | DT39: 0 | DU39: 0 | DV39: 0 | DW39: 0 | DX39: 0 | DY39: 0 | DZ39: 0 | EA39: 0 | EB39: 0 | EC39: 0 | ED39: 0 | EE39: 0 | EF39: 0 | EG39: 0 | EH39: 0 | EI39: 0 | EJ39: 0 | EK39: 0 | EL39: 0 | EM39: 0 | EN39: 0 | EO39: 0 | EP39: 0 | EQ39: 0 | ER39: 0 | ES39: 0 | ET39: 0 | EU39: 0 | EV39: 0 | EW39: 0 | EX39: 0 | EY39: 0 | EZ39: 0 | FA39: 0 | FB39: 0 | FC39: 0 | FD39: 0 | FE39: 0 | FF39: 0 | FG39: 0 | FH39: 0 | FI39: 0 | FJ39: 0 | FK39: 0 | FL39: 0 | FM39: 0 | FN39: 0 | FO39: 0 | FP39: 0 | FQ39: 0 | FR39: 0 | FS39: 0 | FT39: 0 | FU39: 0 | FV39: 0 | FW39: 0 | FX39: 0 | FY39: 0 | FZ39: 0 | GA39: 0 | GB39: 0 | GC39: 0 | GD39: 0 | GE39: 0 | GF39: 0 | GG39: 0 | GH39: 0 | GI39: 0 | GJ39: 0 | GK39: 0 | GL39: 0 | GM39: 0 | GN39: 0 | GO39: 0 | GP39: 0 | GQ39: 0 | GR39: 0 | GS39: 0 | GT39: 0 | GU39: 0 | GV39: 0 | GW39: 0 | GX39: 0 | GY39: 0 | GZ39: 0
B40: ' DSRA Balance | E40: 35 | G40: 0 | H40: 0 | I40: 0 | J40: 0 | K40: 0 | L40: 0 | M40: 0 | N40: 0 | O40: 0 | P40: 0 | Q40: 0 | R40: 0 | S40: 0 | T40: 0 | U40: 0 | V40: 0 | W40: 0 | X40: 0 | Y40: 0 | Z40: 0 | AA40: 0 | AB40: 0 | AC40: 0 | AD40: 0 | AE40: 0 | AF40: 0 | AG40: 0 | AH40: 0 | AI40: 0 | AJ40: 0 | AK40: 0 | AL40: 0 | AM40: 0 | AN40: 0 | AO40: 0 | AP40: 0 | AQ40: 0 | AR40: 0 | AS40: 0 | AT40: 0 | AU40: 0 | AV40: 0 | AW40: 0 | AX40: 0 | AY40: 0 | AZ40: 0 | BA40: 0 | BB40: 0 | BC40: 0 | BD40: 0 | BE40: 165243.3166 | BF40: 401087.4614 | BG40: 642918.786 | BH40: 719016.6761 | BI40: 728681.66 | BJ40: 735834.909 | BK40: 757463.6868 | BL40: 779969.3942 | BM40: 813493.1056 | BN40: 838089.7326 | BO40: 872654.9644 | BP40: 900128.6192 | BQ40: 935714.4614 | BR40: 955030.9004 | BS40: 974740.2545 | BT40: 978312.7754 | BU40: 991052.973 | BV40: 992994.7664 | BW40: 1005933.243 | BX40: 1010456.741 | BY40: 1023574.71 | BZ40: 1025560.478 | CA40: 1036322.596 | CB40: 1038345.51 | CC40: 1051866.728 | CD40: 1053925.412 | CE40: 1067390.248 | CF40: 1071657.919 | CG40: 991475.911 | CH40: 899040.7471 | CI40: 815478.6203 | CJ40: 815500.3444 | CK40: 827710.8697 | CL40: 827741.0756 | CM40: 840143.0887 | CN40: 843049.9371 | CO40: 855707.782 | CP40: 855894.7088 | CQ40: 896192.461 | CR40: 926770.3472 | CS40: 970427.7858 | CT40: 971146.7184 | CU40: 985001.5098 | CV40: 988783.1349 | CW40: 1002828.302 | CX40: 1003551.337 | CY40: 1014752.367 | CZ40: 1015486.616 | DA40: 1028960.358 | DB40: 1027731.052 | DC40: 689013.9357 | DD40: 341820.4489 | DE40: 0 | DF40: 0 | DG40: 0 | DH40: 0 | DI40: 0 | DJ40: 0 | DK40: 0 | DL40: 0 | DM40: 0 | DN40: 0 | DO40: 0 | DP40: 0 | DQ40: 0 | DR40: 0 | DS40: 0 | DT40: 0 | DU40: 0 | DV40: 0 | DW40: 0 | DX40: 0 | DY40: 0 | DZ40: 0 | EA40: 0 | EB40: 0 | EC40: 0 | ED40: 0 | EE40: 0 | EF40: 0 | EG40: 0 | EH40: 0 | EI40: 0 | EJ40: 0 | EK40: 0 | EL40: 0 | EM40: 0 | EN40: 0 | EO40: 0 | EP40: 0 | EQ40: 0 | ER40: 0 | ES40: 0 | ET40: 0 | EU40: 0 | EV40: 0 | EW40: 0 | EX40: 0 | EY40: 0 | EZ40: 0 | FA40: 0 | FB40: 0 | FC40: 0 | FD40: 0 | FE40: 0 | FF40: 0 | FG40: 0 | FH40: 0 | FI40: 0 | FJ40: 0 | FK40: 0 | FL40: 0 | FM40: 0 | FN40: 0 | FO40: 0 | FP40: 0 | FQ40: 0 | FR40: 0 | FS40: 0 | FT40: 0 | FU40: 0 | FV40: 0 | FW40: 0 | FX40: 0 | FY40: 0 | FZ40: 0 | GA40: 0 | GB40: 0 | GC40: 0 | GD40: 0 | GE40: 0 | GF40: 0 | GG40: 0 | GH40: 0 | GI40: 0 | GJ40: 0 | GK40: 0 | GL40: 0 | GM40: 0 | GN40: 0 | GO40: 0 | GP40: 0 | GQ40: 0 | GR40: 0 | GS40: 0 | GT40: 0 | GU40: 0 | GV40: 0 | GW40: 0 | GX40: 0 | GY40: 0 | GZ40: 0
B41: ' DSRA Funded | E41: 36 | G41: 0 | H41: 0 | I41: 0 | J41: 0 | K41: 0 | L41: 0 | M41: 0 | N41: 0 | O41: 0 | P41: 0 | Q41: 0 | R41: 0 | S41: 0 | T41: 0 | U41: 0 | V41: 0 | W41: 0 | X41: 0 | Y41: 0 | Z41: 0 | AA41: 0 | AB41: 0 | AC41: 0 | AD41: 0 | AE41: 0 | AF41: 0 | AG41: 0 | AH41: 0 | AI41: 0 | AJ41: 0 | AK41: 0 | AL41: 0 | AM41: 0 | AN41: 0 | AO41: 0 | AP41: 0 | AQ41: 0 | AR41: 0 | AS41: 0 | AT41: 0 | AU41: 0 | AV41: 0 | AW41: 0 | AX41: 0 | AY41: 0 | AZ41: 0 | BA41: 0 | BB41: 0 | BC41: 0 | BD41: 0 | BE41: 165243.3166 | BF41: 401087.4614 | BG41: 642918.786 | BH41: 719016.6761 | BI41: 728681.66 | BJ41: 735834.909 | BK41: 757463.6868 | BL41: 779969.3942 | BM41: 813493.1056 | BN41: 838089.7326 | BO41: 872654.9644 | BP41: 900128.6192 | BQ41: 935714.4614 | BR41: 955030.9004 | BS41: 974740.2545 | BT41: 978312.7754 | BU41: 991052.973 | BV41: 992994.7664 | BW41: 1005933.243 | BX41: 1010456.741 | BY41: 1023574.71 | BZ41: 1025560.478 | CA41: 1036322.596 | CB41: 1038345.51 | CC41: 1051866.728 | CD41: 1053925.412 | CE41: 1067390.248 | CF41: 1071657.919 | CG41: 991475.911 | CH41: 899040.7471 | CI41: 815478.6203 | CJ41: 815500.3444 | CK41: 827710.8697 | CL41: 827741.0756 | CM41: 840143.0887 | CN41: 843049.9371 | CO41: 855707.782 | CP41: 855894.7088 | CQ41: 896192.461 | CR41: 926770.3472 | CS41: 970427.7858 | CT41: 971146.7184 | CU41: 985001.5098 | CV41: 988783.1349 | CW41: 1002828.302 | CX41: 1003551.337 | CY41: 1014752.367 | CZ41: 1015486.616 | DA41: 1028960.358 | DB41: 1027731.052 | DC41: 689013.9357 | DD41: 341820.4489 | DE41: 0 | DF41: 0 | DG41: 0 | DH41: 0 | DI41: 0 | DJ41: 0 | DK41: 0 | DL41: 0 | DM41: 0 | DN41: 0 | DO41: 0 | DP41: 0 | DQ41: 0 | DR41: 0 | DS41: 0 | DT41: 0 | DU41: 0 | DV41: 0 | DW41: 0 | DX41: 0 | DY41: 0 | DZ41: 0 | EA41: 0 | EB41: 0 | EC41: 0 | ED41: 0 | EE41: 0 | EF41: 0 | EG41: 0 | EH41: 0 | EI41: 0 | EJ41: 0 | EK41: 0 | EL41: 0 | EM41: 0 | EN41: 0 | EO41: 0 | EP41: 0 | EQ41: 0 | ER41: 0 | ES41: 0 | ET41: 0 | EU41: 0 | EV41: 0 | EW41: 0 | EX41: 0 | EY41: 0 | EZ41: 0 | FA41: 0 | FB41: 0 | FC41: 0 | FD41: 0 | FE41: 0 | FF41: 0 | FG41: 0 | FH41: 0 | FI41: 0 | FJ41: 0 | FK41: 0 | FL41: 0 | FM41: 0 | FN41: 0 | FO41: 0 | FP41: 0 | FQ41: 0 | FR41: 0 | FS41: 0 | FT41: 0 | FU41: 0 | FV41: 0 | FW41: 0 | FX41: 0 | FY41: 0 | FZ41: 0 | GA41: 0 | GB41: 0 | GC41: 0 | GD41: 0 | GE41: 0 | GF41: 0 | GG41: 0 | GH41: 0 | GI41: 0 | GJ41: 0 | GK41: 0 | GL41: 0 | GM41: 0 | GN41: 0 | GO41: 0 | GP41: 0 | GQ41: 0 | GR41: 0 | GS41: 0 | GT41: 0 | GU41: 0 | GV41: 0 | GW41: 0 | GX41: 0 | GY41: 0 | GZ41: 0
B42: DSRA LC/DSRA Switch | E42: 37 | G42: FALSE | H42: 0 | I42: 0 | J42: 0 | K42: 0 | L42: 0 | M42: 0 | N42: 0 | O42: 0 | P42: 0 | Q42: 0 | R42: 0 | S42: 0 | T42: 0 | U42: 0 | V42: 0 | W42: 0 | X42: 0 | Y42: 0 | Z42: 0 | AA42: 0 | AB42: 0 | AC42: 0 | AD42: 0 | AE42: 0 | AF42: 0 | AG42: 0 | AH42: 0 | AI42: 0 | AJ42: 0 | AK42: 0 | AL42: 0 | AM42: 0 | AN42: 0 | AO42: 0 | AP42: 0 | AQ42: 0 | AR42: 0 | AS42: 0 | AT42: 0 | AU42: 0 | AV42: 0 | AW42: 0 | AX42: 0 | AY42: 0 | AZ42: 0 | BA42: 0 | BB42: 0 | BC42: 0 | BD42: 0 | BE42: 0 | BF42: 0 | BG42: 0 | BH42: 0 | BI42: 0 | BJ42: 0 | BK42: 0 | BL42: 0 | BM42: 0 | BN42: 0 | BO42: 0 | BP42: 0 | BQ42: 0 | BR42: 0 | BS42: 0 | BT42: 0 | BU42: 0 | BV42: 0 | BW42: 0 | BX42: 0 | BY42: 0 | BZ42: 0 | CA42: 0 | CB42: 0 | CC42: 0 | CD42: 0 | CE42: 0 | CF42: 0 | CG42: 0 | CH42: 0 | CI42: 0 | CJ42: 0 | CK42: 0 | CL42: 0 | CM42: 0 | CN42: 0 | CO42: 0 | CP42: 0 | CQ42: 0 | CR42: 0 | CS42: 0 | CT42: 0 | CU42: 0 | CV42: 0 | CW42: 0 | CX42: 0 | CY42: 0 | CZ42: 0 | DA42: 0 | DB42: 0 | DC42: 0 | DD42: 0 | DE42: 0 | DF42: 0 | DG42: 0 | DH42: 0 | DI42: 0 | DJ42: 0 | DK42: 0 | DL42: 0 | DM42: 0 | DN42: 0 | DO42: 0 | DP42: 0 | DQ42: 0 | DR42: 0 | DS42: 0 | DT42: 0 | DU42: 0 | DV42: 0 | DW42: 0 | DX42: 0 | DY42: 0 | DZ42: 0 | EA42: 0 | EB42: 0 | EC42: 0 | ED42: 0 | EE42: 0 | EF42: 0 | EG42: 0 | EH42: 0 | EI42: 0 | EJ42: 0 | EK42: 0 | EL42: 0 | EM42: 0 | EN42: 0 | EO42: 0 | EP42: 0 | EQ42: 0 | ER42: 0 | ES42: 0 | ET42: 0 | EU42: 0 | EV42: 0 | EW42: 0 | EX42: 0 | EY42: 0 | EZ42: 0 | FA42: 0 | FB42: 0 | FC42: 0 | FD42: 0 | FE42: 0 | FF42: 0 | FG42: 0 | FH42: 0 | FI42: 0 | FJ42: 0 | FK42: 0 | FL42: 0 | FM42: 0 | FN42: 0 | FO42: 0 | FP42: 0 | FQ42: 0 | FR42: 0 | FS42: 0 | FT42: 0 | FU42: 0 | FV42: 0 | FW42: 0 | FX42: 0 | FY42: 0 | FZ42: 0 | GA42: 0 | GB42: 0 | GC42: 0 | GD42: 0 | GE42: 0 | GF42: 0 | GG42: 0 | GH42: 0 | GI42: 0 | GJ42: 0 | GK42: 0 | GL42: 0 | GM42: 0 | GN42: 0 | GO42: 0 | GP42: 0 | GQ42: 0 | GR42: 0 | GS42: 0 | GT42: 0 | GU42: 0 | GV42: 0 | GW42: 0 | GX42: 0 | GY42: 0 | GZ42: 0
B43: ' Interest Income | E43: 38 | G43: 0 | H43: 0 | I43: 0 | J43: 0 | K43: 0 | L43: 0 | M43: 0 | N43: 0 | O43: 0 | P43: 0 | Q43: 0 | R43: 0 | S43: 0 | T43: 0 | U43: 0 | V43: 0 | W43: 0 | X43: 0 | Y43: 0 | Z43: 0 | AA43: 0 | AB43: 0 | AC43: 0 | AD43: 0 | AE43: 0 | AF43: 0 | AG43: 0 | AH43: 0 | AI43: 0 | AJ43: 0 | AK43: 0 | AL43: 0 | AM43: 0 | AN43: 0 | AO43: 0 | AP43: 0 | AQ43: 0 | AR43: 0 | AS43: 0 | AT43: 0 | AU43: 0 | AV43: 0 | AW43: 0 | AX43: 0 | AY43: 0 | AZ43: 0 | BA43: 0 | BB43: 0 | BC43: 0 | BD43: 0 | BE43: 0 | BF43: 103.2770729 | BG43: 250.6796633 | BH43: 2410.945448 | BI43: 2696.312536 | BJ43: 2732.556225 | BK43: 2759.380909 | BL43: 2840.488826 | BM43: 2924.885228 | BN43: 3050.599146 | BO43: 3142.836497 | BP43: 3272.456117 | BQ43: 3375.482322 | BR43: 3508.92923 | BS43: 3581.365876 | BT43: 3655.275954 | BU43: 3668.672908 | BV43: 3716.448649 | BW43: 3723.730374 | BX43: 3772.249662 | BY43: 3789.21278 | BZ43: 3838.405164 | CA43: 3845.851793 | CB43: 3886.209734 | CC43: 3893.795663 | CD43: 3944.500232 | CE43: 3952.220296 | CF43: 4002.71343 | CG43: 4018.717196 | CH43: 3718.034666 | CI43: 3371.402802 | CJ43: 3058.044826 | CK43: 3058.126291 | CL43: 3103.915761 | CM43: 3104.029034 | CN43: 3150.536583 | CO43: 3161.437264 | CP43: 3208.904182 | CQ43: 3209.605158 | CR43: 3360.721729 | CS43: 3475.388802 | CT43: 3639.104197 | CU43: 3641.800194 | CV43: 3693.755662 | CW43: 3707.936756 | CX43: 3760.606132 | CY43: 3763.317514 | CZ43: 3805.321377 | DA43: 3808.074809 | DB43: 3858.601341 | DC43: 3853.991447 | DD43: 2583.802259 | DE43: 1281.826683 | DF43: 0 | DG43: 0 | DH43: 0 | DI43: 0 | DJ43: 0 | DK43: 0 | DL43: 0 | DM43: 0 | DN43: 0 | DO43: 0 | DP43: 0 | DQ43: 0 | DR43: 0 | DS43: 0 | DT43: 0 | DU43: 0 | DV43: 0 | DW43: 0 | DX43: 0 | DY43: 0 | DZ43: 0 | EA43: 0 | EB43: 0 | EC43: 0 | ED43: 0 | EE43: 0 | EF43: 0 | EG43: 0 | EH43: 0 | EI43: 0 | EJ43: 0 | EK43: 0 | EL43: 0 | EM43: 0 | EN43: 0 | EO43: 0 | EP43: 0 | EQ43: 0 | ER43: 0 | ES43: 0 | ET43: 0 | EU43: 0 | EV43: 0 | EW43: 0 | EX43: 0 | EY43: 0 | EZ43: 0 | FA43: 0 | FB43: 0 | FC43: 0 | FD43: 0 | FE43: 0 | FF43: 0 | FG43: 0 | FH43: 0 | FI43: 0 | FJ43: 0 | FK43: 0 | FL43: 0 | FM43: 0 | FN43: 0 | FO43: 0 | FP43: 0 | FQ43: 0 | FR43: 0 | FS43: 0 | FT43: 0 | FU43: 0 | FV43: 0 | FW43: 0 | FX43: 0 | FY43: 0 | FZ43: 0 | GA43: 0 | GB43: 0 | GC43: 0 | GD43: 0 | GE43: 0 | GF43: 0 | GG43: 0 | GH43: 0 | GI43: 0 | GJ43: 0 | GK43: 0 | GL43: 0 | GM43: 0 | GN43: 0 | GO43: 0 | GP43: 0 | GQ43: 0 | GR43: 0 | GS43: 0 | GT43: 0 | GU43: 0 | GV43: 0 | GW43: 0 | GX43: 0 | GY43: 0 | GZ43: 0
B44: DSRA LC Fee/PV of Fees | E44: 39 | G44: 0 | H44: 0 | I44: 0 | J44: 0 | K44: 0 | L44: 0 | M44: 0 | N44: 0 | O44: 0 | P44: 0 | Q44: 0 | R44: 0 | S44: 0 | T44: 0 | U44: 0 | V44: 0 | W44: 0 | X44: 0 | Y44: 0 | Z44: 0 | AA44: 0 | AB44: 0 | AC44: 0 | AD44: 0 | AE44: 0 | AF44: 0 | AG44: 0 | AH44: 0 | AI44: 0 | AJ44: 0 | AK44: 0 | AL44: 0 | AM44: 0 | AN44: 0 | AO44: 0 | AP44: 0 | AQ44: 0 | AR44: 0 | AS44: 0 | AT44: 0 | AU44: 0 | AV44: 0 | AW44: 0 | AX44: 0 | AY44: 0 | AZ44: 0 | BA44: 0 | BB44: 0 | BC44: 0 | BD44: 0 | BE44: 0 | BF44: 0 | BG44: 0 | BH44: 0 | BI44: 0 | BJ44: 0 | BK44: 0 | BL44: 0 | BM44: 0 | BN44: 0 | BO44: 0 | BP44: 0 | BQ44: 0 | BR44: 0 | BS44: 0 | BT44: 0 | BU44: 0 | BV44: 0 | BW44: 0 | BX44: 0 | BY44: 0 | BZ44: 0 | CA44: 0 | CB44: 0 | CC44: 0 | CD44: 0 | CE44: 0 | CF44: 0 | CG44: 0 | CH44: 0 | CI44: 0 | CJ44: 0 | CK44: 0 | CL44: 0 | CM44: 0 | CN44: 0 | CO44: 0 | CP44: 0 | CQ44: 0 | CR44: 0 | CS44: 0 | CT44: 0 | CU44: 0 | CV44: 0 | CW44: 0 | CX44: 0 | CY44: 0 | CZ44: 0 | DA44: 0 | DB44: 0 | DC44: 0 | DD44: 0 | DE44: 0 | DF44: 0 | DG44: 0 | DH44: 0 | DI44: 0 | DJ44: 0 | DK44: 0 | DL44: 0 | DM44: 0 | DN44: 0 | DO44: 0 | DP44: 0 | DQ44: 0 | DR44: 0 | DS44: 0 | DT44: 0 | DU44: 0 | DV44: 0 | DW44: 0 | DX44: 0 | DY44: 0 | DZ44: 0 | EA44: 0 | EB44: 0 | EC44: 0 | ED44: 0 | EE44: 0 | EF44: 0 | EG44: 0 | EH44: 0 | EI44: 0 | EJ44: 0 | EK44: 0 | EL44: 0 | EM44: 0 | EN44: 0 | EO44: 0 | EP44: 0 | EQ44: 0 | ER44: 0 | ES44: 0 | ET44: 0 | EU44: 0 | EV44: 0 | EW44: 0 | EX44: 0 | EY44: 0 | EZ44: 0 | FA44: 0 | FB44: 0 | FC44: 0 | FD44: 0 | FE44: 0 | FF44: 0 | FG44: 0 | FH44: 0 | FI44: 0 | FJ44: 0 | FK44: 0 | FL44: 0 | FM44: 0 | FN44: 0 | FO44: 0 | FP44: 0 | FQ44: 0 | FR44: 0 | FS44: 0 | FT44: 0 | FU44: 0 | FV44: 0 | FW44: 0 | FX44: 0 | FY44: 0 | FZ44: 0 | GA44: 0 | GB44: 0 | GC44: 0 | GD44: 0 | GE44: 0 | GF44: 0 | GG44: 0 | GH44: 0 | GI44: 0 | GJ44: 0 | GK44: 0 | GL44: 0 | GM44: 0 | GN44: 0 | GO44: 0 | GP44: 0 | GQ44: 0 | GR44: 0 | GS44: 0 | GT44: 0 | GU44: 0 | GV44: 0 | GW44: 0 | GX44: 0 | GY44: 0 | GZ44: 0
B45: ' Depreciation without IDC | E45: 40 | G45: 0 | H45: 0 | I45: 0 | J45: 0 | K45: 0 | L45: 0 | M45: 0 | N45: 0 | O45: 0 | P45: 0 | Q45: 0 | R45: 0 | S45: 0 | T45: 0 | U45: 0 | V45: 0 | W45: 0 | X45: 0 | Y45: 0 | Z45: 0 | AA45: 0 | AB45: 0 | AC45: 0 | AD45: 0 | AE45: 0 | AF45: 0 | AG45: 0 | AH45: 0 | AI45: 0 | AJ45: 0 | AK45: 0 | AL45: 0 | AM45: 0 | AN45: 0 | AO45: 0 | AP45: 0 | AQ45: 0 | AR45: 0 | AS45: 0 | AT45: 0 | AU45: 0 | AV45: 0 | AW45: 0 | AX45: 0 | AY45: 0 | AZ45: 0 | BA45: 0 | BB45: 0 | BC45: 0 | BD45: 0 | BE45: 0 | BF45: 0 | BG45: 0 | BH45: 673333.3333 | BI45: 673333.3333 | BJ45: 583555.5556 | BK45: 583555.5556 | BL45: 505748.1481 | BM45: 505748.1481 | BN45: 438315.0617 | BO45: 438315.0617 | BP45: 379873.0535 | BQ45: 379873.0535 | BR45: 329223.313 | BS45: 329223.313 | BT45: 285326.8713 | BU45: 285326.8713 | BV45: 247283.2885 | BW45: 247283.2885 | BX45: 229620.1964 | BY45: 229620.1964 | BZ45: 229620.1964 | CA45: 229620.1964 | CB45: 229620.1964 | CC45: 229620.1964 | CD45: 229620.1964 | CE45: 229620.1964 | CF45: 229620.1964 | CG45: 229620.1964 | CH45: 229620.1964 | CI45: 229620.1964 | CJ45: 229620.1964 | CK45: 229620.1964 | CL45: 0 | CM45: 0 | CN45: 0 | CO45: 0 | CP45: 0 | CQ45: 0 | CR45: 0 | CS45: 0 | CT45: 0 | CU45: 0 | CV45: 0 | CW45: 0 | CX45: 0 | CY45: 0 | CZ45: 0 | DA45: 0 | DB45: 0 | DC45: 0 | DD45: 0 | DE45: 0 | DF45: 0 | DG45: 0 | DH45: 0 | DI45: 0 | DJ45: 0 | DK45: 0 | DL45: 0 | DM45: 0 | DN45: 0 | DO45: 0 | DP45: 0 | DQ45: 0 | DR45: 0 | DS45: 0 | DT45: 0 | DU45: 0 | DV45: 0 | DW45: 0 | DX45: 0 | DY45: 0 | DZ45: 0 | EA45: 0 | EB45: 0 | EC45: 0 | ED45: 0 | EE45: 0 | EF45: 0 | EG45: 0 | EH45: 0 | EI45: 0 | EJ45: 0 | EK45: 0 | EL45: 0 | EM45: 0 | EN45: 0 | EO45: 0 | EP45: 0 | EQ45: 0 | ER45: 0 | ES45: 0 | ET45: 0 | EU45: 0 | EV45: 0 | EW45: 0 | EX45: 0 | EY45: 0 | EZ45: 0 | FA45: 0 | FB45: 0 | FC45: 0 | FD45: 0 | FE45: 0 | FF45: 0 | FG45: 0 | FH45: 0 | FI45: 0 | FJ45: 0 | FK45: 0 | FL45: 0 | FM45: 0 | FN45: 0 | FO45: 0 | FP45: 0 | FQ45: 0 | FR45: 0 | FS45: 0 | FT45: 0 | FU45: 0 | FV45: 0 | FW45: 0 | FX45: 0 | FY45: 0 | FZ45: 0 | GA45: 0 | GB45: 0 | GC45: 0 | GD45: 0 | GE45: 0 | GF45: 0 | GG45: 0 | GH45: 0 | GI45: 0 | GJ45: 0 | GK45: 0 | GL45: 0 | GM45: 0 | GN45: 0 | GO45: 0 | GP45: 0 | GQ45: 0 | GR45: 0 | GS45: 0 | GT45: 0 | GU45: 0 | GV45: 0 | GW45: 0 | GX45: 0 | GY45: 0 | GZ45: 0
B46: ' IDC Depreciation | E46: 41 | G46: 0 | H46: 0 | I46: 0 | J46: 0 | K46: 0 | L46: 0 | M46: 0 | N46: 0 | O46: 0 | P46: 0 | Q46: 0 | R46: 0 | S46: 0 | T46: 0 | U46: 0 | V46: 0 | W46: 0 | X46: 0 | Y46: 0 | Z46: 0 | AA46: 0 | AB46: 0 | AC46: 0 | AD46: 0 | AE46: 0 | AF46: 0 | AG46: 0 | AH46: 0 | AI46: 0 | AJ46: 0 | AK46: 0 | AL46: 0 | AM46: 0 | AN46: 0 | AO46: 0 | AP46: 0 | AQ46: 0 | AR46: 0 | AS46: 0 | AT46: 0 | AU46: 0 | AV46: 0 | AW46: 0 | AX46: 0 | AY46: 0 | AZ46: 0 | BA46: 0 | BB46: 0 | BC46: 0 | BD46: 0 | BE46: 0 | BF46: 0 | BG46: 0 | BH46: 30575.89816 | BI46: 30575.89816 | BJ46: 26499.11174 | BK46: 26499.11174 | BL46: 22965.89684 | BM46: 22965.89684 | BN46: 19903.77726 | BO46: 19903.77726 | BP46: 17249.94029 | BQ46: 17249.94029 | BR46: 14949.94825 | BS46: 14949.94825 | BT46: 12956.62182 | BU46: 12956.62182 | BV46: 11229.07224 | BW46: 11229.07224 | BX46: 10426.99565 | BY46: 10426.99565 | BZ46: 10426.99565 | CA46: 10426.99565 | CB46: 10426.99565 | CC46: 10426.99565 | CD46: 10426.99565 | CE46: 10426.99565 | CF46: 10426.99565 | CG46: 10426.99565 | CH46: 10426.99565 | CI46: 10426.99565 | CJ46: 10426.99565 | CK46: 10426.99565 | CL46: 0 | CM46: 0 | CN46: 0 | CO46: 0 | CP46: 0 | CQ46: 0 | CR46: 0 | CS46: 0 | CT46: 0 | CU46: 0 | CV46: 0 | CW46: 0 | CX46: 0 | CY46: 0 | CZ46: 0 | DA46: 0 | DB46: 0 | DC46: 0 | DD46: 0 | DE46: 0 | DF46: 0 | DG46: 0 | DH46: 0 | DI46: 0 | DJ46: 0 | DK46: 0 | DL46: 0 | DM46: 0 | DN46: 0 | DO46: 0 | DP46: 0 | DQ46: 0 | DR46: 0 | DS46: 0 | DT46: 0 | DU46: 0 | DV46: 0 | DW46: 0 | DX46: 0 | DY46: 0 | DZ46: 0 | EA46: 0 | EB46: 0 | EC46: 0 | ED46: 0 | EE46: 0 | EF46: 0 | EG46: 0 | EH46: 0 | EI46: 0 | EJ46: 0 | EK46: 0 | EL46: 0 | EM46: 0 | EN46: 0 | EO46: 0 | EP46: 0 | EQ46: 0 | ER46: 0 | ES46: 0 | ET46: 0 | EU46: 0 | EV46: 0 | EW46: 0 | EX46: 0 | EY46: 0 | EZ46: 0 | FA46: 0 | FB46: 0 | FC46: 0 | FD46: 0 | FE46: 0 | FF46: 0 | FG46: 0 | FH46: 0 | FI46: 0 | FJ46: 0 | FK46: 0 | FL46: 0 | FM46: 0 | FN46: 0 | FO46: 0 | FP46: 0 | FQ46: 0 | FR46: 0 | FS46: 0 | FT46: 0 | FU46: 0 | FV46: 0 | FW46: 0 | FX46: 0 | FY46: 0 | FZ46: 0 | GA46: 0 | GB46: 0 | GC46: 0 | GD46: 0 | GE46: 0 | GF46: 0 | GG46: 0 | GH46: 0 | GI46: 0 | GJ46: 0 | GK46: 0 | GL46: 0 | GM46: 0 | GN46: 0 | GO46: 0 | GP46: 0 | GQ46: 0 | GR46: 0 | GS46: 0 | GT46: 0 | GU46: 0 | GV46: 0 | GW46: 0 | GX46: 0 | GY46: 0 | GZ46: 0
B47: ' Fee Amortisation | E47: 42 | G47: 0 | H47: 0 | I47: 0 | J47: 0 | K47: 0 | L47: 0 | M47: 0 | N47: 0 | O47: 0 | P47: 0 | Q47: 0 | R47: 0 | S47: 0 | T47: 0 | U47: 0 | V47: 0 | W47: 0 | X47: 0 | Y47: 0 | Z47: 0 | AA47: 0 | AB47: 0 | AC47: 0 | AD47: 0 | AE47: 0 | AF47: 0 | AG47: 0 | AH47: 0 | AI47: 0 | AJ47: 0 | AK47: 0 | AL47: 0 | AM47: 0 | AN47: 0 | AO47: 0 | AP47: 0 | AQ47: 0 | AR47: 0 | AS47: 0 | AT47: 0 | AU47: 0 | AV47: 0 | AW47: 0 | AX47: 0 | AY47: 0 | AZ47: 0 | BA47: 0 | BB47: 0 | BC47: 0 | BD47: 0 | BE47: 0 | BF47: 0 | BG47: 0 | BH47: 23751.46854 | BI47: 23751.46854 | BJ47: 20584.60607 | BK47: 20584.60607 | BL47: 17839.99193 | BM47: 17839.99193 | BN47: 15461.32634 | BO47: 15461.32634 | BP47: 13399.81616 | BQ47: 13399.81616 | BR47: 11613.17401 | BS47: 11613.17401 | BT47: 10064.7508 | BU47: 10064.7508 | BV47: 8722.784031 | BW47: 8722.784031 | BX47: 8099.728028 | BY47: 8099.728028 | BZ47: 8099.728028 | CA47: 8099.728028 | CB47: 8099.728028 | CC47: 8099.728028 | CD47: 8099.728028 | CE47: 8099.728028 | CF47: 8099.728028 | CG47: 8099.728028 | CH47: 8099.728028 | CI47: 8099.728028 | CJ47: 8099.728028 | CK47: 8099.728028 | CL47: 0 | CM47: 0 | CN47: 0 | CO47: 0 | CP47: 0 | CQ47: 0 | CR47: 0 | CS47: 0 | CT47: 0 | CU47: 0 | CV47: 0 | CW47: 0 | CX47: 0 | CY47: 0 | CZ47: 0 | DA47: 0 | DB47: 0 | DC47: 0 | DD47: 0 | DE47: 0 | DF47: 0 | DG47: 0 | DH47: 0 | DI47: 0 | DJ47: 0 | DK47: 0 | DL47: 0 | DM47: 0 | DN47: 0 | DO47: 0 | DP47: 0 | DQ47: 0 | DR47: 0 | DS47: 0 | DT47: 0 | DU47: 0 | DV47: 0 | DW47: 0 | DX47: 0 | DY47: 0 | DZ47: 0 | EA47: 0 | EB47: 0 | EC47: 0 | ED47: 0 | EE47: 0 | EF47: 0 | EG47: 0 | EH47: 0 | EI47: 0 | EJ47: 0 | EK47: 0 | EL47: 0 | EM47: 0 | EN47: 0 | EO47: 0 | EP47: 0 | EQ47: 0 | ER47: 0 | ES47: 0 | ET47: 0 | EU47: 0 | EV47: 0 | EW47: 0 | EX47: 0 | EY47: 0 | EZ47: 0 | FA47: 0 | FB47: 0 | FC47: 0 | FD47: 0 | FE47: 0 | FF47: 0 | FG47: 0 | FH47: 0 | FI47: 0 | FJ47: 0 | FK47: 0 | FL47: 0 | FM47: 0 | FN47: 0 | FO47: 0 | FP47: 0 | FQ47: 0 | FR47: 0 | FS47: 0 | FT47: 0 | FU47: 0 | FV47: 0 | FW47: 0 | FX47: 0 | FY47: 0 | FZ47: 0 | GA47: 0 | GB47: 0 | GC47: 0 | GD47: 0 | GE47: 0 | GF47: 0 | GG47: 0 | GH47: 0 | GI47: 0 | GJ47: 0 | GK47: 0 | GL47: 0 | GM47: 0 | GN47: 0 | GO47: 0 | GP47: 0 | GQ47: 0 | GR47: 0 | GS47: 0 | GT47: 0 | GU47: 0 | GV47: 0 | GW47: 0 | GX47: 0 | GY47: 0 | GZ47: 0
B48: ' EBITDA | E48: 43 | G48: 0 | H48: 0 | I48: 0 | J48: 0 | K48: 0 | L48: 0 | M48: 0 | N48: 0 | O48: 0 | P48: 0 | Q48: 0 | R48: 0 | S48: 0 | T48: 0 | U48: 0 | V48: 0 | W48: 0 | X48: 0 | Y48: 0 | Z48: 0 | AA48: 0 | AB48: 0 | AC48: 0 | AD48: 0 | AE48: 0 | AF48: 0 | AG48: 0 | AH48: 0 | AI48: 0 | AJ48: 0 | AK48: 0 | AL48: 0 | AM48: 0 | AN48: 0 | AO48: 0 | AP48: 0 | AQ48: 0 | AR48: 0 | AS48: 0 | AT48: 0 | AU48: 0 | AV48: 0 | AW48: 0 | AX48: 0 | AY48: 0 | AZ48: 0 | BA48: 0 | BB48: 0 | BC48: 0 | BD48: 0 | BE48: 0 | BF48: 0 | BG48: 0 | BH48: 315642.6656 | BI48: 310976.4 | BJ48: 320377.3056 | BK48: 318224.424 | BL48: 325182.9652 | BM48: 330338.3148 | BN48: 350383.643 | BO48: 355462.3181 | BP48: 376267.175 | BQ48: 381265.7154 | BR48: 402848.3766 | BS48: 410904.8823 | BT48: 430200.5767 | BU48: 424453.681 | BV48: 436653.5854 | BW48: 430820.4862 | BX48: 443203.3891 | BY48: 437282.7935 | BZ48: 449851.44 | CA48: 447237.2176 | CB48: 456599.2116 | CC48: 450499.6659 | CD48: 463448.1998 | CE48: 457257.1609 | CF48: 470399.9228 | CG48: 464116.0183 | CH48: 477455.9216 | CI48: 474681.2812 | CJ48: 360521.8091 | CK48: 353120.7183 | CL48: 365929.6363 | CM48: 358417.5291 | CN48: 371418.5808 | CO48: 363793.792 | CP48: 376989.8595 | CQ48: 373075.3464 | CR48: 382644.7074 | CS48: 374789.4594 | CT48: 428490.353 | CU48: 420816.9514 | CV48: 434917.7083 | CW48: 427129.2057 | CX48: 441441.4739 | CY48: 437595.4853 | CZ48: 448063.096 | DA48: 440039.186 | DB48: 454784.0425 | DC48: 446639.7737 | DD48: 461605.8031 | DE48: 453339.3703 | DF48: 0 | DG48: 0 | DH48: 0 | DI48: 0 | DJ48: 0 | DK48: 0 | DL48: 0 | DM48: 0 | DN48: 0 | DO48: 0 | DP48: 0 | DQ48: 0 | DR48: 0 | DS48: 0 | DT48: 0 | DU48: 0 | DV48: 0 | DW48: 0 | DX48: 0 | DY48: 0 | DZ48: 0 | EA48: 0 | EB48: 0 | EC48: 0 | ED48: 0 | EE48: 0 | EF48: 0 | EG48: 0 | EH48: 0 | EI48: 0 | EJ48: 0 | EK48: 0 | EL48: 0 | EM48: 0 | EN48: 0 | EO48: 0 | EP48: 0 | EQ48: 0 | ER48: 0 | ES48: 0 | ET48: 0 | EU48: 0 | EV48: 0 | EW48: 0 | EX48: 0 | EY48: 0 | EZ48: 0 | FA48: 0 | FB48: 0 | FC48: 0 | FD48: 0 | FE48: 0 | FF48: 0 | FG48: 0 | FH48: 0 | FI48: 0 | FJ48: 0 | FK48: 0 | FL48: 0 | FM48: 0 | FN48: 0 | FO48: 0 | FP48: 0 | FQ48: 0 | FR48: 0 | FS48: 0 | FT48: 0 | FU48: 0 | FV48: 0 | FW48: 0 | FX48: 0 | FY48: 0 | FZ48: 0 | GA48: 0 | GB48: 0 | GC48: 0 | GD48: 0 | GE48: 0 | GF48: 0 | GG48: 0 | GH48: 0 | GI48: 0 | GJ48: 0 | GK48: 0 | GL48: 0 | GM48: 0 | GN48: 0 | GO48: 0 | GP48: 0 | GQ48: 0 | GR48: 0 | GS48: 0 | GT48: 0 | GU48: 0 | GV48: 0 | GW48: 0 | GX48: 0 | GY48: 0 | GZ48: 0
B49: ' Working Capital Change | E49: 44 | G49: 0 | H49: 0 | I49: 0 | J49: 0 | K49: 0 | L49: 0 | M49: 0 | N49: 0 | O49: 0 | P49: 0 | Q49: 0 | R49: 0 | S49: 0 | T49: 0 | U49: 0 | V49: 0 | W49: 0 | X49: 0 | Y49: 0 | Z49: 0 | AA49: 0 | AB49: 0 | AC49: 0 | AD49: 0 | AE49: 0 | AF49: 0 | AG49: 0 | AH49: 0 | AI49: 0 | AJ49: 0 | AK49: 0 | AL49: 0 | AM49: 0 | AN49: 0 | AO49: 0 | AP49: 0 | AQ49: 0 | AR49: 0 | AS49: 0 | AT49: 0 | AU49: 0 | AV49: 0 | AW49: 0 | AX49: 0 | AY49: 0 | AZ49: 0 | BA49: 0 | BB49: 0 | BC49: 0 | BD49: 0 | BE49: 0 | BF49: 0 | BG49: 0 | BH49: 98280 | BI49: 0 | BJ49: 1474.2 | BK49: 0 | BL49: 1496.313 | BM49: 2113.717075 | BN49: 3684.16266 | BO49: 2145.422831 | BP49: 3803.611931 | BQ49: 2177.604174 | BR49: 3925.815743 | BS49: 2210.268236 | BT49: 4063.088994 | BU49: 0 | BV49: 1880.61307 | BW49: 0 | BX49: 1908.822266 | BY49: 0 | BZ49: 1937.4546 | CA49: 0 | CB49: 1966.516419 | CC49: 0 | CD49: 1996.014165 | CE49: 0 | CF49: 2025.954377 | CG49: 0 | CH49: 2056.343693 | CI49: 0 | CJ49: 2087.188848 | CK49: 0 | CL49: 2118.496681 | CM49: 0 | CN49: 2150.274131 | CO49: 0 | CP49: 2182.528243 | CQ49: 0 | CR49: 2215.266167 | CS49: 0 | CT49: 2248.49516 | CU49: 0 | CV49: 2282.222587 | CW49: 0 | CX49: 2316.455926 | CY49: 0 | CZ49: 2351.202765 | DA49: 0 | DB49: 2386.470806 | DC49: 0 | DD49: 2422.267868 | DE49: 0 | DF49: 0 | DG49: 0 | DH49: 0 | DI49: 0 | DJ49: 0 | DK49: 0 | DL49: 0 | DM49: 0 | DN49: 0 | DO49: 0 | DP49: 0 | DQ49: 0 | DR49: 0 | DS49: 0 | DT49: 0 | DU49: 0 | DV49: 0 | DW49: 0 | DX49: 0 | DY49: 0 | DZ49: 0 | EA49: 0 | EB49: 0 | EC49: 0 | ED49: 0 | EE49: 0 | EF49: 0 | EG49: 0 | EH49: 0 | EI49: 0 | EJ49: 0 | EK49: 0 | EL49: 0 | EM49: 0 | EN49: 0 | EO49: 0 | EP49: 0 | EQ49: 0 | ER49: 0 | ES49: 0 | ET49: 0 | EU49: 0 | EV49: 0 | EW49: 0 | EX49: 0 | EY49: 0 | EZ49: 0 | FA49: 0 | FB49: 0 | FC49: 0 | FD49: 0 | FE49: 0 | FF49: 0 | FG49: 0 | FH49: 0 | FI49: 0 | FJ49: 0 | FK49: 0 | FL49: 0 | FM49: 0 | FN49: 0 | FO49: 0 | FP49: 0 | FQ49: 0 | FR49: 0 | FS49: 0 | FT49: 0 | FU49: 0 | FV49: 0 | FW49: 0 | FX49: 0 | FY49: 0 | FZ49: 0 | GA49: 0 | GB49: 0 | GC49: 0 | GD49: 0 | GE49: 0 | GF49: 0 | GG49: 0 | GH49: 0 | GI49: 0 | GJ49: 0 | GK49: 0 | GL49: 0 | GM49: 0 | GN49: 0 | GO49: 0 | GP49: 0 | GQ49: 0 | GR49: 0 | GS49: 0 | GT49: 0 | GU49: 0 | GV49: 0 | GW49: 0 | GX49: 0 | GY49: 0 | GZ49: 0
B50: ' Taxes Paid | E50: 45 | G50: 0 | H50: 0 | I50: 0 | J50: 0 | K50: 0 | L50: 0 | M50: 0 | N50: 0 | O50: 0 | P50: 0 | Q50: 0 | R50: 0 | S50: 0 | T50: 0 | U50: 0 | V50: 0 | W50: 0 | X50: 0 | Y50: 0 | Z50: 0 | AA50: 0 | AB50: 0 | AC50: 0 | AD50: 0 | AE50: 0 | AF50: 0 | AG50: 0 | AH50: 0 | AI50: 0 | AJ50: 0 | AK50: 0 | AL50: 0 | AM50: 0 | AN50: 0 | AO50: 0 | AP50: 0 | AQ50: 0 | AR50: 0 | AS50: 0 | AT50: 0 | AU50: 0 | AV50: 0 | AW50: 0 | AX50: 0 | AY50: 0 | AZ50: 0 | BA50: 0 | BB50: 0 | BC50: 0 | BD50: 0 | BE50: 0 | BF50: 0 | BG50: 0 | BH50: 0 | BI50: 0 | BJ50: 0 | BK50: 0 | BL50: 0 | BM50: 0 | BN50: 0 | BO50: 0 | BP50: 0 | BQ50: 0 | BR50: 0 | BS50: 0 | BT50: 0 | BU50: 0 | BV50: 0 | BW50: 0 | BX50: 0 | BY50: 0 | BZ50: 0 | CA50: 0 | CB50: 0 | CC50: 0 | CD50: 0 | CE50: 0 | CF50: 0 | CG50: 0 | CH50: 0 | CI50: 0 | CJ50: 0 | CK50: 0 | CL50: 0 | CM50: 0 | CN50: 0 | CO50: 0 | CP50: 0 | CQ50: 0 | CR50: 0 | CS50: 0 | CT50: 0 | CU50: 0 | CV50: 0 | CW50: 0 | CX50: 0 | CY50: 0 | CZ50: 0 | DA50: 0 | DB50: 0 | DC50: 0 | DD50: 0 | DE50: 0 | DF50: 0 | DG50: 0 | DH50: 0 | DI50: 0 | DJ50: 0 | DK50: 0 | DL50: 0 | DM50: 0 | DN50: 0 | DO50: 0 | DP50: 0 | DQ50: 0 | DR50: 0 | DS50: 0 | DT50: 0 | DU50: 0 | DV50: 0 | DW50: 0 | DX50: 0 | DY50: 0 | DZ50: 0 | EA50: 0 | EB50: 0 | EC50: 0 | ED50: 0 | EE50: 0 | EF50: 0 | EG50: 0 | EH50: 0 | EI50: 0 | EJ50: 0 | EK50: 0 | EL50: 0 | EM50: 0 | EN50: 0 | EO50: 0 | EP50: 0 | EQ50: 0 | ER50: 0 | ES50: 0 | ET50: 0 | EU50: 0 | EV50: 0 | EW50: 0 | EX50: 0 | EY50: 0 | EZ50: 0 | FA50: 0 | FB50: 0 | FC50: 0 | FD50: 0 | FE50: 0 | FF50: 0 | FG50: 0 | FH50: 0 | FI50: 0 | FJ50: 0 | FK50: 0 | FL50: 0 | FM50: 0 | FN50: 0 | FO50: 0 | FP50: 0 | FQ50: 0 | FR50: 0 | FS50: 0 | FT50: 0 | FU50: 0 | FV50: 0 | FW50: 0 | FX50: 0 | FY50: 0 | FZ50: 0 | GA50: 0 | GB50: 0 | GC50: 0 | GD50: 0 | GE50: 0 | GF50: 0 | GG50: 0 | GH50: 0 | GI50: 0 | GJ50: 0 | GK50: 0 | GL50: 0 | GM50: 0 | GN50: 0 | GO50: 0 | GP50: 0 | GQ50: 0 | GR50: 0 | GS50: 0 | GT50: 0 | GU50: 0 | GV50: 0 | GW50: 0 | GX50: 0 | GY50: 0 | GZ50: 0
B51: ' Post COD Capital Expenditure | E51: 46 | G51: 0 | H51: 0 | I51: 0 | J51: 0 | K51: 0 | L51: 0 | M51: 0 | N51: 0 | O51: 0 | P51: 0 | Q51: 0 | R51: 0 | S51: 0 | T51: 0 | U51: 0 | V51: 0 | W51: 0 | X51: 0 | Y51: 0 | Z51: 0 | AA51: 0 | AB51: 0 | AC51: 0 | AD51: 0 | AE51: 0 | AF51: 0 | AG51: 0 | AH51: 0 | AI51: 0 | AJ51: 0 | AK51: 0 | AL51: 0 | AM51: 0 | AN51: 0 | AO51: 0 | AP51: 0 | AQ51: 0 | AR51: 0 | AS51: 0 | AT51: 0 | AU51: 0 | AV51: 0 | AW51: 0 | AX51: 0 | AY51: 0 | AZ51: 0 | BA51: 0 | BB51: 0 | BC51: 0 | BD51: 0 | BE51: 0 | BF51: 0 | BG51: 0 | BH51: 0 | BI51: 0 | BJ51: 0 | BK51: 0 | BL51: 0 | BM51: 0 | BN51: 0 | BO51: 0 | BP51: 0 | BQ51: 0 | BR51: 0 | BS51: 0 | BT51: 0 | BU51: 0 | BV51: 0 | BW51: 0 | BX51: 0 | BY51: 0 | BZ51: 0 | CA51: 0 | CB51: 0 | CC51: 0 | CD51: 0 | CE51: 0 | CF51: 0 | CG51: 0 | CH51: 0 | CI51: 0 | CJ51: 0 | CK51: 0 | CL51: 0 | CM51: 0 | CN51: 0 | CO51: 0 | CP51: 0 | CQ51: 0 | CR51: 0 | CS51: 0 | CT51: 0 | CU51: 0 | CV51: 0 | CW51: 0 | CX51: 0 | CY51: 0 | CZ51: 0 | DA51: 0 | DB51: 0 | DC51: 0 | DD51: 0 | DE51: 0 | DF51: 0 | DG51: 0 | DH51: 0 | DI51: 0 | DJ51: 0 | DK51: 0 | DL51: 0 | DM51: 0 | DN51: 0 | DO51: 0 | DP51: 0 | DQ51: 0 | DR51: 0 | DS51: 0 | DT51: 0 | DU51: 0 | DV51: 0 | DW51: 0 | DX51: 0 | DY51: 0 | DZ51: 0 | EA51: 0 | EB51: 0 | EC51: 0 | ED51: 0 | EE51: 0 | EF51: 0 | EG51: 0 | EH51: 0 | EI51: 0 | EJ51: 0 | EK51: 0 | EL51: 0 | EM51: 0 | EN51: 0 | EO51: 0 | EP51: 0 | EQ51: 0 | ER51: 0 | ES51: 0 | ET51: 0 | EU51: 0 | EV51: 0 | EW51: 0 | EX51: 0 | EY51: 0 | EZ51: 0 | FA51: 0 | FB51: 0 | FC51: 0 | FD51: 0 | FE51: 0 | FF51: 0 | FG51: 0 | FH51: 0 | FI51: 0 | FJ51: 0 | FK51: 0 | FL51: 0 | FM51: 0 | FN51: 0 | FO51: 0 | FP51: 0 | FQ51: 0 | FR51: 0 | FS51: 0 | FT51: 0 | FU51: 0 | FV51: 0 | FW51: 0 | FX51: 0 | FY51: 0 | FZ51: 0 | GA51: 0 | GB51: 0 | GC51: 0 | GD51: 0 | GE51: 0 | GF51: 0 | GG51: 0 | GH51: 0 | GI51: 0 | GJ51: 0 | GK51: 0 | GL51: 0 | GM51: 0 | GN51: 0 | GO51: 0 | GP51: 0 | GQ51: 0 | GR51: 0 | GS51: 0 | GT51: 0 | GU51: 0 | GV51: 0 | GW51: 0 | GX51: 0 | GY51: 0 | GZ51: 0
B52: ' Changes to MRA Account | E52: 47 | G52: 0 | H52: 0 | I52: 0 | J52: 0 | K52: 0 | L52: 0 | M52: 0 | N52: 0 | O52: 0 | P52: 0 | Q52: 0 | R52: 0 | S52: 0 | T52: 0 | U52: 0 | V52: 0 | W52: 0 | X52: 0 | Y52: 0 | Z52: 0 | AA52: 0 | AB52: 0 | AC52: 0 | AD52: 0 | AE52: 0 | AF52: 0 | AG52: 0 | AH52: 0 | AI52: 0 | AJ52: 0 | AK52: 0 | AL52: 0 | AM52: 0 | AN52: 0 | AO52: 0 | AP52: 0 | AQ52: 0 | AR52: 0 | AS52: 0 | AT52: 0 | AU52: 0 | AV52: 0 | AW52: 0 | AX52: 0 | AY52: 0 | AZ52: 0 | BA52: 0 | BB52: 0 | BC52: 0 | BD52: 0 | BE52: 0 | BF52: 0 | BG52: 0 | BH52: 0 | BI52: 0 | BJ52: 0 | BK52: 0 | BL52: 0 | BM52: 0 | BN52: 0 | BO52: 0 | BP52: 0 | BQ52: 0 | BR52: 0 | BS52: 0 | BT52: 0 | BU52: 0 | BV52: 0 | BW52: 0 | BX52: 0 | BY52: 0 | BZ52: 0 | CA52: 0 | CB52: 0 | CC52: 0 | CD52: 0 | CE52: 0 | CF52: 0 | CG52: 0 | CH52: 0 | CI52: 0 | CJ52: 0 | CK52: 0 | CL52: 0 | CM52: 0 | CN52: 0 | CO52: 0 | CP52: 0 | CQ52: 0 | CR52: 0 | CS52: 0 | CT52: 0 | CU52: 0 | CV52: 0 | CW52: 0 | CX52: 0 | CY52: 0 | CZ52: 0 | DA52: 0 | DB52: 0 | DC52: 0 | DD52: 0 | DE52: 0 | DF52: 0 | DG52: 0 | DH52: 0 | DI52: 0 | DJ52: 0 | DK52: 0 | DL52: 0 | DM52: 0 | DN52: 0 | DO52: 0 | DP52: 0 | DQ52: 0 | DR52: 0 | DS52: 0 | DT52: 0 | DU52: 0 | DV52: 0 | DW52: 0 | DX52: 0 | DY52: 0 | DZ52: 0 | EA52: 0 | EB52: 0 | EC52: 0 | ED52: 0 | EE52: 0 | EF52: 0 | EG52: 0 | EH52: 0 | EI52: 0 | EJ52: 0 | EK52: 0 | EL52: 0 | EM52: 0 | EN52: 0 | EO52: 0 | EP52: 0 | EQ52: 0 | ER52: 0 | ES52: 0 | ET52: 0 | EU52: 0 | EV52: 0 | EW52: 0 | EX52: 0 | EY52: 0 | EZ52: 0 | FA52: 0 | FB52: 0 | FC52: 0 | FD52: 0 | FE52: 0 | FF52: 0 | FG52: 0 | FH52: 0 | FI52: 0 | FJ52: 0 | FK52: 0 | FL52: 0 | FM52: 0 | FN52: 0 | FO52: 0 | FP52: 0 | FQ52: 0 | FR52: 0 | FS52: 0 | FT52: 0 | FU52: 0 | FV52: 0 | FW52: 0 | FX52: 0 | FY52: 0 | FZ52: 0 | GA52: 0 | GB52: 0 | GC52: 0 | GD52: 0 | GE52: 0 | GF52: 0 | GG52: 0 | GH52: 0 | GI52: 0 | GJ52: 0 | GK52: 0 | GL52: 0 | GM52: 0 | GN52: 0 | GO52: 0 | GP52: 0 | GQ52: 0 | GR52: 0 | GS52: 0 | GT52: 0 | GU52: 0 | GV52: 0 | GW52: 0 | GX52: 0 | GY52: 0 | GZ52: 0
B53: Changes to DSRA Account/DSRA Sculpt | E53: 48 | G53: 1 | H53: 0 | I53: 0 | J53: 0 | K53: 0 | L53: 0 | M53: 0 | N53: 0 | O53: 0 | P53: 0 | Q53: 0 | R53: 0 | S53: 0 | T53: 0 | U53: 0 | V53: 0 | W53: 0 | X53: 0 | Y53: 0 | Z53: 0 | AA53: 0 | AB53: 0 | AC53: 0 | AD53: 0 | AE53: 0 | AF53: 0 | AG53: 0 | AH53: 0 | AI53: 0 | AJ53: 0 | AK53: 0 | AL53: 0 | AM53: 0 | AN53: 0 | AO53: 0 | AP53: 0 | AQ53: 0 | AR53: 0 | AS53: 0 | AT53: 0 | AU53: 0 | AV53: 0 | AW53: 0 | AX53: 0 | AY53: 0 | AZ53: 0 | BA53: 0 | BB53: 0 | BC53: 0 | BD53: 0 | BE53: 0 | BF53: 0 | BG53: 0 | BH53: 76097.89011 | BI53: 9664.983817 | BJ53: 7153.248995 | BK53: 21628.77787 | BL53: 22505.70734 | BM53: 33523.71139 | BN53: 24596.62709 | BO53: 34565.23179 | BP53: 27473.65477 | BQ53: 35585.84223 | BR53: 19316.43895 | BS53: 19709.35411 | BT53: 3572.52095 | BU53: 12740.19751 | BV53: 1941.793453 | BW53: 12938.4767 | BX53: 4523.498347 | BY53: 13117.96892 | BZ53: 1985.767672 | CA53: 10762.11765 | CB53: 2022.914492 | CC53: 13521.21824 | CD53: 2058.683957 | CE53: 13464.83564 | CF53: 4267.670818 | CG53: -80182.00781 | CH53: -92435.16391 | CI53: -83562.12681 | CJ53: 21.72404872 | CK53: 12210.52533 | CL53: 30.20594864 | CM53: 12402.01306 | CN53: 2906.848377 | CO53: 12657.8449 | CP53: 186.9268404 | CQ53: 40297.75221 | CR53: 30577.88621 | CS53: 43657.43851 | CT53: 718.9326502 | CU53: 13854.79135 | CV53: 3781.625159 | CW53: 14045.16705 | CX53: 723.0350611 | CY53: 11201.03021 | CZ53: 734.2485289 | DA53: 13473.74191 | DB53: -1229.305246 | DC53: -338717.1167 | DD53: -347193.4868 | DE53: -341820.4489 | DF53: 0 | DG53: 0 | DH53: 0 | DI53: 0 | DJ53: 0 | DK53: 0 | DL53: 0 | DM53: 0 | DN53: 0 | DO53: 0 | DP53: 0 | DQ53: 0 | DR53: 0 | DS53: 0 | DT53: 0 | DU53: 0 | DV53: 0 | DW53: 0 | DX53: 0 | DY53: 0 | DZ53: 0 | EA53: 0 | EB53: 0 | EC53: 0 | ED53: 0 | EE53: 0 | EF53: 0 | EG53: 0 | EH53: 0 | EI53: 0 | EJ53: 0 | EK53: 0 | EL53: 0 | EM53: 0 | EN53: 0 | EO53: 0 | EP53: 0 | EQ53: 0 | ER53: 0 | ES53: 0 | ET53: 0 | EU53: 0 | EV53: 0 | EW53: 0 | EX53: 0 | EY53: 0 | EZ53: 0 | FA53: 0 | FB53: 0 | FC53: 0 | FD53: 0 | FE53: 0 | FF53: 0 | FG53: 0 | FH53: 0 | FI53: 0 | FJ53: 0 | FK53: 0 | FL53: 0 | FM53: 0 | FN53: 0 | FO53: 0 | FP53: 0 | FQ53: 0 | FR53: 0 | FS53: 0 | FT53: 0 | FU53: 0 | FV53: 0 | FW53: 0 | FX53: 0 | FY53: 0 | FZ53: 0 | GA53: 0 | GB53: 0 | GC53: 0 | GD53: 0 | GE53: 0 | GF53: 0 | GG53: 0 | GH53: 0 | GI53: 0 | GJ53: 0 | GK53: 0 | GL53: 0 | GM53: 0 | GN53: 0 | GO53: 0 | GP53: 0 | GQ53: 0 | GR53: 0 | GS53: 0 | GT53: 0 | GU53: 0 | GV53: 0 | GW53: 0 | GX53: 0 | GY53: 0 | GZ53: 0
B54: CFADS/PV CFADS | E54: 49 | G54: 12669509.54 | H54: 0 | I54: 0 | J54: 0 | K54: 0 | L54: 0 | M54: 0 | N54: 0 | O54: 0 | P54: 0 | Q54: 0 | R54: 0 | S54: 0 | T54: 0 | U54: 0 | V54: 0 | W54: 0 | X54: 0 | Y54: 0 | Z54: 0 | AA54: 0 | AB54: 0 | AC54: 0 | AD54: 0 | AE54: 0 | AF54: 0 | AG54: 0 | AH54: 0 | AI54: 0 | AJ54: 0 | AK54: 0 | AL54: 0 | AM54: 0 | AN54: 0 | AO54: 0 | AP54: 0 | AQ54: 0 | AR54: 0 | AS54: 0 | AT54: 0 | AU54: 0 | AV54: 0 | AW54: 0 | AX54: 0 | AY54: 0 | AZ54: 0 | BA54: 0 | BB54: 0 | BC54: 0 | BD54: 0 | BE54: 0 | BF54: 0 | BG54: 0 | BH54: 219773.6111 | BI54: 313672.7125 | BJ54: 321635.6618 | BK54: 320983.8049 | BL54: 326527.141 | BM54: 331149.483 | BN54: 349750.0795 | BO54: 356459.7318 | BP54: 375736.0191 | BQ54: 382463.5935 | BR54: 402431.4901 | BS54: 412275.98 | BT54: 429792.7637 | BU54: 428122.3539 | BV54: 438489.4209 | BW54: 434544.2165 | BX54: 445066.8165 | BY54: 441072.0062 | BZ54: 451752.3905 | CA54: 451083.0693 | CB54: 458518.9049 | CC54: 454393.4616 | CD54: 465396.6858 | CE54: 461209.3812 | CF54: 472376.6818 | CG54: 468134.7355 | CH54: 479117.6126 | CI54: 478052.684 | CJ54: 361492.6651 | CK54: 356178.8446 | CL54: 366915.0553 | CM54: 361521.5581 | CN54: 372418.8433 | CO54: 366955.2293 | CP54: 378016.2355 | CQ54: 376284.9516 | CR54: 383790.163 | CS54: 378264.8482 | CT54: 429880.962 | CU54: 424458.7516 | CV54: 436329.2414 | CW54: 430837.1425 | CX54: 442885.6241 | CY54: 441358.8028 | CZ54: 449517.2146 | DA54: 443847.2608 | DB54: 456256.173 | DC54: 450493.7652 | DD54: 461767.3375 | DE54: 454621.197 | DF54: 0 | DG54: 0 | DH54: 0 | DI54: 0 | DJ54: 0 | DK54: 0 | DL54: 0 | DM54: 0 | DN54: 0 | DO54: 0 | DP54: 0 | DQ54: 0 | DR54: 0 | DS54: 0 | DT54: 0 | DU54: 0 | DV54: 0 | DW54: 0 | DX54: 0 | DY54: 0 | DZ54: 0 | EA54: 0 | EB54: 0 | EC54: 0 | ED54: 0 | EE54: 0 | EF54: 0 | EG54: 0 | EH54: 0 | EI54: 0 | EJ54: 0 | EK54: 0 | EL54: 0 | EM54: 0 | EN54: 0 | EO54: 0 | EP54: 0 | EQ54: 0 | ER54: 0 | ES54: 0 | ET54: 0 | EU54: 0 | EV54: 0 | EW54: 0 | EX54: 0 | EY54: 0 | EZ54: 0 | FA54: 0 | FB54: 0 | FC54: 0 | FD54: 0 | FE54: 0 | FF54: 0 | FG54: 0 | FH54: 0 | FI54: 0 | FJ54: 0 | FK54: 0 | FL54: 0 | FM54: 0 | FN54: 0 | FO54: 0 | FP54: 0 | FQ54: 0 | FR54: 0 | FS54: 0 | FT54: 0 | FU54: 0 | FV54: 0 | FW54: 0 | FX54: 0 | FY54: 0 | FZ54: 0 | GA54: 0 | GB54: 0 | GC54: 0 | GD54: 0 | GE54: 0 | GF54: 0 | GG54: 0 | GH54: 0 | GI54: 0 | GJ54: 0 | GK54: 0 | GL54: 0 | GM54: 0 | GN54: 0 | GO54: 0 | GP54: 0 | GQ54: 0 | GR54: 0 | GS54: 0 | GT54: 0 | GU54: 0 | GV54: 0 | GW54: 0 | GX54: 0 | GY54: 0 | GZ54: 0
B55: DSCR Applied and Input/PV Target DS | E55: 50 | G55: 9525947.026 | H55: 1.33 | I55: 1.33 | J55: 1.33 | K55: 1.33 | L55: 1.33 | M55: 1.33 | N55: 1.33 | O55: 1.33 | P55: 1.33 | Q55: 1.33 | R55: 1.33 | S55: 1.33 | T55: 1.33 | U55: 1.33 | V55: 1.33 | W55: 1.33 | X55: 1.33 | Y55: 1.33 | Z55: 1.33 | AA55: 1.33 | AB55: 1.33 | AC55: 1.33 | AD55: 1.33 | AE55: 1.33 | AF55: 1.33 | AG55: 1.33 | AH55: 1.33 | AI55: 1.33 | AJ55: 1.33 | AK55: 1.33 | AL55: 1.33 | AM55: 1.33 | AN55: 1.33 | AO55: 1.33 | AP55: 1.33 | AQ55: 1.33 | AR55: 1.33 | AS55: 1.33 | AT55: 1.33 | AU55: 1.33 | AV55: 1.33 | AW55: 1.33 | AX55: 1.33 | AY55: 1.33 | AZ55: 1.33 | BA55: 1.33 | BB55: 1.33 | BC55: 1.33 | BD55: 1.33 | BE55: 1.33 | BF55: 1.33 | BG55: 1.33 | BH55: 1.33 | BI55: 1.33 | BJ55: 1.33 | BK55: 1.33 | BL55: 1.33 | BM55: 1.33 | BN55: 1.33 | BO55: 1.33 | BP55: 1.33 | BQ55: 1.33 | BR55: 1.33 | BS55: 1.33 | BT55: 1.33 | BU55: 1.33 | BV55: 1.33 | BW55: 1.33 | BX55: 1.33 | BY55: 1.33 | BZ55: 1.33 | CA55: 1.33 | CB55: 1.33 | CC55: 1.33 | CD55: 1.33 | CE55: 1.33 | CF55: 1.33 | CG55: 1.33 | CH55: 1.33 | CI55: 1.33 | CJ55: 1.33 | CK55: 1.33 | CL55: 1.33 | CM55: 1.33 | CN55: 1.33 | CO55: 1.33 | CP55: 1.33 | CQ55: 1.33 | CR55: 1.33 | CS55: 1.33 | CT55: 1.33 | CU55: 1.33 | CV55: 1.33 | CW55: 1.33 | CX55: 1.33 | CY55: 1.33 | CZ55: 1.33 | DA55: 1.33 | DB55: 1.33 | DC55: 1.33 | DD55: 1.33 | DE55: 1.33 | DF55: 0 | DG55: 0 | DH55: 0 | DI55: 0 | DJ55: 0 | DK55: 0 | DL55: 0 | DM55: 0 | DN55: 0 | DO55: 0 | DP55: 0 | DQ55: 0 | DR55: 0 | DS55: 0 | DT55: 0 | DU55: 0 | DV55: 0 | DW55: 0 | DX55: 0 | DY55: 0 | DZ55: 0 | EA55: 0 | EB55: 0 | EC55: 0 | ED55: 0 | EE55: 0 | EF55: 0 | EG55: 0 | EH55: 0 | EI55: 0 | EJ55: 0 | EK55: 0 | EL55: 0 | EM55: 0 | EN55: 0 | EO55: 0 | EP55: 0 | EQ55: 0 | ER55: 0 | ES55: 0 | ET55: 0 | EU55: 0 | EV55: 0 | EW55: 0 | EX55: 0 | EY55: 0 | EZ55: 0 | FA55: 0 | FB55: 0 | FC55: 0 | FD55: 0 | FE55: 0 | FF55: 0 | FG55: 0 | FH55: 0 | FI55: 0 | FJ55: 0 | FK55: 0 | FL55: 0 | FM55: 0 | FN55: 0 | FO55: 0 | FP55: 0 | FQ55: 0 | FR55: 0 | FS55: 0 | FT55: 0 | FU55: 0 | FV55: 0 | FW55: 0 | FX55: 0 | FY55: 0 | FZ55: 0 | GA55: 0 | GB55: 0 | GC55: 0 | GD55: 0 | GE55: 0 | GF55: 0 | GG55: 0 | GH55: 0 | GI55: 0 | GJ55: 0 | GK55: 0 | GL55: 0 | GM55: 0 | GN55: 0 | GO55: 0 | GP55: 0 | GQ55: 0 | GR55: 0 | GS55: 0 | GT55: 0 | GU55: 0 | GV55: 0 | GW55: 0 | GX55: 0 | GY55: 0 | GZ55: 0
B56: Debt Service/PV Debt Service | E56: 51 | G56: 9525947.026 | H56: 0 | I56: 0 | J56: 0 | K56: 0 | L56: 0 | M56: 0 | N56: 0 | O56: 0 | P56: 0 | Q56: 0 | R56: 0 | S56: 0 | T56: 0 | U56: 0 | V56: 0 | W56: 0 | X56: 0 | Y56: 0 | Z56: 0 | AA56: 0 | AB56: 0 | AC56: 0 | AD56: 0 | AE56: 0 | AF56: 0 | AG56: 0 | AH56: 0 | AI56: 0 | AJ56: 0 | AK56: 0 | AL56: 0 | AM56: 0 | AN56: 0 | AO56: 0 | AP56: 0 | AQ56: 0 | AR56: 0 | AS56: 0 | AT56: 0 | AU56: 0 | AV56: 0 | AW56: 0 | AX56: 0 | AY56: 0 | AZ56: 0 | BA56: 0 | BB56: 0 | BC56: 0 | BD56: 0 | BE56: 0 | BF56: 0 | BG56: 0 | BH56: 165243.3166 | BI56: 235844.1448 | BJ56: 241831.3247 | BK56: 241341.2067 | BL56: 245509.1286 | BM56: 248984.5737 | BN56: 262969.9846 | BO56: 268014.8359 | BP56: 282508.2851 | BQ56: 287566.6117 | BR56: 302580.0677 | BS56: 309981.9398 | BT56: 323152.4539 | BU56: 321896.5067 | BV56: 329691.2939 | BW56: 326724.9748 | BX56: 334636.7042 | BY56: 331633.0874 | BZ56: 339663.4515 | CA56: 339160.2025 | CB56: 344751.0563 | CC56: 341649.2192 | CD56: 349922.3202 | CE56: 346773.9708 | CF56: 355170.4374 | CG56: 351981.0041 | CH56: 360238.8064 | CI56: 359438.1083 | CJ56: 271798.9963 | CK56: 267803.6425 | CL56: 275875.9815 | CM56: 271820.7204 | CN56: 280014.1679 | CO56: 275906.1874 | CP56: 284222.7334 | CQ56: 282921.0162 | CR56: 288564.0323 | CS56: 284409.6603 | CT56: 323218.7685 | CU56: 319141.9185 | CV56: 328067.0988 | CW56: 323937.7011 | CX56: 332996.7099 | CY56: 331848.7239 | CZ56: 337982.8682 | DA56: 333719.7449 | DB56: 343049.7541 | DC56: 338717.1167 | DD56: 347193.4868 | DE56: 341820.4489 | DF56: 0 | DG56: 0 | DH56: 0 | DI56: 0 | DJ56: 0 | DK56: 0 | DL56: 0 | DM56: 0 | DN56: 0 | DO56: 0 | DP56: 0 | DQ56: 0 | DR56: 0 | DS56: 0 | DT56: 0 | DU56: 0 | DV56: 0 | DW56: 0 | DX56: 0 | DY56: 0 | DZ56: 0 | EA56: 0 | EB56: 0 | EC56: 0 | ED56: 0 | EE56: 0 | EF56: 0 | EG56: 0 | EH56: 0 | EI56: 0 | EJ56: 0 | EK56: 0 | EL56: 0 | EM56: 0 | EN56: 0 | EO56: 0 | EP56: 0 | EQ56: 0 | ER56: 0 | ES56: 0 | ET56: 0 | EU56: 0 | EV56: 0 | EW56: 0 | EX56: 0 | EY56: 0 | EZ56: 0 | FA56: 0 | FB56: 0 | FC56: 0 | FD56: 0 | FE56: 0 | FF56: 0 | FG56: 0 | FH56: 0 | FI56: 0 | FJ56: 0 | FK56: 0 | FL56: 0 | FM56: 0 | FN56: 0 | FO56: 0 | FP56: 0 | FQ56: 0 | FR56: 0 | FS56: 0 | FT56: 0 | FU56: 0 | FV56: 0 | FW56: 0 | FX56: 0 | FY56: 0 | FZ56: 0 | GA56: 0 | GB56: 0 | GC56: 0 | GD56: 0 | GE56: 0 | GF56: 0 | GG56: 0 | GH56: 0 | GI56: 0 | GJ56: 0 | GK56: 0 | GL56: 0 | GM56: 0 | GN56: 0 | GO56: 0 | GP56: 0 | GQ56: 0 | GR56: 0 | GS56: 0 | GT56: 0 | GU56: 0 | GV56: 0 | GW56: 0 | GX56: 0 | GY56: 0 | GZ56: 0
B57: Computed DSCR/ Sculpting Implented | E57: 52 | G57: TRUE | H57: 0 | I57: 0 | J57: 0 | K57: 0 | L57: 0 | M57: 0 | N57: 0 | O57: 0 | P57: 0 | Q57: 0 | R57: 0 | S57: 0 | T57: 0 | U57: 0 | V57: 0 | W57: 0 | X57: 0 | Y57: 0 | Z57: 0 | AA57: 0 | AB57: 0 | AC57: 0 | AD57: 0 | AE57: 0 | AF57: 0 | AG57: 0 | AH57: 0 | AI57: 0 | AJ57: 0 | AK57: 0 | AL57: 0 | AM57: 0 | AN57: 0 | AO57: 0 | AP57: 0 | AQ57: 0 | AR57: 0 | AS57: 0 | AT57: 0 | AU57: 0 | AV57: 0 | AW57: 0 | AX57: 0 | AY57: 0 | AZ57: 0 | BA57: 0 | BB57: 0 | BC57: 0 | BD57: 0 | BE57: 0 | BF57: 0 | BG57: 0 | BH57: 1.33 | BI57: 1.33 | BJ57: 1.33 | BK57: 1.33 | BL57: 1.33 | BM57: 1.33 | BN57: 1.33 | BO57: 1.33 | BP57: 1.33 | BQ57: 1.33 | BR57: 1.33 | BS57: 1.33 | BT57: 1.33 | BU57: 1.33 | BV57: 1.33 | BW57: 1.33 | BX57: 1.33 | BY57: 1.33 | BZ57: 1.33 | CA57: 1.33 | CB57: 1.33 | CC57: 1.33 | CD57: 1.33 | CE57: 1.33 | CF57: 1.33 | CG57: 1.33 | CH57: 1.33 | CI57: 1.33 | CJ57: 1.33 | CK57: 1.33 | CL57: 1.33 | CM57: 1.33 | CN57: 1.33 | CO57: 1.33 | CP57: 1.33 | CQ57: 1.33 | CR57: 1.33 | CS57: 1.33 | CT57: 1.33 | CU57: 1.33 | CV57: 1.33 | CW57: 1.33 | CX57: 1.33 | CY57: 1.33 | CZ57: 1.33 | DA57: 1.33 | DB57: 1.33 | DC57: 1.33 | DD57: 1.33 | DE57: 1.33 | DF57: 0 | DG57: 0 | DH57: 0 | DI57: 0 | DJ57: 0 | DK57: 0 | DL57: 0 | DM57: 0 | DN57: 0 | DO57: 0 | DP57: 0 | DQ57: 0 | DR57: 0 | DS57: 0 | DT57: 0 | DU57: 0 | DV57: 0 | DW57: 0 | DX57: 0 | DY57: 0 | DZ57: 0 | EA57: 0 | EB57: 0 | EC57: 0 | ED57: 0 | EE57: 0 | EF57: 0 | EG57: 0 | EH57: 0 | EI57: 0 | EJ57: 0 | EK57: 0 | EL57: 0 | EM57: 0 | EN57: 0 | EO57: 0 | EP57: 0 | EQ57: 0 | ER57: 0 | ES57: 0 | ET57: 0 | EU57: 0 | EV57: 0 | EW57: 0 | EX57: 0 | EY57: 0 | EZ57: 0 | FA57: 0 | FB57: 0 | FC57: 0 | FD57: 0 | FE57: 0 | FF57: 0 | FG57: 0 | FH57: 0 | FI57: 0 | FJ57: 0 | FK57: 0 | FL57: 0 | FM57: 0 | FN57: 0 | FO57: 0 | FP57: 0 | FQ57: 0 | FR57: 0 | FS57: 0 | FT57: 0 | FU57: 0 | FV57: 0 | FW57: 0 | FX57: 0 | FY57: 0 | FZ57: 0 | GA57: 0 | GB57: 0 | GC57: 0 | GD57: 0 | GE57: 0 | GF57: 0 | GG57: 0 | GH57: 0 | GI57: 0 | GJ57: 0 | GK57: 0 | GL57: 0 | GM57: 0 | GN57: 0 | GO57: 0 | GP57: 0 | GQ57: 0 | GR57: 0 | GS57: 0 | GT57: 0 | GU57: 0 | GV57: 0 | GW57: 0 | GX57: 0 | GY57: 0 | GZ57: 0
B58: ' Interest Rate | E58: 53 | G58: 0 | H58: 0 | I58: 0 | J58: 0.003083333333 | K58: 0.003083333333 | L58: 0.003083333333 | M58: 0.003083333333 | N58: 0.003083333333 | O58: 0.003083333333 | P58: 0.003083333333 | Q58: 0.003083333333 | R58: 0.003083333333 | S58: 0.003083333333 | T58: 0.003083333333 | U58: 0.003083333333 | V58: 0.003083333333 | W58: 0.003083333333 | X58: 0.003083333333 | Y58: 0.003083333333 | Z58: 0.003083333333 | AA58: 0.003083333333 | AB58: 0.003083333333 | AC58: 0.003083333333 | AD58: 0.003083333333 | AE58: 0.003083333333 | AF58: 0.003083333333 | AG58: 0.003083333333 | AH58: 0.003083333333 | AI58: 0.003083333333 | AJ58: 0.003083333333 | AK58: 0.003083333333 | AL58: 0.003083333333 | AM58: 0.003083333333 | AN58: 0.003083333333 | AO58: 0.003083333333 | AP58: 0.003083333333 | AQ58: 0.003083333333 | AR58: 0.003083333333 | AS58: 0.003083333333 | AT58: 0.003083333333 | AU58: 0.003083333333 | AV58: 0.003083333333 | AW58: 0.003083333333 | AX58: 0.003083333333 | AY58: 0.003083333333 | AZ58: 0.003083333333 | BA58: 0.003083333333 | BB58: 0.003083333333 | BC58: 0.003083333333 | BD58: 0.003083333333 | BE58: 0.003083333333 | BF58: 0.003083333333 | BG58: 0.003083333333 | BH58: 0.019 | BI58: 0.019 | BJ58: 0.019 | BK58: 0.019 | BL58: 0.019 | BM58: 0.019 | BN58: 0.01975 | BO58: 0.01975 | BP58: 0.01975 | BQ58: 0.01975 | BR58: 0.01975 | BS58: 0.01975 | BT58: 0.01975 | BU58: 0.01975 | BV58: 0.01975 | BW58: 0.01975 | BX58: 0.01975 | BY58: 0.01975 | BZ58: 0.01975 | CA58: 0.01975 | CB58: 0.01975 | CC58: 0.01975 | CD58: 0.01975 | CE58: 0.01975 | CF58: 0.01975 | CG58: 0.01975 | CH58: 0.01975 | CI58: 0.01975 | CJ58: 0.01975 | CK58: 0.01975 | CL58: 0.01975 | CM58: 0.01975 | CN58: 0.01975 | CO58: 0.01975 | CP58: 0.01975 | CQ58: 0.01975 | CR58: 0.01975 | CS58: 0.01975 | CT58: 0.01975 | CU58: 0.01975 | CV58: 0.01975 | CW58: 0.01975 | CX58: 0.01975 | CY58: 0.01975 | CZ58: 0.01975 | DA58: 0.01975 | DB58: 0.01975 | DC58: 0.01975 | DD58: 0.01975 | DE58: 0.01975 | DF58: 0 | DG58: 0 | DH58: 0 | DI58: 0 | DJ58: 0 | DK58: 0 | DL58: 0 | DM58: 0 | DN58: 0 | DO58: 0 | DP58: 0 | DQ58: 0 | DR58: 0 | DS58: 0 | DT58: 0 | DU58: 0 | DV58: 0 | DW58: 0 | DX58: 0 | DY58: 0 | DZ58: 0 | EA58: 0 | EB58: 0 | EC58: 0 | ED58: 0 | EE58: 0 | EF58: 0 | EG58: 0 | EH58: 0 | EI58: 0 | EJ58: 0 | EK58: 0 | EL58: 0 | EM58: 0 | EN58: 0 | EO58: 0 | EP58: 0 | EQ58: 0 | ER58: 0 | ES58: 0 | ET58: 0 | EU58: 0 | EV58: 0 | EW58: 0 | EX58: 0 | EY58: 0 | EZ58: 0 | FA58: 0 | FB58: 0 | FC58: 0 | FD58: 0 | FE58: 0 | FF58: 0 | FG58: 0 | FH58: 0 | FI58: 0 | FJ58: 0 | FK58: 0 | FL58: 0 | FM58: 0 | FN58: 0 | FO58: 0 | FP58: 0 | FQ58: 0 | FR58: 0 | FS58: 0 | FT58: 0 | FU58: 0 | FV58: 0 | FW58: 0 | FX58: 0 | FY58: 0 | FZ58: 0 | GA58: 0 | GB58: 0 | GC58: 0 | GD58: 0 | GE58: 0 | GF58: 0 | GG58: 0 | GH58: 0 | GI58: 0 | GJ58: 0 | GK58: 0 | GL58: 0 | GM58: 0 | GN58: 0 | GO58: 0 | GP58: 0 | GQ58: 0 | GR58: 0 | GS58: 0 | GT58: 0 | GU58: 0 | GV58: 0 | GW58: 0 | GX58: 0 | GY58: 0 | GZ58: 0
B59: ' Compound Interest | E59: 54 | G59: 0 | H59: 0 | I59: 0 | J59: 0 | K59: 0 | L59: 0 | M59: 0 | N59: 0 | O59: 0 | P59: 0 | Q59: 0 | R59: 0 | S59: 0 | T59: 0 | U59: 0 | V59: 0 | W59: 0 | X59: 0 | Y59: 0 | Z59: 0 | AA59: 0 | AB59: 0 | AC59: 0 | AD59: 0 | AE59: 0 | AF59: 0 | AG59: 0 | AH59: 0 | AI59: 0 | AJ59: 0 | AK59: 0 | AL59: 0 | AM59: 0 | AN59: 0 | AO59: 0 | AP59: 0 | AQ59: 0 | AR59: 0 | AS59: 0 | AT59: 0 | AU59: 0 | AV59: 0 | AW59: 0 | AX59: 0 | AY59: 0 | AZ59: 0 | BA59: 0 | BB59: 0 | BC59: 0 | BD59: 0 | BE59: 0 | BF59: 0 | BG59: 0 | BH59: 1.019 | BI59: 1.038361 | BJ59: 1.058089859 | BK59: 1.078193566 | BL59: 1.098679244 | BM59: 1.11955415 | BN59: 1.141665344 | BO59: 1.164213235 | BP59: 1.187206446 | BQ59: 1.210653773 | BR59: 1.234564185 | BS59: 1.258946828 | BT59: 1.283811028 | BU59: 1.309166296 | BV59: 1.33502233 | BW59: 1.361389021 | BX59: 1.388276454 | BY59: 1.415694914 | BZ59: 1.443654889 | CA59: 1.472167073 | CB59: 1.501242373 | CC59: 1.530891909 | CD59: 1.561127025 | CE59: 1.591959283 | CF59: 1.623400479 | CG59: 1.655462639 | CH59: 1.688158026 | CI59: 1.721499147 | CJ59: 1.755498755 | CK59: 1.790169855 | CL59: 1.82552571 | CM59: 1.861579843 | CN59: 1.898346045 | CO59: 1.935838379 | CP59: 1.974071187 | CQ59: 2.013059093 | CR59: 2.05281701 | CS59: 2.093360146 | CT59: 2.134704009 | CU59: 2.176864413 | CV59: 2.219857485 | CW59: 2.263699671 | CX59: 2.308407739 | CY59: 2.353998792 | CZ59: 2.400490268 | DA59: 2.447899951 | DB59: 2.496245975 | DC59: 2.545546833 | DD59: 2.595821383 | DE59: 2.647088855 | DF59: 0 | DG59: 0 | DH59: 0 | DI59: 0 | DJ59: 0 | DK59: 0 | DL59: 0 | DM59: 0 | DN59: 0 | DO59: 0 | DP59: 0 | DQ59: 0 | DR59: 0 | DS59: 0 | DT59: 0 | DU59: 0 | DV59: 0 | DW59: 0 | DX59: 0 | DY59: 0 | DZ59: 0 | EA59: 0 | EB59: 0 | EC59: 0 | ED59: 0 | EE59: 0 | EF59: 0 | EG59: 0 | EH59: 0 | EI59: 0 | EJ59: 0 | EK59: 0 | EL59: 0 | EM59: 0 | EN59: 0 | EO59: 0 | EP59: 0 | EQ59: 0 | ER59: 0 | ES59: 0 | ET59: 0 | EU59: 0 | EV59: 0 | EW59: 0 | EX59: 0 | EY59: 0 | EZ59: 0 | FA59: 0 | FB59: 0 | FC59: 0 | FD59: 0 | FE59: 0 | FF59: 0 | FG59: 0 | FH59: 0 | FI59: 0 | FJ59: 0 | FK59: 0 | FL59: 0 | FM59: 0 | FN59: 0 | FO59: 0 | FP59: 0 | FQ59: 0 | FR59: 0 | FS59: 0 | FT59: 0 | FU59: 0 | FV59: 0 | FW59: 0 | FX59: 0 | FY59: 0 | FZ59: 0 | GA59: 0 | GB59: 0 | GC59: 0 | GD59: 0 | GE59: 0 | GF59: 0 | GG59: 0 | GH59: 0 | GI59: 0 | GJ59: 0 | GK59: 0 | GL59: 0 | GM59: 0 | GN59: 0 | GO59: 0 | GP59: 0 | GQ59: 0 | GR59: 0 | GS59: 0 | GT59: 0 | GU59: 0 | GV59: 0 | GW59: 0 | GX59: 0 | GY59: 0 | GZ59: 0
B60: Sculpted Repayment/ Total Sculpted Debt | E60: 55 | G60: 9525947.026 | H60: 0 | I60: 0 | J60: 0 | K60: 0 | L60: 0 | M60: 0 | N60: 0 | O60: 0 | P60: 0 | Q60: 0 | R60: 0 | S60: 0 | T60: 0 | U60: 0 | V60: 0 | W60: 0 | X60: 0 | Y60: 0 | Z60: 0 | AA60: 0 | AB60: 0 | AC60: 0 | AD60: 0 | AE60: 0 | AF60: 0 | AG60: 0 | AH60: 0 | AI60: 0 | AJ60: 0 | AK60: 0 | AL60: 0 | AM60: 0 | AN60: 0 | AO60: 0 | AP60: 0 | AQ60: 0 | AR60: 0 | AS60: 0 | AT60: 0 | AU60: 0 | AV60: 0 | AW60: 0 | AX60: 0 | AY60: 0 | AZ60: 0 | BA60: 0 | BB60: 0 | BC60: 0 | BD60: 0 | BE60: 0 | BF60: 0 | BG60: 0 | BH60: -15749.6769 | BI60: 54551.90741 | BJ60: 61575.57357 | BK60: 62255.39148 | BL60: 67606.1658 | BM60: 72366.12805 | BN60: 80808.98922 | BO60: 87449.81811 | BP60: 103670.4012 | BQ60: 110776.2182 | BR60: 127977.5045 | BS60: 137906.9324 | BT60: 153801.1083 | BU60: 155582.733 | BV60: 166450.2793 | BW60: 166771.3532 | BX60: 177976.8167 | BY60: 178488.2421 | BZ60: 190043.749 | CA60: 193293.864 | CB60: 202702.2716 | CC60: 203603.8044 | CD60: 215898.0805 | CE60: 217013.7182 | CF60: 229696.2058 | CG60: 231043.2726 | CH60: 243864.1795 | CI60: 247879.7989 | CJ60: 165136.3129 | CK60: 164402.4013 | CL60: 175721.6877 | CM60: 175136.9299 | CN60: 186789.3318 | CO60: 186370.4406 | CP60: 198367.8029 | CQ60: 200983.8498 | CR60: 210596.2969 | CS60: 210601.2017 | CT60: 253569.6836 | CU60: 254500.835 | CV60: 268452.4067 | CW60: 269624.9441 | CX60: 284009.0455 | CY60: 288470.2382 | CZ60: 300301.6696 | DA60: 301969.5044 | DB60: 317263.4113 | DC60: 319196.7262 | DD60: 333977.2317 | DE60: 335200.2441 | DF60: 0 | DG60: 0 | DH60: 0 | DI60: 0 | DJ60: 0 | DK60: 0 | DL60: 0 | DM60: 0 | DN60: 0 | DO60: 0 | DP60: 0 | DQ60: 0 | DR60: 0 | DS60: 0 | DT60: 0 | DU60: 0 | DV60: 0 | DW60: 0 | DX60: 0 | DY60: 0 | DZ60: 0 | EA60: 0 | EB60: 0 | EC60: 0 | ED60: 0 | EE60: 0 | EF60: 0 | EG60: 0 | EH60: 0 | EI60: 0 | EJ60: 0 | EK60: 0 | EL60: 0 | EM60: 0 | EN60: 0 | EO60: 0 | EP60: 0 | EQ60: 0 | ER60: 0 | ES60: 0 | ET60: 0 | EU60: 0 | EV60: 0 | EW60: 0 | EX60: 0 | EY60: 0 | EZ60: 0 | FA60: 0 | FB60: 0 | FC60: 0 | FD60: 0 | FE60: 0 | FF60: 0 | FG60: 0 | FH60: 0 | FI60: 0 | FJ60: 0 | FK60: 0 | FL60: 0 | FM60: 0 | FN60: 0 | FO60: 0 | FP60: 0 | FQ60: 0 | FR60: 0 | FS60: 0 | FT60: 0 | FU60: 0 | FV60: 0 | FW60: 0 | FX60: 0 | FY60: 0 | FZ60: 0 | GA60: 0 | GB60: 0 | GC60: 0 | GD60: 0 | GE60: 0 | GF60: 0 | GG60: 0 | GH60: 0 | GI60: 0 | GJ60: 0 | GK60: 0 | GL60: 0 | GM60: 0 | GN60: 0 | GO60: 0 | GP60: 0 | GQ60: 0 | GR60: 0 | GS60: 0 | GT60: 0 | GU60: 0 | GV60: 0 | GW60: 0 | GX60: 0 | GY60: 0 | GZ60: 0
B61: ' EBT Before NOL Adjustment | E61: 56 | G61: 0 | H61: 0 | I61: 0 | J61: 0 | K61: 0 | L61: 0 | M61: 0 | N61: 0 | O61: 0 | P61: 0 | Q61: 0 | R61: 0 | S61: 0 | T61: 0 | U61: 0 | V61: 0 | W61: 0 | X61: 0 | Y61: 0 | Z61: 0 | AA61: 0 | AB61: 0 | AC61: 0 | AD61: 0 | AE61: 0 | AF61: 0 | AG61: 0 | AH61: 0 | AI61: 0 | AJ61: 0 | AK61: 0 | AL61: 0 | AM61: 0 | AN61: 0 | AO61: 0 | AP61: 0 | AQ61: 0 | AR61: 0 | AS61: 0 | AT61: 0 | AU61: 0 | AV61: 0 | AW61: 0 | AX61: 0 | AY61: 0 | AZ61: 0 | BA61: 0 | BB61: 0 | BC61: 0 | BD61: 0 | BE61: 0 | BF61: 0 | BG61: 0 | BH61: -590600.0825 | BI61: -595280.2249 | BJ61: -487785.1627 | BK61: -488741.2837 | BL61: -396433.5457 | BM61: -389909.2825 | BN61: -302406.9185 | BO61: -295640.0285 | BP61: -209821.0628 | BQ61: -202672.0058 | BR61: -124031.6927 | BS61: -113375.1945 | BT61: -43843.73679 | BU61: -46539.66371 | BV61: 9893.874611 | BW61: 7355.45015 | BX61: 42168.83127 | BY61: 39780.24083 | BZ61: 55923.22252 | CA61: 57069.81076 | CB61: 70289.71655 | CC61: 68201.12665 | CD61: 85221.54022 | CE61: 83302.2085 | CF61: 100781.4844 | CG61: 99050.08381 | CH61: 116652.4092 | CI61: 118347.4545 | CJ61: 8770.250478 | CK61: 4630.683279 | CL61: 268879.2583 | CM61: 264837.7677 | CN61: 281344.2813 | CO61: 277419.4825 | CP61: 294343.8331 | CQ61: 294347.7851 | CR61: 308037.6937 | CS61: 304456.3896 | CT61: 362480.3724 | CU61: 359817.6681 | CV61: 378996.7719 | CW61: 376524.3854 | CX61: 396214.4157 | CY61: 397980.3171 | CZ61: 414187.2189 | DA61: 412097.0202 | DB61: 432856.301 | DC61: 430973.3747 | DD61: 450973.3502 | DE61: 448000.9922 | DF61: 0 | DG61: 0 | DH61: 0 | DI61: 0 | DJ61: 0 | DK61: 0 | DL61: 0 | DM61: 0 | DN61: 0 | DO61: 0 | DP61: 0 | DQ61: 0 | DR61: 0 | DS61: 0 | DT61: 0 | DU61: 0 | DV61: 0 | DW61: 0 | DX61: 0 | DY61: 0 | DZ61: 0 | EA61: 0 | EB61: 0 | EC61: 0 | ED61: 0 | EE61: 0 | EF61: 0 | EG61: 0 | EH61: 0 | EI61: 0 | EJ61: 0 | EK61: 0 | EL61: 0 | EM61: 0 | EN61: 0 | EO61: 0 | EP61: 0 | EQ61: 0 | ER61: 0 | ES61: 0 | ET61: 0 | EU61: 0 | EV61: 0 | EW61: 0 | EX61: 0 | EY61: 0 | EZ61: 0 | FA61: 0 | FB61: 0 | FC61: 0 | FD61: 0 | FE61: 0 | FF61: 0 | FG61: 0 | FH61: 0 | FI61: 0 | FJ61: 0 | FK61: 0 | FL61: 0 | FM61: 0 | FN61: 0 | FO61: 0 | FP61: 0 | FQ61: 0 | FR61: 0 | FS61: 0 | FT61: 0 | FU61: 0 | FV61: 0 | FW61: 0 | FX61: 0 | FY61: 0 | FZ61: 0 | GA61: 0 | GB61: 0 | GC61: 0 | GD61: 0 | GE61: 0 | GF61: 0 | GG61: 0 | GH61: 0 | GI61: 0 | GJ61: 0 | GK61: 0 | GL61: 0 | GM61: 0 | GN61: 0 | GO61: 0 | GP61: 0 | GQ61: 0 | GR61: 0 | GS61: 0 | GT61: 0 | GU61: 0 | GV61: 0 | GW61: 0 | GX61: 0 | GY61: 0 | GZ61: 0
B62: ' Additions to NOL | E62: 57 | G62: 0 | H62: 0 | I62: 0 | J62: 0 | K62: 0 | L62: 0 | M62: 0 | N62: 0 | O62: 0 | P62: 0 | Q62: 0 | R62: 0 | S62: 0 | T62: 0 | U62: 0 | V62: 0 | W62: 0 | X62: 0 | Y62: 0 | Z62: 0 | AA62: 0 | AB62: 0 | AC62: 0 | AD62: 0 | AE62: 0 | AF62: 0 | AG62: 0 | AH62: 0 | AI62: 0 | AJ62: 0 | AK62: 0 | AL62: 0 | AM62: 0 | AN62: 0 | AO62: 0 | AP62: 0 | AQ62: 0 | AR62: 0 | AS62: 0 | AT62: 0 | AU62: 0 | AV62: 0 | AW62: 0 | AX62: 0 | AY62: 0 | AZ62: 0 | BA62: 0 | BB62: 0 | BC62: 0 | BD62: 0 | BE62: 0 | BF62: 0 | BG62: 0 | BH62: 590600.0825 | BI62: 595280.2249 | BJ62: 487785.1627 | BK62: 488741.2837 | BL62: 396433.5457 | BM62: 389909.2825 | BN62: 302406.9185 | BO62: 295640.0285 | BP62: 209821.0628 | BQ62: 202672.0058 | BR62: 124031.6927 | BS62: 113375.1945 | BT62: 43843.73679 | BU62: 46539.66371 | BV62: 0 | BW62: 0 | BX62: 0 | BY62: 0 | BZ62: 0 | CA62: 0 | CB62: 0 | CC62: 0 | CD62: 0 | CE62: 0 | CF62: 0 | CG62: 0 | CH62: 0 | CI62: 0 | CJ62: 0 | CK62: 0 | CL62: 0 | CM62: 0 | CN62: 0 | CO62: 0 | CP62: 0 | CQ62: 0 | CR62: 0 | CS62: 0 | CT62: 0 | CU62: 0 | CV62: 0 | CW62: 0 | CX62: 0 | CY62: 0 | CZ62: 0 | DA62: 0 | DB62: 0 | DC62: 0 | DD62: 0 | DE62: 0 | DF62: 0 | DG62: 0 | DH62: 0 | DI62: 0 | DJ62: 0 | DK62: 0 | DL62: 0 | DM62: 0 | DN62: 0 | DO62: 0 | DP62: 0 | DQ62: 0 | DR62: 0 | DS62: 0 | DT62: 0 | DU62: 0 | DV62: 0 | DW62: 0 | DX62: 0 | DY62: 0 | DZ62: 0 | EA62: 0 | EB62: 0 | EC62: 0 | ED62: 0 | EE62: 0 | EF62: 0 | EG62: 0 | EH62: 0 | EI62: 0 | EJ62: 0 | EK62: 0 | EL62: 0 | EM62: 0 | EN62: 0 | EO62: 0 | EP62: 0 | EQ62: 0 | ER62: 0 | ES62: 0 | ET62: 0 | EU62: 0 | EV62: 0 | EW62: 0 | EX62: 0 | EY62: 0 | EZ62: 0 | FA62: 0 | FB62: 0 | FC62: 0 | FD62: 0 | FE62: 0 | FF62: 0 | FG62: 0 | FH62: 0 | FI62: 0 | FJ62: 0 | FK62: 0 | FL62: 0 | FM62: 0 | FN62: 0 | FO62: 0 | FP62: 0 | FQ62: 0 | FR62: 0 | FS62: 0 | FT62: 0 | FU62: 0 | FV62: 0 | FW62: 0 | FX62: 0 | FY62: 0 | FZ62: 0 | GA62: 0 | GB62: 0 | GC62: 0 | GD62: 0 | GE62: 0 | GF62: 0 | GG62: 0 | GH62: 0 | GI62: 0 | GJ62: 0 | GK62: 0 | GL62: 0 | GM62: 0 | GN62: 0 | GO62: 0 | GP62: 0 | GQ62: 0 | GR62: 0 | GS62: 0 | GT62: 0 | GU62: 0 | GV62: 0 | GW62: 0 | GX62: 0 | GY62: 0 | GZ62: 0
B63: ' Subtractions from NOL | E63: 58 | G63: 0 | H63: 0 | I63: 0 | J63: 0 | K63: 0 | L63: 0 | M63: 0 | N63: 0 | O63: 0 | P63: 0 | Q63: 0 | R63: 0 | S63: 0 | T63: 0 | U63: 0 | V63: 0 | W63: 0 | X63: 0 | Y63: 0 | Z63: 0 | AA63: 0 | AB63: 0 | AC63: 0 | AD63: 0 | AE63: 0 | AF63: 0 | AG63: 0 | AH63: 0 | AI63: 0 | AJ63: 0 | AK63: 0 | AL63: 0 | AM63: 0 | AN63: 0 | AO63: 0 | AP63: 0 | AQ63: 0 | AR63: 0 | AS63: 0 | AT63: 0 | AU63: 0 | AV63: 0 | AW63: 0 | AX63: 0 | AY63: 0 | AZ63: 0 | BA63: 0 | BB63: 0 | BC63: 0 | BD63: 0 | BE63: 0 | BF63: 0 | BG63: 0 | BH63: 0 | BI63: 0 | BJ63: 0 | BK63: 0 | BL63: 0 | BM63: 0 | BN63: 0 | BO63: 0 | BP63: 0 | BQ63: 0 | BR63: 0 | BS63: 0 | BT63: 0 | BU63: 0 | BV63: 9893.874611 | BW63: 7355.45015 | BX63: 42168.83127 | BY63: 39780.24083 | BZ63: 55923.22252 | CA63: 57069.81076 | CB63: 70289.71655 | CC63: 68201.12665 | CD63: 85221.54022 | CE63: 83302.2085 | CF63: 100781.4844 | CG63: 99050.08381 | CH63: 116652.4092 | CI63: 118347.4545 | CJ63: 8770.250478 | CK63: 4630.683279 | CL63: 268879.2583 | CM63: 264837.7677 | CN63: 281344.2813 | CO63: 277419.4825 | CP63: 294343.8331 | CQ63: 294347.7851 | CR63: 308037.6937 | CS63: 304456.3896 | CT63: 362480.3724 | CU63: 359817.6681 | CV63: 303676.9655 | CW63: 0 | CX63: 0 | CY63: 0 | CZ63: 0 | DA63: 0 | DB63: 0 | DC63: 0 | DD63: 0 | DE63: 0 | DF63: 0 | DG63: 0 | DH63: 0 | DI63: 0 | DJ63: 0 | DK63: 0 | DL63: 0 | DM63: 0 | DN63: 0 | DO63: 0 | DP63: 0 | DQ63: 0 | DR63: 0 | DS63: 0 | DT63: 0 | DU63: 0 | DV63: 0 | DW63: 0 | DX63: 0 | DY63: 0 | DZ63: 0 | EA63: 0 | EB63: 0 | EC63: 0 | ED63: 0 | EE63: 0 | EF63: 0 | EG63: 0 | EH63: 0 | EI63: 0 | EJ63: 0 | EK63: 0 | EL63: 0 | EM63: 0 | EN63: 0 | EO63: 0 | EP63: 0 | EQ63: 0 | ER63: 0 | ES63: 0 | ET63: 0 | EU63: 0 | EV63: 0 | EW63: 0 | EX63: 0 | EY63: 0 | EZ63: 0 | FA63: 0 | FB63: 0 | FC63: 0 | FD63: 0 | FE63: 0 | FF63: 0 | FG63: 0 | FH63: 0 | FI63: 0 | FJ63: 0 | FK63: 0 | FL63: 0 | FM63: 0 | FN63: 0 | FO63: 0 | FP63: 0 | FQ63: 0 | FR63: 0 | FS63: 0 | FT63: 0 | FU63: 0 | FV63: 0 | FW63: 0 | FX63: 0 | FY63: 0 | FZ63: 0 | GA63: 0 | GB63: 0 | GC63: 0 | GD63: 0 | GE63: 0 | GF63: 0 | GG63: 0 | GH63: 0 | GI63: 0 | GJ63: 0 | GK63: 0 | GL63: 0 | GM63: 0 | GN63: 0 | GO63: 0 | GP63: 0 | GQ63: 0 | GR63: 0 | GS63: 0 | GT63: 0 | GU63: 0 | GV63: 0 | GW63: 0 | GX63: 0 | GY63: 0 | GZ63: 0
B64: ' Adjusted EBT for NOL | E64: 59 | G64: 0 | H64: 0 | I64: 0 | J64: 0 | K64: 0 | L64: 0 | M64: 0 | N64: 0 | O64: 0 | P64: 0 | Q64: 0 | R64: 0 | S64: 0 | T64: 0 | U64: 0 | V64: 0 | W64: 0 | X64: 0 | Y64: 0 | Z64: 0 | AA64: 0 | AB64: 0 | AC64: 0 | AD64: 0 | AE64: 0 | AF64: 0 | AG64: 0 | AH64: 0 | AI64: 0 | AJ64: 0 | AK64: 0 | AL64: 0 | AM64: 0 | AN64: 0 | AO64: 0 | AP64: 0 | AQ64: 0 | AR64: 0 | AS64: 0 | AT64: 0 | AU64: 0 | AV64: 0 | AW64: 0 | AX64: 0 | AY64: 0 | AZ64: 0 | BA64: 0 | BB64: 0 | BC64: 0 | BD64: 0 | BE64: 0 | BF64: 0 | BG64: 0 | BH64: 0 | BI64: 0 | BJ64: 0 | BK64: 0 | BL64: 0 | BM64: 0 | BN64: 0 | BO64: 0 | BP64: 0 | BQ64: 0 | BR64: 0 | BS64: 0 | BT64: 0 | BU64: 0 | BV64: 0 | BW64: 0 | BX64: 0 | BY64: 0 | BZ64: 0 | CA64: 0 | CB64: 0 | CC64: 0 | CD64: 0 | CE64: 0 | CF64: 0 | CG64: 0 | CH64: 0 | CI64: 0 | CJ64: 0 | CK64: 0 | CL64: 0 | CM64: 0 | CN64: 0 | CO64: 0 | CP64: 0 | CQ64: 0 | CR64: 0 | CS64: 0 | CT64: 0 | CU64: 0 | CV64: 75319.80635 | CW64: 376524.3854 | CX64: 396214.4157 | CY64: 397980.3171 | CZ64: 414187.2189 | DA64: 412097.0202 | DB64: 432856.301 | DC64: 430973.3747 | DD64: 450973.3502 | DE64: 448000.9922 | DF64: 0 | DG64: 0 | DH64: 0 | DI64: 0 | DJ64: 0 | DK64: 0 | DL64: 0 | DM64: 0 | DN64: 0 | DO64: 0 | DP64: 0 | DQ64: 0 | DR64: 0 | DS64: 0 | DT64: 0 | DU64: 0 | DV64: 0 | DW64: 0 | DX64: 0 | DY64: 0 | DZ64: 0 | EA64: 0 | EB64: 0 | EC64: 0 | ED64: 0 | EE64: 0 | EF64: 0 | EG64: 0 | EH64: 0 | EI64: 0 | EJ64: 0 | EK64: 0 | EL64: 0 | EM64: 0 | EN64: 0 | EO64: 0 | EP64: 0 | EQ64: 0 | ER64: 0 | ES64: 0 | ET64: 0 | EU64: 0 | EV64: 0 | EW64: 0 | EX64: 0 | EY64: 0 | EZ64: 0 | FA64: 0 | FB64: 0 | FC64: 0 | FD64: 0 | FE64: 0 | FF64: 0 | FG64: 0 | FH64: 0 | FI64: 0 | FJ64: 0 | FK64: 0 | FL64: 0 | FM64: 0 | FN64: 0 | FO64: 0 | FP64: 0 | FQ64: 0 | FR64: 0 | FS64: 0 | FT64: 0 | FU64: 0 | FV64: 0 | FW64: 0 | FX64: 0 | FY64: 0 | FZ64: 0 | GA64: 0 | GB64: 0 | GC64: 0 | GD64: 0 | GE64: 0 | GF64: 0 | GG64: 0 | GH64: 0 | GI64: 0 | GJ64: 0 | GK64: 0 | GL64: 0 | GM64: 0 | GN64: 0 | GO64: 0 | GP64: 0 | GQ64: 0 | GR64: 0 | GS64: 0 | GT64: 0 | GU64: 0 | GV64: 0 | GW64: 0 | GX64: 0 | GY64: 0 | GZ64: 0
B65: ' NOL Balance | E65: 60 | G65: 0 | H65: 0 | I65: 0 | J65: 0 | K65: 0 | L65: 0 | M65: 0 | N65: 0 | O65: 0 | P65: 0 | Q65: 0 | R65: 0 | S65: 0 | T65: 0 | U65: 0 | V65: 0 | W65: 0 | X65: 0 | Y65: 0 | Z65: 0 | AA65: 0 | AB65: 0 | AC65: 0 | AD65: 0 | AE65: 0 | AF65: 0 | AG65: 0 | AH65: 0 | AI65: 0 | AJ65: 0 | AK65: 0 | AL65: 0 | AM65: 0 | AN65: 0 | AO65: 0 | AP65: 0 | AQ65: 0 | AR65: 0 | AS65: 0 | AT65: 0 | AU65: 0 | AV65: 0 | AW65: 0 | AX65: 0 | AY65: 0 | AZ65: 0 | BA65: 0 | BB65: 0 | BC65: 0 | BD65: 0 | BE65: 0 | BF65: 0 | BG65: 0 | BH65: 590600.0825 | BI65: 1185880.307 | BJ65: 1673665.47 | BK65: 2162406.754 | BL65: 2558840.299 | BM65: 2948749.582 | BN65: 3251156.5 | BO65: 3546796.529 | BP65: 3756617.592 | BQ65: 3959289.597 | BR65: 4083321.29 | BS65: 4196696.485 | BT65: 4240540.221 | BU65: 4287079.885 | BV65: 4277186.01 | BW65: 4269830.56 | BX65: 4227661.729 | BY65: 4187881.488 | BZ65: 4131958.266 | CA65: 4074888.455 | CB65: 4004598.738 | CC65: 3936397.612 | CD65: 3851176.072 | CE65: 3767873.863 | CF65: 3667092.379 | CG65: 3568042.295 | CH65: 3451389.886 | CI65: 3333042.431 | CJ65: 3324272.181 | CK65: 3319641.497 | CL65: 3050762.239 | CM65: 2785924.471 | CN65: 2504580.19 | CO65: 2227160.708 | CP65: 1932816.874 | CQ65: 1638469.089 | CR65: 1330431.396 | CS65: 1025975.006 | CT65: 663494.6336 | CU65: 303676.9655 | CV65: 0 | CW65: 0 | CX65: 0 | CY65: 0 | CZ65: 0 | DA65: 0 | DB65: 0 | DC65: 0 | DD65: 0 | DE65: 0 | DF65: 0 | DG65: 0 | DH65: 0 | DI65: 0 | DJ65: 0 | DK65: 0 | DL65: 0 | DM65: 0 | DN65: 0 | DO65: 0 | DP65: 0 | DQ65: 0 | DR65: 0 | DS65: 0 | DT65: 0 | DU65: 0 | DV65: 0 | DW65: 0 | DX65: 0 | DY65: 0 | DZ65: 0 | EA65: 0 | EB65: 0 | EC65: 0 | ED65: 0 | EE65: 0 | EF65: 0 | EG65: 0 | EH65: 0 | EI65: 0 | EJ65: 0 | EK65: 0 | EL65: 0 | EM65: 0 | EN65: 0 | EO65: 0 | EP65: 0 | EQ65: 0 | ER65: 0 | ES65: 0 | ET65: 0 | EU65: 0 | EV65: 0 | EW65: 0 | EX65: 0 | EY65: 0 | EZ65: 0 | FA65: 0 | FB65: 0 | FC65: 0 | FD65: 0 | FE65: 0 | FF65: 0 | FG65: 0 | FH65: 0 | FI65: 0 | FJ65: 0 | FK65: 0 | FL65: 0 | FM65: 0 | FN65: 0 | FO65: 0 | FP65: 0 | FQ65: 0 | FR65: 0 | FS65: 0 | FT65: 0 | FU65: 0 | FV65: 0 | FW65: 0 | FX65: 0 | FY65: 0 | FZ65: 0 | GA65: 0 | GB65: 0 | GC65: 0 | GD65: 0 | GE65: 0 | GF65: 0 | GG65: 0 | GH65: 0 | GI65: 0 | GJ65: 0 | GK65: 0 | GL65: 0 | GM65: 0 | GN65: 0 | GO65: 0 | GP65: 0 | GQ65: 0 | GR65: 0 | GS65: 0 | GT65: 0 | GU65: 0 | GV65: 0 | GW65: 0 | GX65: 0 | GY65: 0 | GZ65: 0
B66: EBL Balance | E66: 61 | G66: FALSE | H66: 0 | I66: 0 | J66: 0 | K66: 0 | L66: 0 | M66: 0 | N66: 0 | O66: 0 | P66: 0 | Q66: 0 | R66: 0 | S66: 0 | T66: 0 | U66: 0 | V66: 0 | W66: 0 | X66: 0 | Y66: 0 | Z66: 0 | AA66: 0 | AB66: 0 | AC66: 0 | AD66: 0 | AE66: 0 | AF66: 0 | AG66: 0 | AH66: 0 | AI66: 0 | AJ66: 0 | AK66: 0 | AL66: 0 | AM66: 0 | AN66: 0 | AO66: 0 | AP66: 0 | AQ66: 0 | AR66: 0 | AS66: 0 | AT66: 0 | AU66: 0 | AV66: 0 | AW66: 0 | AX66: 0 | AY66: 0 | AZ66: 0 | BA66: 0 | BB66: 0 | BC66: 0 | BD66: 0 | BE66: 0 | BF66: 0 | BG66: 0 | BH66: 0 | BI66: 0 | BJ66: 0 | BK66: 0 | BL66: 0 | BM66: 0 | BN66: 0 | BO66: 0 | BP66: 0 | BQ66: 0 | BR66: 0 | BS66: 0 | BT66: 0 | BU66: 0 | BV66: 0 | BW66: 0 | BX66: 0 | BY66: 0 | BZ66: 0 | CA66: 0 | CB66: 0 | CC66: 0 | CD66: 0 | CE66: 0 | CF66: 0 | CG66: 0 | CH66: 0 | CI66: 0 | CJ66: 0 | CK66: 0 | CL66: 0 | CM66: 0 | CN66: 0 | CO66: 0 | CP66: 0 | CQ66: 0 | CR66: 0 | CS66: 0 | CT66: 0 | CU66: 0 | CV66: 0 | CW66: 0 | CX66: 0 | CY66: 0 | CZ66: 0 | DA66: 0 | DB66: 0 | DC66: 0 | DD66: 0 | DE66: 0 | DF66: 0 | DG66: 0 | DH66: 0 | DI66: 0 | DJ66: 0 | DK66: 0 | DL66: 0 | DM66: 0 | DN66: 0 | DO66: 0 | DP66: 0 | DQ66: 0 | DR66: 0 | DS66: 0 | DT66: 0 | DU66: 0 | DV66: 0 | DW66: 0 | DX66: 0 | DY66: 0 | DZ66: 0 | EA66: 0 | EB66: 0 | EC66: 0 | ED66: 0 | EE66: 0 | EF66: 0 | EG66: 0 | EH66: 0 | EI66: 0 | EJ66: 0 | EK66: 0 | EL66: 0 | EM66: 0 | EN66: 0 | EO66: 0 | EP66: 0 | EQ66: 0 | ER66: 0 | ES66: 0 | ET66: 0 | EU66: 0 | EV66: 0 | EW66: 0 | EX66: 0 | EY66: 0 | EZ66: 0 | FA66: 0 | FB66: 0 | FC66: 0 | FD66: 0 | FE66: 0 | FF66: 0 | FG66: 0 | FH66: 0 | FI66: 0 | FJ66: 0 | FK66: 0 | FL66: 0 | FM66: 0 | FN66: 0 | FO66: 0 | FP66: 0 | FQ66: 0 | FR66: 0 | FS66: 0 | FT66: 0 | FU66: 0 | FV66: 0 | FW66: 0 | FX66: 0 | FY66: 0 | FZ66: 0 | GA66: 0 | GB66: 0 | GC66: 0 | GD66: 0 | GE66: 0 | GF66: 0 | GG66: 0 | GH66: 0 | GI66: 0 | GJ66: 0 | GK66: 0 | GL66: 0 | GM66: 0 | GN66: 0 | GO66: 0 | GP66: 0 | GQ66: 0 | GR66: 0 | GS66: 0 | GT66: 0 | GU66: 0 | GV66: 0 | GW66: 0 | GX66: 0 | GY66: 0 | GZ66: 0
B67: EBL Interest | E67: 62 | G67: 0 | H67: 0 | I67: 0 | J67: 0 | K67: 0 | L67: 0 | M67: 0 | N67: 0 | O67: 0 | P67: 0 | Q67: 0 | R67: 0 | S67: 0 | T67: 0 | U67: 0 | V67: 0 | W67: 0 | X67: 0 | Y67: 0 | Z67: 0 | AA67: 0 | AB67: 0 | AC67: 0 | AD67: 0 | AE67: 0 | AF67: 0 | AG67: 0 | AH67: 0 | AI67: 0 | AJ67: 0 | AK67: 0 | AL67: 0 | AM67: 0 | AN67: 0 | AO67: 0 | AP67: 0 | AQ67: 0 | AR67: 0 | AS67: 0 | AT67: 0 | AU67: 0 | AV67: 0 | AW67: 0 | AX67: 0 | AY67: 0 | AZ67: 0 | BA67: 0 | BB67: 0 | BC67: 0 | BD67: 0 | BE67: 0 | BF67: 0 | BG67: 0 | BH67: 0 | BI67: 0 | BJ67: 0 | BK67: 0 | BL67: 0 | BM67: 0 | BN67: 0 | BO67: 0 | BP67: 0 | BQ67: 0 | BR67: 0 | BS67: 0 | BT67: 0 | BU67: 0 | BV67: 0 | BW67: 0 | BX67: 0 | BY67: 0 | BZ67: 0 | CA67: 0 | CB67: 0 | CC67: 0 | CD67: 0 | CE67: 0 | CF67: 0 | CG67: 0 | CH67: 0 | CI67: 0 | CJ67: 0 | CK67: 0 | CL67: 0 | CM67: 0 | CN67: 0 | CO67: 0 | CP67: 0 | CQ67: 0 | CR67: 0 | CS67: 0 | CT67: 0 | CU67: 0 | CV67: 0 | CW67: 0 | CX67: 0 | CY67: 0 | CZ67: 0 | DA67: 0 | DB67: 0 | DC67: 0 | DD67: 0 | DE67: 0 | DF67: 0 | DG67: 0 | DH67: 0 | DI67: 0 | DJ67: 0 | DK67: 0 | DL67: 0 | DM67: 0 | DN67: 0 | DO67: 0 | DP67: 0 | DQ67: 0 | DR67: 0 | DS67: 0 | DT67: 0 | DU67: 0 | DV67: 0 | DW67: 0 | DX67: 0 | DY67: 0 | DZ67: 0 | EA67: 0 | EB67: 0 | EC67: 0 | ED67: 0 | EE67: 0 | EF67: 0 | EG67: 0 | EH67: 0 | EI67: 0 | EJ67: 0 | EK67: 0 | EL67: 0 | EM67: 0 | EN67: 0 | EO67: 0 | EP67: 0 | EQ67: 0 | ER67: 0 | ES67: 0 | ET67: 0 | EU67: 0 | EV67: 0 | EW67: 0 | EX67: 0 | EY67: 0 | EZ67: 0 | FA67: 0 | FB67: 0 | FC67: 0 | FD67: 0 | FE67: 0 | FF67: 0 | FG67: 0 | FH67: 0 | FI67: 0 | FJ67: 0 | FK67: 0 | FL67: 0 | FM67: 0 | FN67: 0 | FO67: 0 | FP67: 0 | FQ67: 0 | FR67: 0 | FS67: 0 | FT67: 0 | FU67: 0 | FV67: 0 | FW67: 0 | FX67: 0 | FY67: 0 | FZ67: 0 | GA67: 0 | GB67: 0 | GC67: 0 | GD67: 0 | GE67: 0 | GF67: 0 | GG67: 0 | GH67: 0 | GI67: 0 | GJ67: 0 | GK67: 0 | GL67: 0 | GM67: 0 | GN67: 0 | GO67: 0 | GP67: 0 | GQ67: 0 | GR67: 0 | GS67: 0 | GT67: 0 | GU67: 0 | GV67: 0 | GW67: 0 | GX67: 0 | GY67: 0 | GZ67: 0
B68: Balloon Repayment/Total Balloon Debt | E68: 63 | G68: 0 | H68: 0 | I68: 0 | J68: 0 | K68: 0 | L68: 0 | M68: 0 | N68: 0 | O68: 0 | P68: 0 | Q68: 0 | R68: 0 | S68: 0 | T68: 0 | U68: 0 | V68: 0 | W68: 0 | X68: 0 | Y68: 0 | Z68: 0 | AA68: 0 | AB68: 0 | AC68: 0 | AD68: 0 | AE68: 0 | AF68: 0 | AG68: 0 | AH68: 0 | AI68: 0 | AJ68: 0 | AK68: 0 | AL68: 0 | AM68: 0 | AN68: 0 | AO68: 0 | AP68: 0 | AQ68: 0 | AR68: 0 | AS68: 0 | AT68: 0 | AU68: 0 | AV68: 0 | AW68: 0 | AX68: 0 | AY68: 0 | AZ68: 0 | BA68: 0 | BB68: 0 | BC68: 0 | BD68: 0 | BE68: 0 | BF68: 0 | BG68: 0 | BH68: 0 | BI68: 0 | BJ68: 0 | BK68: 0 | BL68: 0 | BM68: 0 | BN68: 0 | BO68: 0 | BP68: 0 | BQ68: 0 | BR68: 0 | BS68: 0 | BT68: 0 | BU68: 0 | BV68: 0 | BW68: 0 | BX68: 0 | BY68: 0 | BZ68: 0 | CA68: 0 | CB68: 0 | CC68: 0 | CD68: 0 | CE68: 0 | CF68: 0 | CG68: 0 | CH68: 0 | CI68: 0 | CJ68: 0 | CK68: 0 | CL68: 0 | CM68: 0 | CN68: 0 | CO68: 0 | CP68: 0 | CQ68: 0 | CR68: 0 | CS68: 0 | CT68: 0 | CU68: 0 | CV68: 0 | CW68: 0 | CX68: 0 | CY68: 0 | CZ68: 0 | DA68: 0 | DB68: 0 | DC68: 0 | DD68: 0 | DE68: 0 | DF68: 0 | DG68: 0 | DH68: 0 | DI68: 0 | DJ68: 0 | DK68: 0 | DL68: 0 | DM68: 0 | DN68: 0 | DO68: 0 | DP68: 0 | DQ68: 0 | DR68: 0 | DS68: 0 | DT68: 0 | DU68: 0 | DV68: 0 | DW68: 0 | DX68: 0 | DY68: 0 | DZ68: 0 | EA68: 0 | EB68: 0 | EC68: 0 | ED68: 0 | EE68: 0 | EF68: 0 | EG68: 0 | EH68: 0 | EI68: 0 | EJ68: 0 | EK68: 0 | EL68: 0 | EM68: 0 | EN68: 0 | EO68: 0 | EP68: 0 | EQ68: 0 | ER68: 0 | ES68: 0 | ET68: 0 | EU68: 0 | EV68: 0 | EW68: 0 | EX68: 0 | EY68: 0 | EZ68: 0 | FA68: 0 | FB68: 0 | FC68: 0 | FD68: 0 | FE68: 0 | FF68: 0 | FG68: 0 | FH68: 0 | FI68: 0 | FJ68: 0 | FK68: 0 | FL68: 0 | FM68: 0 | FN68: 0 | FO68: 0 | FP68: 0 | FQ68: 0 | FR68: 0 | FS68: 0 | FT68: 0 | FU68: 0 | FV68: 0 | FW68: 0 | FX68: 0 | FY68: 0 | FZ68: 0 | GA68: 0 | GB68: 0 | GC68: 0 | GD68: 0 | GE68: 0 | GF68: 0 | GG68: 0 | GH68: 0 | GI68: 0 | GJ68: 0 | GK68: 0 | GL68: 0 | GM68: 0 | GN68: 0 | GO68: 0 | GP68: 0 | GQ68: 0 | GR68: 0 | GS68: 0 | GT68: 0 | GU68: 0 | GV68: 0 | GW68: 0 | GX68: 0 | GY68: 0 | GZ68: 0
B69: ' Balloon Interest | E69: 64 | G69: 0 | H69: 0 | I69: 0 | J69: 0 | K69: 0 | L69: 0 | M69: 0 | N69: 0 | O69: 0 | P69: 0 | Q69: 0 | R69: 0 | S69: 0 | T69: 0 | U69: 0 | V69: 0 | W69: 0 | X69: 0 | Y69: 0 | Z69: 0 | AA69: 0 | AB69: 0 | AC69: 0 | AD69: 0 | AE69: 0 | AF69: 0 | AG69: 0 | AH69: 0 | AI69: 0 | AJ69: 0 | AK69: 0 | AL69: 0 | AM69: 0 | AN69: 0 | AO69: 0 | AP69: 0 | AQ69: 0 | AR69: 0 | AS69: 0 | AT69: 0 | AU69: 0 | AV69: 0 | AW69: 0 | AX69: 0 | AY69: 0 | AZ69: 0 | BA69: 0 | BB69: 0 | BC69: 0 | BD69: 0 | BE69: 0 | BF69: 0 | BG69: 0 | BH69: 0 | BI69: 0 | BJ69: 0 | BK69: 0 | BL69: 0 | BM69: 0 | BN69: 0 | BO69: 0 | BP69: 0 | BQ69: 0 | BR69: 0 | BS69: 0 | BT69: 0 | BU69: 0 | BV69: 0 | BW69: 0 | BX69: 0 | BY69: 0 | BZ69: 0 | CA69: 0 | CB69: 0 | CC69: 0 | CD69: 0 | CE69: 0 | CF69: 0 | CG69: 0 | CH69: 0 | CI69: 0 | CJ69: 0 | CK69: 0 | CL69: 0 | CM69: 0 | CN69: 0 | CO69: 0 | CP69: 0 | CQ69: 0 | CR69: 0 | CS69: 0 | CT69: 0 | CU69: 0 | CV69: 0 | CW69: 0 | CX69: 0 | CY69: 0 | CZ69: 0 | DA69: 0 | DB69: 0 | DC69: 0 | DD69: 0 | DE69: 0 | DF69: 0 | DG69: 0 | DH69: 0 | DI69: 0 | DJ69: 0 | DK69: 0 | DL69: 0 | DM69: 0 | DN69: 0 | DO69: 0 | DP69: 0 | DQ69: 0 | DR69: 0 | DS69: 0 | DT69: 0 | DU69: 0 | DV69: 0 | DW69: 0 | DX69: 0 | DY69: 0 | DZ69: 0 | EA69: 0 | EB69: 0 | EC69: 0 | ED69: 0 | EE69: 0 | EF69: 0 | EG69: 0 | EH69: 0 | EI69: 0 | EJ69: 0 | EK69: 0 | EL69: 0 | EM69: 0 | EN69: 0 | EO69: 0 | EP69: 0 | EQ69: 0 | ER69: 0 | ES69: 0 | ET69: 0 | EU69: 0 | EV69: 0 | EW69: 0 | EX69: 0 | EY69: 0 | EZ69: 0 | FA69: 0 | FB69: 0 | FC69: 0 | FD69: 0 | FE69: 0 | FF69: 0 | FG69: 0 | FH69: 0 | FI69: 0 | FJ69: 0 | FK69: 0 | FL69: 0 | FM69: 0 | FN69: 0 | FO69: 0 | FP69: 0 | FQ69: 0 | FR69: 0 | FS69: 0 | FT69: 0 | FU69: 0 | FV69: 0 | FW69: 0 | FX69: 0 | FY69: 0 | FZ69: 0 | GA69: 0 | GB69: 0 | GC69: 0 | GD69: 0 | GE69: 0 | GF69: 0 | GG69: 0 | GH69: 0 | GI69: 0 | GJ69: 0 | GK69: 0 | GL69: 0 | GM69: 0 | GN69: 0 | GO69: 0 | GP69: 0 | GQ69: 0 | GR69: 0 | GS69: 0 | GT69: 0 | GU69: 0 | GV69: 0 | GW69: 0 | GX69: 0 | GY69: 0 | GZ69: 0
B70: Total Fees | E70: 65 | G70: 0 | H70: 0 | I70: 0 | J70: 0 | K70: 0 | L70: 0 | M70: 0 | N70: 0 | O70: 0 | P70: 0 | Q70: 0 | R70: 0 | S70: 0 | T70: 0 | U70: 0 | V70: 0 | W70: 0 | X70: 0 | Y70: 0 | Z70: 0 | AA70: 0 | AB70: 0 | AC70: 0 | AD70: 0 | AE70: 0 | AF70: 0 | AG70: 0 | AH70: 0 | AI70: 0 | AJ70: 0 | AK70: 0 | AL70: 0 | AM70: 0 | AN70: 0 | AO70: 0 | AP70: 0 | AQ70: 0 | AR70: 0 | AS70: 0 | AT70: 0 | AU70: 0 | AV70: 0 | AW70: 0 | AX70: 0 | AY70: 0 | AZ70: 0 | BA70: 0 | BB70: 0 | BC70: 0 | BD70: 0 | BE70: 0 | BF70: 0 | BG70: 0 | BH70: 0 | BI70: 0 | BJ70: 0 | BK70: 0 | BL70: 0 | BM70: 0 | BN70: 0 | BO70: 0 | BP70: 0 | BQ70: 0 | BR70: 0 | BS70: 0 | BT70: 0 | BU70: 0 | BV70: 0 | BW70: 0 | BX70: 0 | BY70: 0 | BZ70: 0 | CA70: 0 | CB70: 0 | CC70: 0 | CD70: 0 | CE70: 0 | CF70: 0 | CG70: 0 | CH70: 0 | CI70: 0 | CJ70: 0 | CK70: 0 | CL70: 0 | CM70: 0 | CN70: 0 | CO70: 0 | CP70: 0 | CQ70: 0 | CR70: 0 | CS70: 0 | CT70: 0 | CU70: 0 | CV70: 0 | CW70: 0 | CX70: 0 | CY70: 0 | CZ70: 0 | DA70: 0 | DB70: 0 | DC70: 0 | DD70: 0 | DE70: 0 | DF70: 0 | DG70: 0 | DH70: 0 | DI70: 0 | DJ70: 0 | DK70: 0 | DL70: 0 | DM70: 0 | DN70: 0 | DO70: 0 | DP70: 0 | DQ70: 0 | DR70: 0 | DS70: 0 | DT70: 0 | DU70: 0 | DV70: 0 | DW70: 0 | DX70: 0 | DY70: 0 | DZ70: 0 | EA70: 0 | EB70: 0 | EC70: 0 | ED70: 0 | EE70: 0 | EF70: 0 | EG70: 0 | EH70: 0 | EI70: 0 | EJ70: 0 | EK70: 0 | EL70: 0 | EM70: 0 | EN70: 0 | EO70: 0 | EP70: 0 | EQ70: 0 | ER70: 0 | ES70: 0 | ET70: 0 | EU70: 0 | EV70: 0 | EW70: 0 | EX70: 0 | EY70: 0 | EZ70: 0 | FA70: 0 | FB70: 0 | FC70: 0 | FD70: 0 | FE70: 0 | FF70: 0 | FG70: 0 | FH70: 0 | FI70: 0 | FJ70: 0 | FK70: 0 | FL70: 0 | FM70: 0 | FN70: 0 | FO70: 0 | FP70: 0 | FQ70: 0 | FR70: 0 | FS70: 0 | FT70: 0 | FU70: 0 | FV70: 0 | FW70: 0 | FX70: 0 | FY70: 0 | FZ70: 0 | GA70: 0 | GB70: 0 | GC70: 0 | GD70: 0 | GE70: 0 | GF70: 0 | GG70: 0 | GH70: 0 | GI70: 0 | GJ70: 0 | GK70: 0 | GL70: 0 | GM70: 0 | GN70: 0 | GO70: 0 | GP70: 0 | GQ70: 0 | GR70: 0 | GS70: 0 | GT70: 0 | GU70: 0 | GV70: 0 | GW70: 0 | GX70: 0 | GY70: 0 | GZ70: 0
B71: Non Sculpted Debt Service/Total Non Sculpted Debt | E71: 66 | G71: 0 | H71: 0 | I71: 0 | J71: 0 | K71: 0 | L71: 0 | M71: 0 | N71: 0 | O71: 0 | P71: 0 | Q71: 0 | R71: 0 | S71: 0 | T71: 0 | U71: 0 | V71: 0 | W71: 0 | X71: 0 | Y71: 0 | Z71: 0 | AA71: 0 | AB71: 0 | AC71: 0 | AD71: 0 | AE71: 0 | AF71: 0 | AG71: 0 | AH71: 0 | AI71: 0 | AJ71: 0 | AK71: 0 | AL71: 0 | AM71: 0 | AN71: 0 | AO71: 0 | AP71: 0 | AQ71: 0 | AR71: 0 | AS71: 0 | AT71: 0 | AU71: 0 | AV71: 0 | AW71: 0 | AX71: 0 | AY71: 0 | AZ71: 0 | BA71: 0 | BB71: 0 | BC71: 0 | BD71: 0 | BE71: 0 | BF71: 0 | BG71: 0 | BH71: 0 | BI71: 0 | BJ71: 0 | BK71: 0 | BL71: 0 | BM71: 0 | BN71: 0 | BO71: 0 | BP71: 0 | BQ71: 0 | BR71: 0 | BS71: 0 | BT71: 0 | BU71: 0 | BV71: 0 | BW71: 0 | BX71: 0 | BY71: 0 | BZ71: 0 | CA71: 0 | CB71: 0 | CC71: 0 | CD71: 0 | CE71: 0 | CF71: 0 | CG71: 0 | CH71: 0 | CI71: 0 | CJ71: 0 | CK71: 0 | CL71: 0 | CM71: 0 | CN71: 0 | CO71: 0 | CP71: 0 | CQ71: 0 | CR71: 0 | CS71: 0 | CT71: 0 | CU71: 0 | CV71: 0 | CW71: 0 | CX71: 0 | CY71: 0 | CZ71: 0 | DA71: 0 | DB71: 0 | DC71: 0 | DD71: 0 | DE71: 0 | DF71: 0 | DG71: 0 | DH71: 0 | DI71: 0 | DJ71: 0 | DK71: 0 | DL71: 0 | DM71: 0 | DN71: 0 | DO71: 0 | DP71: 0 | DQ71: 0 | DR71: 0 | DS71: 0 | DT71: 0 | DU71: 0 | DV71: 0 | DW71: 0 | DX71: 0 | DY71: 0 | DZ71: 0 | EA71: 0 | EB71: 0 | EC71: 0 | ED71: 0 | EE71: 0 | EF71: 0 | EG71: 0 | EH71: 0 | EI71: 0 | EJ71: 0 | EK71: 0 | EL71: 0 | EM71: 0 | EN71: 0 | EO71: 0 | EP71: 0 | EQ71: 0 | ER71: 0 | ES71: 0 | ET71: 0 | EU71: 0 | EV71: 0 | EW71: 0 | EX71: 0 | EY71: 0 | EZ71: 0 | FA71: 0 | FB71: 0 | FC71: 0 | FD71: 0 | FE71: 0 | FF71: 0 | FG71: 0 | FH71: 0 | FI71: 0 | FJ71: 0 | FK71: 0 | FL71: 0 | FM71: 0 | FN71: 0 | FO71: 0 | FP71: 0 | FQ71: 0 | FR71: 0 | FS71: 0 | FT71: 0 | FU71: 0 | FV71: 0 | FW71: 0 | FX71: 0 | FY71: 0 | FZ71: 0 | GA71: 0 | GB71: 0 | GC71: 0 | GD71: 0 | GE71: 0 | GF71: 0 | GG71: 0 | GH71: 0 | GI71: 0 | GJ71: 0 | GK71: 0 | GL71: 0 | GM71: 0 | GN71: 0 | GO71: 0 | GP71: 0 | GQ71: 0 | GR71: 0 | GS71: 0 | GT71: 0 | GU71: 0 | GV71: 0 | GW71: 0 | GX71: 0 | GY71: 0 | GZ71: 0
B72: Non Sculpted Interest/PV of Non Sculpted Debt | E72: 67 | G72: 109 | H72: 0 | I72: 0 | J72: 0 | K72: 0 | L72: 0 | M72: 0 | N72: 0 | O72: 0 | P72: 0 | Q72: 0 | R72: 0 | S72: 0 | T72: 0 | U72: 0 | V72: 0 | W72: 0 | X72: 0 | Y72: 0 | Z72: 0 | AA72: 0 | AB72: 0 | AC72: 0 | AD72: 0 | AE72: 0 | AF72: 0 | AG72: 0 | AH72: 0 | AI72: 0 | AJ72: 0 | AK72: 0 | AL72: 0 | AM72: 0 | AN72: 0 | AO72: 0 | AP72: 0 | AQ72: 0 | AR72: 0 | AS72: 0 | AT72: 0 | AU72: 0 | AV72: 0 | AW72: 0 | AX72: 0 | AY72: 0 | AZ72: 0 | BA72: 0 | BB72: 0 | BC72: 0 | BD72: 0 | BE72: 0 | BF72: 0 | BG72: 0 | BH72: 0 | BI72: 0 | BJ72: 0 | BK72: 0 | BL72: 0 | BM72: 0 | BN72: 0 | BO72: 0 | BP72: 0 | BQ72: 0 | BR72: 0 | BS72: 0 | BT72: 0 | BU72: 0 | BV72: 0 | BW72: 0 | BX72: 0 | BY72: 0 | BZ72: 0 | CA72: 0 | CB72: 0 | CC72: 0 | CD72: 0 | CE72: 0 | CF72: 0 | CG72: 0 | CH72: 0 | CI72: 0 | CJ72: 0 | CK72: 0 | CL72: 0 | CM72: 0 | CN72: 0 | CO72: 0 | CP72: 0 | CQ72: 0 | CR72: 0 | CS72: 0 | CT72: 0 | CU72: 0 | CV72: 0 | CW72: 0 | CX72: 0 | CY72: 0 | CZ72: 0 | DA72: 0 | DB72: 0 | DC72: 0 | DD72: 0 | DE72: 0 | DF72: 0 | DG72: 0 | DH72: 0 | DI72: 0 | DJ72: 0 | DK72: 0 | DL72: 0 | DM72: 0 | DN72: 0 | DO72: 0 | DP72: 0 | DQ72: 0 | DR72: 0 | DS72: 0 | DT72: 0 | DU72: 0 | DV72: 0 | DW72: 0 | DX72: 0 | DY72: 0 | DZ72: 0 | EA72: 0 | EB72: 0 | EC72: 0 | ED72: 0 | EE72: 0 | EF72: 0 | EG72: 0 | EH72: 0 | EI72: 0 | EJ72: 0 | EK72: 0 | EL72: 0 | EM72: 0 | EN72: 0 | EO72: 0 | EP72: 0 | EQ72: 0 | ER72: 0 | ES72: 0 | ET72: 0 | EU72: 0 | EV72: 0 | EW72: 0 | EX72: 0 | EY72: 0 | EZ72: 0 | FA72: 0 | FB72: 0 | FC72: 0 | FD72: 0 | FE72: 0 | FF72: 0 | FG72: 0 | FH72: 0 | FI72: 0 | FJ72: 0 | FK72: 0 | FL72: 0 | FM72: 0 | FN72: 0 | FO72: 0 | FP72: 0 | FQ72: 0 | FR72: 0 | FS72: 0 | FT72: 0 | FU72: 0 | FV72: 0 | FW72: 0 | FX72: 0 | FY72: 0 | FZ72: 0 | GA72: 0 | GB72: 0 | GC72: 0 | GD72: 0 | GE72: 0 | GF72: 0 | GG72: 0 | GH72: 0 | GI72: 0 | GJ72: 0 | GK72: 0 | GL72: 0 | GM72: 0 | GN72: 0 | GO72: 0 | GP72: 0 | GQ72: 0 | GR72: 0 | GS72: 0 | GT72: 0 | GU72: 0 | GV72: 0 | GW72: 0 | GX72: 0 | GY72: 0 | GZ72: 0
B73: ' Non Sculpted Repayment | E73: 68 | G73: 0 | H73: 0 | I73: 0 | J73: 0 | K73: 0 | L73: 0 | M73: 0 | N73: 0 | O73: 0 | P73: 0 | Q73: 0 | R73: 0 | S73: 0 | T73: 0 | U73: 0 | V73: 0 | W73: 0 | X73: 0 | Y73: 0 | Z73: 0 | AA73: 0 | AB73: 0 | AC73: 0 | AD73: 0 | AE73: 0 | AF73: 0 | AG73: 0 | AH73: 0 | AI73: 0 | AJ73: 0 | AK73: 0 | AL73: 0 | AM73: 0 | AN73: 0 | AO73: 0 | AP73: 0 | AQ73: 0 | AR73: 0 | AS73: 0 | AT73: 0 | AU73: 0 | AV73: 0 | AW73: 0 | AX73: 0 | AY73: 0 | AZ73: 0 | BA73: 0 | BB73: 0 | BC73: 0 | BD73: 0 | BE73: 0 | BF73: 0 | BG73: 0 | BH73: 0 | BI73: 0 | BJ73: 0 | BK73: 0 | BL73: 0 | BM73: 0 | BN73: 0 | BO73: 0 | BP73: 0 | BQ73: 0 | BR73: 0 | BS73: 0 | BT73: 0 | BU73: 0 | BV73: 0 | BW73: 0 | BX73: 0 | BY73: 0 | BZ73: 0 | CA73: 0 | CB73: 0 | CC73: 0 | CD73: 0 | CE73: 0 | CF73: 0 | CG73: 0 | CH73: 0 | CI73: 0 | CJ73: 0 | CK73: 0 | CL73: 0 | CM73: 0 | CN73: 0 | CO73: 0 | CP73: 0 | CQ73: 0 | CR73: 0 | CS73: 0 | CT73: 0 | CU73: 0 | CV73: 0 | CW73: 0 | CX73: 0 | CY73: 0 | CZ73: 0 | DA73: 0 | DB73: 0 | DC73: 0 | DD73: 0 | DE73: 0 | DF73: 0 | DG73: 0 | DH73: 0 | DI73: 0 | DJ73: 0 | DK73: 0 | DL73: 0 | DM73: 0 | DN73: 0 | DO73: 0 | DP73: 0 | DQ73: 0 | DR73: 0 | DS73: 0 | DT73: 0 | DU73: 0 | DV73: 0 | DW73: 0 | DX73: 0 | DY73: 0 | DZ73: 0 | EA73: 0 | EB73: 0 | EC73: 0 | ED73: 0 | EE73: 0 | EF73: 0 | EG73: 0 | EH73: 0 | EI73: 0 | EJ73: 0 | EK73: 0 | EL73: 0 | EM73: 0 | EN73: 0 | EO73: 0 | EP73: 0 | EQ73: 0 | ER73: 0 | ES73: 0 | ET73: 0 | EU73: 0 | EV73: 0 | EW73: 0 | EX73: 0 | EY73: 0 | EZ73: 0 | FA73: 0 | FB73: 0 | FC73: 0 | FD73: 0 | FE73: 0 | FF73: 0 | FG73: 0 | FH73: 0 | FI73: 0 | FJ73: 0 | FK73: 0 | FL73: 0 | FM73: 0 | FN73: 0 | FO73: 0 | FP73: 0 | FQ73: 0 | FR73: 0 | FS73: 0 | FT73: 0 | FU73: 0 | FV73: 0 | FW73: 0 | FX73: 0 | FY73: 0 | FZ73: 0 | GA73: 0 | GB73: 0 | GC73: 0 | GD73: 0 | GE73: 0 | GF73: 0 | GG73: 0 | GH73: 0 | GI73: 0 | GJ73: 0 | GK73: 0 | GL73: 0 | GM73: 0 | GN73: 0 | GO73: 0 | GP73: 0 | GQ73: 0 | GR73: 0 | GS73: 0 | GT73: 0 | GU73: 0 | GV73: 0 | GW73: 0 | GX73: 0 | GY73: 0 | GZ73: 0
G74: 0 | H74: 0 | I74: 0 | J74: 0 | K74: 0 | L74: 0 | M74: 0 | N74: 0 | O74: 0 | P74: 0 | Q74: 0 | R74: 0 | S74: 0 | T74: 0 | U74: 0 | V74: 0 | W74: 0 | X74: 0 | Y74: 0 | Z74: 0 | AA74: 0 | AB74: 0 | AC74: 0 | AD74: 0 | AE74: 0 | AF74: 0 | AG74: 0 | AH74: 0 | AI74: 0 | AJ74: 0 | AK74: 0 | AL74: 0 | AM74: 0 | AN74: 0 | AO74: 0 | AP74: 0 | AQ74: 0 | AR74: 0 | AS74: 0 | AT74: 0 | AU74: 0 | AV74: 0 | AW74: 0 | AX74: 0 | AY74: 0 | AZ74: 0 | BA74: 0 | BB74: 0 | BC74: 0 | BD74: 0 | BE74: 0 | BF74: 0 | BG74: 0 | BH74: 0 | BI74: 0 | BJ74: 0 | BK74: 0 | BL74: 0 | BM74: 0 | BN74: 0 | BO74: 0 | BP74: 0 | BQ74: 0 | BR74: 0 | BS74: 0 | BT74: 0 | BU74: 0 | BV74: 0 | BW74: 0 | BX74: 0 | BY74: 0 | BZ74: 0 | CA74: 0 | CB74: 0 | CC74: 0 | CD74: 0 | CE74: 0 | CF74: 0 | CG74: 0 | CH74: 0 | CI74: 0 | CJ74: 0 | CK74: 0 | CL74: 0 | CM74: 0 | CN74: 0 | CO74: 0 | CP74: 0 | CQ74: 0 | CR74: 0 | CS74: 0 | CT74: 0 | CU74: 0 | CV74: 0 | CW74: 0 | CX74: 0 | CY74: 0 | CZ74: 0 | DA74: 0 | DB74: 0 | DC74: 0 | DD74: 0 | DE74: 0 | DF74: 0 | DG74: 0 | DH74: 0 | DI74: 0 | DJ74: 0 | DK74: 0 | DL74: 0 | DM74: 0 | DN74: 0 | DO74: 0 | DP74: 0 | DQ74: 0 | DR74: 0 | DS74: 0 | DT74: 0 | DU74: 0 | DV74: 0 | DW74: 0 | DX74: 0 | DY74: 0 | DZ74: 0 | EA74: 0 | EB74: 0 | EC74: 0 | ED74: 0 | EE74: 0 | EF74: 0 | EG74: 0 | EH74: 0 | EI74: 0 | EJ74: 0 | EK74: 0 | EL74: 0 | EM74: 0 | EN74: 0 | EO74: 0 | EP74: 0 | EQ74: 0 | ER74: 0 | ES74: 0 | ET74: 0 | EU74: 0 | EV74: 0 | EW74: 0 | EX74: 0 | EY74: 0 | EZ74: 0 | FA74: 0 | FB74: 0 | FC74: 0 | FD74: 0 | FE74: 0 | FF74: 0 | FG74: 0 | FH74: 0 | FI74: 0 | FJ74: 0 | FK74: 0 | FL74: 0 | FM74: 0 | FN74: 0 | FO74: 0 | FP74: 0 | FQ74: 0 | FR74: 0 | FS74: 0 | FT74: 0 | FU74: 0 | FV74: 0 | FW74: 0 | FX74: 0 | FY74: 0 | FZ74: 0 | GA74: 0 | GB74: 0 | GC74: 0 | GD74: 0 | GE74: 0 | GF74: 0 | GG74: 0 | GH74: 0 | GI74: 0 | GJ74: 0 | GK74: 0 | GL74: 0 | GM74: 0 | GN74: 0 | GO74: 0 | GP74: 0 | GQ74: 0 | GR74: 0 | GS74: 0 | GT74: 0 | GU74: 0 | GV74: 0 | GW74: 0 | GX74: 0 | GY74: 0 | GZ74: 0
A77: Inputs to UDF
B79: Development (TRUE/FASLE or 1,0) | I79: ='Financial Model'!I195 -> TRUE | J79: ='Financial Model'!J195 -> FALSE | K79: ='Financial Model'!K195 -> FALSE | L79: ='Financial Model'!L195 -> FALSE | M79: ='Financial Model'!M195 -> FALSE | N79: ='Financial Model'!N195 -> FALSE | O79: ='Financial Model'!O195 -> FALSE | P79: ='Financial Model'!P195 -> FALSE | Q79: ='Financial Model'!Q195 -> FALSE | R79: ='Financial Model'!R195 -> FALSE | S79: ='Financial Model'!S195 -> FALSE | T79: ='Financial Model'!T195 -> FALSE | U79: ='Financial Model'!U195 -> FALSE | V79: ='Financial Model'!V195 -> FALSE | W79: ='Financial Model'!W195 -> FALSE | X79: ='Financial Model'!X195 -> FALSE | Y79: ='Financial Model'!Y195 -> FALSE | Z79: ='Financial Model'!Z195 -> FALSE | AA79: ='Financial Model'!AA195 -> FALSE | AB79: ='Financial Model'!AB195 -> FALSE | AC79: ='Financial Model'!AC195 -> FALSE | AD79: ='Financial Model'!AD195 -> FALSE | AE79: ='Financial Model'!AE195 -> FALSE | AF79: ='Financial Model'!AF195 -> FALSE | AG79: ='Financial Model'!AG195 -> FALSE | AH79: ='Financial Model'!AH195 -> FALSE | AI79: ='Financial Model'!AI195 -> FALSE | AJ79: ='Financial Model'!AJ195 -> FALSE | AK79: ='Financial Model'!AK195 -> FALSE | AL79: ='Financial Model'!AL195 -> FALSE | AM79: ='Financial Model'!AM195 -> FALSE | AN79: ='Financial Model'!AN195 -> FALSE | AO79: ='Financial Model'!AO195 -> FALSE | AP79: ='Financial Model'!AP195 -> FALSE | AQ79: ='Financial Model'!AQ195 -> FALSE | AR79: ='Financial Model'!AR195 -> FALSE | AS79: ='Financial Model'!AS195 -> FALSE | AT79: ='Financial Model'!AT195 -> FALSE | AU79: ='Financial Model'!AU195 -> FALSE | AV79: ='Financial Model'!AV195 -> FALSE | AW79: ='Financial Model'!AW195 -> FALSE | AX79: ='Financial Model'!AX195 -> FALSE | AY79: ='Financial Model'!AY195 -> FALSE | AZ79: ='Financial Model'!AZ195 -> FALSE | BA79: ='Financial Model'!BA195 -> FALSE | BB79: ='Financial Model'!BB195 -> FALSE | BC79: ='Financial Model'!BC195 -> FALSE | BD79: ='Financial Model'!BD195 -> FALSE | BE79: ='Financial Model'!BE195 -> FALSE | BF79: ='Financial Model'!BF195 -> FALSE | BG79: ='Financial Model'!BG195 -> FALSE | BH79: ='Financial Model'!BH195 -> FALSE | BI79: ='Financial Model'!BI195 -> FALSE | BJ79: ='Financial Model'!BJ195 -> FALSE | BK79: ='Financial Model'!BK195 -> FALSE | BL79: ='Financial Model'!BL195 -> FALSE | BM79: ='Financial Model'!BM195 -> FALSE | BN79: ='Financial Model'!BN195 -> FALSE | BO79: ='Financial Model'!BO195 -> FALSE | BP79: ='Financial Model'!BP195 -> FALSE | BQ79: ='Financial Model'!BQ195 -> FALSE | BR79: ='Financial Model'!BR195 -> FALSE | BS79: ='Financial Model'!BS195 -> FALSE | BT79: ='Financial Model'!BT195 -> FALSE | BU79: ='Financial Model'!BU195 -> FALSE | BV79: ='Financial Model'!BV195 -> FALSE | BW79: ='Financial Model'!BW195 -> FALSE | BX79: ='Financial Model'!BX195 -> FALSE | BY79: ='Financial Model'!BY195 -> FALSE | BZ79: ='Financial Model'!BZ195 -> FALSE | CA79: ='Financial Model'!CA195 -> FALSE | CB79: ='Financial Model'!CB195 -> FALSE | CC79: ='Financial Model'!CC195 -> FALSE | CD79: ='Financial Model'!CD195 -> FALSE | CE79: ='Financial Model'!CE195 -> FALSE | CF79: ='Financial Model'!CF195 -> FALSE | CG79: ='Financial Model'!CG195 -> FALSE | CH79: ='Financial Model'!CH195 -> FALSE | CI79: ='Financial Model'!CI195 -> FALSE | CJ79: ='Financial Model'!CJ195 -> FALSE | CK79: ='Financial Model'!CK195 -> FALSE | CL79: ='Financial Model'!CL195 -> FALSE | CM79: ='Financial Model'!CM195 -> FALSE | CN79: ='Financial Model'!CN195 -> FALSE | CO79: ='Financial Model'!CO195 -> FALSE | CP79: ='Financial Model'!CP195 -> FALSE | CQ79: ='Financial Model'!CQ195 -> FALSE | CR79: ='Financial Model'!CR195 -> FALSE | CS79: ='Financial Model'!CS195 -> FALSE | CT79: ='Financial Model'!CT195 -> FALSE | CU79: ='Financial Model'!CU195 -> FALSE | CV79: ='Financial Model'!CV195 -> FALSE | CW79: ='Financial Model'!CW195 -> FALSE | CX79: ='Financial Model'!CX195 -> FALSE | CY79: ='Financial Model'!CY195 -> FALSE | CZ79: ='Financial Model'!CZ195 -> FALSE | DA79: ='Financial Model'!DA195 -> FALSE | DB79: ='Financial Model'!DB195 -> FALSE | DC79: ='Financial Model'!DC195 -> FALSE | DD79: ='Financial Model'!DD195 -> FALSE | DE79: ='Financial Model'!DE195 -> FALSE | DF79: ='Financial Model'!DF195 -> FALSE | DG79: ='Financial Model'!DG195 -> FALSE | DH79: ='Financial Model'!DH195 -> FALSE | DI79: ='Financial Model'!DI195 -> FALSE | DJ79: ='Financial Model'!DJ195 -> FALSE | DK79: ='Financial Model'!DK195 -> FALSE | DL79: ='Financial Model'!DL195 -> FALSE | DM79: ='Financial Model'!DM195 -> FALSE | DN79: ='Financial Model'!DN195 -> FALSE | DO79: ='Financial Model'!DO195 -> FALSE | DP79: ='Financial Model'!DP195 -> FALSE | DQ79: ='Financial Model'!DQ195 -> FALSE | DR79: ='Financial Model'!DR195 -> FALSE | DS79: ='Financial Model'!DS195 -> FALSE | DT79: ='Financial Model'!DT195 -> FALSE | DU79: ='Financial Model'!DU195 -> FALSE | DV79: ='Financial Model'!DV195 -> FALSE | DW79: ='Financial Model'!DW195 -> FALSE | DX79: ='Financial Model'!DX195 -> FALSE | DY79: ='Financial Model'!DY195 -> FALSE | DZ79: ='Financial Model'!DZ195 -> FALSE | EA79: ='Financial Model'!EA195 -> FALSE | EB79: ='Financial Model'!EB195 -> FALSE | EC79: ='Financial Model'!EC195 -> FALSE | ED79: ='Financial Model'!ED195 -> FALSE | EE79: ='Financial Model'!EE195 -> FALSE | EF79: ='Financial Model'!EF195 -> FALSE | EG79: ='Financial Model'!EG195 -> FALSE | EH79: ='Financial Model'!EH195 -> FALSE | EI79: ='Financial Model'!EI195 -> FALSE | EJ79: ='Financial Model'!EJ195 -> FALSE | EK79: ='Financial Model'!EK195 -> FALSE | EL79: ='Financial Model'!EL195 -> FALSE | EM79: ='Financial Model'!EM195 -> FALSE | EN79: ='Financial Model'!EN195 -> FALSE | EO79: ='Financial Model'!EO195 -> FALSE | EP79: ='Financial Model'!EP195 -> FALSE | EQ79: ='Financial Model'!EQ195 -> FALSE | ER79: ='Financial Model'!ER195 -> FALSE | ES79: ='Financial Model'!ES195 -> FALSE | ET79: ='Financial Model'!ET195 -> FALSE | EU79: ='Financial Model'!EU195 -> FALSE | EV79: ='Financial Model'!EV195 -> FALSE | EW79: ='Financial Model'!EW195 -> FALSE | EX79: ='Financial Model'!EX195 -> FALSE | EY79: ='Financial Model'!EY195 -> FALSE | EZ79: ='Financial Model'!EZ195 -> FALSE | FA79: ='Financial Model'!FA195 -> FALSE | FB79: ='Financial Model'!FB195 -> FALSE | FC79: ='Financial Model'!FC195 -> FALSE | FD79: ='Financial Model'!FD195 -> FALSE | FE79: ='Financial Model'!FE195 -> FALSE | FF79: ='Financial Model'!FF195 -> FALSE | FG79: ='Financial Model'!FG195 -> FALSE | FH79: ='Financial Model'!FH195 -> FALSE | FI79: ='Financial Model'!FI195 -> FALSE | FJ79: ='Financial Model'!FJ195 -> FALSE | FK79: ='Financial Model'!FK195 -> FALSE | FL79: ='Financial Model'!FL195 -> FALSE | FM79: ='Financial Model'!FM195 -> FALSE | FN79: ='Financial Model'!FN195 -> FALSE | FO79: ='Financial Model'!FO195 -> FALSE | FP79: ='Financial Model'!FP195 -> FALSE | FQ79: ='Financial Model'!FQ195 -> FALSE | FR79: ='Financial Model'!FR195 -> FALSE | FS79: ='Financial Model'!FS195 -> FALSE | FT79: ='Financial Model'!FT195 -> FALSE | FU79: ='Financial Model'!FU195 -> FALSE | FV79: ='Financial Model'!FV195 -> FALSE | FW79: ='Financial Model'!FW195 -> FALSE | FX79: ='Financial Model'!FX195 -> FALSE | FY79: ='Financial Model'!FY195 -> FALSE | FZ79: ='Financial Model'!FZ195 -> FALSE | GA79: ='Financial Model'!GA195 -> FALSE | GB79: ='Financial Model'!GB195 -> FALSE | GC79: ='Financial Model'!GC195 -> FALSE | GD79: ='Financial Model'!GD195 -> FALSE | GE79: ='Financial Model'!GE195 -> FALSE | GF79: ='Financial Model'!GF195 -> FALSE | GG79: ='Financial Model'!GG195 -> FALSE | GH79: ='Financial Model'!GH195 -> FALSE | GI79: ='Financial Model'!GI195 -> FALSE | GJ79: ='Financial Model'!GJ195 -> FALSE | GK79: ='Financial Model'!GK195 -> FALSE | GL79: ='Financial Model'!GL195 -> FALSE | GM79: ='Financial Model'!GM195 -> FALSE | GN79: ='Financial Model'!GN195 -> FALSE | GO79: ='Financial Model'!GO195 -> FALSE | GP79: ='Financial Model'!GP195 -> FALSE | GQ79: ='Financial Model'!GQ195 -> FALSE | GR79: ='Financial Model'!GR195 -> FALSE | GS79: ='Financial Model'!GS195 -> FALSE | GT79: ='Financial Model'!GT195 -> FALSE | GU79: ='Financial Model'!GU195 -> FALSE | GV79: ='Financial Model'!GV195 -> FALSE | GW79: ='Financial Model'!GW195 -> FALSE | GX79: ='Financial Model'!GX195 -> FALSE | GY79: ='Financial Model'!GY195 -> FALSE | GZ79: ='Financial Model'!GZ195 -> FALSE | HA79: ='Financial Model'!HA195 -> FALSE | HB79: ='Financial Model'!HB195 -> FALSE | HC79: ='Financial Model'!HC195 -> FALSE | HD79: ='Financial Model'!HD195 -> FALSE | HE79: ='Financial Model'!HE195 -> FALSE | HF79: ='Financial Model'!HF195 -> FALSE | HG79: ='Financial Model'!HG195 -> FALSE | HH79: ='Financial Model'!HH195 -> FALSE | HI79: ='Financial Model'!HI195 -> FALSE | HJ79: ='Financial Model'!HJ195 -> FALSE | HK79: ='Financial Model'!HK195 -> FALSE | HL79: ='Financial Model'!HL195 -> FALSE | HM79: ='Financial Model'!HM195 -> FALSE | HN79: ='Financial Model'!HN195 -> FALSE | HO79: ='Financial Model'!HO195 -> FALSE | HP79: ='Financial Model'!HP195 -> FALSE | HQ79: ='Financial Model'!HQ195 -> FALSE | HR79: ='Financial Model'!HR195 -> FALSE | HS79: ='Financial Model'!HS195 -> FALSE | HT79: ='Financial Model'!HT195 -> FALSE | HU79: ='Financial Model'!HU195 -> FALSE | HV79: ='Financial Model'!HV195 -> FALSE | HW79: ='Financial Model'!HW195 -> FALSE | HX79: ='Financial Model'!HX195 -> FALSE | HY79: ='Financial Model'!HY195 -> FALSE | HZ79: ='Financial Model'!HZ195 -> FALSE | IA79: ='Financial Model'!IA195 -> FALSE | IB79: ='Financial Model'!IB195 -> FALSE | IC79: ='Financial Model'!IC195 -> FALSE | ID79: ='Financial Model'!ID195 -> FALSE | IE79: ='Financial Model'!IE195 -> FALSE | IF79: ='Financial Model'!IF195 -> FALSE | IG79: ='Financial Model'!IG195 -> FALSE | IH79: ='Financial Model'!IH195 -> FALSE | II79: ='Financial Model'!II195 -> FALSE | IJ79: ='Financial Model'!IJ195 -> FALSE | IK79: ='Financial Model'!IK195 -> FALSE | IL79: ='Financial Model'!IL195 -> FALSE | IM79: ='Financial Model'!IM195 -> FALSE | IN79: ='Financial Model'!IN195 -> FALSE | IO79: ='Financial Model'!IO195 -> FALSE | IP79: ='Financial Model'!IP195 -> FALSE | IQ79: ='Financial Model'!IQ195 -> FALSE | IR79: ='Financial Model'!IR195 -> FALSE | IS79: ='Financial Model'!IS195 -> FALSE | IT79: ='Financial Model'!IT195 -> FALSE | IU79: ='Financial Model'!IU195 -> FALSE | IV79: ='Financial Model'!IV195 -> FALSE | IW79: ='Financial Model'!IW195 -> FALSE | IX79: ='Financial Model'!IX195 -> FALSE | IY79: ='Financial Model'!IY195 -> FALSE | IZ79: ='Financial Model'!IZ195 -> FALSE | JA79: ='Financial Model'!JA195 -> FALSE | JB79: ='Financial Model'!JB195 -> FALSE | JC79: ='Financial Model'!JC195 -> FALSE | JD79: ='Financial Model'!JD195 -> FALSE | JE79: ='Financial Model'!JE195 -> FALSE | JF79: ='Financial Model'!JF195 -> FALSE | JG79: ='Financial Model'!JG195 -> FALSE | JH79: ='Financial Model'!JH195 -> FALSE | JI79: ='Financial Model'!JI195 -> FALSE | JJ79: ='Financial Model'!JJ195 -> FALSE | JK79: ='Financial Model'!JK195 -> FALSE | JL79: ='Financial Model'!JL195 -> FALSE | JM79: ='Financial Model'!JM195 -> FALSE | JN79: ='Financial Model'!JN195 -> FALSE | JO79: ='Financial Model'!JO195 -> FALSE | JP79: ='Financial Model'!JP195 -> FALSE | JQ79: ='Financial Model'!JQ195 -> FALSE | JR79: ='Financial Model'!JR195 -> FALSE | JS79: ='Financial Model'!JS195 -> FALSE | JT79: ='Financial Model'!JT195 -> FALSE | JU79: ='Financial Model'!JU195 -> FALSE | JV79: ='Financial Model'!JV195 -> FALSE | JW79: ='Financial Model'!JW195 -> FALSE | JX79: ='Financial Model'!JX195 -> FALSE | JY79: ='Financial Model'!JY195 -> FALSE | JZ79: ='Financial Model'!JZ195 -> FALSE | KA79: ='Financial Model'!KA195 -> FALSE | KB79: ='Financial Model'!KB195 -> FALSE | KC79: ='Financial Model'!KC195 -> FALSE | KD79: ='Financial Model'!KD195 -> FALSE | KE79: ='Financial Model'!KE195 -> FALSE | KF79: ='Financial Model'!KF195 -> FALSE | KG79: ='Financial Model'!KG195 -> FALSE | KH79: ='Financial Model'!KH195 -> FALSE | KI79: ='Financial Model'!KI195 -> FALSE | KJ79: ='Financial Model'!KJ195 -> FALSE | KK79: ='Financial Model'!KK195 -> FALSE | KL79: ='Financial Model'!KL195 -> FALSE | KM79: ='Financial Model'!KM195 -> FALSE | KN79: ='Financial Model'!KN195 -> FALSE | KO79: ='Financial Model'!KO195 -> FALSE | KP79: ='Financial Model'!KP195 -> FALSE | KQ79: ='Financial Model'!KQ195 -> FALSE | KR79: ='Financial Model'!KR195 -> FALSE | KS79: ='Financial Model'!KS195 -> FALSE | KT79: ='Financial Model'!KT195 -> FALSE | KU79: ='Financial Model'!KU195 -> FALSE | KV79: ='Financial Model'!KV195 -> FALSE
B80: Construction (TRUE/FALSLE or 1,0) | I80: ='Financial Model'!I201 -> FALSE | J80: ='Financial Model'!J201 -> TRUE | K80: ='Financial Model'!K201 -> TRUE | L80: ='Financial Model'!L201 -> TRUE | M80: ='Financial Model'!M201 -> TRUE | N80: ='Financial Model'!N201 -> TRUE | O80: ='Financial Model'!O201 -> TRUE | P80: ='Financial Model'!P201 -> TRUE | Q80: ='Financial Model'!Q201 -> TRUE | R80: ='Financial Model'!R201 -> TRUE | S80: ='Financial Model'!S201 -> TRUE | T80: ='Financial Model'!T201 -> TRUE | U80: ='Financial Model'!U201 -> TRUE | V80: ='Financial Model'!V201 -> TRUE | W80: ='Financial Model'!W201 -> TRUE | X80: ='Financial Model'!X201 -> TRUE | Y80: ='Financial Model'!Y201 -> TRUE | Z80: ='Financial Model'!Z201 -> TRUE | AA80: ='Financial Model'!AA201 -> TRUE | AB80: ='Financial Model'!AB201 -> TRUE | AC80: ='Financial Model'!AC201 -> TRUE | AD80: ='Financial Model'!AD201 -> TRUE | AE80: ='Financial Model'!AE201 -> TRUE | AF80: ='Financial Model'!AF201 -> TRUE | AG80: ='Financial Model'!AG201 -> TRUE | AH80: ='Financial Model'!AH201 -> TRUE | AI80: ='Financial Model'!AI201 -> TRUE | AJ80: ='Financial Model'!AJ201 -> TRUE | AK80: ='Financial Model'!AK201 -> TRUE | AL80: ='Financial Model'!AL201 -> TRUE | AM80: ='Financial Model'!AM201 -> TRUE | AN80: ='Financial Model'!AN201 -> TRUE | AO80: ='Financial Model'!AO201 -> TRUE | AP80: ='Financial Model'!AP201 -> TRUE | AQ80: ='Financial Model'!AQ201 -> TRUE | AR80: ='Financial Model'!AR201 -> TRUE | AS80: ='Financial Model'!AS201 -> TRUE | AT80: ='Financial Model'!AT201 -> TRUE | AU80: ='Financial Model'!AU201 -> TRUE | AV80: ='Financial Model'!AV201 -> TRUE | AW80: ='Financial Model'!AW201 -> TRUE | AX80: ='Financial Model'!AX201 -> TRUE | AY80: ='Financial Model'!AY201 -> TRUE | AZ80: ='Financial Model'!AZ201 -> TRUE | BA80: ='Financial Model'!BA201 -> TRUE | BB80: ='Financial Model'!BB201 -> TRUE | BC80: ='Financial Model'!BC201 -> TRUE | BD80: ='Financial Model'!BD201 -> TRUE | BE80: ='Financial Model'!BE201 -> TRUE | BF80: ='Financial Model'!BF201 -> TRUE | BG80: ='Financial Model'!BG201 -> TRUE | BH80: ='Financial Model'!BH201 -> FALSE | BI80: ='Financial Model'!BI201 -> FALSE | BJ80: ='Financial Model'!BJ201 -> FALSE | BK80: ='Financial Model'!BK201 -> FALSE | BL80: ='Financial Model'!BL201 -> FALSE | BM80: ='Financial Model'!BM201 -> FALSE | BN80: ='Financial Model'!BN201 -> FALSE | BO80: ='Financial Model'!BO201 -> FALSE | BP80: ='Financial Model'!BP201 -> FALSE | BQ80: ='Financial Model'!BQ201 -> FALSE | BR80: ='Financial Model'!BR201 -> FALSE | BS80: ='Financial Model'!BS201 -> FALSE | BT80: ='Financial Model'!BT201 -> FALSE | BU80: ='Financial Model'!BU201 -> FALSE | BV80: ='Financial Model'!BV201 -> FALSE | BW80: ='Financial Model'!BW201 -> FALSE | BX80: ='Financial Model'!BX201 -> FALSE | BY80: ='Financial Model'!BY201 -> FALSE | BZ80: ='Financial Model'!BZ201 -> FALSE | CA80: ='Financial Model'!CA201 -> FALSE | CB80: ='Financial Model'!CB201 -> FALSE | CC80: ='Financial Model'!CC201 -> FALSE | CD80: ='Financial Model'!CD201 -> FALSE | CE80: ='Financial Model'!CE201 -> FALSE | CF80: ='Financial Model'!CF201 -> FALSE | CG80: ='Financial Model'!CG201 -> FALSE | CH80: ='Financial Model'!CH201 -> FALSE | CI80: ='Financial Model'!CI201 -> FALSE | CJ80: ='Financial Model'!CJ201 -> FALSE | CK80: ='Financial Model'!CK201 -> FALSE | CL80: ='Financial Model'!CL201 -> FALSE | CM80: ='Financial Model'!CM201 -> FALSE | CN80: ='Financial Model'!CN201 -> FALSE | CO80: ='Financial Model'!CO201 -> FALSE | CP80: ='Financial Model'!CP201 -> FALSE | CQ80: ='Financial Model'!CQ201 -> FALSE | CR80: ='Financial Model'!CR201 -> FALSE | CS80: ='Financial Model'!CS201 -> FALSE | CT80: ='Financial Model'!CT201 -> FALSE | CU80: ='Financial Model'!CU201 -> FALSE | CV80: ='Financial Model'!CV201 -> FALSE | CW80: ='Financial Model'!CW201 -> FALSE | CX80: ='Financial Model'!CX201 -> FALSE | CY80: ='Financial Model'!CY201 -> FALSE | CZ80: ='Financial Model'!CZ201 -> FALSE | DA80: ='Financial Model'!DA201 -> FALSE | DB80: ='Financial Model'!DB201 -> FALSE | DC80: ='Financial Model'!DC201 -> FALSE | DD80: ='Financial Model'!DD201 -> FALSE | DE80: ='Financial Model'!DE201 -> FALSE | DF80: ='Financial Model'!DF201 -> FALSE | DG80: ='Financial Model'!DG201 -> FALSE | DH80: ='Financial Model'!DH201 -> FALSE | DI80: ='Financial Model'!DI201 -> FALSE | DJ80: ='Financial Model'!DJ201 -> FALSE | DK80: ='Financial Model'!DK201 -> FALSE | DL80: ='Financial Model'!DL201 -> FALSE | DM80: ='Financial Model'!DM201 -> FALSE | DN80: ='Financial Model'!DN201 -> FALSE | DO80: ='Financial Model'!DO201 -> FALSE | DP80: ='Financial Model'!DP201 -> FALSE | DQ80: ='Financial Model'!DQ201 -> FALSE | DR80: ='Financial Model'!DR201 -> FALSE | DS80: ='Financial Model'!DS201 -> FALSE | DT80: ='Financial Model'!DT201 -> FALSE | DU80: ='Financial Model'!DU201 -> FALSE | DV80: ='Financial Model'!DV201 -> FALSE | DW80: ='Financial Model'!DW201 -> FALSE | DX80: ='Financial Model'!DX201 -> FALSE | DY80: ='Financial Model'!DY201 -> FALSE | DZ80: ='Financial Model'!DZ201 -> FALSE | EA80: ='Financial Model'!EA201 -> FALSE | EB80: ='Financial Model'!EB201 -> FALSE | EC80: ='Financial Model'!EC201 -> FALSE | ED80: ='Financial Model'!ED201 -> FALSE | EE80: ='Financial Model'!EE201 -> FALSE | EF80: ='Financial Model'!EF201 -> FALSE | EG80: ='Financial Model'!EG201 -> FALSE | EH80: ='Financial Model'!EH201 -> FALSE | EI80: ='Financial Model'!EI201 -> FALSE | EJ80: ='Financial Model'!EJ201 -> FALSE | EK80: ='Financial Model'!EK201 -> FALSE | EL80: ='Financial Model'!EL201 -> FALSE | EM80: ='Financial Model'!EM201 -> FALSE | EN80: ='Financial Model'!EN201 -> FALSE | EO80: ='Financial Model'!EO201 -> FALSE | EP80: ='Financial Model'!EP201 -> FALSE | EQ80: ='Financial Model'!EQ201 -> FALSE | ER80: ='Financial Model'!ER201 -> FALSE | ES80: ='Financial Model'!ES201 -> FALSE | ET80: ='Financial Model'!ET201 -> FALSE | EU80: ='Financial Model'!EU201 -> FALSE | EV80: ='Financial Model'!EV201 -> FALSE | EW80: ='Financial Model'!EW201 -> FALSE | EX80: ='Financial Model'!EX201 -> FALSE | EY80: ='Financial Model'!EY201 -> FALSE | EZ80: ='Financial Model'!EZ201 -> FALSE | FA80: ='Financial Model'!FA201 -> FALSE | FB80: ='Financial Model'!FB201 -> FALSE | FC80: ='Financial Model'!FC201 -> FALSE | FD80: ='Financial Model'!FD201 -> FALSE | FE80: ='Financial Model'!FE201 -> FALSE | FF80: ='Financial Model'!FF201 -> FALSE | FG80: ='Financial Model'!FG201 -> FALSE | FH80: ='Financial Model'!FH201 -> FALSE | FI80: ='Financial Model'!FI201 -> FALSE | FJ80: ='Financial Model'!FJ201 -> FALSE | FK80: ='Financial Model'!FK201 -> FALSE | FL80: ='Financial Model'!FL201 -> FALSE | FM80: ='Financial Model'!FM201 -> FALSE | FN80: ='Financial Model'!FN201 -> FALSE | FO80: ='Financial Model'!FO201 -> FALSE | FP80: ='Financial Model'!FP201 -> FALSE | FQ80: ='Financial Model'!FQ201 -> FALSE | FR80: ='Financial Model'!FR201 -> FALSE | FS80: ='Financial Model'!FS201 -> FALSE | FT80: ='Financial Model'!FT201 -> FALSE | FU80: ='Financial Model'!FU201 -> FALSE | FV80: ='Financial Model'!FV201 -> FALSE | FW80: ='Financial Model'!FW201 -> FALSE | FX80: ='Financial Model'!FX201 -> FALSE | FY80: ='Financial Model'!FY201 -> FALSE | FZ80: ='Financial Model'!FZ201 -> FALSE | GA80: ='Financial Model'!GA201 -> FALSE | GB80: ='Financial Model'!GB201 -> FALSE | GC80: ='Financial Model'!GC201 -> FALSE | GD80: ='Financial Model'!GD201 -> FALSE | GE80: ='Financial Model'!GE201 -> FALSE | GF80: ='Financial Model'!GF201 -> FALSE | GG80: ='Financial Model'!GG201 -> FALSE | GH80: ='Financial Model'!GH201 -> FALSE | GI80: ='Financial Model'!GI201 -> FALSE | GJ80: ='Financial Model'!GJ201 -> FALSE | GK80: ='Financial Model'!GK201 -> FALSE | GL80: ='Financial Model'!GL201 -> FALSE | GM80: ='Financial Model'!GM201 -> FALSE | GN80: ='Financial Model'!GN201 -> FALSE | GO80: ='Financial Model'!GO201 -> FALSE | GP80: ='Financial Model'!GP201 -> FALSE | GQ80: ='Financial Model'!GQ201 -> FALSE | GR80: ='Financial Model'!GR201 -> FALSE | GS80: ='Financial Model'!GS201 -> FALSE | GT80: ='Financial Model'!GT201 -> FALSE | GU80: ='Financial Model'!GU201 -> FALSE | GV80: ='Financial Model'!GV201 -> FALSE | GW80: ='Financial Model'!GW201 -> FALSE | GX80: ='Financial Model'!GX201 -> FALSE | GY80: ='Financial Model'!GY201 -> FALSE | GZ80: ='Financial Model'!GZ201 -> FALSE | HA80: ='Financial Model'!HA201 -> FALSE | HB80: ='Financial Model'!HB201 -> FALSE | HC80: ='Financial Model'!HC201 -> FALSE | HD80: ='Financial Model'!HD201 -> FALSE | HE80: ='Financial Model'!HE201 -> FALSE | HF80: ='Financial Model'!HF201 -> FALSE | HG80: ='Financial Model'!HG201 -> FALSE | HH80: ='Financial Model'!HH201 -> FALSE | HI80: ='Financial Model'!HI201 -> FALSE | HJ80: ='Financial Model'!HJ201 -> FALSE | HK80: ='Financial Model'!HK201 -> FALSE | HL80: ='Financial Model'!HL201 -> FALSE | HM80: ='Financial Model'!HM201 -> FALSE | HN80: ='Financial Model'!HN201 -> FALSE | HO80: ='Financial Model'!HO201 -> FALSE | HP80: ='Financial Model'!HP201 -> FALSE | HQ80: ='Financial Model'!HQ201 -> FALSE | HR80: ='Financial Model'!HR201 -> FALSE | HS80: ='Financial Model'!HS201 -> FALSE | HT80: ='Financial Model'!HT201 -> FALSE | HU80: ='Financial Model'!HU201 -> FALSE | HV80: ='Financial Model'!HV201 -> FALSE | HW80: ='Financial Model'!HW201 -> FALSE | HX80: ='Financial Model'!HX201 -> FALSE | HY80: ='Financial Model'!HY201 -> FALSE | HZ80: ='Financial Model'!HZ201 -> FALSE | IA80: ='Financial Model'!IA201 -> FALSE | IB80: ='Financial Model'!IB201 -> FALSE | IC80: ='Financial Model'!IC201 -> FALSE | ID80: ='Financial Model'!ID201 -> FALSE | IE80: ='Financial Model'!IE201 -> FALSE | IF80: ='Financial Model'!IF201 -> FALSE | IG80: ='Financial Model'!IG201 -> FALSE | IH80: ='Financial Model'!IH201 -> FALSE | II80: ='Financial Model'!II201 -> FALSE | IJ80: ='Financial Model'!IJ201 -> FALSE | IK80: ='Financial Model'!IK201 -> FALSE | IL80: ='Financial Model'!IL201 -> FALSE | IM80: ='Financial Model'!IM201 -> FALSE | IN80: ='Financial Model'!IN201 -> FALSE | IO80: ='Financial Model'!IO201 -> FALSE | IP80: ='Financial Model'!IP201 -> FALSE | IQ80: ='Financial Model'!IQ201 -> FALSE | IR80: ='Financial Model'!IR201 -> FALSE | IS80: ='Financial Model'!IS201 -> FALSE | IT80: ='Financial Model'!IT201 -> FALSE | IU80: ='Financial Model'!IU201 -> FALSE | IV80: ='Financial Model'!IV201 -> FALSE | IW80: ='Financial Model'!IW201 -> FALSE | IX80: ='Financial Model'!IX201 -> FALSE | IY80: ='Financial Model'!IY201 -> FALSE | IZ80: ='Financial Model'!IZ201 -> FALSE | JA80: ='Financial Model'!JA201 -> FALSE | JB80: ='Financial Model'!JB201 -> FALSE | JC80: ='Financial Model'!JC201 -> FALSE | JD80: ='Financial Model'!JD201 -> FALSE | JE80: ='Financial Model'!JE201 -> FALSE | JF80: ='Financial Model'!JF201 -> FALSE | JG80: ='Financial Model'!JG201 -> FALSE | JH80: ='Financial Model'!JH201 -> FALSE | JI80: ='Financial Model'!JI201 -> FALSE | JJ80: ='Financial Model'!JJ201 -> FALSE | JK80: ='Financial Model'!JK201 -> FALSE | JL80: ='Financial Model'!JL201 -> FALSE | JM80: ='Financial Model'!JM201 -> FALSE | JN80: ='Financial Model'!JN201 -> FALSE | JO80: ='Financial Model'!JO201 -> FALSE | JP80: ='Financial Model'!JP201 -> FALSE | JQ80: ='Financial Model'!JQ201 -> FALSE | JR80: ='Financial Model'!JR201 -> FALSE | JS80: ='Financial Model'!JS201 -> FALSE | JT80: ='Financial Model'!JT201 -> FALSE | JU80: ='Financial Model'!JU201 -> FALSE | JV80: ='Financial Model'!JV201 -> FALSE | JW80: ='Financial Model'!JW201 -> FALSE | JX80: ='Financial Model'!JX201 -> FALSE | JY80: ='Financial Model'!JY201 -> FALSE | JZ80: ='Financial Model'!JZ201 -> FALSE | KA80: ='Financial Model'!KA201 -> FALSE | KB80: ='Financial Model'!KB201 -> FALSE | KC80: ='Financial Model'!KC201 -> FALSE | KD80: ='Financial Model'!KD201 -> FALSE | KE80: ='Financial Model'!KE201 -> FALSE | KF80: ='Financial Model'!KF201 -> FALSE | KG80: ='Financial Model'!KG201 -> FALSE | KH80: ='Financial Model'!KH201 -> FALSE | KI80: ='Financial Model'!KI201 -> FALSE | KJ80: ='Financial Model'!KJ201 -> FALSE | KK80: ='Financial Model'!KK201 -> FALSE | KL80: ='Financial Model'!KL201 -> FALSE | KM80: ='Financial Model'!KM201 -> FALSE | KN80: ='Financial Model'!KN201 -> FALSE | KO80: ='Financial Model'!KO201 -> FALSE | KP80: ='Financial Model'!KP201 -> FALSE | KQ80: ='Financial Model'!KQ201 -> FALSE | KR80: ='Financial Model'!KR201 -> FALSE | KS80: ='Financial Model'!KS201 -> FALSE | KT80: ='Financial Model'!KT201 -> FALSE | KU80: ='Financial Model'!KU201 -> FALSE | KV80: ='Financial Model'!KV201 -> FALSE
B81: Repayment (TRUE/FALES or 1,0) | E81: =COUNTIF(I81:KV81,TRUE) -> 50 | I81: ='Financial Model'!I532 -> FALSE | J81: ='Financial Model'!J532 -> FALSE | K81: ='Financial Model'!K532 -> FALSE | L81: ='Financial Model'!L532 -> FALSE | M81: ='Financial Model'!M532 -> FALSE | N81: ='Financial Model'!N532 -> FALSE | O81: ='Financial Model'!O532 -> FALSE | P81: ='Financial Model'!P532 -> FALSE | Q81: ='Financial Model'!Q532 -> FALSE | R81: ='Financial Model'!R532 -> FALSE | S81: ='Financial Model'!S532 -> FALSE | T81: ='Financial Model'!T532 -> FALSE | U81: ='Financial Model'!U532 -> FALSE | V81: ='Financial Model'!V532 -> FALSE | W81: ='Financial Model'!W532 -> FALSE | X81: ='Financial Model'!X532 -> FALSE | Y81: ='Financial Model'!Y532 -> FALSE | Z81: ='Financial Model'!Z532 -> FALSE | AA81: ='Financial Model'!AA532 -> FALSE | AB81: ='Financial Model'!AB532 -> FALSE | AC81: ='Financial Model'!AC532 -> FALSE | AD81: ='Financial Model'!AD532 -> FALSE | AE81: ='Financial Model'!AE532 -> FALSE | AF81: ='Financial Model'!AF532 -> FALSE | AG81: ='Financial Model'!AG532 -> FALSE | AH81: ='Financial Model'!AH532 -> FALSE | AI81: ='Financial Model'!AI532 -> FALSE | AJ81: ='Financial Model'!AJ532 -> FALSE | AK81: ='Financial Model'!AK532 -> FALSE | AL81: ='Financial Model'!AL532 -> FALSE | AM81: ='Financial Model'!AM532 -> FALSE | AN81: ='Financial Model'!AN532 -> FALSE | AO81: ='Financial Model'!AO532 -> FALSE | AP81: ='Financial Model'!AP532 -> FALSE | AQ81: ='Financial Model'!AQ532 -> FALSE | AR81: ='Financial Model'!AR532 -> FALSE | AS81: ='Financial Model'!AS532 -> FALSE | AT81: ='Financial Model'!AT532 -> FALSE | AU81: ='Financial Model'!AU532 -> FALSE | AV81: ='Financial Model'!AV532 -> FALSE | AW81: ='Financial Model'!AW532 -> FALSE | AX81: ='Financial Model'!AX532 -> FALSE | AY81: ='Financial Model'!AY532 -> FALSE | AZ81: ='Financial Model'!AZ532 -> FALSE | BA81: ='Financial Model'!BA532 -> FALSE | BB81: ='Financial Model'!BB532 -> FALSE | BC81: ='Financial Model'!BC532 -> FALSE | BD81: ='Financial Model'!BD532 -> FALSE | BE81: ='Financial Model'!BE532 -> FALSE | BF81: ='Financial Model'!BF532 -> FALSE | BG81: ='Financial Model'!BG532 -> FALSE | BH81: ='Financial Model'!BH532 -> TRUE | BI81: ='Financial Model'!BI532 -> TRUE | BJ81: ='Financial Model'!BJ532 -> TRUE | BK81: ='Financial Model'!BK532 -> TRUE | BL81: ='Financial Model'!BL532 -> TRUE | BM81: ='Financial Model'!BM532 -> TRUE | BN81: ='Financial Model'!BN532 -> TRUE | BO81: ='Financial Model'!BO532 -> TRUE | BP81: ='Financial Model'!BP532 -> TRUE | BQ81: ='Financial Model'!BQ532 -> TRUE | BR81: ='Financial Model'!BR532 -> TRUE | BS81: ='Financial Model'!BS532 -> TRUE | BT81: ='Financial Model'!BT532 -> TRUE | BU81: ='Financial Model'!BU532 -> TRUE | BV81: ='Financial Model'!BV532 -> TRUE | BW81: ='Financial Model'!BW532 -> TRUE | BX81: ='Financial Model'!BX532 -> TRUE | BY81: ='Financial Model'!BY532 -> TRUE | BZ81: ='Financial Model'!BZ532 -> TRUE | CA81: ='Financial Model'!CA532 -> TRUE | CB81: ='Financial Model'!CB532 -> TRUE | CC81: ='Financial Model'!CC532 -> TRUE | CD81: ='Financial Model'!CD532 -> TRUE | CE81: ='Financial Model'!CE532 -> TRUE | CF81: ='Financial Model'!CF532 -> TRUE | CG81: ='Financial Model'!CG532 -> TRUE | CH81: ='Financial Model'!CH532 -> TRUE | CI81: ='Financial Model'!CI532 -> TRUE | CJ81: ='Financial Model'!CJ532 -> TRUE | CK81: ='Financial Model'!CK532 -> TRUE | CL81: ='Financial Model'!CL532 -> TRUE | CM81: ='Financial Model'!CM532 -> TRUE | CN81: ='Financial Model'!CN532 -> TRUE | CO81: ='Financial Model'!CO532 -> TRUE | CP81: ='Financial Model'!CP532 -> TRUE | CQ81: ='Financial Model'!CQ532 -> TRUE | CR81: ='Financial Model'!CR532 -> TRUE | CS81: ='Financial Model'!CS532 -> TRUE | CT81: ='Financial Model'!CT532 -> TRUE | CU81: ='Financial Model'!CU532 -> TRUE | CV81: ='Financial Model'!CV532 -> TRUE | CW81: ='Financial Model'!CW532 -> TRUE | CX81: ='Financial Model'!CX532 -> TRUE | CY81: ='Financial Model'!CY532 -> TRUE | CZ81: ='Financial Model'!CZ532 -> TRUE | DA81: ='Financial Model'!DA532 -> TRUE | DB81: ='Financial Model'!DB532 -> TRUE | DC81: ='Financial Model'!DC532 -> TRUE | DD81: ='Financial Model'!DD532 -> TRUE | DE81: ='Financial Model'!DE532 -> TRUE | DF81: ='Financial Model'!DF532 -> FALSE | DG81: ='Financial Model'!DG532 -> FALSE | DH81: ='Financial Model'!DH532 -> FALSE | DI81: ='Financial Model'!DI532 -> FALSE | DJ81: ='Financial Model'!DJ532 -> FALSE | DK81: ='Financial Model'!DK532 -> FALSE | DL81: ='Financial Model'!DL532 -> FALSE | DM81: ='Financial Model'!DM532 -> FALSE | DN81: ='Financial Model'!DN532 -> FALSE | DO81: ='Financial Model'!DO532 -> FALSE | DP81: ='Financial Model'!DP532 -> FALSE | DQ81: ='Financial Model'!DQ532 -> FALSE | DR81: ='Financial Model'!DR532 -> FALSE | DS81: ='Financial Model'!DS532 -> FALSE | DT81: ='Financial Model'!DT532 -> FALSE | DU81: ='Financial Model'!DU532 -> FALSE | DV81: ='Financial Model'!DV532 -> FALSE | DW81: ='Financial Model'!DW532 -> FALSE | DX81: ='Financial Model'!DX532 -> FALSE | DY81: ='Financial Model'!DY532 -> FALSE | DZ81: ='Financial Model'!DZ532 -> FALSE | EA81: ='Financial Model'!EA532 -> FALSE | EB81: ='Financial Model'!EB532 -> FALSE | EC81: ='Financial Model'!EC532 -> FALSE | ED81: ='Financial Model'!ED532 -> FALSE | EE81: ='Financial Model'!EE532 -> FALSE | EF81: ='Financial Model'!EF532 -> FALSE | EG81: ='Financial Model'!EG532 -> FALSE | EH81: ='Financial Model'!EH532 -> FALSE | EI81: ='Financial Model'!EI532 -> FALSE | EJ81: ='Financial Model'!EJ532 -> FALSE | EK81: ='Financial Model'!EK532 -> FALSE | EL81: ='Financial Model'!EL532 -> FALSE | EM81: ='Financial Model'!EM532 -> FALSE | EN81: ='Financial Model'!EN532 -> FALSE | EO81: ='Financial Model'!EO532 -> FALSE | EP81: ='Financial Model'!EP532 -> FALSE | EQ81: ='Financial Model'!EQ532 -> FALSE | ER81: ='Financial Model'!ER532 -> FALSE | ES81: ='Financial Model'!ES532 -> FALSE | ET81: ='Financial Model'!ET532 -> FALSE | EU81: ='Financial Model'!EU532 -> FALSE | EV81: ='Financial Model'!EV532 -> FALSE | EW81: ='Financial Model'!EW532 -> FALSE | EX81: ='Financial Model'!EX532 -> FALSE | EY81: ='Financial Model'!EY532 -> FALSE | EZ81: ='Financial Model'!EZ532 -> FALSE | FA81: ='Financial Model'!FA532 -> FALSE | FB81: ='Financial Model'!FB532 -> FALSE | FC81: ='Financial Model'!FC532 -> FALSE | FD81: ='Financial Model'!FD532 -> FALSE | FE81: ='Financial Model'!FE532 -> FALSE | FF81: ='Financial Model'!FF532 -> FALSE | FG81: ='Financial Model'!FG532 -> FALSE | FH81: ='Financial Model'!FH532 -> FALSE | FI81: ='Financial Model'!FI532 -> FALSE | FJ81: ='Financial Model'!FJ532 -> FALSE | FK81: ='Financial Model'!FK532 -> FALSE | FL81: ='Financial Model'!FL532 -> FALSE | FM81: ='Financial Model'!FM532 -> FALSE | FN81: ='Financial Model'!FN532 -> FALSE | FO81: ='Financial Model'!FO532 -> FALSE | FP81: ='Financial Model'!FP532 -> FALSE | FQ81: ='Financial Model'!FQ532 -> FALSE | FR81: ='Financial Model'!FR532 -> FALSE | FS81: ='Financial Model'!FS532 -> FALSE | FT81: ='Financial Model'!FT532 -> FALSE | FU81: ='Financial Model'!FU532 -> FALSE | FV81: ='Financial Model'!FV532 -> FALSE | FW81: ='Financial Model'!FW532 -> FALSE | FX81: ='Financial Model'!FX532 -> FALSE | FY81: ='Financial Model'!FY532 -> FALSE | FZ81: ='Financial Model'!FZ532 -> FALSE | GA81: ='Financial Model'!GA532 -> FALSE | GB81: ='Financial Model'!GB532 -> FALSE | GC81: ='Financial Model'!GC532 -> FALSE | GD81: ='Financial Model'!GD532 -> FALSE | GE81: ='Financial Model'!GE532 -> FALSE | GF81: ='Financial Model'!GF532 -> FALSE | GG81: ='Financial Model'!GG532 -> FALSE | GH81: ='Financial Model'!GH532 -> FALSE | GI81: ='Financial Model'!GI532 -> FALSE | GJ81: ='Financial Model'!GJ532 -> FALSE | GK81: ='Financial Model'!GK532 -> FALSE | GL81: ='Financial Model'!GL532 -> FALSE | GM81: ='Financial Model'!GM532 -> FALSE | GN81: ='Financial Model'!GN532 -> FALSE | GO81: ='Financial Model'!GO532 -> FALSE | GP81: ='Financial Model'!GP532 -> FALSE | GQ81: ='Financial Model'!GQ532 -> FALSE | GR81: ='Financial Model'!GR532 -> FALSE | GS81: ='Financial Model'!GS532 -> FALSE | GT81: ='Financial Model'!GT532 -> FALSE | GU81: ='Financial Model'!GU532 -> FALSE | GV81: ='Financial Model'!GV532 -> FALSE | GW81: ='Financial Model'!GW532 -> FALSE | GX81: ='Financial Model'!GX532 -> FALSE | GY81: ='Financial Model'!GY532 -> FALSE | GZ81: ='Financial Model'!GZ532 -> FALSE | HA81: ='Financial Model'!HA532 -> FALSE | HB81: ='Financial Model'!HB532 -> FALSE | HC81: ='Financial Model'!HC532 -> FALSE | HD81: ='Financial Model'!HD532 -> FALSE | HE81: ='Financial Model'!HE532 -> FALSE | HF81: ='Financial Model'!HF532 -> FALSE | HG81: ='Financial Model'!HG532 -> FALSE | HH81: ='Financial Model'!HH532 -> FALSE | HI81: ='Financial Model'!HI532 -> FALSE | HJ81: ='Financial Model'!HJ532 -> FALSE | HK81: ='Financial Model'!HK532 -> FALSE | HL81: ='Financial Model'!HL532 -> FALSE | HM81: ='Financial Model'!HM532 -> FALSE | HN81: ='Financial Model'!HN532 -> FALSE | HO81: ='Financial Model'!HO532 -> FALSE | HP81: ='Financial Model'!HP532 -> FALSE | HQ81: ='Financial Model'!HQ532 -> FALSE | HR81: ='Financial Model'!HR532 -> FALSE | HS81: ='Financial Model'!HS532 -> FALSE | HT81: ='Financial Model'!HT532 -> FALSE | HU81: ='Financial Model'!HU532 -> FALSE | HV81: ='Financial Model'!HV532 -> FALSE | HW81: ='Financial Model'!HW532 -> FALSE | HX81: ='Financial Model'!HX532 -> FALSE | HY81: ='Financial Model'!HY532 -> FALSE | HZ81: ='Financial Model'!HZ532 -> FALSE | IA81: ='Financial Model'!IA532 -> FALSE | IB81: ='Financial Model'!IB532 -> FALSE | IC81: ='Financial Model'!IC532 -> FALSE | ID81: ='Financial Model'!ID532 -> FALSE | IE81: ='Financial Model'!IE532 -> FALSE | IF81: ='Financial Model'!IF532 -> FALSE | IG81: ='Financial Model'!IG532 -> FALSE | IH81: ='Financial Model'!IH532 -> FALSE | II81: ='Financial Model'!II532 -> FALSE | IJ81: ='Financial Model'!IJ532 -> FALSE | IK81: ='Financial Model'!IK532 -> FALSE | IL81: ='Financial Model'!IL532 -> FALSE | IM81: ='Financial Model'!IM532 -> FALSE | IN81: ='Financial Model'!IN532 -> FALSE | IO81: ='Financial Model'!IO532 -> FALSE | IP81: ='Financial Model'!IP532 -> FALSE | IQ81: ='Financial Model'!IQ532 -> FALSE | IR81: ='Financial Model'!IR532 -> FALSE | IS81: ='Financial Model'!IS532 -> FALSE | IT81: ='Financial Model'!IT532 -> FALSE | IU81: ='Financial Model'!IU532 -> FALSE | IV81: ='Financial Model'!IV532 -> FALSE | IW81: ='Financial Model'!IW532 -> FALSE | IX81: ='Financial Model'!IX532 -> FALSE | IY81: ='Financial Model'!IY532 -> FALSE | IZ81: ='Financial Model'!IZ532 -> FALSE | JA81: ='Financial Model'!JA532 -> FALSE | JB81: ='Financial Model'!JB532 -> FALSE | JC81: ='Financial Model'!JC532 -> FALSE | JD81: ='Financial Model'!JD532 -> FALSE | JE81: ='Financial Model'!JE532 -> FALSE | JF81: ='Financial Model'!JF532 -> FALSE | JG81: ='Financial Model'!JG532 -> FALSE | JH81: ='Financial Model'!JH532 -> FALSE | JI81: ='Financial Model'!JI532 -> FALSE | JJ81: ='Financial Model'!JJ532 -> FALSE | JK81: ='Financial Model'!JK532 -> FALSE | JL81: ='Financial Model'!JL532 -> FALSE | JM81: ='Financial Model'!JM532 -> FALSE | JN81: ='Financial Model'!JN532 -> FALSE | JO81: ='Financial Model'!JO532 -> FALSE | JP81: ='Financial Model'!JP532 -> FALSE | JQ81: ='Financial Model'!JQ532 -> FALSE | JR81: ='Financial Model'!JR532 -> FALSE | JS81: ='Financial Model'!JS532 -> FALSE | JT81: ='Financial Model'!JT532 -> FALSE | JU81: ='Financial Model'!JU532 -> FALSE | JV81: ='Financial Model'!JV532 -> FALSE | JW81: ='Financial Model'!JW532 -> FALSE | JX81: ='Financial Model'!JX532 -> FALSE | JY81: ='Financial Model'!JY532 -> FALSE | JZ81: ='Financial Model'!JZ532 -> FALSE | KA81: ='Financial Model'!KA532 -> FALSE | KB81: ='Financial Model'!KB532 -> FALSE | KC81: ='Financial Model'!KC532 -> FALSE | KD81: ='Financial Model'!KD532 -> FALSE | KE81: ='Financial Model'!KE532 -> FALSE | KF81: ='Financial Model'!KF532 -> FALSE | KG81: ='Financial Model'!KG532 -> FALSE | KH81: ='Financial Model'!KH532 -> FALSE | KI81: ='Financial Model'!KI532 -> FALSE | KJ81: ='Financial Model'!KJ532 -> FALSE | KK81: ='Financial Model'!KK532 -> FALSE | KL81: ='Financial Model'!KL532 -> FALSE | KM81: ='Financial Model'!KM532 -> FALSE | KN81: ='Financial Model'!KN532 -> FALSE | KO81: ='Financial Model'!KO532 -> FALSE | KP81: ='Financial Model'!KP532 -> FALSE | KQ81: ='Financial Model'!KQ532 -> FALSE | KR81: ='Financial Model'!KR532 -> FALSE | KS81: ='Financial Model'!KS532 -> FALSE | KT81: ='Financial Model'!KT532 -> FALSE | KU81: ='Financial Model'!KU532 -> FALSE | KV81: ='Financial Model'!KV532 -> FALSE
B83: Capital Expenditures (Physical) | I83: ='Financial Model'!I213 -> 0 | J83: ='Financial Model'!J213 -> 143717.7884 | K83: ='Financial Model'!K213 -> 48431.72513 | L83: ='Financial Model'!L213 -> 53501.55037 | M83: ='Financial Model'!M213 -> 58934.21039 | N83: ='Financial Model'!N213 -> 64734.1194 | O83: ='Financial Model'!O213 -> 70902.85016 | P83: ='Financial Model'!P213 -> 77438.83587 | Q83: ='Financial Model'!Q213 -> 84337.08992 | R83: ='Financial Model'!R213 -> 91588.95011 | S83: ='Financial Model'!S213 -> 99181.85427 | T83: ='Financial Model'!T213 -> 107099.1539 | U83: ='Financial Model'!U213 -> 115319.9723 | V83: ='Financial Model'!V213 -> 123819.1141 | W83: ='Financial Model'!W213 -> 132567.0308 | X83: ='Financial Model'!X213 -> 141529.8477 | Y83: ='Financial Model'!Y213 -> 150669.4569 | Z83: ='Financial Model'!Z213 -> 159943.6784 | AA83: ='Financial Model'!AA213 -> 169306.4916 | AB83: ='Financial Model'!AB213 -> 178708.3374 | AC83: ='Financial Model'!AC213 -> 188096.4902 | AD83: ='Financial Model'!AD213 -> 197415.4976 | AE83: ='Financial Model'!AE213 -> 206607.6829 | AF83: ='Financial Model'!AF213 -> 215613.7064 | AG83: ='Financial Model'!AG213 -> 224373.1766 | AH83: ='Financial Model'!AH213 -> 232825.3054 | AI83: ='Financial Model'!AI213 -> 240909.5962 | AJ83: ='Financial Model'!AJ213 -> 248566.554 | AK83: ='Financial Model'!AK213 -> 255738.4076 | AL83: ='Financial Model'!AL213 -> 262369.8309 | AM83: ='Financial Model'!AM213 -> 268408.65 | AN83: ='Financial Model'!AN213 -> 273806.5249 | AO83: ='Financial Model'!AO213 -> 278519.5934 | AP83: ='Financial Model'!AP213 -> 282509.0633 | AQ83: ='Financial Model'!AQ213 -> 285741.7441 | AR83: ='Financial Model'!AR213 -> 288190.5068 | AS83: ='Financial Model'!AS213 -> 289834.6629 | AT83: ='Financial Model'!AT213 -> 290660.2551 | AU83: ='Financial Model'!AU213 -> 290660.2551 | AV83: ='Financial Model'!AV213 -> 289834.6629 | AW83: ='Financial Model'!AW213 -> 288190.5068 | AX83: ='Financial Model'!AX213 -> 285741.7441 | AY83: ='Financial Model'!AY213 -> 282509.0633 | AZ83: ='Financial Model'!AZ213 -> 278519.5934 | BA83: ='Financial Model'!BA213 -> 273806.5249 | BB83: ='Financial Model'!BB213 -> 268408.65 | BC83: ='Financial Model'!BC213 -> 262369.8309 | BD83: ='Financial Model'!BD213 -> 255738.4076 | BE83: ='Financial Model'!BE213 -> 248566.554 | BF83: ='Financial Model'!BF213 -> 240909.5962 | BG83: ='Financial Model'!BG213 -> 232825.3054 | BH83: ='Financial Model'!BH213 -> 0 | BI83: ='Financial Model'!BI213 -> 0 | BJ83: ='Financial Model'!BJ213 -> 0 | BK83: ='Financial Model'!BK213 -> 0 | BL83: ='Financial Model'!BL213 -> 0 | BM83: ='Financial Model'!BM213 -> 0 | BN83: ='Financial Model'!BN213 -> 0 | BO83: ='Financial Model'!BO213 -> 0 | BP83: ='Financial Model'!BP213 -> 0 | BQ83: ='Financial Model'!BQ213 -> 0 | BR83: ='Financial Model'!BR213 -> 0 | BS83: ='Financial Model'!BS213 -> 0 | BT83: ='Financial Model'!BT213 -> 0 | BU83: ='Financial Model'!BU213 -> 0 | BV83: ='Financial Model'!BV213 -> 0 | BW83: ='Financial Model'!BW213 -> 0 | BX83: ='Financial Model'!BX213 -> 0 | BY83: ='Financial Model'!BY213 -> 0 | BZ83: ='Financial Model'!BZ213 -> 0 | CA83: ='Financial Model'!CA213 -> 0 | CB83: ='Financial Model'!CB213 -> 0 | CC83: ='Financial Model'!CC213 -> 0 | CD83: ='Financial Model'!CD213 -> 0 | CE83: ='Financial Model'!CE213 -> 0 | CF83: ='Financial Model'!CF213 -> 0 | CG83: ='Financial Model'!CG213 -> 0 | CH83: ='Financial Model'!CH213 -> 0 | CI83: ='Financial Model'!CI213 -> 0 | CJ83: ='Financial Model'!CJ213 -> 0 | CK83: ='Financial Model'!CK213 -> 0 | CL83: ='Financial Model'!CL213 -> 0 | CM83: ='Financial Model'!CM213 -> 0 | CN83: ='Financial Model'!CN213 -> 0 | CO83: ='Financial Model'!CO213 -> 0 | CP83: ='Financial Model'!CP213 -> 0 | CQ83: ='Financial Model'!CQ213 -> 0 | CR83: ='Financial Model'!CR213 -> 0 | CS83: ='Financial Model'!CS213 -> 0 | CT83: ='Financial Model'!CT213 -> 0 | CU83: ='Financial Model'!CU213 -> 0 | CV83: ='Financial Model'!CV213 -> 0 | CW83: ='Financial Model'!CW213 -> 0 | CX83: ='Financial Model'!CX213 -> 0 | CY83: ='Financial Model'!CY213 -> 0 | CZ83: ='Financial Model'!CZ213 -> 0 | DA83: ='Financial Model'!DA213 -> 0 | DB83: ='Financial Model'!DB213 -> 0 | DC83: ='Financial Model'!DC213 -> 0 | DD83: ='Financial Model'!DD213 -> 0 | DE83: ='Financial Model'!DE213 -> 0 | DF83: ='Financial Model'!DF213 -> 0 | DG83: ='Financial Model'!DG213 -> 0 | DH83: ='Financial Model'!DH213 -> 0 | DI83: ='Financial Model'!DI213 -> 0 | DJ83: ='Financial Model'!DJ213 -> 0 | DK83: ='Financial Model'!DK213 -> 0 | DL83: ='Financial Model'!DL213 -> 0 | DM83: ='Financial Model'!DM213 -> 0 | DN83: ='Financial Model'!DN213 -> 0 | DO83: ='Financial Model'!DO213 -> 0 | DP83: ='Financial Model'!DP213 -> 0 | DQ83: ='Financial Model'!DQ213 -> 0 | DR83: ='Financial Model'!DR213 -> 0 | DS83: ='Financial Model'!DS213 -> 0 | DT83: ='Financial Model'!DT213 -> 0 | DU83: ='Financial Model'!DU213 -> 0 | DV83: ='Financial Model'!DV213 -> 0 | DW83: ='Financial Model'!DW213 -> 0 | DX83: ='Financial Model'!DX213 -> 0 | DY83: ='Financial Model'!DY213 -> 0 | DZ83: ='Financial Model'!DZ213 -> 0 | EA83: ='Financial Model'!EA213 -> 0 | EB83: ='Financial Model'!EB213 -> 0 | EC83: ='Financial Model'!EC213 -> 0 | ED83: ='Financial Model'!ED213 -> 0 | EE83: ='Financial Model'!EE213 -> 0 | EF83: ='Financial Model'!EF213 -> 0 | EG83: ='Financial Model'!EG213 -> 0 | EH83: ='Financial Model'!EH213 -> 0 | EI83: ='Financial Model'!EI213 -> 0 | EJ83: ='Financial Model'!EJ213 -> 0 | EK83: ='Financial Model'!EK213 -> 0 | EL83: ='Financial Model'!EL213 -> 0 | EM83: ='Financial Model'!EM213 -> 0 | EN83: ='Financial Model'!EN213 -> 0 | EO83: ='Financial Model'!EO213 -> 0 | EP83: ='Financial Model'!EP213 -> 0 | EQ83: ='Financial Model'!EQ213 -> 0 | ER83: ='Financial Model'!ER213 -> 0 | ES83: ='Financial Model'!ES213 -> 0 | ET83: ='Financial Model'!ET213 -> 0 | EU83: ='Financial Model'!EU213 -> 0 | EV83: ='Financial Model'!EV213 -> 0 | EW83: ='Financial Model'!EW213 -> 0 | EX83: ='Financial Model'!EX213 -> 0 | EY83: ='Financial Model'!EY213 -> 0 | EZ83: ='Financial Model'!EZ213 -> 0 | FA83: ='Financial Model'!FA213 -> 0 | FB83: ='Financial Model'!FB213 -> 0 | FC83: ='Financial Model'!FC213 -> 0 | FD83: ='Financial Model'!FD213 -> 0 | FE83: ='Financial Model'!FE213 -> 0 | FF83: ='Financial Model'!FF213 -> 0 | FG83: ='Financial Model'!FG213 -> 0 | FH83: ='Financial Model'!FH213 -> 0 | FI83: ='Financial Model'!FI213 -> 0 | FJ83: ='Financial Model'!FJ213 -> 0 | FK83: ='Financial Model'!FK213 -> 0 | FL83: ='Financial Model'!FL213 -> 0 | FM83: ='Financial Model'!FM213 -> 0 | FN83: ='Financial Model'!FN213 -> 0 | FO83: ='Financial Model'!FO213 -> 0 | FP83: ='Financial Model'!FP213 -> 0 | FQ83: ='Financial Model'!FQ213 -> 0 | FR83: ='Financial Model'!FR213 -> 0 | FS83: ='Financial Model'!FS213 -> 0 | FT83: ='Financial Model'!FT213 -> 0 | FU83: ='Financial Model'!FU213 -> 0 | FV83: ='Financial Model'!FV213 -> 0 | FW83: ='Financial Model'!FW213 -> 0 | FX83: ='Financial Model'!FX213 -> 0 | FY83: ='Financial Model'!FY213 -> 0 | FZ83: ='Financial Model'!FZ213 -> 0 | GA83: ='Financial Model'!GA213 -> 0 | GB83: ='Financial Model'!GB213 -> 0 | GC83: ='Financial Model'!GC213 -> 0 | GD83: ='Financial Model'!GD213 -> 0 | GE83: ='Financial Model'!GE213 -> 0 | GF83: ='Financial Model'!GF213 -> 0 | GG83: ='Financial Model'!GG213 -> 0 | GH83: ='Financial Model'!GH213 -> 0 | GI83: ='Financial Model'!GI213 -> 0 | GJ83: ='Financial Model'!GJ213 -> 0 | GK83: ='Financial Model'!GK213 -> 0 | GL83: ='Financial Model'!GL213 -> 0 | GM83: ='Financial Model'!GM213 -> 0 | GN83: ='Financial Model'!GN213 -> 0 | GO83: ='Financial Model'!GO213 -> 0 | GP83: ='Financial Model'!GP213 -> 0 | GQ83: ='Financial Model'!GQ213 -> 0 | GR83: ='Financial Model'!GR213 -> 0 | GS83: ='Financial Model'!GS213 -> 0 | GT83: ='Financial Model'!GT213 -> 0 | GU83: ='Financial Model'!GU213 -> 0 | GV83: ='Financial Model'!GV213 -> 0 | GW83: ='Financial Model'!GW213 -> 0 | GX83: ='Financial Model'!GX213 -> 0 | GY83: ='Financial Model'!GY213 -> 0 | GZ83: ='Financial Model'!GZ213 -> 0 | HA83: ='Financial Model'!HA213 -> 0 | HB83: ='Financial Model'!HB213 -> 0 | HC83: ='Financial Model'!HC213 -> 0 | HD83: ='Financial Model'!HD213 -> 0 | HE83: ='Financial Model'!HE213 -> 0 | HF83: ='Financial Model'!HF213 -> 0 | HG83: ='Financial Model'!HG213 -> 0 | HH83: ='Financial Model'!HH213 -> 0 | HI83: ='Financial Model'!HI213 -> 0 | HJ83: ='Financial Model'!HJ213 -> 0 | HK83: ='Financial Model'!HK213 -> 0 | HL83: ='Financial Model'!HL213 -> 0 | HM83: ='Financial Model'!HM213 -> 0 | HN83: ='Financial Model'!HN213 -> 0 | HO83: ='Financial Model'!HO213 -> 0 | HP83: ='Financial Model'!HP213 -> 0 | HQ83: ='Financial Model'!HQ213 -> 0 | HR83: ='Financial Model'!HR213 -> 0 | HS83: ='Financial Model'!HS213 -> 0 | HT83: ='Financial Model'!HT213 -> 0 | HU83: ='Financial Model'!HU213 -> 0 | HV83: ='Financial Model'!HV213 -> 0 | HW83: ='Financial Model'!HW213 -> 0 | HX83: ='Financial Model'!HX213 -> 0 | HY83: ='Financial Model'!HY213 -> 0 | HZ83: ='Financial Model'!HZ213 -> 0 | IA83: ='Financial Model'!IA213 -> 0 | IB83: ='Financial Model'!IB213 -> 0 | IC83: ='Financial Model'!IC213 -> 0 | ID83: ='Financial Model'!ID213 -> 0 | IE83: ='Financial Model'!IE213 -> 0 | IF83: ='Financial Model'!IF213 -> 0 | IG83: ='Financial Model'!IG213 -> 0 | IH83: ='Financial Model'!IH213 -> 0 | II83: ='Financial Model'!II213 -> 0 | IJ83: ='Financial Model'!IJ213 -> 0 | IK83: ='Financial Model'!IK213 -> 0 | IL83: ='Financial Model'!IL213 -> 0 | IM83: ='Financial Model'!IM213 -> 0 | IN83: ='Financial Model'!IN213 -> 0 | IO83: ='Financial Model'!IO213 -> 0 | IP83: ='Financial Model'!IP213 -> 0 | IQ83: ='Financial Model'!IQ213 -> 0 | IR83: ='Financial Model'!IR213 -> 0 | IS83: ='Financial Model'!IS213 -> 0 | IT83: ='Financial Model'!IT213 -> 0 | IU83: ='Financial Model'!IU213 -> 0 | IV83: ='Financial Model'!IV213 -> 0 | IW83: ='Financial Model'!IW213 -> 0 | IX83: ='Financial Model'!IX213 -> 0 | IY83: ='Financial Model'!IY213 -> 0 | IZ83: ='Financial Model'!IZ213 -> 0 | JA83: ='Financial Model'!JA213 -> 0 | JB83: ='Financial Model'!JB213 -> 0 | JC83: ='Financial Model'!JC213 -> 0 | JD83: ='Financial Model'!JD213 -> 0 | JE83: ='Financial Model'!JE213 -> 0 | JF83: ='Financial Model'!JF213 -> 0 | JG83: ='Financial Model'!JG213 -> 0 | JH83: ='Financial Model'!JH213 -> 0 | JI83: ='Financial Model'!JI213 -> 0 | JJ83: ='Financial Model'!JJ213 -> 0 | JK83: ='Financial Model'!JK213 -> 0 | JL83: ='Financial Model'!JL213 -> 0 | JM83: ='Financial Model'!JM213 -> 0 | JN83: ='Financial Model'!JN213 -> 0 | JO83: ='Financial Model'!JO213 -> 0 | JP83: ='Financial Model'!JP213 -> 0 | JQ83: ='Financial Model'!JQ213 -> 0 | JR83: ='Financial Model'!JR213 -> 0 | JS83: ='Financial Model'!JS213 -> 0 | JT83: ='Financial Model'!JT213 -> 0 | JU83: ='Financial Model'!JU213 -> 0 | JV83: ='Financial Model'!JV213 -> 0 | JW83: ='Financial Model'!JW213 -> 0 | JX83: ='Financial Model'!JX213 -> 0 | JY83: ='Financial Model'!JY213 -> 0 | JZ83: ='Financial Model'!JZ213 -> 0 | KA83: ='Financial Model'!KA213 -> 0 | KB83: ='Financial Model'!KB213 -> 0 | KC83: ='Financial Model'!KC213 -> 0 | KD83: ='Financial Model'!KD213 -> 0 | KE83: ='Financial Model'!KE213 -> 0 | KF83: ='Financial Model'!KF213 -> 0 | KG83: ='Financial Model'!KG213 -> 0 | KH83: ='Financial Model'!KH213 -> 0 | KI83: ='Financial Model'!KI213 -> 0 | KJ83: ='Financial Model'!KJ213 -> 0 | KK83: ='Financial Model'!KK213 -> 0 | KL83: ='Financial Model'!KL213 -> 0 | KM83: ='Financial Model'!KM213 -> 0 | KN83: ='Financial Model'!KN213 -> 0 | KO83: ='Financial Model'!KO213 -> 0 | KP83: ='Financial Model'!KP213 -> 0 | KQ83: ='Financial Model'!KQ213 -> 0 | KR83: ='Financial Model'!KR213 -> 0 | KS83: ='Financial Model'!KS213 -> 0 | KT83: ='Financial Model'!KT213 -> 0 | KU83: ='Financial Model'!KU213 -> 0 | KV83: ='Financial Model'!KV213 -> 0
B84: EBITDA | I84: ='Financial Model'!I244 -> 0 | J84: ='Financial Model'!J244 -> 0 | K84: ='Financial Model'!K244 -> 0 | L84: ='Financial Model'!L244 -> 0 | M84: ='Financial Model'!M244 -> 0 | N84: ='Financial Model'!N244 -> 0 | O84: ='Financial Model'!O244 -> 0 | P84: ='Financial Model'!P244 -> 0 | Q84: ='Financial Model'!Q244 -> 0 | R84: ='Financial Model'!R244 -> 0 | S84: ='Financial Model'!S244 -> 0 | T84: ='Financial Model'!T244 -> 0 | U84: ='Financial Model'!U244 -> 0 | V84: ='Financial Model'!V244 -> 0 | W84: ='Financial Model'!W244 -> 0 | X84: ='Financial Model'!X244 -> 0 | Y84: ='Financial Model'!Y244 -> 0 | Z84: ='Financial Model'!Z244 -> 0 | AA84: ='Financial Model'!AA244 -> 0 | AB84: ='Financial Model'!AB244 -> 0 | AC84: ='Financial Model'!AC244 -> 0 | AD84: ='Financial Model'!AD244 -> 0 | AE84: ='Financial Model'!AE244 -> 0 | AF84: ='Financial Model'!AF244 -> 0 | AG84: ='Financial Model'!AG244 -> 0 | AH84: ='Financial Model'!AH244 -> 0 | AI84: ='Financial Model'!AI244 -> 0 | AJ84: ='Financial Model'!AJ244 -> 0 | AK84: ='Financial Model'!AK244 -> 0 | AL84: ='Financial Model'!AL244 -> 0 | AM84: ='Financial Model'!AM244 -> 0 | AN84: ='Financial Model'!AN244 -> 0 | AO84: ='Financial Model'!AO244 -> 0 | AP84: ='Financial Model'!AP244 -> 0 | AQ84: ='Financial Model'!AQ244 -> 0 | AR84: ='Financial Model'!AR244 -> 0 | AS84: ='Financial Model'!AS244 -> 0 | AT84: ='Financial Model'!AT244 -> 0 | AU84: ='Financial Model'!AU244 -> 0 | AV84: ='Financial Model'!AV244 -> 0 | AW84: ='Financial Model'!AW244 -> 0 | AX84: ='Financial Model'!AX244 -> 0 | AY84: ='Financial Model'!AY244 -> 0 | AZ84: ='Financial Model'!AZ244 -> 0 | BA84: ='Financial Model'!BA244 -> 0 | BB84: ='Financial Model'!BB244 -> 0 | BC84: ='Financial Model'!BC244 -> 0 | BD84: ='Financial Model'!BD244 -> 0 | BE84: ='Financial Model'!BE244 -> 0 | BF84: ='Financial Model'!BF244 -> 0 | BG84: ='Financial Model'!BG244 -> 0 | BH84: ='Financial Model'!BH244 -> 315642.6656 | BI84: ='Financial Model'!BI244 -> 310976.4 | BJ84: ='Financial Model'!BJ244 -> 320377.3056 | BK84: ='Financial Model'!BK244 -> 318224.424 | BL84: ='Financial Model'!BL244 -> 325182.9652 | BM84: ='Financial Model'!BM244 -> 330338.3148 | BN84: ='Financial Model'!BN244 -> 350383.643 | BO84: ='Financial Model'!BO244 -> 355462.3181 | BP84: ='Financial Model'!BP244 -> 376267.175 | BQ84: ='Financial Model'!BQ244 -> 381265.7154 | BR84: ='Financial Model'!BR244 -> 402848.3766 | BS84: ='Financial Model'!BS244 -> 410904.8823 | BT84: ='Financial Model'!BT244 -> 430200.5767 | BU84: ='Financial Model'!BU244 -> 424453.681 | BV84: ='Financial Model'!BV244 -> 436653.5854 | BW84: ='Financial Model'!BW244 -> 430820.4862 | BX84: ='Financial Model'!BX244 -> 443203.3891 | BY84: ='Financial Model'!BY244 -> 437282.7935 | BZ84: ='Financial Model'!BZ244 -> 449851.44 | CA84: ='Financial Model'!CA244 -> 447237.2176 | CB84: ='Financial Model'!CB244 -> 456599.2116 | CC84: ='Financial Model'!CC244 -> 450499.6659 | CD84: ='Financial Model'!CD244 -> 463448.1998 | CE84: ='Financial Model'!CE244 -> 457257.1609 | CF84: ='Financial Model'!CF244 -> 470399.9228 | CG84: ='Financial Model'!CG244 -> 464116.0183 | CH84: ='Financial Model'!CH244 -> 477455.9216 | CI84: ='Financial Model'!CI244 -> 474681.2812 | CJ84: ='Financial Model'!CJ244 -> 360521.8091 | CK84: ='Financial Model'!CK244 -> 353120.7183 | CL84: ='Financial Model'!CL244 -> 365929.6363 | CM84: ='Financial Model'!CM244 -> 358417.5291 | CN84: ='Financial Model'!CN244 -> 371418.5808 | CO84: ='Financial Model'!CO244 -> 363793.792 | CP84: ='Financial Model'!CP244 -> 376989.8595 | CQ84: ='Financial Model'!CQ244 -> 373075.3464 | CR84: ='Financial Model'!CR244 -> 382644.7074 | CS84: ='Financial Model'!CS244 -> 374789.4594 | CT84: ='Financial Model'!CT244 -> 428490.353 | CU84: ='Financial Model'!CU244 -> 420816.9514 | CV84: ='Financial Model'!CV244 -> 434917.7083 | CW84: ='Financial Model'!CW244 -> 427129.2057 | CX84: ='Financial Model'!CX244 -> 441441.4739 | CY84: ='Financial Model'!CY244 -> 437595.4853 | CZ84: ='Financial Model'!CZ244 -> 448063.096 | DA84: ='Financial Model'!DA244 -> 440039.186 | DB84: ='Financial Model'!DB244 -> 454784.0425 | DC84: ='Financial Model'!DC244 -> 446639.7737 | DD84: ='Financial Model'!DD244 -> 461605.8031 | DE84: ='Financial Model'!DE244 -> 453339.3703 | DF84: ='Financial Model'!DF244 -> 468529.8902 | DG84: ='Financial Model'!DG244 -> 464447.898 | DH84: ='Financial Model'!DH244 -> 475557.8385 | DI84: ='Financial Model'!DI244 -> 467041.5528 | DJ84: ='Financial Model'!DJ244 -> 482691.2061 | DK84: ='Financial Model'!DK244 -> 474047.1761 | DL84: ='Financial Model'!DL244 -> 489931.5742 | DM84: ='Financial Model'!DM244 -> 481157.8838 | DN84: ='Financial Model'!DN244 -> 497280.5478 | DO84: ='Financial Model'!DO244 -> 492948.0701 | DP84: ='Financial Model'!DP244 -> 0 | DQ84: ='Financial Model'!DQ244 -> 0 | DR84: ='Financial Model'!DR244 -> 0 | DS84: ='Financial Model'!DS244 -> 0 | DT84: ='Financial Model'!DT244 -> 0 | DU84: ='Financial Model'!DU244 -> 0 | DV84: ='Financial Model'!DV244 -> 0 | DW84: ='Financial Model'!DW244 -> 0 | DX84: ='Financial Model'!DX244 -> 0 | DY84: ='Financial Model'!DY244 -> 0 | DZ84: ='Financial Model'!DZ244 -> 0 | EA84: ='Financial Model'!EA244 -> 0 | EB84: ='Financial Model'!EB244 -> 0 | EC84: ='Financial Model'!EC244 -> 0 | ED84: ='Financial Model'!ED244 -> 0 | EE84: ='Financial Model'!EE244 -> 0 | EF84: ='Financial Model'!EF244 -> 0 | EG84: ='Financial Model'!EG244 -> 0 | EH84: ='Financial Model'!EH244 -> 0 | EI84: ='Financial Model'!EI244 -> 0 | EJ84: ='Financial Model'!EJ244 -> 0 | EK84: ='Financial Model'!EK244 -> 0 | EL84: ='Financial Model'!EL244 -> 0 | EM84: ='Financial Model'!EM244 -> 0 | EN84: ='Financial Model'!EN244 -> 0 | EO84: ='Financial Model'!EO244 -> 0 | EP84: ='Financial Model'!EP244 -> 0 | EQ84: ='Financial Model'!EQ244 -> 0 | ER84: ='Financial Model'!ER244 -> 0 | ES84: ='Financial Model'!ES244 -> 0 | ET84: ='Financial Model'!ET244 -> 0 | EU84: ='Financial Model'!EU244 -> 0 | EV84: ='Financial Model'!EV244 -> 0 | EW84: ='Financial Model'!EW244 -> 0 | EX84: ='Financial Model'!EX244 -> 0 | EY84: ='Financial Model'!EY244 -> 0 | EZ84: ='Financial Model'!EZ244 -> 0 | FA84: ='Financial Model'!FA244 -> 0 | FB84: ='Financial Model'!FB244 -> 0 | FC84: ='Financial Model'!FC244 -> 0 | FD84: ='Financial Model'!FD244 -> 0 | FE84: ='Financial Model'!FE244 -> 0 | FF84: ='Financial Model'!FF244 -> 0 | FG84: ='Financial Model'!FG244 -> 0 | FH84: ='Financial Model'!FH244 -> 0 | FI84: ='Financial Model'!FI244 -> 0 | FJ84: ='Financial Model'!FJ244 -> 0 | FK84: ='Financial Model'!FK244 -> 0 | FL84: ='Financial Model'!FL244 -> 0 | FM84: ='Financial Model'!FM244 -> 0 | FN84: ='Financial Model'!FN244 -> 0 | FO84: ='Financial Model'!FO244 -> 0 | FP84: ='Financial Model'!FP244 -> 0 | FQ84: ='Financial Model'!FQ244 -> 0 | FR84: ='Financial Model'!FR244 -> 0 | FS84: ='Financial Model'!FS244 -> 0 | FT84: ='Financial Model'!FT244 -> 0 | FU84: ='Financial Model'!FU244 -> 0 | FV84: ='Financial Model'!FV244 -> 0 | FW84: ='Financial Model'!FW244 -> 0 | FX84: ='Financial Model'!FX244 -> 0 | FY84: ='Financial Model'!FY244 -> 0 | FZ84: ='Financial Model'!FZ244 -> 0 | GA84: ='Financial Model'!GA244 -> 0 | GB84: ='Financial Model'!GB244 -> 0 | GC84: ='Financial Model'!GC244 -> 0 | GD84: ='Financial Model'!GD244 -> 0 | GE84: ='Financial Model'!GE244 -> 0 | GF84: ='Financial Model'!GF244 -> 0 | GG84: ='Financial Model'!GG244 -> 0 | GH84: ='Financial Model'!GH244 -> 0 | GI84: ='Financial Model'!GI244 -> 0 | GJ84: ='Financial Model'!GJ244 -> 0 | GK84: ='Financial Model'!GK244 -> 0 | GL84: ='Financial Model'!GL244 -> 0 | GM84: ='Financial Model'!GM244 -> 0 | GN84: ='Financial Model'!GN244 -> 0 | GO84: ='Financial Model'!GO244 -> 0 | GP84: ='Financial Model'!GP244 -> 0 | GQ84: ='Financial Model'!GQ244 -> 0 | GR84: ='Financial Model'!GR244 -> 0 | GS84: ='Financial Model'!GS244 -> 0 | GT84: ='Financial Model'!GT244 -> 0 | GU84: ='Financial Model'!GU244 -> 0 | GV84: ='Financial Model'!GV244 -> 0 | GW84: ='Financial Model'!GW244 -> 0 | GX84: ='Financial Model'!GX244 -> 0 | GY84: ='Financial Model'!GY244 -> 0 | GZ84: ='Financial Model'!GZ244 -> 0 | HA84: ='Financial Model'!HA244 -> 0 | HB84: ='Financial Model'!HB244 -> 0 | HC84: ='Financial Model'!HC244 -> 0 | HD84: ='Financial Model'!HD244 -> 0 | HE84: ='Financial Model'!HE244 -> 0 | HF84: ='Financial Model'!HF244 -> 0 | HG84: ='Financial Model'!HG244 -> 0 | HH84: ='Financial Model'!HH244 -> 0 | HI84: ='Financial Model'!HI244 -> 0 | HJ84: ='Financial Model'!HJ244 -> 0 | HK84: ='Financial Model'!HK244 -> 0 | HL84: ='Financial Model'!HL244 -> 0 | HM84: ='Financial Model'!HM244 -> 0 | HN84: ='Financial Model'!HN244 -> 0 | HO84: ='Financial Model'!HO244 -> 0 | HP84: ='Financial Model'!HP244 -> 0 | HQ84: ='Financial Model'!HQ244 -> 0 | HR84: ='Financial Model'!HR244 -> 0 | HS84: ='Financial Model'!HS244 -> 0 | HT84: ='Financial Model'!HT244 -> 0 | HU84: ='Financial Model'!HU244 -> 0 | HV84: ='Financial Model'!HV244 -> 0 | HW84: ='Financial Model'!HW244 -> 0 | HX84: ='Financial Model'!HX244 -> 0 | HY84: ='Financial Model'!HY244 -> 0 | HZ84: ='Financial Model'!HZ244 -> 0 | IA84: ='Financial Model'!IA244 -> 0 | IB84: ='Financial Model'!IB244 -> 0 | IC84: ='Financial Model'!IC244 -> 0 | ID84: ='Financial Model'!ID244 -> 0 | IE84: ='Financial Model'!IE244 -> 0 | IF84: ='Financial Model'!IF244 -> 0 | IG84: ='Financial Model'!IG244 -> 0 | IH84: ='Financial Model'!IH244 -> 0 | II84: ='Financial Model'!II244 -> 0 | IJ84: ='Financial Model'!IJ244 -> 0 | IK84: ='Financial Model'!IK244 -> 0 | IL84: ='Financial Model'!IL244 -> 0 | IM84: ='Financial Model'!IM244 -> 0 | IN84: ='Financial Model'!IN244 -> 0 | IO84: ='Financial Model'!IO244 -> 0 | IP84: ='Financial Model'!IP244 -> 0 | IQ84: ='Financial Model'!IQ244 -> 0 | IR84: ='Financial Model'!IR244 -> 0 | IS84: ='Financial Model'!IS244 -> 0 | IT84: ='Financial Model'!IT244 -> 0 | IU84: ='Financial Model'!IU244 -> 0 | IV84: ='Financial Model'!IV244 -> 0 | IW84: ='Financial Model'!IW244 -> 0 | IX84: ='Financial Model'!IX244 -> 0 | IY84: ='Financial Model'!IY244 -> 0 | IZ84: ='Financial Model'!IZ244 -> 0 | JA84: ='Financial Model'!JA244 -> 0 | JB84: ='Financial Model'!JB244 -> 0 | JC84: ='Financial Model'!JC244 -> 0 | JD84: ='Financial Model'!JD244 -> 0 | JE84: ='Financial Model'!JE244 -> 0 | JF84: ='Financial Model'!JF244 -> 0 | JG84: ='Financial Model'!JG244 -> 0 | JH84: ='Financial Model'!JH244 -> 0 | JI84: ='Financial Model'!JI244 -> 0 | JJ84: ='Financial Model'!JJ244 -> 0 | JK84: ='Financial Model'!JK244 -> 0 | JL84: ='Financial Model'!JL244 -> 0 | JM84: ='Financial Model'!JM244 -> 0 | JN84: ='Financial Model'!JN244 -> 0 | JO84: ='Financial Model'!JO244 -> 0 | JP84: ='Financial Model'!JP244 -> 0 | JQ84: ='Financial Model'!JQ244 -> 0 | JR84: ='Financial Model'!JR244 -> 0 | JS84: ='Financial Model'!JS244 -> 0 | JT84: ='Financial Model'!JT244 -> 0 | JU84: ='Financial Model'!JU244 -> 0 | JV84: ='Financial Model'!JV244 -> 0 | JW84: ='Financial Model'!JW244 -> 0 | JX84: ='Financial Model'!JX244 -> 0 | JY84: ='Financial Model'!JY244 -> 0 | JZ84: ='Financial Model'!JZ244 -> 0 | KA84: ='Financial Model'!KA244 -> 0 | KB84: ='Financial Model'!KB244 -> 0 | KC84: ='Financial Model'!KC244 -> 0 | KD84: ='Financial Model'!KD244 -> 0 | KE84: ='Financial Model'!KE244 -> 0 | KF84: ='Financial Model'!KF244 -> 0 | KG84: ='Financial Model'!KG244 -> 0 | KH84: ='Financial Model'!KH244 -> 0 | KI84: ='Financial Model'!KI244 -> 0 | KJ84: ='Financial Model'!KJ244 -> 0 | KK84: ='Financial Model'!KK244 -> 0 | KL84: ='Financial Model'!KL244 -> 0 | KM84: ='Financial Model'!KM244 -> 0 | KN84: ='Financial Model'!KN244 -> 0 | KO84: ='Financial Model'!KO244 -> 0 | KP84: ='Financial Model'!KP244 -> 0 | KQ84: ='Financial Model'!KQ244 -> 0 | KR84: ='Financial Model'!KR244 -> 0 | KS84: ='Financial Model'!KS244 -> 0 | KT84: ='Financial Model'!KT244 -> 0 | KU84: ='Financial Model'!KU244 -> 0 | KV84: ='Financial Model'!KV244 -> 0
B85: Working Capital | I85: ='Financial Model'!I269 -> 0 | J85: ='Financial Model'!J269 -> 0 | K85: ='Financial Model'!K269 -> 0 | L85: ='Financial Model'!L269 -> 0 | M85: ='Financial Model'!M269 -> 0 | N85: ='Financial Model'!N269 -> 0 | O85: ='Financial Model'!O269 -> 0 | P85: ='Financial Model'!P269 -> 0 | Q85: ='Financial Model'!Q269 -> 0 | R85: ='Financial Model'!R269 -> 0 | S85: ='Financial Model'!S269 -> 0 | T85: ='Financial Model'!T269 -> 0 | U85: ='Financial Model'!U269 -> 0 | V85: ='Financial Model'!V269 -> 0 | W85: ='Financial Model'!W269 -> 0 | X85: ='Financial Model'!X269 -> 0 | Y85: ='Financial Model'!Y269 -> 0 | Z85: ='Financial Model'!Z269 -> 0 | AA85: ='Financial Model'!AA269 -> 0 | AB85: ='Financial Model'!AB269 -> 0 | AC85: ='Financial Model'!AC269 -> 0 | AD85: ='Financial Model'!AD269 -> 0 | AE85: ='Financial Model'!AE269 -> 0 | AF85: ='Financial Model'!AF269 -> 0 | AG85: ='Financial Model'!AG269 -> 0 | AH85: ='Financial Model'!AH269 -> 0 | AI85: ='Financial Model'!AI269 -> 0 | AJ85: ='Financial Model'!AJ269 -> 0 | AK85: ='Financial Model'!AK269 -> 0 | AL85: ='Financial Model'!AL269 -> 0 | AM85: ='Financial Model'!AM269 -> 0 | AN85: ='Financial Model'!AN269 -> 0 | AO85: ='Financial Model'!AO269 -> 0 | AP85: ='Financial Model'!AP269 -> 0 | AQ85: ='Financial Model'!AQ269 -> 0 | AR85: ='Financial Model'!AR269 -> 0 | AS85: ='Financial Model'!AS269 -> 0 | AT85: ='Financial Model'!AT269 -> 0 | AU85: ='Financial Model'!AU269 -> 0 | AV85: ='Financial Model'!AV269 -> 0 | AW85: ='Financial Model'!AW269 -> 0 | AX85: ='Financial Model'!AX269 -> 0 | AY85: ='Financial Model'!AY269 -> 0 | AZ85: ='Financial Model'!AZ269 -> 0 | BA85: ='Financial Model'!BA269 -> 0 | BB85: ='Financial Model'!BB269 -> 0 | BC85: ='Financial Model'!BC269 -> 0 | BD85: ='Financial Model'!BD269 -> 0 | BE85: ='Financial Model'!BE269 -> 0 | BF85: ='Financial Model'!BF269 -> 0 | BG85: ='Financial Model'!BG269 -> 0 | BH85: ='Financial Model'!BH269 -> 98280 | BI85: ='Financial Model'!BI269 -> 0 | BJ85: ='Financial Model'!BJ269 -> 1474.2 | BK85: ='Financial Model'!BK269 -> 0 | BL85: ='Financial Model'!BL269 -> 1496.313 | BM85: ='Financial Model'!BM269 -> 2113.717075 | BN85: ='Financial Model'!BN269 -> 3684.16266 | BO85: ='Financial Model'!BO269 -> 2145.422831 | BP85: ='Financial Model'!BP269 -> 3803.611931 | BQ85: ='Financial Model'!BQ269 -> 2177.604174 | BR85: ='Financial Model'!BR269 -> 3925.815743 | BS85: ='Financial Model'!BS269 -> 2210.268236 | BT85: ='Financial Model'!BT269 -> 4063.088994 | BU85: ='Financial Model'!BU269 -> 0 | BV85: ='Financial Model'!BV269 -> 1880.61307 | BW85: ='Financial Model'!BW269 -> 0 | BX85: ='Financial Model'!BX269 -> 1908.822266 | BY85: ='Financial Model'!BY269 -> 0 | BZ85: ='Financial Model'!BZ269 -> 1937.4546 | CA85: ='Financial Model'!CA269 -> 0 | CB85: ='Financial Model'!CB269 -> 1966.516419 | CC85: ='Financial Model'!CC269 -> 0 | CD85: ='Financial Model'!CD269 -> 1996.014165 | CE85: ='Financial Model'!CE269 -> 0 | CF85: ='Financial Model'!CF269 -> 2025.954377 | CG85: ='Financial Model'!CG269 -> 0 | CH85: ='Financial Model'!CH269 -> 2056.343693 | CI85: ='Financial Model'!CI269 -> 0 | CJ85: ='Financial Model'!CJ269 -> 2087.188848 | CK85: ='Financial Model'!CK269 -> 0 | CL85: ='Financial Model'!CL269 -> 2118.496681 | CM85: ='Financial Model'!CM269 -> 0 | CN85: ='Financial Model'!CN269 -> 2150.274131 | CO85: ='Financial Model'!CO269 -> 0 | CP85: ='Financial Model'!CP269 -> 2182.528243 | CQ85: ='Financial Model'!CQ269 -> 0 | CR85: ='Financial Model'!CR269 -> 2215.266167 | CS85: ='Financial Model'!CS269 -> 0 | CT85: ='Financial Model'!CT269 -> 2248.49516 | CU85: ='Financial Model'!CU269 -> 0 | CV85: ='Financial Model'!CV269 -> 2282.222587 | CW85: ='Financial Model'!CW269 -> 0 | CX85: ='Financial Model'!CX269 -> 2316.455926 | CY85: ='Financial Model'!CY269 -> 0 | CZ85: ='Financial Model'!CZ269 -> 2351.202765 | DA85: ='Financial Model'!DA269 -> 0 | DB85: ='Financial Model'!DB269 -> 2386.470806 | DC85: ='Financial Model'!DC269 -> 0 | DD85: ='Financial Model'!DD269 -> 2422.267868 | DE85: ='Financial Model'!DE269 -> 0 | DF85: ='Financial Model'!DF269 -> 2458.601886 | DG85: ='Financial Model'!DG269 -> 0 | DH85: ='Financial Model'!DH269 -> 2495.480915 | DI85: ='Financial Model'!DI269 -> 0 | DJ85: ='Financial Model'!DJ269 -> 2532.913128 | DK85: ='Financial Model'!DK269 -> 0 | DL85: ='Financial Model'!DL269 -> 2570.906825 | DM85: ='Financial Model'!DM269 -> 0 | DN85: ='Financial Model'!DN269 -> 2609.470428 | DO85: ='Financial Model'!DO269 -> 0 | DP85: ='Financial Model'!DP269 -> -176574.1656 | DQ85: ='Financial Model'!DQ269 -> 0 | DR85: ='Financial Model'!DR269 -> 0 | DS85: ='Financial Model'!DS269 -> 0 | DT85: ='Financial Model'!DT269 -> 0 | DU85: ='Financial Model'!DU269 -> 0 | DV85: ='Financial Model'!DV269 -> 0 | DW85: ='Financial Model'!DW269 -> 0 | DX85: ='Financial Model'!DX269 -> 0 | DY85: ='Financial Model'!DY269 -> 0 | DZ85: ='Financial Model'!DZ269 -> 0 | EA85: ='Financial Model'!EA269 -> 0 | EB85: ='Financial Model'!EB269 -> 0 | EC85: ='Financial Model'!EC269 -> 0 | ED85: ='Financial Model'!ED269 -> 0 | EE85: ='Financial Model'!EE269 -> 0 | EF85: ='Financial Model'!EF269 -> 0 | EG85: ='Financial Model'!EG269 -> 0 | EH85: ='Financial Model'!EH269 -> 0 | EI85: ='Financial Model'!EI269 -> 0 | EJ85: ='Financial Model'!EJ269 -> 0 | EK85: ='Financial Model'!EK269 -> 0 | EL85: ='Financial Model'!EL269 -> 0 | EM85: ='Financial Model'!EM269 -> 0 | EN85: ='Financial Model'!EN269 -> 0 | EO85: ='Financial Model'!EO269 -> 0 | EP85: ='Financial Model'!EP269 -> 0 | EQ85: ='Financial Model'!EQ269 -> 0 | ER85: ='Financial Model'!ER269 -> 0 | ES85: ='Financial Model'!ES269 -> 0 | ET85: ='Financial Model'!ET269 -> 0 | EU85: ='Financial Model'!EU269 -> 0 | EV85: ='Financial Model'!EV269 -> 0 | EW85: ='Financial Model'!EW269 -> 0 | EX85: ='Financial Model'!EX269 -> 0 | EY85: ='Financial Model'!EY269 -> 0 | EZ85: ='Financial Model'!EZ269 -> 0 | FA85: ='Financial Model'!FA269 -> 0 | FB85: ='Financial Model'!FB269 -> 0 | FC85: ='Financial Model'!FC269 -> 0 | FD85: ='Financial Model'!FD269 -> 0 | FE85: ='Financial Model'!FE269 -> 0 | FF85: ='Financial Model'!FF269 -> 0 | FG85: ='Financial Model'!FG269 -> 0 | FH85: ='Financial Model'!FH269 -> 0 | FI85: ='Financial Model'!FI269 -> 0 | FJ85: ='Financial Model'!FJ269 -> 0 | FK85: ='Financial Model'!FK269 -> 0 | FL85: ='Financial Model'!FL269 -> 0 | FM85: ='Financial Model'!FM269 -> 0 | FN85: ='Financial Model'!FN269 -> 0 | FO85: ='Financial Model'!FO269 -> 0 | FP85: ='Financial Model'!FP269 -> 0 | FQ85: ='Financial Model'!FQ269 -> 0 | FR85: ='Financial Model'!FR269 -> 0 | FS85: ='Financial Model'!FS269 -> 0 | FT85: ='Financial Model'!FT269 -> 0 | FU85: ='Financial Model'!FU269 -> 0 | FV85: ='Financial Model'!FV269 -> 0 | FW85: ='Financial Model'!FW269 -> 0 | FX85: ='Financial Model'!FX269 -> 0 | FY85: ='Financial Model'!FY269 -> 0 | FZ85: ='Financial Model'!FZ269 -> 0 | GA85: ='Financial Model'!GA269 -> 0 | GB85: ='Financial Model'!GB269 -> 0 | GC85: ='Financial Model'!GC269 -> 0 | GD85: ='Financial Model'!GD269 -> 0 | GE85: ='Financial Model'!GE269 -> 0 | GF85: ='Financial Model'!GF269 -> 0 | GG85: ='Financial Model'!GG269 -> 0 | GH85: ='Financial Model'!GH269 -> 0 | GI85: ='Financial Model'!GI269 -> 0 | GJ85: ='Financial Model'!GJ269 -> 0 | GK85: ='Financial Model'!GK269 -> 0 | GL85: ='Financial Model'!GL269 -> 0 | GM85: ='Financial Model'!GM269 -> 0 | GN85: ='Financial Model'!GN269 -> 0 | GO85: ='Financial Model'!GO269 -> 0 | GP85: ='Financial Model'!GP269 -> 0 | GQ85: ='Financial Model'!GQ269 -> 0 | GR85: ='Financial Model'!GR269 -> 0 | GS85: ='Financial Model'!GS269 -> 0 | GT85: ='Financial Model'!GT269 -> 0 | GU85: ='Financial Model'!GU269 -> 0 | GV85: ='Financial Model'!GV269 -> 0 | GW85: ='Financial Model'!GW269 -> 0 | GX85: ='Financial Model'!GX269 -> 0 | GY85: ='Financial Model'!GY269 -> 0 | GZ85: ='Financial Model'!GZ269 -> 0 | HA85: ='Financial Model'!HA269 -> 0 | HB85: ='Financial Model'!HB269 -> 0 | HC85: ='Financial Model'!HC269 -> 0 | HD85: ='Financial Model'!HD269 -> 0 | HE85: ='Financial Model'!HE269 -> 0 | HF85: ='Financial Model'!HF269 -> 0 | HG85: ='Financial Model'!HG269 -> 0 | HH85: ='Financial Model'!HH269 -> 0 | HI85: ='Financial Model'!HI269 -> 0 | HJ85: ='Financial Model'!HJ269 -> 0 | HK85: ='Financial Model'!HK269 -> 0 | HL85: ='Financial Model'!HL269 -> 0 | HM85: ='Financial Model'!HM269 -> 0 | HN85: ='Financial Model'!HN269 -> 0 | HO85: ='Financial Model'!HO269 -> 0 | HP85: ='Financial Model'!HP269 -> 0 | HQ85: ='Financial Model'!HQ269 -> 0 | HR85: ='Financial Model'!HR269 -> 0 | HS85: ='Financial Model'!HS269 -> 0 | HT85: ='Financial Model'!HT269 -> 0 | HU85: ='Financial Model'!HU269 -> 0 | HV85: ='Financial Model'!HV269 -> 0 | HW85: ='Financial Model'!HW269 -> 0 | HX85: ='Financial Model'!HX269 -> 0 | HY85: ='Financial Model'!HY269 -> 0 | HZ85: ='Financial Model'!HZ269 -> 0 | IA85: ='Financial Model'!IA269 -> 0 | IB85: ='Financial Model'!IB269 -> 0 | IC85: ='Financial Model'!IC269 -> 0 | ID85: ='Financial Model'!ID269 -> 0 | IE85: ='Financial Model'!IE269 -> 0 | IF85: ='Financial Model'!IF269 -> 0 | IG85: ='Financial Model'!IG269 -> 0 | IH85: ='Financial Model'!IH269 -> 0 | II85: ='Financial Model'!II269 -> 0 | IJ85: ='Financial Model'!IJ269 -> 0 | IK85: ='Financial Model'!IK269 -> 0 | IL85: ='Financial Model'!IL269 -> 0 | IM85: ='Financial Model'!IM269 -> 0 | IN85: ='Financial Model'!IN269 -> 0 | IO85: ='Financial Model'!IO269 -> 0 | IP85: ='Financial Model'!IP269 -> 0 | IQ85: ='Financial Model'!IQ269 -> 0 | IR85: ='Financial Model'!IR269 -> 0 | IS85: ='Financial Model'!IS269 -> 0 | IT85: ='Financial Model'!IT269 -> 0 | IU85: ='Financial Model'!IU269 -> 0 | IV85: ='Financial Model'!IV269 -> 0 | IW85: ='Financial Model'!IW269 -> 0 | IX85: ='Financial Model'!IX269 -> 0 | IY85: ='Financial Model'!IY269 -> 0 | IZ85: ='Financial Model'!IZ269 -> 0 | JA85: ='Financial Model'!JA269 -> 0 | JB85: ='Financial Model'!JB269 -> 0 | JC85: ='Financial Model'!JC269 -> 0 | JD85: ='Financial Model'!JD269 -> 0 | JE85: ='Financial Model'!JE269 -> 0 | JF85: ='Financial Model'!JF269 -> 0 | JG85: ='Financial Model'!JG269 -> 0 | JH85: ='Financial Model'!JH269 -> 0 | JI85: ='Financial Model'!JI269 -> 0 | JJ85: ='Financial Model'!JJ269 -> 0 | JK85: ='Financial Model'!JK269 -> 0 | JL85: ='Financial Model'!JL269 -> 0 | JM85: ='Financial Model'!JM269 -> 0 | JN85: ='Financial Model'!JN269 -> 0 | JO85: ='Financial Model'!JO269 -> 0 | JP85: ='Financial Model'!JP269 -> 0 | JQ85: ='Financial Model'!JQ269 -> 0 | JR85: ='Financial Model'!JR269 -> 0 | JS85: ='Financial Model'!JS269 -> 0 | JT85: ='Financial Model'!JT269 -> 0 | JU85: ='Financial Model'!JU269 -> 0 | JV85: ='Financial Model'!JV269 -> 0 | JW85: ='Financial Model'!JW269 -> 0 | JX85: ='Financial Model'!JX269 -> 0 | JY85: ='Financial Model'!JY269 -> 0 | JZ85: ='Financial Model'!JZ269 -> 0 | KA85: ='Financial Model'!KA269 -> 0 | KB85: ='Financial Model'!KB269 -> 0 | KC85: ='Financial Model'!KC269 -> 0 | KD85: ='Financial Model'!KD269 -> 0 | KE85: ='Financial Model'!KE269 -> 0 | KF85: ='Financial Model'!KF269 -> 0 | KG85: ='Financial Model'!KG269 -> 0 | KH85: ='Financial Model'!KH269 -> 0 | KI85: ='Financial Model'!KI269 -> 0 | KJ85: ='Financial Model'!KJ269 -> 0 | KK85: ='Financial Model'!KK269 -> 0 | KL85: ='Financial Model'!KL269 -> 0 | KM85: ='Financial Model'!KM269 -> 0 | KN85: ='Financial Model'!KN269 -> 0 | KO85: ='Financial Model'!KO269 -> 0 | KP85: ='Financial Model'!KP269 -> 0 | KQ85: ='Financial Model'!KQ269 -> 0 | KR85: ='Financial Model'!KR269 -> 0 | KS85: ='Financial Model'!KS269 -> 0 | KT85: ='Financial Model'!KT269 -> 0 | KU85: ='Financial Model'!KU269 -> 0 | KV85: ='Financial Model'!KV269 -> 0
B86: Depreciation Expense (Physical Cap Exp) | I86: ='Financial Model'!I317-'Financial Model'!I734 -> 0 | J86: ='Financial Model'!J317-'Financial Model'!J734 -> 0 | K86: ='Financial Model'!K317-'Financial Model'!K734 -> 0 | L86: ='Financial Model'!L317-'Financial Model'!L734 -> 0 | M86: ='Financial Model'!M317-'Financial Model'!M734 -> 0 | N86: ='Financial Model'!N317-'Financial Model'!N734 -> 0 | O86: ='Financial Model'!O317-'Financial Model'!O734 -> 0 | P86: ='Financial Model'!P317-'Financial Model'!P734 -> 0 | Q86: ='Financial Model'!Q317-'Financial Model'!Q734 -> 0 | R86: ='Financial Model'!R317-'Financial Model'!R734 -> 0 | S86: ='Financial Model'!S317-'Financial Model'!S734 -> 0 | T86: ='Financial Model'!T317-'Financial Model'!T734 -> 0 | U86: ='Financial Model'!U317-'Financial Model'!U734 -> 0 | V86: ='Financial Model'!V317-'Financial Model'!V734 -> 0 | W86: ='Financial Model'!W317-'Financial Model'!W734 -> 0 | X86: ='Financial Model'!X317-'Financial Model'!X734 -> 0 | Y86: ='Financial Model'!Y317-'Financial Model'!Y734 -> 0 | Z86: ='Financial Model'!Z317-'Financial Model'!Z734 -> 0 | AA86: ='Financial Model'!AA317-'Financial Model'!AA734 -> 0 | AB86: ='Financial Model'!AB317-'Financial Model'!AB734 -> 0 | AC86: ='Financial Model'!AC317-'Financial Model'!AC734 -> 0 | AD86: ='Financial Model'!AD317-'Financial Model'!AD734 -> 0 | AE86: ='Financial Model'!AE317-'Financial Model'!AE734 -> 0 | AF86: ='Financial Model'!AF317-'Financial Model'!AF734 -> 0 | AG86: ='Financial Model'!AG317-'Financial Model'!AG734 -> 0 | AH86: ='Financial Model'!AH317-'Financial Model'!AH734 -> 0 | AI86: ='Financial Model'!AI317-'Financial Model'!AI734 -> 0 | AJ86: ='Financial Model'!AJ317-'Financial Model'!AJ734 -> 0 | AK86: ='Financial Model'!AK317-'Financial Model'!AK734 -> 0 | AL86: ='Financial Model'!AL317-'Financial Model'!AL734 -> 0 | AM86: ='Financial Model'!AM317-'Financial Model'!AM734 -> 0 | AN86: ='Financial Model'!AN317-'Financial Model'!AN734 -> 0 | AO86: ='Financial Model'!AO317-'Financial Model'!AO734 -> 0 | AP86: ='Financial Model'!AP317-'Financial Model'!AP734 -> 0 | AQ86: ='Financial Model'!AQ317-'Financial Model'!AQ734 -> 0 | AR86: ='Financial Model'!AR317-'Financial Model'!AR734 -> 0 | AS86: ='Financial Model'!AS317-'Financial Model'!AS734 -> 0 | AT86: ='Financial Model'!AT317-'Financial Model'!AT734 -> 0 | AU86: ='Financial Model'!AU317-'Financial Model'!AU734 -> 0 | AV86: ='Financial Model'!AV317-'Financial Model'!AV734 -> 0 | AW86: ='Financial Model'!AW317-'Financial Model'!AW734 -> 0 | AX86: ='Financial Model'!AX317-'Financial Model'!AX734 -> 0 | AY86: ='Financial Model'!AY317-'Financial Model'!AY734 -> 0 | AZ86: ='Financial Model'!AZ317-'Financial Model'!AZ734 -> 0 | BA86: ='Financial Model'!BA317-'Financial Model'!BA734 -> 0 | BB86: ='Financial Model'!BB317-'Financial Model'!BB734 -> 0 | BC86: ='Financial Model'!BC317-'Financial Model'!BC734 -> 0 | BD86: ='Financial Model'!BD317-'Financial Model'!BD734 -> 0 | BE86: ='Financial Model'!BE317-'Financial Model'!BE734 -> 0 | BF86: ='Financial Model'!BF317-'Financial Model'!BF734 -> 0 | BG86: ='Financial Model'!BG317-'Financial Model'!BG734 -> 0 | BH86: ='Financial Model'!BH317-'Financial Model'!BH734 -> 673333.3333 | BI86: ='Financial Model'!BI317-'Financial Model'!BI734 -> 673333.3333 | BJ86: ='Financial Model'!BJ317-'Financial Model'!BJ734 -> 583555.5556 | BK86: ='Financial Model'!BK317-'Financial Model'!BK734 -> 583555.5556 | BL86: ='Financial Model'!BL317-'Financial Model'!BL734 -> 505748.1481 | BM86: ='Financial Model'!BM317-'Financial Model'!BM734 -> 505748.1481 | BN86: ='Financial Model'!BN317-'Financial Model'!BN734 -> 438315.0617 | BO86: ='Financial Model'!BO317-'Financial Model'!BO734 -> 438315.0617 | BP86: ='Financial Model'!BP317-'Financial Model'!BP734 -> 379873.0535 | BQ86: ='Financial Model'!BQ317-'Financial Model'!BQ734 -> 379873.0535 | BR86: ='Financial Model'!BR317-'Financial Model'!BR734 -> 329223.313 | BS86: ='Financial Model'!BS317-'Financial Model'!BS734 -> 329223.313 | BT86: ='Financial Model'!BT317-'Financial Model'!BT734 -> 285326.8713 | BU86: ='Financial Model'!BU317-'Financial Model'!BU734 -> 285326.8713 | BV86: ='Financial Model'!BV317-'Financial Model'!BV734 -> 247283.2885 | BW86: ='Financial Model'!BW317-'Financial Model'!BW734 -> 247283.2885 | BX86: ='Financial Model'!BX317-'Financial Model'!BX734 -> 229620.1964 | BY86: ='Financial Model'!BY317-'Financial Model'!BY734 -> 229620.1964 | BZ86: ='Financial Model'!BZ317-'Financial Model'!BZ734 -> 229620.1964 | CA86: ='Financial Model'!CA317-'Financial Model'!CA734 -> 229620.1964 | CB86: ='Financial Model'!CB317-'Financial Model'!CB734 -> 229620.1964 | CC86: ='Financial Model'!CC317-'Financial Model'!CC734 -> 229620.1964 | CD86: ='Financial Model'!CD317-'Financial Model'!CD734 -> 229620.1964 | CE86: ='Financial Model'!CE317-'Financial Model'!CE734 -> 229620.1964 | CF86: ='Financial Model'!CF317-'Financial Model'!CF734 -> 229620.1964 | CG86: ='Financial Model'!CG317-'Financial Model'!CG734 -> 229620.1964 | CH86: ='Financial Model'!CH317-'Financial Model'!CH734 -> 229620.1964 | CI86: ='Financial Model'!CI317-'Financial Model'!CI734 -> 229620.1964 | CJ86: ='Financial Model'!CJ317-'Financial Model'!CJ734 -> 229620.1964 | CK86: ='Financial Model'!CK317-'Financial Model'!CK734 -> 229620.1964 | CL86: ='Financial Model'!CL317-'Financial Model'!CL734 -> 0 | CM86: ='Financial Model'!CM317-'Financial Model'!CM734 -> 0 | CN86: ='Financial Model'!CN317-'Financial Model'!CN734 -> 0 | CO86: ='Financial Model'!CO317-'Financial Model'!CO734 -> 0 | CP86: ='Financial Model'!CP317-'Financial Model'!CP734 -> 0 | CQ86: ='Financial Model'!CQ317-'Financial Model'!CQ734 -> 0 | CR86: ='Financial Model'!CR317-'Financial Model'!CR734 -> 0 | CS86: ='Financial Model'!CS317-'Financial Model'!CS734 -> 0 | CT86: ='Financial Model'!CT317-'Financial Model'!CT734 -> 0 | CU86: ='Financial Model'!CU317-'Financial Model'!CU734 -> 0 | CV86: ='Financial Model'!CV317-'Financial Model'!CV734 -> 0 | CW86: ='Financial Model'!CW317-'Financial Model'!CW734 -> 0 | CX86: ='Financial Model'!CX317-'Financial Model'!CX734 -> 0 | CY86: ='Financial Model'!CY317-'Financial Model'!CY734 -> 0 | CZ86: ='Financial Model'!CZ317-'Financial Model'!CZ734 -> 0 | DA86: ='Financial Model'!DA317-'Financial Model'!DA734 -> 0 | DB86: ='Financial Model'!DB317-'Financial Model'!DB734 -> 0 | DC86: ='Financial Model'!DC317-'Financial Model'!DC734 -> 0 | DD86: ='Financial Model'!DD317-'Financial Model'!DD734 -> 0 | DE86: ='Financial Model'!DE317-'Financial Model'!DE734 -> 0 | DF86: ='Financial Model'!DF317-'Financial Model'!DF734 -> 0 | DG86: ='Financial Model'!DG317-'Financial Model'!DG734 -> 0 | DH86: ='Financial Model'!DH317-'Financial Model'!DH734 -> 0 | DI86: ='Financial Model'!DI317-'Financial Model'!DI734 -> 0 | DJ86: ='Financial Model'!DJ317-'Financial Model'!DJ734 -> 0 | DK86: ='Financial Model'!DK317-'Financial Model'!DK734 -> 0 | DL86: ='Financial Model'!DL317-'Financial Model'!DL734 -> 0 | DM86: ='Financial Model'!DM317-'Financial Model'!DM734 -> 0 | DN86: ='Financial Model'!DN317-'Financial Model'!DN734 -> 0 | DO86: ='Financial Model'!DO317-'Financial Model'!DO734 -> 0 | DP86: ='Financial Model'!DP317-'Financial Model'!DP734 -> 0 | DQ86: ='Financial Model'!DQ317-'Financial Model'!DQ734 -> 0 | DR86: ='Financial Model'!DR317-'Financial Model'!DR734 -> 0 | DS86: ='Financial Model'!DS317-'Financial Model'!DS734 -> 0 | DT86: ='Financial Model'!DT317-'Financial Model'!DT734 -> 0 | DU86: ='Financial Model'!DU317-'Financial Model'!DU734 -> 0 | DV86: ='Financial Model'!DV317-'Financial Model'!DV734 -> 0 | DW86: ='Financial Model'!DW317-'Financial Model'!DW734 -> 0 | DX86: ='Financial Model'!DX317-'Financial Model'!DX734 -> 0 | DY86: ='Financial Model'!DY317-'Financial Model'!DY734 -> 0 | DZ86: ='Financial Model'!DZ317-'Financial Model'!DZ734 -> 0 | EA86: ='Financial Model'!EA317-'Financial Model'!EA734 -> 0 | EB86: ='Financial Model'!EB317-'Financial Model'!EB734 -> 0 | EC86: ='Financial Model'!EC317-'Financial Model'!EC734 -> 0 | ED86: ='Financial Model'!ED317-'Financial Model'!ED734 -> 0 | EE86: ='Financial Model'!EE317-'Financial Model'!EE734 -> 0 | EF86: ='Financial Model'!EF317-'Financial Model'!EF734 -> 0 | EG86: ='Financial Model'!EG317-'Financial Model'!EG734 -> 0 | EH86: ='Financial Model'!EH317-'Financial Model'!EH734 -> 0 | EI86: ='Financial Model'!EI317-'Financial Model'!EI734 -> 0 | EJ86: ='Financial Model'!EJ317-'Financial Model'!EJ734 -> 0 | EK86: ='Financial Model'!EK317-'Financial Model'!EK734 -> 0 | EL86: ='Financial Model'!EL317-'Financial Model'!EL734 -> 0 | EM86: ='Financial Model'!EM317-'Financial Model'!EM734 -> 0 | EN86: ='Financial Model'!EN317-'Financial Model'!EN734 -> 0 | EO86: ='Financial Model'!EO317-'Financial Model'!EO734 -> 0 | EP86: ='Financial Model'!EP317-'Financial Model'!EP734 -> 0 | EQ86: ='Financial Model'!EQ317-'Financial Model'!EQ734 -> 0 | ER86: ='Financial Model'!ER317-'Financial Model'!ER734 -> 0 | ES86: ='Financial Model'!ES317-'Financial Model'!ES734 -> 0 | ET86: ='Financial Model'!ET317-'Financial Model'!ET734 -> 0 | EU86: ='Financial Model'!EU317-'Financial Model'!EU734 -> 0 | EV86: ='Financial Model'!EV317-'Financial Model'!EV734 -> 0 | EW86: ='Financial Model'!EW317-'Financial Model'!EW734 -> 0 | EX86: ='Financial Model'!EX317-'Financial Model'!EX734 -> 0 | EY86: ='Financial Model'!EY317-'Financial Model'!EY734 -> 0 | EZ86: ='Financial Model'!EZ317-'Financial Model'!EZ734 -> 0 | FA86: ='Financial Model'!FA317-'Financial Model'!FA734 -> 0 | FB86: ='Financial Model'!FB317-'Financial Model'!FB734 -> 0 | FC86: ='Financial Model'!FC317-'Financial Model'!FC734 -> 0 | FD86: ='Financial Model'!FD317-'Financial Model'!FD734 -> 0 | FE86: ='Financial Model'!FE317-'Financial Model'!FE734 -> 0 | FF86: ='Financial Model'!FF317-'Financial Model'!FF734 -> 0 | FG86: ='Financial Model'!FG317-'Financial Model'!FG734 -> 0 | FH86: ='Financial Model'!FH317-'Financial Model'!FH734 -> 0 | FI86: ='Financial Model'!FI317-'Financial Model'!FI734 -> 0 | FJ86: ='Financial Model'!FJ317-'Financial Model'!FJ734 -> 0 | FK86: ='Financial Model'!FK317-'Financial Model'!FK734 -> 0 | FL86: ='Financial Model'!FL317-'Financial Model'!FL734 -> 0 | FM86: ='Financial Model'!FM317-'Financial Model'!FM734 -> 0 | FN86: ='Financial Model'!FN317-'Financial Model'!FN734 -> 0 | FO86: ='Financial Model'!FO317-'Financial Model'!FO734 -> 0 | FP86: ='Financial Model'!FP317-'Financial Model'!FP734 -> 0 | FQ86: ='Financial Model'!FQ317-'Financial Model'!FQ734 -> 0 | FR86: ='Financial Model'!FR317-'Financial Model'!FR734 -> 0 | FS86: ='Financial Model'!FS317-'Financial Model'!FS734 -> 0 | FT86: ='Financial Model'!FT317-'Financial Model'!FT734 -> 0 | FU86: ='Financial Model'!FU317-'Financial Model'!FU734 -> 0 | FV86: ='Financial Model'!FV317-'Financial Model'!FV734 -> 0 | FW86: ='Financial Model'!FW317-'Financial Model'!FW734 -> 0 | FX86: ='Financial Model'!FX317-'Financial Model'!FX734 -> 0 | FY86: ='Financial Model'!FY317-'Financial Model'!FY734 -> 0 | FZ86: ='Financial Model'!FZ317-'Financial Model'!FZ734 -> 0 | GA86: ='Financial Model'!GA317-'Financial Model'!GA734 -> 0 | GB86: ='Financial Model'!GB317-'Financial Model'!GB734 -> 0 | GC86: ='Financial Model'!GC317-'Financial Model'!GC734 -> 0 | GD86: ='Financial Model'!GD317-'Financial Model'!GD734 -> 0 | GE86: ='Financial Model'!GE317-'Financial Model'!GE734 -> 0 | GF86: ='Financial Model'!GF317-'Financial Model'!GF734 -> 0 | GG86: ='Financial Model'!GG317-'Financial Model'!GG734 -> 0 | GH86: ='Financial Model'!GH317-'Financial Model'!GH734 -> 0 | GI86: ='Financial Model'!GI317-'Financial Model'!GI734 -> 0 | GJ86: ='Financial Model'!GJ317-'Financial Model'!GJ734 -> 0 | GK86: ='Financial Model'!GK317-'Financial Model'!GK734 -> 0 | GL86: ='Financial Model'!GL317-'Financial Model'!GL734 -> 0 | GM86: ='Financial Model'!GM317-'Financial Model'!GM734 -> 0 | GN86: ='Financial Model'!GN317-'Financial Model'!GN734 -> 0 | GO86: ='Financial Model'!GO317-'Financial Model'!GO734 -> 0 | GP86: ='Financial Model'!GP317-'Financial Model'!GP734 -> 0 | GQ86: ='Financial Model'!GQ317-'Financial Model'!GQ734 -> 0 | GR86: ='Financial Model'!GR317-'Financial Model'!GR734 -> 0 | GS86: ='Financial Model'!GS317-'Financial Model'!GS734 -> 0 | GT86: ='Financial Model'!GT317-'Financial Model'!GT734 -> 0 | GU86: ='Financial Model'!GU317-'Financial Model'!GU734 -> 0 | GV86: ='Financial Model'!GV317-'Financial Model'!GV734 -> 0 | GW86: ='Financial Model'!GW317-'Financial Model'!GW734 -> 0 | GX86: ='Financial Model'!GX317-'Financial Model'!GX734 -> 0 | GY86: ='Financial Model'!GY317-'Financial Model'!GY734 -> 0 | GZ86: ='Financial Model'!GZ317-'Financial Model'!GZ734 -> 0 | HA86: ='Financial Model'!HA317-'Financial Model'!HA734 -> 0 | HB86: ='Financial Model'!HB317-'Financial Model'!HB734 -> 0 | HC86: ='Financial Model'!HC317-'Financial Model'!HC734 -> 0 | HD86: ='Financial Model'!HD317-'Financial Model'!HD734 -> 0 | HE86: ='Financial Model'!HE317-'Financial Model'!HE734 -> 0 | HF86: ='Financial Model'!HF317-'Financial Model'!HF734 -> 0 | HG86: ='Financial Model'!HG317-'Financial Model'!HG734 -> 0 | HH86: ='Financial Model'!HH317-'Financial Model'!HH734 -> 0 | HI86: ='Financial Model'!HI317-'Financial Model'!HI734 -> 0 | HJ86: ='Financial Model'!HJ317-'Financial Model'!HJ734 -> 0 | HK86: ='Financial Model'!HK317-'Financial Model'!HK734 -> 0 | HL86: ='Financial Model'!HL317-'Financial Model'!HL734 -> 0 | HM86: ='Financial Model'!HM317-'Financial Model'!HM734 -> 0 | HN86: ='Financial Model'!HN317-'Financial Model'!HN734 -> 0 | HO86: ='Financial Model'!HO317-'Financial Model'!HO734 -> 0 | HP86: ='Financial Model'!HP317-'Financial Model'!HP734 -> 0 | HQ86: ='Financial Model'!HQ317-'Financial Model'!HQ734 -> 0 | HR86: ='Financial Model'!HR317-'Financial Model'!HR734 -> 0 | HS86: ='Financial Model'!HS317-'Financial Model'!HS734 -> 0 | HT86: ='Financial Model'!HT317-'Financial Model'!HT734 -> 0 | HU86: ='Financial Model'!HU317-'Financial Model'!HU734 -> 0 | HV86: ='Financial Model'!HV317-'Financial Model'!HV734 -> 0 | HW86: ='Financial Model'!HW317-'Financial Model'!HW734 -> 0 | HX86: ='Financial Model'!HX317-'Financial Model'!HX734 -> 0 | HY86: ='Financial Model'!HY317-'Financial Model'!HY734 -> 0 | HZ86: ='Financial Model'!HZ317-'Financial Model'!HZ734 -> 0 | IA86: ='Financial Model'!IA317-'Financial Model'!IA734 -> 0 | IB86: ='Financial Model'!IB317-'Financial Model'!IB734 -> 0 | IC86: ='Financial Model'!IC317-'Financial Model'!IC734 -> 0 | ID86: ='Financial Model'!ID317-'Financial Model'!ID734 -> 0 | IE86: ='Financial Model'!IE317-'Financial Model'!IE734 -> 0 | IF86: ='Financial Model'!IF317-'Financial Model'!IF734 -> 0 | IG86: ='Financial Model'!IG317-'Financial Model'!IG734 -> 0 | IH86: ='Financial Model'!IH317-'Financial Model'!IH734 -> 0 | II86: ='Financial Model'!II317-'Financial Model'!II734 -> 0 | IJ86: ='Financial Model'!IJ317-'Financial Model'!IJ734 -> 0 | IK86: ='Financial Model'!IK317-'Financial Model'!IK734 -> 0 | IL86: ='Financial Model'!IL317-'Financial Model'!IL734 -> 0 | IM86: ='Financial Model'!IM317-'Financial Model'!IM734 -> 0 | IN86: ='Financial Model'!IN317-'Financial Model'!IN734 -> 0 | IO86: ='Financial Model'!IO317-'Financial Model'!IO734 -> 0 | IP86: ='Financial Model'!IP317-'Financial Model'!IP734 -> 0 | IQ86: ='Financial Model'!IQ317-'Financial Model'!IQ734 -> 0 | IR86: ='Financial Model'!IR317-'Financial Model'!IR734 -> 0 | IS86: ='Financial Model'!IS317-'Financial Model'!IS734 -> 0 | IT86: ='Financial Model'!IT317-'Financial Model'!IT734 -> 0 | IU86: ='Financial Model'!IU317-'Financial Model'!IU734 -> 0 | IV86: ='Financial Model'!IV317-'Financial Model'!IV734 -> 0 | IW86: ='Financial Model'!IW317-'Financial Model'!IW734 -> 0 | IX86: ='Financial Model'!IX317-'Financial Model'!IX734 -> 0 | IY86: ='Financial Model'!IY317-'Financial Model'!IY734 -> 0 | IZ86: ='Financial Model'!IZ317-'Financial Model'!IZ734 -> 0 | JA86: ='Financial Model'!JA317-'Financial Model'!JA734 -> 0 | JB86: ='Financial Model'!JB317-'Financial Model'!JB734 -> 0 | JC86: ='Financial Model'!JC317-'Financial Model'!JC734 -> 0 | JD86: ='Financial Model'!JD317-'Financial Model'!JD734 -> 0 | JE86: ='Financial Model'!JE317-'Financial Model'!JE734 -> 0 | JF86: ='Financial Model'!JF317-'Financial Model'!JF734 -> 0 | JG86: ='Financial Model'!JG317-'Financial Model'!JG734 -> 0 | JH86: ='Financial Model'!JH317-'Financial Model'!JH734 -> 0 | JI86: ='Financial Model'!JI317-'Financial Model'!JI734 -> 0 | JJ86: ='Financial Model'!JJ317-'Financial Model'!JJ734 -> 0 | JK86: ='Financial Model'!JK317-'Financial Model'!JK734 -> 0 | JL86: ='Financial Model'!JL317-'Financial Model'!JL734 -> 0 | JM86: ='Financial Model'!JM317-'Financial Model'!JM734 -> 0 | JN86: ='Financial Model'!JN317-'Financial Model'!JN734 -> 0 | JO86: ='Financial Model'!JO317-'Financial Model'!JO734 -> 0 | JP86: ='Financial Model'!JP317-'Financial Model'!JP734 -> 0 | JQ86: ='Financial Model'!JQ317-'Financial Model'!JQ734 -> 0 | JR86: ='Financial Model'!JR317-'Financial Model'!JR734 -> 0 | JS86: ='Financial Model'!JS317-'Financial Model'!JS734 -> 0 | JT86: ='Financial Model'!JT317-'Financial Model'!JT734 -> 0 | JU86: ='Financial Model'!JU317-'Financial Model'!JU734 -> 0 | JV86: ='Financial Model'!JV317-'Financial Model'!JV734 -> 0 | JW86: ='Financial Model'!JW317-'Financial Model'!JW734 -> 0 | JX86: ='Financial Model'!JX317-'Financial Model'!JX734 -> 0 | JY86: ='Financial Model'!JY317-'Financial Model'!JY734 -> 0 | JZ86: ='Financial Model'!JZ317-'Financial Model'!JZ734 -> 0 | KA86: ='Financial Model'!KA317-'Financial Model'!KA734 -> 0 | KB86: ='Financial Model'!KB317-'Financial Model'!KB734 -> 0 | KC86: ='Financial Model'!KC317-'Financial Model'!KC734 -> 0 | KD86: ='Financial Model'!KD317-'Financial Model'!KD734 -> 0 | KE86: ='Financial Model'!KE317-'Financial Model'!KE734 -> 0 | KF86: ='Financial Model'!KF317-'Financial Model'!KF734 -> 0 | KG86: ='Financial Model'!KG317-'Financial Model'!KG734 -> 0 | KH86: ='Financial Model'!KH317-'Financial Model'!KH734 -> 0 | KI86: ='Financial Model'!KI317-'Financial Model'!KI734 -> 0 | KJ86: ='Financial Model'!KJ317-'Financial Model'!KJ734 -> 0 | KK86: ='Financial Model'!KK317-'Financial Model'!KK734 -> 0 | KL86: ='Financial Model'!KL317-'Financial Model'!KL734 -> 0 | KM86: ='Financial Model'!KM317-'Financial Model'!KM734 -> 0 | KN86: ='Financial Model'!KN317-'Financial Model'!KN734 -> 0 | KO86: ='Financial Model'!KO317-'Financial Model'!KO734 -> 0 | KP86: ='Financial Model'!KP317-'Financial Model'!KP734 -> 0 | KQ86: ='Financial Model'!KQ317-'Financial Model'!KQ734 -> 0 | KR86: ='Financial Model'!KR317-'Financial Model'!KR734 -> 0 | KS86: ='Financial Model'!KS317-'Financial Model'!KS734 -> 0 | KT86: ='Financial Model'!KT317-'Financial Model'!KT734 -> 0 | KU86: ='Financial Model'!KU317-'Financial Model'!KU734 -> 0 | KV86: ='Financial Model'!KV317-'Financial Model'!KV734 -> 0
B87: Tax Rate (Change to Time Based) | I87: ='Financial Model'!F67 -> 0 | J87: =I87 -> 0 | K87: =J87 -> 0 | L87: 0 | M87: 0 | N87: 0 | O87: 0 | P87: 0 | Q87: 0 | R87: 0 | S87: 0 | T87: 0 | U87: 0 | V87: 0 | W87: 0 | X87: 0 | Y87: 0 | Z87: 0 | AA87: 0 | AB87: 0 | AC87: 0 | AD87: 0 | AE87: 0 | AF87: 0 | AG87: 0 | AH87: 0 | AI87: 0 | AJ87: 0 | AK87: 0 | AL87: 0 | AM87: 0 | AN87: 0 | AO87: 0 | AP87: 0 | AQ87: 0 | AR87: 0 | AS87: 0 | AT87: 0 | AU87: 0 | AV87: 0 | AW87: 0 | AX87: 0 | AY87: 0 | AZ87: 0 | BA87: 0 | BB87: 0 | BC87: 0 | BD87: 0 | BE87: 0 | BF87: 0 | BG87: 0 | BH87: 0 | BI87: 0 | BJ87: 0 | BK87: 0 | BL87: 0 | BM87: 0 | BN87: 0 | BO87: 0 | BP87: 0 | BQ87: 0 | BR87: 0 | BS87: 0 | BT87: 0 | BU87: 0 | BV87: 0 | BW87: =BV87 -> 0 | BX87: 0 | BY87: 0 | BZ87: 0 | CA87: 0 | CB87: 0 | CC87: 0 | CD87: 0 | CE87: 0 | CF87: 0 | CG87: 0 | CH87: 0 | CI87: 0 | CJ87: 0 | CK87: 0 | CL87: 0 | CM87: 0 | CN87: 0 | CO87: 0 | CP87: 0 | CQ87: 0 | CR87: 0 | CS87: 0 | CT87: 0 | CU87: 0 | CV87: 0 | CW87: 0 | CX87: 0 | CY87: 0 | CZ87: 0 | DA87: 0 | DB87: 0 | DC87: 0 | DD87: 0 | DE87: 0 | DF87: 0 | DG87: 0 | DH87: 0 | DI87: 0 | DJ87: 0 | DK87: 0 | DL87: 0 | DM87: 0 | DN87: 0 | DO87: 0 | DP87: 0 | DQ87: 0 | DR87: 0 | DS87: 0 | DT87: 0 | DU87: 0 | DV87: 0 | DW87: 0 | DX87: 0 | DY87: 0 | DZ87: 0 | EA87: 0 | EB87: 0 | EC87: 0 | ED87: 0 | EE87: 0 | EF87: 0 | EG87: 0 | EH87: 0 | EI87: =EH87 -> 0 | EJ87: 0 | EK87: 0 | EL87: 0 | EM87: 0 | EN87: 0 | EO87: 0 | EP87: 0 | EQ87: 0 | ER87: 0 | ES87: 0 | ET87: 0 | EU87: 0 | EV87: 0 | EW87: 0 | EX87: 0 | EY87: 0 | EZ87: 0 | FA87: 0 | FB87: 0 | FC87: 0 | FD87: 0 | FE87: 0 | FF87: 0 | FG87: 0 | FH87: 0 | FI87: 0 | FJ87: 0 | FK87: 0 | FL87: 0 | FM87: 0 | FN87: 0 | FO87: 0 | FP87: 0 | FQ87: 0 | FR87: 0 | FS87: 0 | FT87: 0 | FU87: 0 | FV87: 0 | FW87: 0 | FX87: 0 | FY87: 0 | FZ87: 0 | GA87: 0 | GB87: 0 | GC87: 0 | GD87: 0 | GE87: 0 | GF87: 0 | GG87: 0 | GH87: 0 | GI87: 0 | GJ87: 0 | GK87: 0 | GL87: 0 | GM87: 0 | GN87: 0 | GO87: 0 | GP87: 0 | GQ87: 0 | GR87: 0 | GS87: 0 | GT87: 0 | GU87: =GT87 -> 0 | GV87: 0 | GW87: 0 | GX87: 0 | GY87: 0 | GZ87: 0 | HA87: 0 | HB87: 0 | HC87: 0 | HD87: 0 | HE87: 0 | HF87: 0 | HG87: 0 | HH87: 0 | HI87: 0 | HJ87: 0 | HK87: 0 | HL87: 0 | HM87: 0 | HN87: 0 | HO87: 0 | HP87: 0 | HQ87: 0 | HR87: 0 | HS87: 0 | HT87: 0 | HU87: 0 | HV87: 0 | HW87: 0 | HX87: 0 | HY87: 0 | HZ87: 0 | IA87: 0 | IB87: 0 | IC87: 0 | ID87: 0 | IE87: 0 | IF87: 0 | IG87: 0 | IH87: 0 | II87: 0 | IJ87: 0 | IK87: 0 | IL87: 0 | IM87: 0 | IN87: 0 | IO87: 0 | IP87: 0 | IQ87: 0 | IR87: 0 | IS87: 0 | IT87: 0 | IU87: 0 | IV87: 0 | IW87: 0 | IX87: 0 | IY87: 0 | IZ87: 0 | JA87: 0 | JB87: 0 | JC87: 0 | JD87: 0 | JE87: 0 | JF87: 0 | JG87: =JF87 -> 0 | JH87: 0 | JI87: 0 | JJ87: 0 | JK87: 0 | JL87: 0 | JM87: 0 | JN87: 0 | JO87: 0 | JP87: 0 | JQ87: 0 | JR87: 0 | JS87: 0 | JT87: 0 | JU87: 0 | JV87: 0 | JW87: 0 | JX87: 0 | JY87: 0 | JZ87: 0 | KA87: 0 | KB87: 0 | KC87: 0 | KD87: 0 | KE87: 0 | KF87: 0 | KG87: 0 | KH87: 0 | KI87: 0 | KJ87: 0 | KK87: 0 | KL87: 0 | KM87: 0 | KN87: 0 | KO87: 0 | KP87: 0 | KQ87: 0 | KR87: 0 | KS87: 0 | KT87: 0 | KU87: 0 | KV87: 0
A90: General Data Applicable to All Debt
B91: Start of Debt Options Block (Start Selection Here and Select Entire Line)
C92: Development Fee Percent (If zero use amount) | E92: 0
C93: Development Fee Amount (If zero use percent) | E93: ='Financial Model'!F32 -> 0
C94: Up-Front Equity Percent (Remainder is Pro-Rata) | E94: ='Financial Model'!F74 -> 0.6
C95: Debt Sizing Option (1-5) | E95: ='Financial Model'!E78 -> 3
C96: Fixed amount of Senior Debt for Option 1 (Currency in Model) | E96: ='Financial Model'!G79 -> 8000000
C97: Debt as Percent of Project Cost for Option 2 | E97: ='Financial Model'!G80 -> 0.74
C98: DSCR for Sizing and Sculpting Debt | E98: ='Financial Model'!G81 -> 1.33 | I98: =$E$98 -> 1.33 | J98: =$E$98 -> 1.33 | K98: 1.33 | L98: 1.33 | M98: 1.33 | N98: 1.33 | O98: 1.33 | P98: 1.33 | Q98: 1.33 | R98: 1.33 | S98: 1.33 | T98: 1.33 | U98: 1.33 | V98: 1.33 | W98: 1.33 | X98: 1.33 | Y98: 1.33 | Z98: 1.33 | AA98: 1.33 | AB98: 1.33 | AC98: 1.33 | AD98: 1.33 | AE98: 1.33 | AF98: 1.33 | AG98: 1.33 | AH98: 1.33 | AI98: 1.33 | AJ98: 1.33 | AK98: 1.33 | AL98: 1.33 | AM98: 1.33 | AN98: 1.33 | AO98: 1.33 | AP98: 1.33 | AQ98: 1.33 | AR98: 1.33 | AS98: 1.33 | AT98: 1.33 | AU98: 1.33 | AV98: 1.33 | AW98: 1.33 | AX98: 1.33 | AY98: 1.33 | AZ98: 1.33 | BA98: 1.33 | BB98: 1.33 | BC98: 1.33 | BD98: 1.33 | BE98: 1.33 | BF98: 1.33 | BG98: 1.33 | BH98: 1.33 | BI98: 1.33 | BJ98: 1.33 | BK98: 1.33 | BL98: 1.33 | BM98: 1.33 | BN98: 1.33 | BO98: 1.33 | BP98: 1.33 | BQ98: 1.33 | BR98: 1.33 | BS98: 1.33 | BT98: 1.33 | BU98: 1.33 | BV98: =$E$98 -> 1.33 | BW98: 1.33 | BX98: 1.33 | BY98: 1.33 | BZ98: 1.33 | CA98: 1.33 | CB98: 1.33 | CC98: 1.33 | CD98: 1.33 | CE98: 1.33 | CF98: 1.33 | CG98: 1.33 | CH98: 1.33 | CI98: 1.33 | CJ98: 1.33 | CK98: 1.33 | CL98: 1.33 | CM98: 1.33 | CN98: 1.33 | CO98: 1.33 | CP98: 1.33 | CQ98: 1.33 | CR98: 1.33 | CS98: 1.33 | CT98: 1.33 | CU98: 1.33 | CV98: 1.33 | CW98: 1.33 | CX98: 1.33 | CY98: 1.33 | CZ98: 1.33 | DA98: 1.33 | DB98: 1.33 | DC98: 1.33 | DD98: 1.33 | DE98: 1.33 | DF98: 1.33 | DG98: 1.33 | DH98: 1.33 | DI98: 1.33 | DJ98: 1.33 | DK98: 1.33 | DL98: 1.33 | DM98: 1.33 | DN98: 1.33 | DO98: 1.33 | DP98: 1.33 | DQ98: 1.33 | DR98: 1.33 | DS98: 1.33 | DT98: 1.33 | DU98: 1.33 | DV98: 1.33 | DW98: 1.33 | DX98: 1.33 | DY98: 1.33 | DZ98: 1.33 | EA98: 1.33 | EB98: 1.33 | EC98: 1.33 | ED98: 1.33 | EE98: 1.33 | EF98: 1.33 | EG98: 1.33 | EH98: =$E$98 -> 1.33 | EI98: 1.33 | EJ98: 1.33 | EK98: 1.33 | EL98: 1.33 | EM98: 1.33 | EN98: 1.33 | EO98: 1.33 | EP98: 1.33 | EQ98: 1.33 | ER98: 1.33 | ES98: 1.33 | ET98: 1.33 | EU98: 1.33 | EV98: 1.33 | EW98: 1.33 | EX98: 1.33 | EY98: 1.33 | EZ98: 1.33 | FA98: 1.33 | FB98: 1.33 | FC98: 1.33 | FD98: 1.33 | FE98: 1.33 | FF98: 1.33 | FG98: 1.33 | FH98: 1.33 | FI98: 1.33 | FJ98: 1.33 | FK98: 1.33 | FL98: 1.33 | FM98: 1.33 | FN98: 1.33 | FO98: 1.33 | FP98: 1.33 | FQ98: 1.33 | FR98: 1.33 | FS98: 1.33 | FT98: 1.33 | FU98: 1.33 | FV98: 1.33 | FW98: 1.33 | FX98: 1.33 | FY98: 1.33 | FZ98: 1.33 | GA98: 1.33 | GB98: 1.33 | GC98: 1.33 | GD98: 1.33 | GE98: 1.33 | GF98: 1.33 | GG98: 1.33 | GH98: 1.33 | GI98: 1.33 | GJ98: 1.33 | GK98: 1.33 | GL98: 1.33 | GM98: 1.33 | GN98: 1.33 | GO98: 1.33 | GP98: 1.33 | GQ98: 1.33 | GR98: 1.33 | GS98: 1.33 | GT98: =$E$98 -> 1.33 | GU98: 1.33 | GV98: 1.33 | GW98: 1.33 | GX98: 1.33 | GY98: 1.33 | GZ98: 1.33
C99: Fixed Mezzanine Debt Input | E99: 0
C100: Mezzanine Debt as Percent of Project Cost | E100: 0
C101: Mezzanine Total DSCR for Sculpting | E101: 1
C102: DSRA Forward Periods | E102: ='Financial Model'!F171 -> 3
C103: DSRA Letter of Credit (T-L/C; F - Funded) | E103: ='Financial Model'!$F$173 -> FALSE
C104: Interest Income Rate for DSRA | I104: ='Financial Model'!I689 -> 0.000625 | J104: ='Financial Model'!J689 -> 0.000625 | K104: ='Financial Model'!K689 -> 0.000625 | L104: ='Financial Model'!L689 -> 0.000625 | M104: ='Financial Model'!M689 -> 0.000625 | N104: ='Financial Model'!N689 -> 0.000625 | O104: ='Financial Model'!O689 -> 0.000625 | P104: ='Financial Model'!P689 -> 0.000625 | Q104: ='Financial Model'!Q689 -> 0.000625 | R104: ='Financial Model'!R689 -> 0.000625 | S104: ='Financial Model'!S689 -> 0.000625 | T104: ='Financial Model'!T689 -> 0.000625 | U104: ='Financial Model'!U689 -> 0.000625 | V104: ='Financial Model'!V689 -> 0.000625 | W104: ='Financial Model'!W689 -> 0.000625 | X104: ='Financial Model'!X689 -> 0.000625 | Y104: ='Financial Model'!Y689 -> 0.000625 | Z104: ='Financial Model'!Z689 -> 0.000625 | AA104: ='Financial Model'!AA689 -> 0.000625 | AB104: ='Financial Model'!AB689 -> 0.000625 | AC104: ='Financial Model'!AC689 -> 0.000625 | AD104: ='Financial Model'!AD689 -> 0.000625 | AE104: ='Financial Model'!AE689 -> 0.000625 | AF104: ='Financial Model'!AF689 -> 0.000625 | AG104: ='Financial Model'!AG689 -> 0.000625 | AH104: ='Financial Model'!AH689 -> 0.000625 | AI104: ='Financial Model'!AI689 -> 0.000625 | AJ104: ='Financial Model'!AJ689 -> 0.000625 | AK104: ='Financial Model'!AK689 -> 0.000625 | AL104: ='Financial Model'!AL689 -> 0.000625 | AM104: ='Financial Model'!AM689 -> 0.000625 | AN104: ='Financial Model'!AN689 -> 0.000625 | AO104: ='Financial Model'!AO689 -> 0.000625 | AP104: ='Financial Model'!AP689 -> 0.000625 | AQ104: ='Financial Model'!AQ689 -> 0.000625 | AR104: ='Financial Model'!AR689 -> 0.000625 | AS104: ='Financial Model'!AS689 -> 0.000625 | AT104: ='Financial Model'!AT689 -> 0.000625 | AU104: ='Financial Model'!AU689 -> 0.000625 | AV104: ='Financial Model'!AV689 -> 0.000625 | AW104: ='Financial Model'!AW689 -> 0.000625 | AX104: ='Financial Model'!AX689 -> 0.000625 | AY104: ='Financial Model'!AY689 -> 0.000625 | AZ104: ='Financial Model'!AZ689 -> 0.000625 | BA104: ='Financial Model'!BA689 -> 0.000625 | BB104: ='Financial Model'!BB689 -> 0.000625 | BC104: ='Financial Model'!BC689 -> 0.000625 | BD104: ='Financial Model'!BD689 -> 0.000625 | BE104: ='Financial Model'!BE689 -> 0.000625 | BF104: ='Financial Model'!BF689 -> 0.000625 | BG104: ='Financial Model'!BG689 -> 0.000625 | BH104: ='Financial Model'!BH689 -> 0.00375 | BI104: ='Financial Model'!BI689 -> 0.00375 | BJ104: ='Financial Model'!BJ689 -> 0.00375 | BK104: ='Financial Model'!BK689 -> 0.00375 | BL104: ='Financial Model'!BL689 -> 0.00375 | BM104: ='Financial Model'!BM689 -> 0.00375 | BN104: ='Financial Model'!BN689 -> 0.00375 | BO104: ='Financial Model'!BO689 -> 0.00375 | BP104: ='Financial Model'!BP689 -> 0.00375 | BQ104: ='Financial Model'!BQ689 -> 0.00375 | BR104: ='Financial Model'!BR689 -> 0.00375 | BS104: ='Financial Model'!BS689 -> 0.00375 | BT104: ='Financial Model'!BT689 -> 0.00375 | BU104: ='Financial Model'!BU689 -> 0.00375 | BV104: ='Financial Model'!BV689 -> 0.00375 | BW104: ='Financial Model'!BW689 -> 0.00375 | BX104: ='Financial Model'!BX689 -> 0.00375 | BY104: ='Financial Model'!BY689 -> 0.00375 | BZ104: ='Financial Model'!BZ689 -> 0.00375 | CA104: ='Financial Model'!CA689 -> 0.00375 | CB104: ='Financial Model'!CB689 -> 0.00375 | CC104: ='Financial Model'!CC689 -> 0.00375 | CD104: ='Financial Model'!CD689 -> 0.00375 | CE104: ='Financial Model'!CE689 -> 0.00375 | CF104: ='Financial Model'!CF689 -> 0.00375 | CG104: ='Financial Model'!CG689 -> 0.00375 | CH104: ='Financial Model'!CH689 -> 0.00375 | CI104: ='Financial Model'!CI689 -> 0.00375 | CJ104: ='Financial Model'!CJ689 -> 0.00375 | CK104: ='Financial Model'!CK689 -> 0.00375 | CL104: ='Financial Model'!CL689 -> 0.00375 | CM104: ='Financial Model'!CM689 -> 0.00375 | CN104: ='Financial Model'!CN689 -> 0.00375 | CO104: ='Financial Model'!CO689 -> 0.00375 | CP104: ='Financial Model'!CP689 -> 0.00375 | CQ104: ='Financial Model'!CQ689 -> 0.00375 | CR104: ='Financial Model'!CR689 -> 0.00375 | CS104: ='Financial Model'!CS689 -> 0.00375 | CT104: ='Financial Model'!CT689 -> 0.00375 | CU104: ='Financial Model'!CU689 -> 0.00375 | CV104: ='Financial Model'!CV689 -> 0.00375 | CW104: ='Financial Model'!CW689 -> 0.00375 | CX104: ='Financial Model'!CX689 -> 0.00375 | CY104: ='Financial Model'!CY689 -> 0.00375 | CZ104: ='Financial Model'!CZ689 -> 0.00375 | DA104: ='Financial Model'!DA689 -> 0.00375 | DB104: ='Financial Model'!DB689 -> 0.00375 | DC104: ='Financial Model'!DC689 -> 0.00375 | DD104: ='Financial Model'!DD689 -> 0.00375 | DE104: ='Financial Model'!DE689 -> 0.00375 | DF104: ='Financial Model'!DF689 -> 0.00375 | DG104: ='Financial Model'!DG689 -> 0.00375 | DH104: ='Financial Model'!DH689 -> 0.00375 | DI104: ='Financial Model'!DI689 -> 0.00375 | DJ104: ='Financial Model'!DJ689 -> 0.00375 | DK104: ='Financial Model'!DK689 -> 0.00375 | DL104: ='Financial Model'!DL689 -> 0.00375 | DM104: ='Financial Model'!DM689 -> 0.00375 | DN104: ='Financial Model'!DN689 -> 0.00375 | DO104: ='Financial Model'!DO689 -> 0.00375 | DP104: ='Financial Model'!DP689 -> 0.00375 | DQ104: ='Financial Model'!DQ689 -> 0.00375 | DR104: ='Financial Model'!DR689 -> 0.00375 | DS104: ='Financial Model'!DS689 -> 0.00375 | DT104: ='Financial Model'!DT689 -> 0.00375 | DU104: ='Financial Model'!DU689 -> 0.00375 | DV104: ='Financial Model'!DV689 -> 0.00375 | DW104: ='Financial Model'!DW689 -> 0.00375 | DX104: ='Financial Model'!DX689 -> 0.00375 | DY104: ='Financial Model'!DY689 -> 0.00375 | DZ104: ='Financial Model'!DZ689 -> 0.00375 | EA104: ='Financial Model'!EA689 -> 0.00375 | EB104: ='Financial Model'!EB689 -> 0.00375 | EC104: ='Financial Model'!EC689 -> 0.00375 | ED104: ='Financial Model'!ED689 -> 0.00375 | EE104: ='Financial Model'!EE689 -> 0.00375 | EF104: ='Financial Model'!EF689 -> 0.00375 | EG104: ='Financial Model'!EG689 -> 0.00375 | EH104: ='Financial Model'!EH689 -> 0.00375 | EI104: ='Financial Model'!EI689 -> 0.00375 | EJ104: ='Financial Model'!EJ689 -> 0.00375 | EK104: ='Financial Model'!EK689 -> 0.00375 | EL104: ='Financial Model'!EL689 -> 0.00375 | EM104: ='Financial Model'!EM689 -> 0.00375 | EN104: ='Financial Model'!EN689 -> 0.00375 | EO104: ='Financial Model'!EO689 -> 0.00375 | EP104: ='Financial Model'!EP689 -> 0.00375 | EQ104: ='Financial Model'!EQ689 -> 0.00375 | ER104: ='Financial Model'!ER689 -> 0.00375 | ES104: ='Financial Model'!ES689 -> 0.00375 | ET104: ='Financial Model'!ET689 -> 0.00375 | EU104: ='Financial Model'!EU689 -> 0.00375 | EV104: ='Financial Model'!EV689 -> 0.00375 | EW104: ='Financial Model'!EW689 -> 0.00375 | EX104: ='Financial Model'!EX689 -> 0.00375 | EY104: ='Financial Model'!EY689 -> 0.00375 | EZ104: ='Financial Model'!EZ689 -> 0.00375 | FA104: ='Financial Model'!FA689 -> 0.00375 | FB104: ='Financial Model'!FB689 -> 0.00375 | FC104: ='Financial Model'!FC689 -> 0.00375 | FD104: ='Financial Model'!FD689 -> 0.00375 | FE104: ='Financial Model'!FE689 -> 0.00375 | FF104: ='Financial Model'!FF689 -> 0.00375 | FG104: ='Financial Model'!FG689 -> 0.00375 | FH104: ='Financial Model'!FH689 -> 0.00375 | FI104: ='Financial Model'!FI689 -> 0.00375 | FJ104: ='Financial Model'!FJ689 -> 0.00375 | FK104: ='Financial Model'!FK689 -> 0.00375 | FL104: ='Financial Model'!FL689 -> 0.00375 | FM104: ='Financial Model'!FM689 -> 0.00375 | FN104: ='Financial Model'!FN689 -> 0.00375 | FO104: ='Financial Model'!FO689 -> 0.00375 | FP104: ='Financial Model'!FP689 -> 0.00375 | FQ104: ='Financial Model'!FQ689 -> 0.00375 | FR104: ='Financial Model'!FR689 -> 0.00375 | FS104: ='Financial Model'!FS689 -> 0.00375 | FT104: ='Financial Model'!FT689 -> 0.00375 | FU104: ='Financial Model'!FU689 -> 0.00375 | FV104: ='Financial Model'!FV689 -> 0.00375 | FW104: ='Financial Model'!FW689 -> 0.00375 | FX104: ='Financial Model'!FX689 -> 0.00375 | FY104: ='Financial Model'!FY689 -> 0.00375 | FZ104: ='Financial Model'!FZ689 -> 0.00375 | GA104: ='Financial Model'!GA689 -> 0.00375 | GB104: ='Financial Model'!GB689 -> 0.00375 | GC104: ='Financial Model'!GC689 -> 0.00375 | GD104: ='Financial Model'!GD689 -> 0.00375 | GE104: ='Financial Model'!GE689 -> 0.00375 | GF104: ='Financial Model'!GF689 -> 0.00375 | GG104: ='Financial Model'!GG689 -> 0.00375 | GH104: ='Financial Model'!GH689 -> 0.00375 | GI104: ='Financial Model'!GI689 -> 0.00375 | GJ104: ='Financial Model'!GJ689 -> 0.00375 | GK104: ='Financial Model'!GK689 -> 0.00375 | GL104: ='Financial Model'!GL689 -> 0.00375 | GM104: ='Financial Model'!GM689 -> 0.00375 | GN104: ='Financial Model'!GN689 -> 0.00375 | GO104: ='Financial Model'!GO689 -> 0.00375 | GP104: ='Financial Model'!GP689 -> 0.00375 | GQ104: ='Financial Model'!GQ689 -> 0.00375 | GR104: ='Financial Model'!GR689 -> 0.00375 | GS104: ='Financial Model'!GS689 -> 0.00375 | GT104: ='Financial Model'!GT689 -> 0.00375 | GU104: ='Financial Model'!GU689 -> 0.00375 | GV104: ='Financial Model'!GV689 -> 0.00375 | GW104: ='Financial Model'!GW689 -> 0.00375 | GX104: ='Financial Model'!GX689 -> 0.00375 | GY104: ='Financial Model'!GY689 -> 0.00375 | GZ104: ='Financial Model'!GZ689 -> 0.00375
